Workbook

Sheet Report - ALL (DASHBOARD)
A2: Dashboard | B2: Select Parameter: | F2: Select Statistic: | I2: Select Seasonal Period: | L2: Do you want to convert CFS values to TAF/Mon? | W2: 38
W3: 1
W4: 14
L5: News | W5: TRUE
L6: - parameter list updated to include all items on the appendix list (in addition to other locations of interest)
L7: - year type sorting is now done by calendar year
L8: - year type sorting is provided for 60-20-20 index as well as 40-30-30 index
L9: - format modified to be consistent with appendix reports
L10: - check out the new spinners!
B13: =CONCATENATE('Report Data'!$P$7," / seasonal statistics (",$W$2,"-",$W$3,"-",$W$4,"-",IF(NOT($W$5),1,2),"a):") -> Total Sites Release / seasonal statistics (38-1-14-2a):
C17: ='Report Data'!P6 -> January-December
C18: ='Report Data'!P7 -> Total Sites Release
C19: ='Report Data'!P9 -> (C17604/FLOW-CHANNEL)
C20: ='Report Data'!P8 -> Averages
C21: ='Report Data'!P11 -> Volume (TAF) | F21: =CONCATENATE("Difference from ",'Report Data'!Q13) -> Difference from NAA 041222
C25: =IF('Report Data'!O14=0,"",'Report Data'!O14) -> NAA 041222 | E25: =IFERROR('Report Data'!P14,"") -> 0
C26: =IF('Report Data'!O15=0,"",'Report Data'!O15) -> NAA 041122 2035CT | E26: =IFERROR('Report Data'!P15,"") -> 0 | F26: =IFERROR('Report Data'!Q15,"") -> 0
C27: =IF('Report Data'!O16=0,"",'Report Data'!O16) -> ALT 3A 041222 | E27: =IFERROR('Report Data'!P16,"") -> 255.0201703 | F27: =IFERROR('Report Data'!Q16,"") -> 255.0201703
C28: =IF('Report Data'!O17=0,"",'Report Data'!O17) -> ALT 3A 041122 2035CT | E28: =IFERROR('Report Data'!P17,"") -> 283.4598202 | F28: =IFERROR('Report Data'!Q17,"") -> 283.4598202
C29: =IF('Report Data'!O18=0,"",'Report Data'!O18) -> ALT 3B 041222 | E29: =IFERROR('Report Data'!P18,"") -> 242.0704287 | F29: =IFERROR('Report Data'!Q18,"") -> 242.0704287
C30: =IF('Report Data'!O19=0,"",'Report Data'!O19) -> ALT 3B 041122 2035CT | E30: =IFERROR('Report Data'!P19,"") -> 271.3820517 | F30: =IFERROR('Report Data'!Q19,"") -> 271.3820517
B60: =CONCATENATE('Report Data'!$P$7," / monthly statistics (",$W$2,"-",$W$3,"-",$W$4,"-",IF(NOT($W$5),1,2),"b):") -> Total Sites Release / monthly statistics (38-1-14-2b):
B88: =CONCATENATE('Report Data'!$P$7," / time series (",$W$2,"-",$W$3,"-",$W$4,"-",IF(NOT($W$5),1,2),"c):") -> Total Sites Release / time series (38-1-14-2c):

Sheet Chart - Prob Exc
S2: Select Parameter: | X2: Select Statistic: | AB2: Select Seasonal Period: | AE2: Do you want to convert CFS values to TAF/Mon?

Sheet Chart - Pattern
S2: Select Parameter: | X2: Select Statistic: | AB2: Select Seasonal Period: | AE2: Do you want to convert CFS values to TAF/Mon?

Sheet Chart - WYT
S2: Select Parameter: | X2: Select Statistic: | AB2: Select Seasonal Period: | AE2: Do you want to convert CFS values to TAF/Mon?

Sheet Report Data
A2: Information, Tables and Calculations for Reports
A4: Table of Selected Values for Monthly Chart: | O4: Trend Evaluation: | U4: Water Year Type Averages:
A6: Title: | B6: ='Compile Data'!$B$5 -> Total Sites Release | O6: Title: | P6: =INDEX(Other!$B$9:$B$33,'Report - ALL (DASHBOARD)'!$W$4) -> January-December | U6: Title: | V6: =INDEX(Other!$B$9:$B$33,'Report - ALL (DASHBOARD)'!$W$4) -> January-December
B7: =INDEX(Other!$C$9:$C$35,'Report - ALL (DASHBOARD)'!$W$3) -> Averages | P7: ='Compile Data'!$B$5 -> Total Sites Release | V7: ='Compile Data'!$B$5 -> Total Sites Release
B8: =CONCATENATE("(",'Compile Data'!$B$6,"/",'Compile Data'!$B$7,")") -> (C17604/FLOW-CHANNEL) | P8: =CONCATENATE(INDEX(Other!$C$9:$C$35,'Report - ALL (DASHBOARD)'!$W$3)," ",IF('Report - ALL (DASHBOARD)'!$W$3>4,IF(AND('Compile Data'!$B$10="TAF",'Compile Data'!$B$8="PER-AVER"),"Totals","Averages"),"")) -> Averages | V8: =CONCATENATE(INDEX(Other!$C$9:$C$35,'Report - ALL (DASHBOARD)'!$W$3)," ",IF('Report - ALL (DASHBOARD)'!$W$3>4,IF(AND('Compile Data'!$B$10="TAF",'Compile Data'!$B$8="PER-AVER"),"Totals","Averages"),"")) -> Averages
P9: =CONCATENATE("(",'Compile Data'!$B$6,"/",'Compile Data'!$B$7,")") -> (C17604/FLOW-CHANNEL) | V9: =CONCATENATE("(",'Compile Data'!$B$6,"/",'Compile Data'!$B$7,")") -> (C17604/FLOW-CHANNEL)
A11: Y-axis: | B11: =IF('Compile Data'!$B$10="CFS","Flow (CFS)",IF('Compile Data'!$B$10="TAF","Volume (TAF)",IF('Compile Data'!$B$10="KM","POSITION (KM)",""))) -> Volume (TAF) | P11: =IF('Compile Data'!$B$10="CFS","Flow (CFS)",IF('Compile Data'!$B$10="TAF","Volume (TAF)",IF('Compile Data'!$B$10="KM","POSITION (KM)",""))) -> Volume (TAF) | V11: =IF('Compile Data'!$B$10="CFS","Flow (CFS)",IF('Compile Data'!$B$10="TAF","Volume (TAF)",IF('Compile Data'!$B$10="KM","POSITION (KM)",""))) -> Volume (TAF)
Q12: Diff from | R12: Diff from
B13: OCT | C13: NOV | D13: DEC | E13: JAN | F13: FEB | G13: MAR | H13: APR | I13: MAY | J13: JUN | K13: JUL | L13: AUG | M13: SEP | P13: Value | Q13: =$O$14 -> NAA 041222 | R13: =$O$15 -> NAA 041122 2035CT | V13: Wet | W13: Above Normal | X13: Below Normal | Y13: Dry | Z13: Critically Dry
A14: ='Compile Data'!$B$1 -> NAA 041222 | B14: =INDEX('Compile Data'!L$95:L$120,'Report - ALL (DASHBOARD)'!$W$3) -> 0 | C14: =INDEX('Compile Data'!M$95:M$120,'Report - ALL (DASHBOARD)'!$W$3) -> 0 | D14: =INDEX('Compile Data'!N$95:N$120,'Report - ALL (DASHBOARD)'!$W$3) -> 0 | E14: =INDEX('Compile Data'!O$95:O$120,'Report - ALL (DASHBOARD)'!$W$3) -> 0 | F14: =INDEX('Compile Data'!P$95:P$120,'Report - ALL (DASHBOARD)'!$W$3) -> 0 | G14: =INDEX('Compile Data'!Q$95:Q$120,'Report - ALL (DASHBOARD)'!$W$3) -> 0 | H14: =INDEX('Compile Data'!R$95:R$120,'Report - ALL (DASHBOARD)'!$W$3) -> 0 | I14: =INDEX('Compile Data'!S$95:S$120,'Report - ALL (DASHBOARD)'!$W$3) -> 0 | J14: =INDEX('Compile Data'!T$95:T$120,'Report - ALL (DASHBOARD)'!$W$3) -> 0 | K14: =INDEX('Compile Data'!U$95:U$120,'Report - ALL (DASHBOARD)'!$W$3) -> 0 | L14: =INDEX('Compile Data'!V$95:V$120,'Report - ALL (DASHBOARD)'!$W$3) -> 0 | M14: =INDEX('Compile Data'!W$95:W$120,'Report - ALL (DASHBOARD)'!$W$3) -> 0 | O14: ='Compile Data'!$B$1 -> NAA 041222 | P14: =INDEX('Compile Data'!$L$95:$AI$120,'Report - ALL (DASHBOARD)'!$W$3,'Report - ALL (DASHBOARD)'!$W$4) -> 0 | U14: ='Compile Data'!$B$1 -> NAA 041222 | V14: =INDEX('Compile Data'!$L$95:$AI$120,14,'Report - ALL (DASHBOARD)'!$W$4) -> 0 | W14: =INDEX('Compile Data'!$L$95:$AI$120,15,'Report - ALL (DASHBOARD)'!$W$4) -> 0 | X14: =INDEX('Compile Data'!$L$95:$AI$120,16,'Report - ALL (DASHBOARD)'!$W$4) -> 0 | Y14: =INDEX('Compile Data'!$L$95:$AI$120,17,'Report - ALL (DASHBOARD)'!$W$4) -> 0 | Z14: =INDEX('Compile Data'!$L$95:$AI$120,18,'Report - ALL (DASHBOARD)'!$W$4) -> 0
A15: ='Compile Data'!$C$1 -> NAA 041122 2035CT | B15: =INDEX('Compile Data'!AL$95:AL$120,'Report - ALL (DASHBOARD)'!$W$3) -> 0 | C15: =INDEX('Compile Data'!AM$95:AM$120,'Report - ALL (DASHBOARD)'!$W$3) -> 0 | D15: =INDEX('Compile Data'!AN$95:AN$120,'Report - ALL (DASHBOARD)'!$W$3) -> 0 | E15: =INDEX('Compile Data'!AO$95:AO$120,'Report - ALL (DASHBOARD)'!$W$3) -> 0 | F15: =INDEX('Compile Data'!AP$95:AP$120,'Report - ALL (DASHBOARD)'!$W$3) -> 0 | G15: =INDEX('Compile Data'!AQ$95:AQ$120,'Report - ALL (DASHBOARD)'!$W$3) -> 0 | H15: =INDEX('Compile Data'!AR$95:AR$120,'Report - ALL (DASHBOARD)'!$W$3) -> 0 | I15: =INDEX('Compile Data'!AS$95:AS$120,'Report - ALL (DASHBOARD)'!$W$3) -> 0 | J15: =INDEX('Compile Data'!AT$95:AT$120,'Report - ALL (DASHBOARD)'!$W$3) -> 0 | K15: =INDEX('Compile Data'!AU$95:AU$120,'Report - ALL (DASHBOARD)'!$W$3) -> 0 | L15: =INDEX('Compile Data'!AV$95:AV$120,'Report - ALL (DASHBOARD)'!$W$3) -> 0 | M15: =INDEX('Compile Data'!AW$95:AW$120,'Report - ALL (DASHBOARD)'!$W$3) -> 0 | O15: ='Compile Data'!$C$1 -> NAA 041122 2035CT | P15: =INDEX('Compile Data'!$AL$95:$BI$120,'Report - ALL (DASHBOARD)'!$W$3,'Report - ALL (DASHBOARD)'!$W$4) -> 0 | Q15: =$P15-$P$14 -> 0 | U15: ='Compile Data'!$C$1 -> NAA 041122 2035CT | V15: =INDEX('Compile Data'!$AL$95:$BI$120,14,'Report - ALL (DASHBOARD)'!$W$4) -> 0 | W15: =INDEX('Compile Data'!$AL$95:$BI$120,15,'Report - ALL (DASHBOARD)'!$W$4) -> 0 | X15: =INDEX('Compile Data'!$AL$95:$BI$120,16,'Report - ALL (DASHBOARD)'!$W$4) -> 0 | Y15: =INDEX('Compile Data'!$AL$95:$BI$120,17,'Report - ALL (DASHBOARD)'!$W$4) -> 0 | Z15: =INDEX('Compile Data'!$AL$95:$BI$120,18,'Report - ALL (DASHBOARD)'!$W$4) -> 0
A16: ='Compile Data'!$D$1 -> ALT 3A 041222 | B16: =INDEX('Compile Data'!BL$95:BL$120,'Report - ALL (DASHBOARD)'!$W$3) -> 23.58367804 | C16: =INDEX('Compile Data'!BM$95:BM$120,'Report - ALL (DASHBOARD)'!$W$3) -> 9.61728646 | D16: =INDEX('Compile Data'!BN$95:BN$120,'Report - ALL (DASHBOARD)'!$W$3) -> 1.248722608 | E16: =INDEX('Compile Data'!BO$95:BO$120,'Report - ALL (DASHBOARD)'!$W$3) -> 0.01146341614 | F16: =INDEX('Compile Data'!BP$95:BP$120,'Report - ALL (DASHBOARD)'!$W$3) -> 0.002195419455 | G16: =INDEX('Compile Data'!BQ$95:BQ$120,'Report - ALL (DASHBOARD)'!$W$3) -> 0.4538783843 | H16: =INDEX('Compile Data'!BR$95:BR$120,'Report - ALL (DASHBOARD)'!$W$3) -> 8.279453825 | I16: =INDEX('Compile Data'!BS$95:BS$120,'Report - ALL (DASHBOARD)'!$W$3) -> 19.83851178 | J16: =INDEX('Compile Data'!BT$95:BT$120,'Report - ALL (DASHBOARD)'!$W$3) -> 47.85346392 | K16: =INDEX('Compile Data'!BU$95:BU$120,'Report - ALL (DASHBOARD)'!$W$3) -> 58.68683338 | L16: =INDEX('Compile Data'!BV$95:BV$120,'Report - ALL (DASHBOARD)'!$W$3) -> 51.24987383 | M16: =INDEX('Compile Data'!BW$95:BW$120,'Report - ALL (DASHBOARD)'!$W$3) -> 32.90565512 | O16: ='Compile Data'!$D$1 -> ALT 3A 041222 | P16: =INDEX('Compile Data'!$BL$95:$CI$120,'Report - ALL (DASHBOARD)'!$W$3,'Report - ALL (DASHBOARD)'!$W$4) -> 255.0201703 | Q16: 255.0201703 | R16: =$P16-$P$15 -> 255.0201703 | U16: ='Compile Data'!$D$1 -> ALT 3A 041222 | V16: =INDEX('Compile Data'!$BL$95:$CI$120,14,'Report - ALL (DASHBOARD)'!$W$4) -> 78.61083814 | W16: =INDEX('Compile Data'!$BL$95:$CI$120,15,'Report - ALL (DASHBOARD)'!$W$4) -> 320.649731 | X16: =INDEX('Compile Data'!$BL$95:$CI$120,16,'Report - ALL (DASHBOARD)'!$W$4) -> 284.6753544 | Y16: =INDEX('Compile Data'!$BL$95:$CI$120,17,'Report - ALL (DASHBOARD)'!$W$4) -> 442.1697514 | Z16: =INDEX('Compile Data'!$BL$95:$CI$120,18,'Report - ALL (DASHBOARD)'!$W$4) -> 261.757873
A17: ='Compile Data'!$E$1 -> ALT 3A 041122 2035CT | B17: =INDEX('Compile Data'!CL$95:CL$120,'Report - ALL (DASHBOARD)'!$W$3) -> 26.12117891 | C17: =INDEX('Compile Data'!CM$95:CM$120,'Report - ALL (DASHBOARD)'!$W$3) -> 8.110577029 | D17: =INDEX('Compile Data'!CN$95:CN$120,'Report - ALL (DASHBOARD)'!$W$3) -> 1.657015737 | E17: =INDEX('Compile Data'!CO$95:CO$120,'Report - ALL (DASHBOARD)'!$W$3) -> 0 | F17: =INDEX('Compile Data'!CP$95:CP$120,'Report - ALL (DASHBOARD)'!$W$3) -> 0 | G17: =INDEX('Compile Data'!CQ$95:CQ$120,'Report - ALL (DASHBOARD)'!$W$3) -> 0.4549221743 | H17: =INDEX('Compile Data'!CR$95:CR$120,'Report - ALL (DASHBOARD)'!$W$3) -> 11.6455874 | I17: =INDEX('Compile Data'!CS$95:CS$120,'Report - ALL (DASHBOARD)'!$W$3) -> 31.3120244 | J17: =INDEX('Compile Data'!CT$95:CT$120,'Report - ALL (DASHBOARD)'!$W$3) -> 48.36456976 | K17: =INDEX('Compile Data'!CU$95:CU$120,'Report - ALL (DASHBOARD)'!$W$3) -> 61.41666756 | L17: =INDEX('Compile Data'!CV$95:CV$120,'Report - ALL (DASHBOARD)'!$W$3) -> 54.65620927 | M17: =INDEX('Compile Data'!CW$95:CW$120,'Report - ALL (DASHBOARD)'!$W$3) -> 37.96573602 | O17: ='Compile Data'!$E$1 -> ALT 3A 041122 2035CT | P17: =INDEX('Compile Data'!$CL$95:$DI$120,'Report - ALL (DASHBOARD)'!$W$3,'Report - ALL (DASHBOARD)'!$W$4) -> 283.4598202 | Q17: 283.4598202 | R17: =$P17-$P$15 -> 283.4598202 | U17: ='Compile Data'!$E$1 -> ALT 3A 041122 2035CT | V17: =INDEX('Compile Data'!$CL$95:$DI$120,14,'Report - ALL (DASHBOARD)'!$W$4) -> 101.2881488 | W17: =INDEX('Compile Data'!$CL$95:$DI$120,15,'Report - ALL (DASHBOARD)'!$W$4) -> 369.4777004 | X17: =INDEX('Compile Data'!$CL$95:$DI$120,16,'Report - ALL (DASHBOARD)'!$W$4) -> 345.3585101 | Y17: =INDEX('Compile Data'!$CL$95:$DI$120,17,'Report - ALL (DASHBOARD)'!$W$4) -> 442.6646567 | Z17: =INDEX('Compile Data'!$CL$95:$DI$120,18,'Report - ALL (DASHBOARD)'!$W$4) -> 288.2929917
A18: ='Compile Data'!$F$1 -> ALT 3B 041222 | B18: =INDEX('Compile Data'!DL$95:DL$120,'Report - ALL (DASHBOARD)'!$W$3) -> 25.14199092 | C18: =INDEX('Compile Data'!DM$95:DM$120,'Report - ALL (DASHBOARD)'!$W$3) -> 12.23935878 | D18: =INDEX('Compile Data'!DN$95:DN$120,'Report - ALL (DASHBOARD)'!$W$3) -> 1.280712417 | E18: =INDEX('Compile Data'!DO$95:DO$120,'Report - ALL (DASHBOARD)'!$W$3) -> 0.011463417 | F18: =INDEX('Compile Data'!DP$95:DP$120,'Report - ALL (DASHBOARD)'!$W$3) -> 0.002270564289 | G18: =INDEX('Compile Data'!DQ$95:DQ$120,'Report - ALL (DASHBOARD)'!$W$3) -> 0.4678692304 | H18: =INDEX('Compile Data'!DR$95:DR$120,'Report - ALL (DASHBOARD)'!$W$3) -> 8.172802846 | I18: =INDEX('Compile Data'!DS$95:DS$120,'Report - ALL (DASHBOARD)'!$W$3) -> 18.42385921 | J18: =INDEX('Compile Data'!DT$95:DT$120,'Report - ALL (DASHBOARD)'!$W$3) -> 43.57984642 | K18: =INDEX('Compile Data'!DU$95:DU$120,'Report - ALL (DASHBOARD)'!$W$3) -> 52.00606471 | L18: =INDEX('Compile Data'!DV$95:DV$120,'Report - ALL (DASHBOARD)'!$W$3) -> 46.47110836 | M18: =INDEX('Compile Data'!DW$95:DW$120,'Report - ALL (DASHBOARD)'!$W$3) -> 32.7689386 | O18: ='Compile Data'!$F$1 -> ALT 3B 041222 | P18: =INDEX('Compile Data'!$DL$95:$EI$120,'Report - ALL (DASHBOARD)'!$W$3,'Report - ALL (DASHBOARD)'!$W$4) -> 242.0704287 | Q18: =$P18-$P$14 -> 242.0704287 | R18: =$P18-$P$15 -> 242.0704287 | U18: ='Compile Data'!$F$1 -> ALT 3B 041222 | V18: =INDEX('Compile Data'!$DL$95:$EI$120,14,'Report - ALL (DASHBOARD)'!$W$4) -> 82.43735302 | W18: =INDEX('Compile Data'!$DL$95:$EI$120,15,'Report - ALL (DASHBOARD)'!$W$4) -> 263.8927467 | X18: =INDEX('Compile Data'!$DL$95:$EI$120,16,'Report - ALL (DASHBOARD)'!$W$4) -> 242.160444 | Y18: =INDEX('Compile Data'!$DL$95:$EI$120,17,'Report - ALL (DASHBOARD)'!$W$4) -> 433.168251 | Z18: =INDEX('Compile Data'!$DL$95:$EI$120,18,'Report - ALL (DASHBOARD)'!$W$4) -> 281.1865498
A19: ='Compile Data'!$G$1 -> ALT 3B 041122 2035CT | B19: =INDEX('Compile Data'!EL$95:EL$120,'Report - ALL (DASHBOARD)'!$W$3) -> 27.63886704 | C19: =INDEX('Compile Data'!EM$95:EM$120,'Report - ALL (DASHBOARD)'!$W$3) -> 9.00675179 | D19: =INDEX('Compile Data'!EN$95:EN$120,'Report - ALL (DASHBOARD)'!$W$3) -> 1.753008814 | E19: =INDEX('Compile Data'!EO$95:EO$120,'Report - ALL (DASHBOARD)'!$W$3) -> 7.268859966e-10 | F19: =INDEX('Compile Data'!EP$95:EP$120,'Report - ALL (DASHBOARD)'!$W$3) -> 1.198791342e-06 | G19: =INDEX('Compile Data'!EQ$95:EQ$120,'Report - ALL (DASHBOARD)'!$W$3) -> 0.4561834052 | H19: =INDEX('Compile Data'!ER$95:ER$120,'Report - ALL (DASHBOARD)'!$W$3) -> 10.63346779 | I19: =INDEX('Compile Data'!ES$95:ES$120,'Report - ALL (DASHBOARD)'!$W$3) -> 28.30942922 | J19: =INDEX('Compile Data'!ET$95:ET$120,'Report - ALL (DASHBOARD)'!$W$3) -> 44.72666373 | K19: =INDEX('Compile Data'!EU$95:EU$120,'Report - ALL (DASHBOARD)'!$W$3) -> 56.6094838 | L19: =INDEX('Compile Data'!EV$95:EV$120,'Report - ALL (DASHBOARD)'!$W$3) -> 50.88805594 | M19: =INDEX('Compile Data'!EW$95:EW$120,'Report - ALL (DASHBOARD)'!$W$3) -> 39.70802077 | O19: ='Compile Data'!$G$1 -> ALT 3B 041122 2035CT | P19: =INDEX('Compile Data'!$EL$95:$FI$120,'Report - ALL (DASHBOARD)'!$W$3,'Report - ALL (DASHBOARD)'!$W$4) -> 271.3820517 | Q19: 271.3820517 | R19: =$P19-$P$15 -> 271.3820517 | U19: ='Compile Data'!$G$1 -> ALT 3B 041122 2035CT | V19: =INDEX('Compile Data'!$EL$95:$FI$120,14,'Report - ALL (DASHBOARD)'!$W$4) -> 106.745236 | W19: =INDEX('Compile Data'!$EL$95:$FI$120,15,'Report - ALL (DASHBOARD)'!$W$4) -> 298.334561 | X19: =INDEX('Compile Data'!$EL$95:$FI$120,16,'Report - ALL (DASHBOARD)'!$W$4) -> 310.5874936 | Y19: =INDEX('Compile Data'!$EL$95:$FI$120,17,'Report - ALL (DASHBOARD)'!$W$4) -> 448.3588759 | Z19: =INDEX('Compile Data'!$EL$95:$FI$120,18,'Report - ALL (DASHBOARD)'!$W$4) -> 292.1837668
A21: Annuals Plot: | O21: Exceedence Plot:
A23: Title: | B23: =INDEX(Other!$B$9:$B$33,'Report - ALL (DASHBOARD)'!$W$4) -> January-December | O23: Title: | P23: =INDEX(Other!$B$9:$B$33,'Report - ALL (DASHBOARD)'!$W$4) -> January-December
B24: ='Compile Data'!$B$5 -> Total Sites Release | P24: ='Compile Data'!$B$5 -> Total Sites Release
B25: =IF('Compile Data'!$B$10="CFS","Flow (CFS)",IF('Compile Data'!$B$10="TAF","Volume (TAF)",IF('Compile Data'!$B$10="KM","POSITION (KM)",""))) -> Volume (TAF) | P25: =IF('Compile Data'!$B$10="CFS","Flow (CFS)",IF('Compile Data'!$B$10="TAF","Volume (TAF)",IF('Compile Data'!$B$10="KM","POSITION (KM)",""))) -> Volume (TAF)
B27: ='Compile Data'!$B$1 -> NAA 041222 | C27: ='Compile Data'!$C$1 -> NAA 041122 2035CT | D27: ='Compile Data'!$D$1 -> ALT 3A 041222 | E27: ='Compile Data'!$E$1 -> ALT 3A 041122 2035CT | F27: ='Compile Data'!$F$1 -> ALT 3B 041222 | G27: ='Compile Data'!$G$1 -> ALT 3B 041122 2035CT | Q27: ='Compile Data'!$B$1 -> NAA 041222 | R27: ='Compile Data'!$C$1 -> NAA 041122 2035CT | S27: ='Compile Data'!$D$1 -> ALT 3A 041222 | T27: ='Compile Data'!$E$1 -> ALT 3A 041122 2035CT | U27: ='Compile Data'!$F$1 -> ALT 3B 041222 | V27: ='Compile Data'!$G$1 -> ALT 3B 041122 2035CT
A28: 1922 | B28: =INDEX('Compile Data'!$L$12:$AI$93,$A28-1921,'Report - ALL (DASHBOARD)'!$W$4) -> 0 | C28: =INDEX('Compile Data'!$AL$12:$BI$93,$A28-1921,'Report - ALL (DASHBOARD)'!$W$4) -> 0 | D28: =INDEX('Compile Data'!$BL$12:$CI$93,$A28-1921,'Report - ALL (DASHBOARD)'!$W$4) -> 223.4220875 | E28: =INDEX('Compile Data'!$CL$12:$DI$93,$A28-1921,'Report - ALL (DASHBOARD)'!$W$4) -> 265.5457 | F28: =INDEX('Compile Data'!$DL$12:$EI$93,$A28-1921,'Report - ALL (DASHBOARD)'!$W$4) -> 223.8388427 | G28: =INDEX('Compile Data'!$EL$12:$FI$93,$A28-1921,'Report - ALL (DASHBOARD)'!$W$4) -> 265.5430366 | O28: 1 | P28: =(O28-1)/81 -> 0 | Q28: =INDEX('Compile Data'!$L$123:$AI$204,$O28,'Report - ALL (DASHBOARD)'!$W$4) -> 0 | R28: =INDEX('Compile Data'!$AL$123:$BI$204,$O28,'Report - ALL (DASHBOARD)'!$W$4) -> 0 | S28: =INDEX('Compile Data'!$BL$123:$CI$204,$O28,'Report - ALL (DASHBOARD)'!$W$4) -> 741.6049314 | T28: =INDEX('Compile Data'!$CL$123:$DI$204,$O28,'Report - ALL (DASHBOARD)'!$W$4) -> 787.2501037 | U28: =INDEX('Compile Data'!$DL$123:$EI$204,$O28,'Report - ALL (DASHBOARD)'!$W$4) -> 750.1676258 | V28: =INDEX('Compile Data'!$EL$123:$FI$204,$O28,'Report - ALL (DASHBOARD)'!$W$4) -> 767.0227484
A29: =A28+1 -> 1923 | B29: =INDEX('Compile Data'!$L$12:$AI$93,$A29-1921,'Report - ALL (DASHBOARD)'!$W$4) -> 0 | C29: =INDEX('Compile Data'!$AL$12:$BI$93,$A29-1921,'Report - ALL (DASHBOARD)'!$W$4) -> 0 | D29: =INDEX('Compile Data'!$BL$12:$CI$93,$A29-1921,'Report - ALL (DASHBOARD)'!$W$4) -> 333.0485042 | E29: =INDEX('Compile Data'!$CL$12:$DI$93,$A29-1921,'Report - ALL (DASHBOARD)'!$W$4) -> 227.3020155 | F29: =INDEX('Compile Data'!$DL$12:$EI$93,$A29-1921,'Report - ALL (DASHBOARD)'!$W$4) -> 239.6023475 | G29: =INDEX('Compile Data'!$EL$12:$FI$93,$A29-1921,'Report - ALL (DASHBOARD)'!$W$4) -> 118.4678361 | O29: 2 | P29: 0.01234567901 | Q29: =INDEX('Compile Data'!$L$123:$AI$204,$O29,'Report - ALL (DASHBOARD)'!$W$4) -> 0 | R29: =INDEX('Compile Data'!$AL$123:$BI$204,$O29,'Report - ALL (DASHBOARD)'!$W$4) -> 0 | S29: =INDEX('Compile Data'!$BL$123:$CI$204,$O29,'Report - ALL (DASHBOARD)'!$W$4) -> 729.3741708 | T29: =INDEX('Compile Data'!$CL$123:$DI$204,$O29,'Report - ALL (DASHBOARD)'!$W$4) -> 737.61475 | U29: =INDEX('Compile Data'!$DL$123:$EI$204,$O29,'Report - ALL (DASHBOARD)'!$W$4) -> 711.6048767 | V29: =INDEX('Compile Data'!$EL$123:$FI$204,$O29,'Report - ALL (DASHBOARD)'!$W$4) -> 732.2761892
A30: =A29+1 -> 1924 | B30: =INDEX('Compile Data'!$L$12:$AI$93,$A30-1921,'Report - ALL (DASHBOARD)'!$W$4) -> 0 | C30: =INDEX('Compile Data'!$AL$12:$BI$93,$A30-1921,'Report - ALL (DASHBOARD)'!$W$4) -> 0 | D30: =INDEX('Compile Data'!$BL$12:$CI$93,$A30-1921,'Report - ALL (DASHBOARD)'!$W$4) -> 408.3292846 | E30: =INDEX('Compile Data'!$CL$12:$DI$93,$A30-1921,'Report - ALL (DASHBOARD)'!$W$4) -> 520.2048302 | F30: =INDEX('Compile Data'!$DL$12:$EI$93,$A30-1921,'Report - ALL (DASHBOARD)'!$W$4) -> 486.2131749 | G30: =INDEX('Compile Data'!$EL$12:$FI$93,$A30-1921,'Report - ALL (DASHBOARD)'!$W$4) -> 513.7561828 | O30: 3 | P30: 0.02469135802 | Q30: =INDEX('Compile Data'!$L$123:$AI$204,$O30,'Report - ALL (DASHBOARD)'!$W$4) -> 0 | R30: =INDEX('Compile Data'!$AL$123:$BI$204,$O30,'Report - ALL (DASHBOARD)'!$W$4) -> 0 | S30: =INDEX('Compile Data'!$BL$123:$CI$204,$O30,'Report - ALL (DASHBOARD)'!$W$4) -> 697.7414879 | T30: =INDEX('Compile Data'!$CL$123:$DI$204,$O30,'Report - ALL (DASHBOARD)'!$W$4) -> 717.4100878 | U30: =INDEX('Compile Data'!$DL$123:$EI$204,$O30,'Report - ALL (DASHBOARD)'!$W$4) -> 699.5219031 | V30: =INDEX('Compile Data'!$EL$123:$FI$204,$O30,'Report - ALL (DASHBOARD)'!$W$4) -> 698.2605596
A31: 1925 | B31: =INDEX('Compile Data'!$L$12:$AI$93,$A31-1921,'Report - ALL (DASHBOARD)'!$W$4) -> 0 | C31: =INDEX('Compile Data'!$AL$12:$BI$93,$A31-1921,'Report - ALL (DASHBOARD)'!$W$4) -> 0 | D31: =INDEX('Compile Data'!$BL$12:$CI$93,$A31-1921,'Report - ALL (DASHBOARD)'!$W$4) -> 132.3300523 | E31: =INDEX('Compile Data'!$CL$12:$DI$93,$A31-1921,'Report - ALL (DASHBOARD)'!$W$4) -> 208.0055858 | F31: =INDEX('Compile Data'!$DL$12:$EI$93,$A31-1921,'Report - ALL (DASHBOARD)'!$W$4) -> 132.0064366 | G31: =INDEX('Compile Data'!$EL$12:$FI$93,$A31-1921,'Report - ALL (DASHBOARD)'!$W$4) -> 301.7519285 | O31: 4 | P31: 0.03703703704 | Q31: =INDEX('Compile Data'!$L$123:$AI$204,$O31,'Report - ALL (DASHBOARD)'!$W$4) -> 0 | R31: =INDEX('Compile Data'!$AL$123:$BI$204,$O31,'Report - ALL (DASHBOARD)'!$W$4) -> 0 | S31: =INDEX('Compile Data'!$BL$123:$CI$204,$O31,'Report - ALL (DASHBOARD)'!$W$4) -> 683.456945 | T31: =INDEX('Compile Data'!$CL$123:$DI$204,$O31,'Report - ALL (DASHBOARD)'!$W$4) -> 692.881746 | U31: =INDEX('Compile Data'!$DL$123:$EI$204,$O31,'Report - ALL (DASHBOARD)'!$W$4) -> 694.9769282 | V31: =INDEX('Compile Data'!$EL$123:$FI$204,$O31,'Report - ALL (DASHBOARD)'!$W$4) -> 671.5815547
A32: 1926 | B32: =INDEX('Compile Data'!$L$12:$AI$93,$A32-1921,'Report - ALL (DASHBOARD)'!$W$4) -> 0 | C32: =INDEX('Compile Data'!$AL$12:$BI$93,$A32-1921,'Report - ALL (DASHBOARD)'!$W$4) -> 0 | D32: =INDEX('Compile Data'!$BL$12:$CI$93,$A32-1921,'Report - ALL (DASHBOARD)'!$W$4) -> 203.6429764 | E32: =INDEX('Compile Data'!$CL$12:$DI$93,$A32-1921,'Report - ALL (DASHBOARD)'!$W$4) -> 215.1658942 | F32: =INDEX('Compile Data'!$DL$12:$EI$93,$A32-1921,'Report - ALL (DASHBOARD)'!$W$4) -> 205.1598451 | G32: =INDEX('Compile Data'!$EL$12:$FI$93,$A32-1921,'Report - ALL (DASHBOARD)'!$W$4) -> 216.7584688 | O32: 5 | P32: 0.04938271605 | Q32: =INDEX('Compile Data'!$L$123:$AI$204,$O32,'Report - ALL (DASHBOARD)'!$W$4) -> 0 | R32: =INDEX('Compile Data'!$AL$123:$BI$204,$O32,'Report - ALL (DASHBOARD)'!$W$4) -> 0 | S32: =INDEX('Compile Data'!$BL$123:$CI$204,$O32,'Report - ALL (DASHBOARD)'!$W$4) -> 674.2944847 | T32: =INDEX('Compile Data'!$CL$123:$DI$204,$O32,'Report - ALL (DASHBOARD)'!$W$4) -> 691.2438217 | U32: =INDEX('Compile Data'!$DL$123:$EI$204,$O32,'Report - ALL (DASHBOARD)'!$W$4) -> 644.3252178 | V32: =INDEX('Compile Data'!$EL$123:$FI$204,$O32,'Report - ALL (DASHBOARD)'!$W$4) -> 655.6461409
A33: 1927 | B33: =INDEX('Compile Data'!$L$12:$AI$93,$A33-1921,'Report - ALL (DASHBOARD)'!$W$4) -> 0 | C33: =INDEX('Compile Data'!$AL$12:$BI$93,$A33-1921,'Report - ALL (DASHBOARD)'!$W$4) -> 0 | D33: =INDEX('Compile Data'!$BL$12:$CI$93,$A33-1921,'Report - ALL (DASHBOARD)'!$W$4) -> 63.00304454 | E33: =INDEX('Compile Data'!$CL$12:$DI$93,$A33-1921,'Report - ALL (DASHBOARD)'!$W$4) -> 64.137738 | F33: =INDEX('Compile Data'!$DL$12:$EI$93,$A33-1921,'Report - ALL (DASHBOARD)'!$W$4) -> 68.17126307 | G33: =INDEX('Compile Data'!$EL$12:$FI$93,$A33-1921,'Report - ALL (DASHBOARD)'!$W$4) -> 68.8797634 | O33: 6 | P33: 0.06172839506 | Q33: =INDEX('Compile Data'!$L$123:$AI$204,$O33,'Report - ALL (DASHBOARD)'!$W$4) -> 0 | R33: =INDEX('Compile Data'!$AL$123:$BI$204,$O33,'Report - ALL (DASHBOARD)'!$W$4) -> 0 | S33: =INDEX('Compile Data'!$BL$123:$CI$204,$O33,'Report - ALL (DASHBOARD)'!$W$4) -> 636.069419 | T33: =INDEX('Compile Data'!$CL$123:$DI$204,$O33,'Report - ALL (DASHBOARD)'!$W$4) -> 663.0543351 | U33: =INDEX('Compile Data'!$DL$123:$EI$204,$O33,'Report - ALL (DASHBOARD)'!$W$4) -> 642.267806 | V33: =INDEX('Compile Data'!$EL$123:$FI$204,$O33,'Report - ALL (DASHBOARD)'!$W$4) -> 630.4078287
A34: 1928 | B34: =INDEX('Compile Data'!$L$12:$AI$93,$A34-1921,'Report - ALL (DASHBOARD)'!$W$4) -> 0 | C34: =INDEX('Compile Data'!$AL$12:$BI$93,$A34-1921,'Report - ALL (DASHBOARD)'!$W$4) -> 0 | D34: =INDEX('Compile Data'!$BL$12:$CI$93,$A34-1921,'Report - ALL (DASHBOARD)'!$W$4) -> 504.9910343 | E34: =INDEX('Compile Data'!$CL$12:$DI$93,$A34-1921,'Report - ALL (DASHBOARD)'!$W$4) -> 519.7298101 | F34: =INDEX('Compile Data'!$DL$12:$EI$93,$A34-1921,'Report - ALL (DASHBOARD)'!$W$4) -> 423.6552349 | G34: =INDEX('Compile Data'!$EL$12:$FI$93,$A34-1921,'Report - ALL (DASHBOARD)'!$W$4) -> 437.2628184 | O34: 7 | P34: 0.07407407407 | Q34: =INDEX('Compile Data'!$L$123:$AI$204,$O34,'Report - ALL (DASHBOARD)'!$W$4) -> 0 | R34: =INDEX('Compile Data'!$AL$123:$BI$204,$O34,'Report - ALL (DASHBOARD)'!$W$4) -> 0 | S34: =INDEX('Compile Data'!$BL$123:$CI$204,$O34,'Report - ALL (DASHBOARD)'!$W$4) -> 598.2164111 | T34: =INDEX('Compile Data'!$CL$123:$DI$204,$O34,'Report - ALL (DASHBOARD)'!$W$4) -> 660.594577 | U34: =INDEX('Compile Data'!$DL$123:$EI$204,$O34,'Report - ALL (DASHBOARD)'!$W$4) -> 606.4686938 | V34: =INDEX('Compile Data'!$EL$123:$FI$204,$O34,'Report - ALL (DASHBOARD)'!$W$4) -> 627.1492071
A35: 1929 | B35: =INDEX('Compile Data'!$L$12:$AI$93,$A35-1921,'Report - ALL (DASHBOARD)'!$W$4) -> 0 | C35: =INDEX('Compile Data'!$AL$12:$BI$93,$A35-1921,'Report - ALL (DASHBOARD)'!$W$4) -> 0 | D35: =INDEX('Compile Data'!$BL$12:$CI$93,$A35-1921,'Report - ALL (DASHBOARD)'!$W$4) -> 552.9086471 | E35: =INDEX('Compile Data'!$CL$12:$DI$93,$A35-1921,'Report - ALL (DASHBOARD)'!$W$4) -> 584.6574268 | F35: =INDEX('Compile Data'!$DL$12:$EI$93,$A35-1921,'Report - ALL (DASHBOARD)'!$W$4) -> 606.4686938 | G35: =INDEX('Compile Data'!$EL$12:$FI$93,$A35-1921,'Report - ALL (DASHBOARD)'!$W$4) -> 603.3845506 | O35: 8 | P35: 0.08641975309 | Q35: =INDEX('Compile Data'!$L$123:$AI$204,$O35,'Report - ALL (DASHBOARD)'!$W$4) -> 0 | R35: =INDEX('Compile Data'!$AL$123:$BI$204,$O35,'Report - ALL (DASHBOARD)'!$W$4) -> 0 | S35: =INDEX('Compile Data'!$BL$123:$CI$204,$O35,'Report - ALL (DASHBOARD)'!$W$4) -> 592.0925124 | T35: =INDEX('Compile Data'!$CL$123:$DI$204,$O35,'Report - ALL (DASHBOARD)'!$W$4) -> 635.9216218 | U35: =INDEX('Compile Data'!$DL$123:$EI$204,$O35,'Report - ALL (DASHBOARD)'!$W$4) -> 565.8445998 | V35: =INDEX('Compile Data'!$EL$123:$FI$204,$O35,'Report - ALL (DASHBOARD)'!$W$4) -> 621.3292357
A36: 1930 | B36: =INDEX('Compile Data'!$L$12:$AI$93,$A36-1921,'Report - ALL (DASHBOARD)'!$W$4) -> 0 | C36: =INDEX('Compile Data'!$AL$12:$BI$93,$A36-1921,'Report - ALL (DASHBOARD)'!$W$4) -> 0 | D36: =INDEX('Compile Data'!$BL$12:$CI$93,$A36-1921,'Report - ALL (DASHBOARD)'!$W$4) -> 174.7959623 | E36: =INDEX('Compile Data'!$CL$12:$DI$93,$A36-1921,'Report - ALL (DASHBOARD)'!$W$4) -> 109.9329184 | F36: =INDEX('Compile Data'!$DL$12:$EI$93,$A36-1921,'Report - ALL (DASHBOARD)'!$W$4) -> 172.6602981 | G36: =INDEX('Compile Data'!$EL$12:$FI$93,$A36-1921,'Report - ALL (DASHBOARD)'!$W$4) -> 144.990908 | O36: 9 | P36: 0.0987654321 | Q36: =INDEX('Compile Data'!$L$123:$AI$204,$O36,'Report - ALL (DASHBOARD)'!$W$4) -> 0 | R36: =INDEX('Compile Data'!$AL$123:$BI$204,$O36,'Report - ALL (DASHBOARD)'!$W$4) -> 0 | S36: =INDEX('Compile Data'!$BL$123:$CI$204,$O36,'Report - ALL (DASHBOARD)'!$W$4) -> 589.9606004 | T36: =INDEX('Compile Data'!$CL$123:$DI$204,$O36,'Report - ALL (DASHBOARD)'!$W$4) -> 598.6804157 | U36: =INDEX('Compile Data'!$DL$123:$EI$204,$O36,'Report - ALL (DASHBOARD)'!$W$4) -> 536.9773534 | V36: =INDEX('Compile Data'!$EL$123:$FI$204,$O36,'Report - ALL (DASHBOARD)'!$W$4) -> 613.4554781
A37: 1931 | B37: =INDEX('Compile Data'!$L$12:$AI$93,$A37-1921,'Report - ALL (DASHBOARD)'!$W$4) -> 0 | C37: =INDEX('Compile Data'!$AL$12:$BI$93,$A37-1921,'Report - ALL (DASHBOARD)'!$W$4) -> 0 | D37: =INDEX('Compile Data'!$BL$12:$CI$93,$A37-1921,'Report - ALL (DASHBOARD)'!$W$4) -> 16.39754331 | E37: =INDEX('Compile Data'!$CL$12:$DI$93,$A37-1921,'Report - ALL (DASHBOARD)'!$W$4) -> 19.57055078 | F37: =INDEX('Compile Data'!$DL$12:$EI$93,$A37-1921,'Report - ALL (DASHBOARD)'!$W$4) -> 19.64000069 | G37: =INDEX('Compile Data'!$EL$12:$FI$93,$A37-1921,'Report - ALL (DASHBOARD)'!$W$4) -> 19.3 | O37: 10 | P37: 0.1111111111 | Q37: =INDEX('Compile Data'!$L$123:$AI$204,$O37,'Report - ALL (DASHBOARD)'!$W$4) -> 0 | R37: =INDEX('Compile Data'!$AL$123:$BI$204,$O37,'Report - ALL (DASHBOARD)'!$W$4) -> 0 | S37: =INDEX('Compile Data'!$BL$123:$CI$204,$O37,'Report - ALL (DASHBOARD)'!$W$4) -> 580.5127469 | T37: =INDEX('Compile Data'!$CL$123:$DI$204,$O37,'Report - ALL (DASHBOARD)'!$W$4) -> 597.9506524 | U37: =INDEX('Compile Data'!$DL$123:$EI$204,$O37,'Report - ALL (DASHBOARD)'!$W$4) -> 527.8005401 | V37: =INDEX('Compile Data'!$EL$123:$FI$204,$O37,'Report - ALL (DASHBOARD)'!$W$4) -> 603.3845506
A38: 1932 | B38: =INDEX('Compile Data'!$L$12:$AI$93,$A38-1921,'Report - ALL (DASHBOARD)'!$W$4) -> 0 | C38: =INDEX('Compile Data'!$AL$12:$BI$93,$A38-1921,'Report - ALL (DASHBOARD)'!$W$4) -> 0 | D38: =INDEX('Compile Data'!$BL$12:$CI$93,$A38-1921,'Report - ALL (DASHBOARD)'!$W$4) -> 5.080862918 | E38: =INDEX('Compile Data'!$CL$12:$DI$93,$A38-1921,'Report - ALL (DASHBOARD)'!$W$4) -> 40.04073879 | F38: =INDEX('Compile Data'!$DL$12:$EI$93,$A38-1921,'Report - ALL (DASHBOARD)'!$W$4) -> 10.64301164 | G38: =INDEX('Compile Data'!$EL$12:$FI$93,$A38-1921,'Report - ALL (DASHBOARD)'!$W$4) -> 46.95878109 | O38: 11 | P38: 0.1234567901 | Q38: =INDEX('Compile Data'!$L$123:$AI$204,$O38,'Report - ALL (DASHBOARD)'!$W$4) -> 0 | R38: =INDEX('Compile Data'!$AL$123:$BI$204,$O38,'Report - ALL (DASHBOARD)'!$W$4) -> 0 | S38: =INDEX('Compile Data'!$BL$123:$CI$204,$O38,'Report - ALL (DASHBOARD)'!$W$4) -> 552.9086471 | T38: =INDEX('Compile Data'!$CL$123:$DI$204,$O38,'Report - ALL (DASHBOARD)'!$W$4) -> 591.5994008 | U38: =INDEX('Compile Data'!$DL$123:$EI$204,$O38,'Report - ALL (DASHBOARD)'!$W$4) -> 499.6468616 | V38: =INDEX('Compile Data'!$EL$123:$FI$204,$O38,'Report - ALL (DASHBOARD)'!$W$4) -> 585.1649546
A39: 1933 | B39: =INDEX('Compile Data'!$L$12:$AI$93,$A39-1921,'Report - ALL (DASHBOARD)'!$W$4) -> 0 | C39: =INDEX('Compile Data'!$AL$12:$BI$93,$A39-1921,'Report - ALL (DASHBOARD)'!$W$4) -> 0 | D39: =INDEX('Compile Data'!$BL$12:$CI$93,$A39-1921,'Report - ALL (DASHBOARD)'!$W$4) -> 0 | E39: =INDEX('Compile Data'!$CL$12:$DI$93,$A39-1921,'Report - ALL (DASHBOARD)'!$W$4) -> 0 | F39: =INDEX('Compile Data'!$DL$12:$EI$93,$A39-1921,'Report - ALL (DASHBOARD)'!$W$4) -> 0 | G39: =INDEX('Compile Data'!$EL$12:$FI$93,$A39-1921,'Report - ALL (DASHBOARD)'!$W$4) -> 0 | O39: 12 | P39: 0.1358024691 | Q39: =INDEX('Compile Data'!$L$123:$AI$204,$O39,'Report - ALL (DASHBOARD)'!$W$4) -> 0 | R39: =INDEX('Compile Data'!$AL$123:$BI$204,$O39,'Report - ALL (DASHBOARD)'!$W$4) -> 0 | S39: =INDEX('Compile Data'!$BL$123:$CI$204,$O39,'Report - ALL (DASHBOARD)'!$W$4) -> 540.33686 | T39: =INDEX('Compile Data'!$CL$123:$DI$204,$O39,'Report - ALL (DASHBOARD)'!$W$4) -> 584.6574268 | U39: =INDEX('Compile Data'!$DL$123:$EI$204,$O39,'Report - ALL (DASHBOARD)'!$W$4) -> 498.5915161 | V39: =INDEX('Compile Data'!$EL$123:$FI$204,$O39,'Report - ALL (DASHBOARD)'!$W$4) -> 573.9798712
A40: 1934 | B40: =INDEX('Compile Data'!$L$12:$AI$93,$A40-1921,'Report - ALL (DASHBOARD)'!$W$4) -> 0 | C40: =INDEX('Compile Data'!$AL$12:$BI$93,$A40-1921,'Report - ALL (DASHBOARD)'!$W$4) -> 0 | D40: =INDEX('Compile Data'!$BL$12:$CI$93,$A40-1921,'Report - ALL (DASHBOARD)'!$W$4) -> 0.1055726335 | E40: =INDEX('Compile Data'!$CL$12:$DI$93,$A40-1921,'Report - ALL (DASHBOARD)'!$W$4) -> 0 | F40: =INDEX('Compile Data'!$DL$12:$EI$93,$A40-1921,'Report - ALL (DASHBOARD)'!$W$4) -> 0 | G40: =INDEX('Compile Data'!$EL$12:$FI$93,$A40-1921,'Report - ALL (DASHBOARD)'!$W$4) -> 0 | O40: 13 | P40: 0.1481481481 | Q40: =INDEX('Compile Data'!$L$123:$AI$204,$O40,'Report - ALL (DASHBOARD)'!$W$4) -> 0 | R40: =INDEX('Compile Data'!$AL$123:$BI$204,$O40,'Report - ALL (DASHBOARD)'!$W$4) -> 0 | S40: =INDEX('Compile Data'!$BL$123:$CI$204,$O40,'Report - ALL (DASHBOARD)'!$W$4) -> 539.7408885 | T40: =INDEX('Compile Data'!$CL$123:$DI$204,$O40,'Report - ALL (DASHBOARD)'!$W$4) -> 583.1914782 | U40: =INDEX('Compile Data'!$DL$123:$EI$204,$O40,'Report - ALL (DASHBOARD)'!$W$4) -> 494.4052757 | V40: =INDEX('Compile Data'!$EL$123:$FI$204,$O40,'Report - ALL (DASHBOARD)'!$W$4) -> 549.272869
A41: 1935 | B41: =INDEX('Compile Data'!$L$12:$AI$93,$A41-1921,'Report - ALL (DASHBOARD)'!$W$4) -> 0 | C41: =INDEX('Compile Data'!$AL$12:$BI$93,$A41-1921,'Report - ALL (DASHBOARD)'!$W$4) -> 0 | D41: =INDEX('Compile Data'!$BL$12:$CI$93,$A41-1921,'Report - ALL (DASHBOARD)'!$W$4) -> 277.7293618 | E41: =INDEX('Compile Data'!$CL$12:$DI$93,$A41-1921,'Report - ALL (DASHBOARD)'!$W$4) -> 385.3824684 | F41: =INDEX('Compile Data'!$DL$12:$EI$93,$A41-1921,'Report - ALL (DASHBOARD)'!$W$4) -> 271.2725499 | G41: =INDEX('Compile Data'!$EL$12:$FI$93,$A41-1921,'Report - ALL (DASHBOARD)'!$W$4) -> 345.4992129 | O41: 14 | P41: 0.1604938272 | Q41: =INDEX('Compile Data'!$L$123:$AI$204,$O41,'Report - ALL (DASHBOARD)'!$W$4) -> 0 | R41: =INDEX('Compile Data'!$AL$123:$BI$204,$O41,'Report - ALL (DASHBOARD)'!$W$4) -> 0 | S41: =INDEX('Compile Data'!$BL$123:$CI$204,$O41,'Report - ALL (DASHBOARD)'!$W$4) -> 528.8356882 | T41: =INDEX('Compile Data'!$CL$123:$DI$204,$O41,'Report - ALL (DASHBOARD)'!$W$4) -> 568.4286025 | U41: =INDEX('Compile Data'!$DL$123:$EI$204,$O41,'Report - ALL (DASHBOARD)'!$W$4) -> 486.2131749 | V41: =INDEX('Compile Data'!$EL$123:$FI$204,$O41,'Report - ALL (DASHBOARD)'!$W$4) -> 528.429125
A42: 1936 | B42: =INDEX('Compile Data'!$L$12:$AI$93,$A42-1921,'Report - ALL (DASHBOARD)'!$W$4) -> 0 | C42: =INDEX('Compile Data'!$AL$12:$BI$93,$A42-1921,'Report - ALL (DASHBOARD)'!$W$4) -> 0 | D42: =INDEX('Compile Data'!$BL$12:$CI$93,$A42-1921,'Report - ALL (DASHBOARD)'!$W$4) -> 174.9616945 | E42: =INDEX('Compile Data'!$CL$12:$DI$93,$A42-1921,'Report - ALL (DASHBOARD)'!$W$4) -> 154.6412666 | F42: =INDEX('Compile Data'!$DL$12:$EI$93,$A42-1921,'Report - ALL (DASHBOARD)'!$W$4) -> 178.468457 | G42: =INDEX('Compile Data'!$EL$12:$FI$93,$A42-1921,'Report - ALL (DASHBOARD)'!$W$4) -> 159.2196794 | O42: 15 | P42: 0.1728395062 | Q42: =INDEX('Compile Data'!$L$123:$AI$204,$O42,'Report - ALL (DASHBOARD)'!$W$4) -> 0 | R42: =INDEX('Compile Data'!$AL$123:$BI$204,$O42,'Report - ALL (DASHBOARD)'!$W$4) -> 0 | S42: =INDEX('Compile Data'!$BL$123:$CI$204,$O42,'Report - ALL (DASHBOARD)'!$W$4) -> 514.57903 | T42: =INDEX('Compile Data'!$CL$123:$DI$204,$O42,'Report - ALL (DASHBOARD)'!$W$4) -> 560.9926797 | U42: =INDEX('Compile Data'!$DL$123:$EI$204,$O42,'Report - ALL (DASHBOARD)'!$W$4) -> 478.3940339 | V42: =INDEX('Compile Data'!$EL$123:$FI$204,$O42,'Report - ALL (DASHBOARD)'!$W$4) -> 513.7561828
A43: 1937 | B43: =INDEX('Compile Data'!$L$12:$AI$93,$A43-1921,'Report - ALL (DASHBOARD)'!$W$4) -> 0 | C43: =INDEX('Compile Data'!$AL$12:$BI$93,$A43-1921,'Report - ALL (DASHBOARD)'!$W$4) -> 0 | D43: =INDEX('Compile Data'!$BL$12:$CI$93,$A43-1921,'Report - ALL (DASHBOARD)'!$W$4) -> 152.0291336 | E43: =INDEX('Compile Data'!$CL$12:$DI$93,$A43-1921,'Report - ALL (DASHBOARD)'!$W$4) -> 312.6565694 | F43: =INDEX('Compile Data'!$DL$12:$EI$93,$A43-1921,'Report - ALL (DASHBOARD)'!$W$4) -> 154.5574019 | G43: =INDEX('Compile Data'!$EL$12:$FI$93,$A43-1921,'Report - ALL (DASHBOARD)'!$W$4) -> 295.9410541 | O43: 16 | P43: 0.1851851852 | Q43: =INDEX('Compile Data'!$L$123:$AI$204,$O43,'Report - ALL (DASHBOARD)'!$W$4) -> 0 | R43: =INDEX('Compile Data'!$AL$123:$BI$204,$O43,'Report - ALL (DASHBOARD)'!$W$4) -> 0 | S43: =INDEX('Compile Data'!$BL$123:$CI$204,$O43,'Report - ALL (DASHBOARD)'!$W$4) -> 509.8654157 | T43: =INDEX('Compile Data'!$CL$123:$DI$204,$O43,'Report - ALL (DASHBOARD)'!$W$4) -> 549.2166291 | U43: =INDEX('Compile Data'!$DL$123:$EI$204,$O43,'Report - ALL (DASHBOARD)'!$W$4) -> 460.9662721 | V43: =INDEX('Compile Data'!$EL$123:$FI$204,$O43,'Report - ALL (DASHBOARD)'!$W$4) -> 494.0618123
A44: 1938 | B44: =INDEX('Compile Data'!$L$12:$AI$93,$A44-1921,'Report - ALL (DASHBOARD)'!$W$4) -> 0 | C44: =INDEX('Compile Data'!$AL$12:$BI$93,$A44-1921,'Report - ALL (DASHBOARD)'!$W$4) -> 0 | D44: =INDEX('Compile Data'!$BL$12:$CI$93,$A44-1921,'Report - ALL (DASHBOARD)'!$W$4) -> 65.85647138 | E44: =INDEX('Compile Data'!$CL$12:$DI$93,$A44-1921,'Report - ALL (DASHBOARD)'!$W$4) -> 54.51731629 | F44: =INDEX('Compile Data'!$DL$12:$EI$93,$A44-1921,'Report - ALL (DASHBOARD)'!$W$4) -> 75.93228283 | G44: =INDEX('Compile Data'!$EL$12:$FI$93,$A44-1921,'Report - ALL (DASHBOARD)'!$W$4) -> 66.24013201 | O44: 17 | P44: 0.1975308642 | Q44: =INDEX('Compile Data'!$L$123:$AI$204,$O44,'Report - ALL (DASHBOARD)'!$W$4) -> 0 | R44: =INDEX('Compile Data'!$AL$123:$BI$204,$O44,'Report - ALL (DASHBOARD)'!$W$4) -> 0 | S44: =INDEX('Compile Data'!$BL$123:$CI$204,$O44,'Report - ALL (DASHBOARD)'!$W$4) -> 504.9910343 | T44: =INDEX('Compile Data'!$CL$123:$DI$204,$O44,'Report - ALL (DASHBOARD)'!$W$4) -> 542.0895612 | U44: =INDEX('Compile Data'!$DL$123:$EI$204,$O44,'Report - ALL (DASHBOARD)'!$W$4) -> 457.2761248 | V44: =INDEX('Compile Data'!$EL$123:$FI$204,$O44,'Report - ALL (DASHBOARD)'!$W$4) -> 477.8698241
A45: 1939 | B45: =INDEX('Compile Data'!$L$12:$AI$93,$A45-1921,'Report - ALL (DASHBOARD)'!$W$4) -> 0 | C45: =INDEX('Compile Data'!$AL$12:$BI$93,$A45-1921,'Report - ALL (DASHBOARD)'!$W$4) -> 0 | D45: =INDEX('Compile Data'!$BL$12:$CI$93,$A45-1921,'Report - ALL (DASHBOARD)'!$W$4) -> 729.3741708 | E45: =INDEX('Compile Data'!$CL$12:$DI$93,$A45-1921,'Report - ALL (DASHBOARD)'!$W$4) -> 787.2501037 | F45: =INDEX('Compile Data'!$DL$12:$EI$93,$A45-1921,'Report - ALL (DASHBOARD)'!$W$4) -> 694.9769282 | G45: =INDEX('Compile Data'!$EL$12:$FI$93,$A45-1921,'Report - ALL (DASHBOARD)'!$W$4) -> 767.0227484 | O45: 18 | P45: 0.2098765432 | Q45: =INDEX('Compile Data'!$L$123:$AI$204,$O45,'Report - ALL (DASHBOARD)'!$W$4) -> 0 | R45: =INDEX('Compile Data'!$AL$123:$BI$204,$O45,'Report - ALL (DASHBOARD)'!$W$4) -> 0 | S45: =INDEX('Compile Data'!$BL$123:$CI$204,$O45,'Report - ALL (DASHBOARD)'!$W$4) -> 504.2036757 | T45: =INDEX('Compile Data'!$CL$123:$DI$204,$O45,'Report - ALL (DASHBOARD)'!$W$4) -> 520.2048302 | U45: =INDEX('Compile Data'!$DL$123:$EI$204,$O45,'Report - ALL (DASHBOARD)'!$W$4) -> 445.0956847 | V45: =INDEX('Compile Data'!$EL$123:$FI$204,$O45,'Report - ALL (DASHBOARD)'!$W$4) -> 471.771139
A46: 1940 | B46: =INDEX('Compile Data'!$L$12:$AI$93,$A46-1921,'Report - ALL (DASHBOARD)'!$W$4) -> 0 | C46: =INDEX('Compile Data'!$AL$12:$BI$93,$A46-1921,'Report - ALL (DASHBOARD)'!$W$4) -> 0 | D46: =INDEX('Compile Data'!$BL$12:$CI$93,$A46-1921,'Report - ALL (DASHBOARD)'!$W$4) -> 274.6996572 | E46: =INDEX('Compile Data'!$CL$12:$DI$93,$A46-1921,'Report - ALL (DASHBOARD)'!$W$4) -> 314.7258181 | F46: =INDEX('Compile Data'!$DL$12:$EI$93,$A46-1921,'Report - ALL (DASHBOARD)'!$W$4) -> 207.9137185 | G46: =INDEX('Compile Data'!$EL$12:$FI$93,$A46-1921,'Report - ALL (DASHBOARD)'!$W$4) -> 233.7536332 | O46: 19 | P46: 0.2222222222 | Q46: =INDEX('Compile Data'!$L$123:$AI$204,$O46,'Report - ALL (DASHBOARD)'!$W$4) -> 0 | R46: =INDEX('Compile Data'!$AL$123:$BI$204,$O46,'Report - ALL (DASHBOARD)'!$W$4) -> 0 | S46: =INDEX('Compile Data'!$BL$123:$CI$204,$O46,'Report - ALL (DASHBOARD)'!$W$4) -> 493.8393784 | T46: =INDEX('Compile Data'!$CL$123:$DI$204,$O46,'Report - ALL (DASHBOARD)'!$W$4) -> 519.7298101 | U46: =INDEX('Compile Data'!$DL$123:$EI$204,$O46,'Report - ALL (DASHBOARD)'!$W$4) -> 431.6149672 | V46: =INDEX('Compile Data'!$EL$123:$FI$204,$O46,'Report - ALL (DASHBOARD)'!$W$4) -> 438.4037733
A47: 1941 | B47: =INDEX('Compile Data'!$L$12:$AI$93,$A47-1921,'Report - ALL (DASHBOARD)'!$W$4) -> 0 | C47: =INDEX('Compile Data'!$AL$12:$BI$93,$A47-1921,'Report - ALL (DASHBOARD)'!$W$4) -> 0 | D47: =INDEX('Compile Data'!$BL$12:$CI$93,$A47-1921,'Report - ALL (DASHBOARD)'!$W$4) -> 87.75862061 | E47: =INDEX('Compile Data'!$CL$12:$DI$93,$A47-1921,'Report - ALL (DASHBOARD)'!$W$4) -> 87.7586207 | F47: =INDEX('Compile Data'!$DL$12:$EI$93,$A47-1921,'Report - ALL (DASHBOARD)'!$W$4) -> 87.75862061 | G47: =INDEX('Compile Data'!$EL$12:$FI$93,$A47-1921,'Report - ALL (DASHBOARD)'!$W$4) -> 87.7586207 | O47: 20 | P47: 0.2345679012 | Q47: =INDEX('Compile Data'!$L$123:$AI$204,$O47,'Report - ALL (DASHBOARD)'!$W$4) -> 0 | R47: =INDEX('Compile Data'!$AL$123:$BI$204,$O47,'Report - ALL (DASHBOARD)'!$W$4) -> 0 | S47: =INDEX('Compile Data'!$BL$123:$CI$204,$O47,'Report - ALL (DASHBOARD)'!$W$4) -> 479.9022914 | T47: =INDEX('Compile Data'!$CL$123:$DI$204,$O47,'Report - ALL (DASHBOARD)'!$W$4) -> 503.3085881 | U47: =INDEX('Compile Data'!$DL$123:$EI$204,$O47,'Report - ALL (DASHBOARD)'!$W$4) -> 423.6552349 | V47: =INDEX('Compile Data'!$EL$123:$FI$204,$O47,'Report - ALL (DASHBOARD)'!$W$4) -> 437.2628184
A48: 1942 | B48: =INDEX('Compile Data'!$L$12:$AI$93,$A48-1921,'Report - ALL (DASHBOARD)'!$W$4) -> 0 | C48: =INDEX('Compile Data'!$AL$12:$BI$93,$A48-1921,'Report - ALL (DASHBOARD)'!$W$4) -> 0 | D48: =INDEX('Compile Data'!$BL$12:$CI$93,$A48-1921,'Report - ALL (DASHBOARD)'!$W$4) -> 87.75862061 | E48: =INDEX('Compile Data'!$CL$12:$DI$93,$A48-1921,'Report - ALL (DASHBOARD)'!$W$4) -> 88.00666779 | F48: =INDEX('Compile Data'!$DL$12:$EI$93,$A48-1921,'Report - ALL (DASHBOARD)'!$W$4) -> 87.75862061 | G48: =INDEX('Compile Data'!$EL$12:$FI$93,$A48-1921,'Report - ALL (DASHBOARD)'!$W$4) -> 88.00666779 | O48: 21 | P48: 0.2469135802 | Q48: =INDEX('Compile Data'!$L$123:$AI$204,$O48,'Report - ALL (DASHBOARD)'!$W$4) -> 0 | R48: =INDEX('Compile Data'!$AL$123:$BI$204,$O48,'Report - ALL (DASHBOARD)'!$W$4) -> 0 | S48: =INDEX('Compile Data'!$BL$123:$CI$204,$O48,'Report - ALL (DASHBOARD)'!$W$4) -> 413.0253074 | T48: =INDEX('Compile Data'!$CL$123:$DI$204,$O48,'Report - ALL (DASHBOARD)'!$W$4) -> 501.8152166 | U48: =INDEX('Compile Data'!$DL$123:$EI$204,$O48,'Report - ALL (DASHBOARD)'!$W$4) -> 392.0130936 | V48: =INDEX('Compile Data'!$EL$123:$FI$204,$O48,'Report - ALL (DASHBOARD)'!$W$4) -> 427.9743158
A49: 1943 | B49: =INDEX('Compile Data'!$L$12:$AI$93,$A49-1921,'Report - ALL (DASHBOARD)'!$W$4) -> 0 | C49: =INDEX('Compile Data'!$AL$12:$BI$93,$A49-1921,'Report - ALL (DASHBOARD)'!$W$4) -> 0 | D49: =INDEX('Compile Data'!$BL$12:$CI$93,$A49-1921,'Report - ALL (DASHBOARD)'!$W$4) -> 92.17146195 | E49: =INDEX('Compile Data'!$CL$12:$DI$93,$A49-1921,'Report - ALL (DASHBOARD)'!$W$4) -> 223.699496 | F49: =INDEX('Compile Data'!$DL$12:$EI$93,$A49-1921,'Report - ALL (DASHBOARD)'!$W$4) -> 92.17146195 | G49: =INDEX('Compile Data'!$EL$12:$FI$93,$A49-1921,'Report - ALL (DASHBOARD)'!$W$4) -> 223.7174805 | O49: 22 | P49: 0.2592592593 | Q49: =INDEX('Compile Data'!$L$123:$AI$204,$O49,'Report - ALL (DASHBOARD)'!$W$4) -> 0 | R49: =INDEX('Compile Data'!$AL$123:$BI$204,$O49,'Report - ALL (DASHBOARD)'!$W$4) -> 0 | S49: =INDEX('Compile Data'!$BL$123:$CI$204,$O49,'Report - ALL (DASHBOARD)'!$W$4) -> 408.3292846 | T49: =INDEX('Compile Data'!$CL$123:$DI$204,$O49,'Report - ALL (DASHBOARD)'!$W$4) -> 495.6512779 | U49: =INDEX('Compile Data'!$DL$123:$EI$204,$O49,'Report - ALL (DASHBOARD)'!$W$4) -> 388.0602816 | V49: =INDEX('Compile Data'!$EL$123:$FI$204,$O49,'Report - ALL (DASHBOARD)'!$W$4) -> 427.6323234
A50: 1944 | B50: =INDEX('Compile Data'!$L$12:$AI$93,$A50-1921,'Report - ALL (DASHBOARD)'!$W$4) -> 0 | C50: =INDEX('Compile Data'!$AL$12:$BI$93,$A50-1921,'Report - ALL (DASHBOARD)'!$W$4) -> 0 | D50: =INDEX('Compile Data'!$BL$12:$CI$93,$A50-1921,'Report - ALL (DASHBOARD)'!$W$4) -> 683.456945 | E50: =INDEX('Compile Data'!$CL$12:$DI$93,$A50-1921,'Report - ALL (DASHBOARD)'!$W$4) -> 737.61475 | F50: =INDEX('Compile Data'!$DL$12:$EI$93,$A50-1921,'Report - ALL (DASHBOARD)'!$W$4) -> 642.267806 | G50: =INDEX('Compile Data'!$EL$12:$FI$93,$A50-1921,'Report - ALL (DASHBOARD)'!$W$4) -> 732.2761892 | O50: 23 | P50: 0.2716049383 | Q50: =INDEX('Compile Data'!$L$123:$AI$204,$O50,'Report - ALL (DASHBOARD)'!$W$4) -> 0 | R50: =INDEX('Compile Data'!$AL$123:$BI$204,$O50,'Report - ALL (DASHBOARD)'!$W$4) -> 0 | S50: =INDEX('Compile Data'!$BL$123:$CI$204,$O50,'Report - ALL (DASHBOARD)'!$W$4) -> 399.4361949 | T50: =INDEX('Compile Data'!$CL$123:$DI$204,$O50,'Report - ALL (DASHBOARD)'!$W$4) -> 477.5715136 | U50: =INDEX('Compile Data'!$DL$123:$EI$204,$O50,'Report - ALL (DASHBOARD)'!$W$4) -> 370.4331942 | V50: =INDEX('Compile Data'!$EL$123:$FI$204,$O50,'Report - ALL (DASHBOARD)'!$W$4) -> 418.792148
A51: 1945 | B51: =INDEX('Compile Data'!$L$12:$AI$93,$A51-1921,'Report - ALL (DASHBOARD)'!$W$4) -> 0 | C51: =INDEX('Compile Data'!$AL$12:$BI$93,$A51-1921,'Report - ALL (DASHBOARD)'!$W$4) -> 0 | D51: =INDEX('Compile Data'!$BL$12:$CI$93,$A51-1921,'Report - ALL (DASHBOARD)'!$W$4) -> 158.3829356 | E51: =INDEX('Compile Data'!$CL$12:$DI$93,$A51-1921,'Report - ALL (DASHBOARD)'!$W$4) -> 290.0050857 | F51: =INDEX('Compile Data'!$DL$12:$EI$93,$A51-1921,'Report - ALL (DASHBOARD)'!$W$4) -> 91.48357057 | G51: =INDEX('Compile Data'!$EL$12:$FI$93,$A51-1921,'Report - ALL (DASHBOARD)'!$W$4) -> 208.7615233 | O51: 24 | P51: 0.2839506173 | Q51: =INDEX('Compile Data'!$L$123:$AI$204,$O51,'Report - ALL (DASHBOARD)'!$W$4) -> 0 | R51: =INDEX('Compile Data'!$AL$123:$BI$204,$O51,'Report - ALL (DASHBOARD)'!$W$4) -> 0 | S51: =INDEX('Compile Data'!$BL$123:$CI$204,$O51,'Report - ALL (DASHBOARD)'!$W$4) -> 349.6472294 | T51: =INDEX('Compile Data'!$CL$123:$DI$204,$O51,'Report - ALL (DASHBOARD)'!$W$4) -> 425.2377876 | U51: =INDEX('Compile Data'!$DL$123:$EI$204,$O51,'Report - ALL (DASHBOARD)'!$W$4) -> 356.9125282 | V51: =INDEX('Compile Data'!$EL$123:$FI$204,$O51,'Report - ALL (DASHBOARD)'!$W$4) -> 418.686109
A52: 1946 | B52: =INDEX('Compile Data'!$L$12:$AI$93,$A52-1921,'Report - ALL (DASHBOARD)'!$W$4) -> 0 | C52: =INDEX('Compile Data'!$AL$12:$BI$93,$A52-1921,'Report - ALL (DASHBOARD)'!$W$4) -> 0 | D52: =INDEX('Compile Data'!$BL$12:$CI$93,$A52-1921,'Report - ALL (DASHBOARD)'!$W$4) -> 233.0428284 | E52: =INDEX('Compile Data'!$CL$12:$DI$93,$A52-1921,'Report - ALL (DASHBOARD)'!$W$4) -> 294.0367099 | F52: =INDEX('Compile Data'!$DL$12:$EI$93,$A52-1921,'Report - ALL (DASHBOARD)'!$W$4) -> 201.958976 | G52: =INDEX('Compile Data'!$EL$12:$FI$93,$A52-1921,'Report - ALL (DASHBOARD)'!$W$4) -> 276.7143721 | O52: 25 | P52: 0.2962962963 | Q52: =INDEX('Compile Data'!$L$123:$AI$204,$O52,'Report - ALL (DASHBOARD)'!$W$4) -> 0 | R52: =INDEX('Compile Data'!$AL$123:$BI$204,$O52,'Report - ALL (DASHBOARD)'!$W$4) -> 0 | S52: =INDEX('Compile Data'!$BL$123:$CI$204,$O52,'Report - ALL (DASHBOARD)'!$W$4) -> 345.5300189 | T52: =INDEX('Compile Data'!$CL$123:$DI$204,$O52,'Report - ALL (DASHBOARD)'!$W$4) -> 415.061357 | U52: =INDEX('Compile Data'!$DL$123:$EI$204,$O52,'Report - ALL (DASHBOARD)'!$W$4) -> 335.3625638 | V52: =INDEX('Compile Data'!$EL$123:$FI$204,$O52,'Report - ALL (DASHBOARD)'!$W$4) -> 413.7599486
A53: 1947 | B53: =INDEX('Compile Data'!$L$12:$AI$93,$A53-1921,'Report - ALL (DASHBOARD)'!$W$4) -> 0 | C53: =INDEX('Compile Data'!$AL$12:$BI$93,$A53-1921,'Report - ALL (DASHBOARD)'!$W$4) -> 0 | D53: =INDEX('Compile Data'!$BL$12:$CI$93,$A53-1921,'Report - ALL (DASHBOARD)'!$W$4) -> 493.8393784 | E53: =INDEX('Compile Data'!$CL$12:$DI$93,$A53-1921,'Report - ALL (DASHBOARD)'!$W$4) -> 300.2866276 | F53: =INDEX('Compile Data'!$DL$12:$EI$93,$A53-1921,'Report - ALL (DASHBOARD)'!$W$4) -> 498.5915161 | G53: =INDEX('Compile Data'!$EL$12:$FI$93,$A53-1921,'Report - ALL (DASHBOARD)'!$W$4) -> 381.0186172 | O53: 26 | P53: 0.3086419753 | Q53: =INDEX('Compile Data'!$L$123:$AI$204,$O53,'Report - ALL (DASHBOARD)'!$W$4) -> 0 | R53: =INDEX('Compile Data'!$AL$123:$BI$204,$O53,'Report - ALL (DASHBOARD)'!$W$4) -> 0 | S53: =INDEX('Compile Data'!$BL$123:$CI$204,$O53,'Report - ALL (DASHBOARD)'!$W$4) -> 333.0485042 | T53: =INDEX('Compile Data'!$CL$123:$DI$204,$O53,'Report - ALL (DASHBOARD)'!$W$4) -> 385.3824684 | U53: =INDEX('Compile Data'!$DL$123:$EI$204,$O53,'Report - ALL (DASHBOARD)'!$W$4) -> 333.519817 | V53: =INDEX('Compile Data'!$EL$123:$FI$204,$O53,'Report - ALL (DASHBOARD)'!$W$4) -> 381.0186172
A54: 1948 | B54: =INDEX('Compile Data'!$L$12:$AI$93,$A54-1921,'Report - ALL (DASHBOARD)'!$W$4) -> 0 | C54: =INDEX('Compile Data'!$AL$12:$BI$93,$A54-1921,'Report - ALL (DASHBOARD)'!$W$4) -> 0 | D54: =INDEX('Compile Data'!$BL$12:$CI$93,$A54-1921,'Report - ALL (DASHBOARD)'!$W$4) -> 38.13579799 | E54: =INDEX('Compile Data'!$CL$12:$DI$93,$A54-1921,'Report - ALL (DASHBOARD)'!$W$4) -> 9.825000001 | F54: =INDEX('Compile Data'!$DL$12:$EI$93,$A54-1921,'Report - ALL (DASHBOARD)'!$W$4) -> 38.93076359 | G54: =INDEX('Compile Data'!$EL$12:$FI$93,$A54-1921,'Report - ALL (DASHBOARD)'!$W$4) -> 10.6155 | O54: 27 | P54: 0.3209876543 | Q54: =INDEX('Compile Data'!$L$123:$AI$204,$O54,'Report - ALL (DASHBOARD)'!$W$4) -> 0 | R54: =INDEX('Compile Data'!$AL$123:$BI$204,$O54,'Report - ALL (DASHBOARD)'!$W$4) -> 0 | S54: =INDEX('Compile Data'!$BL$123:$CI$204,$O54,'Report - ALL (DASHBOARD)'!$W$4) -> 314.1463988 | T54: =INDEX('Compile Data'!$CL$123:$DI$204,$O54,'Report - ALL (DASHBOARD)'!$W$4) -> 371.781241 | U54: =INDEX('Compile Data'!$DL$123:$EI$204,$O54,'Report - ALL (DASHBOARD)'!$W$4) -> 322.4458295 | V54: =INDEX('Compile Data'!$EL$123:$FI$204,$O54,'Report - ALL (DASHBOARD)'!$W$4) -> 345.4992129
A55: 1949 | B55: =INDEX('Compile Data'!$L$12:$AI$93,$A55-1921,'Report - ALL (DASHBOARD)'!$W$4) -> 0 | C55: =INDEX('Compile Data'!$AL$12:$BI$93,$A55-1921,'Report - ALL (DASHBOARD)'!$W$4) -> 0 | D55: =INDEX('Compile Data'!$BL$12:$CI$93,$A55-1921,'Report - ALL (DASHBOARD)'!$W$4) -> 308.5861554 | E55: =INDEX('Compile Data'!$CL$12:$DI$93,$A55-1921,'Report - ALL (DASHBOARD)'!$W$4) -> 187.8316794 | F55: =INDEX('Compile Data'!$DL$12:$EI$93,$A55-1921,'Report - ALL (DASHBOARD)'!$W$4) -> 392.0130936 | G55: =INDEX('Compile Data'!$EL$12:$FI$93,$A55-1921,'Report - ALL (DASHBOARD)'!$W$4) -> 188.4707855 | O55: 28 | P55: 0.3333333333 | Q55: =INDEX('Compile Data'!$L$123:$AI$204,$O55,'Report - ALL (DASHBOARD)'!$W$4) -> 0 | R55: =INDEX('Compile Data'!$AL$123:$BI$204,$O55,'Report - ALL (DASHBOARD)'!$W$4) -> 0 | S55: =INDEX('Compile Data'!$BL$123:$CI$204,$O55,'Report - ALL (DASHBOARD)'!$W$4) -> 308.5861554 | T55: =INDEX('Compile Data'!$CL$123:$DI$204,$O55,'Report - ALL (DASHBOARD)'!$W$4) -> 327.6832547 | U55: =INDEX('Compile Data'!$DL$123:$EI$204,$O55,'Report - ALL (DASHBOARD)'!$W$4) -> 271.2725499 | V55: =INDEX('Compile Data'!$EL$123:$FI$204,$O55,'Report - ALL (DASHBOARD)'!$W$4) -> 345.4306078
A56: 1950 | B56: =INDEX('Compile Data'!$L$12:$AI$93,$A56-1921,'Report - ALL (DASHBOARD)'!$W$4) -> 0 | C56: =INDEX('Compile Data'!$AL$12:$BI$93,$A56-1921,'Report - ALL (DASHBOARD)'!$W$4) -> 0 | D56: =INDEX('Compile Data'!$BL$12:$CI$93,$A56-1921,'Report - ALL (DASHBOARD)'!$W$4) -> 66.59902132 | E56: =INDEX('Compile Data'!$CL$12:$DI$93,$A56-1921,'Report - ALL (DASHBOARD)'!$W$4) -> 88.15374265 | F56: =INDEX('Compile Data'!$DL$12:$EI$93,$A56-1921,'Report - ALL (DASHBOARD)'!$W$4) -> 72.73935437 | G56: =INDEX('Compile Data'!$EL$12:$FI$93,$A56-1921,'Report - ALL (DASHBOARD)'!$W$4) -> 86.15974214 | O56: 29 | P56: 0.3456790123 | Q56: =INDEX('Compile Data'!$L$123:$AI$204,$O56,'Report - ALL (DASHBOARD)'!$W$4) -> 0 | R56: =INDEX('Compile Data'!$AL$123:$BI$204,$O56,'Report - ALL (DASHBOARD)'!$W$4) -> 0 | S56: =INDEX('Compile Data'!$BL$123:$CI$204,$O56,'Report - ALL (DASHBOARD)'!$W$4) -> 285.1547899 | T56: =INDEX('Compile Data'!$CL$123:$DI$204,$O56,'Report - ALL (DASHBOARD)'!$W$4) -> 314.7258181 | U56: =INDEX('Compile Data'!$DL$123:$EI$204,$O56,'Report - ALL (DASHBOARD)'!$W$4) -> 239.6023475 | V56: =INDEX('Compile Data'!$EL$123:$FI$204,$O56,'Report - ALL (DASHBOARD)'!$W$4) -> 301.7519285
A57: 1951 | B57: =INDEX('Compile Data'!$L$12:$AI$93,$A57-1921,'Report - ALL (DASHBOARD)'!$W$4) -> 0 | C57: =INDEX('Compile Data'!$AL$12:$BI$93,$A57-1921,'Report - ALL (DASHBOARD)'!$W$4) -> 0 | D57: =INDEX('Compile Data'!$BL$12:$CI$93,$A57-1921,'Report - ALL (DASHBOARD)'!$W$4) -> 285.1547899 | E57: =INDEX('Compile Data'!$CL$12:$DI$93,$A57-1921,'Report - ALL (DASHBOARD)'!$W$4) -> 82.14782911 | F57: =INDEX('Compile Data'!$DL$12:$EI$93,$A57-1921,'Report - ALL (DASHBOARD)'!$W$4) -> 214.1348268 | G57: =INDEX('Compile Data'!$EL$12:$FI$93,$A57-1921,'Report - ALL (DASHBOARD)'!$W$4) -> 95.14956206 | O57: 30 | P57: 0.3580246914 | Q57: =INDEX('Compile Data'!$L$123:$AI$204,$O57,'Report - ALL (DASHBOARD)'!$W$4) -> 0 | R57: =INDEX('Compile Data'!$AL$123:$BI$204,$O57,'Report - ALL (DASHBOARD)'!$W$4) -> 0 | S57: =INDEX('Compile Data'!$BL$123:$CI$204,$O57,'Report - ALL (DASHBOARD)'!$W$4) -> 277.7293618 | T57: =INDEX('Compile Data'!$CL$123:$DI$204,$O57,'Report - ALL (DASHBOARD)'!$W$4) -> 312.6565694 | U57: =INDEX('Compile Data'!$DL$123:$EI$204,$O57,'Report - ALL (DASHBOARD)'!$W$4) -> 223.8388427 | V57: =INDEX('Compile Data'!$EL$123:$FI$204,$O57,'Report - ALL (DASHBOARD)'!$W$4) -> 295.9410541
A58: 1952 | B58: =INDEX('Compile Data'!$L$12:$AI$93,$A58-1921,'Report - ALL (DASHBOARD)'!$W$4) -> 0 | C58: =INDEX('Compile Data'!$AL$12:$BI$93,$A58-1921,'Report - ALL (DASHBOARD)'!$W$4) -> 0 | D58: =INDEX('Compile Data'!$BL$12:$CI$93,$A58-1921,'Report - ALL (DASHBOARD)'!$W$4) -> 89.71396341 | E58: =INDEX('Compile Data'!$CL$12:$DI$93,$A58-1921,'Report - ALL (DASHBOARD)'!$W$4) -> 62.12775651 | F58: =INDEX('Compile Data'!$DL$12:$EI$93,$A58-1921,'Report - ALL (DASHBOARD)'!$W$4) -> 89.71396341 | G58: =INDEX('Compile Data'!$EL$12:$FI$93,$A58-1921,'Report - ALL (DASHBOARD)'!$W$4) -> 89.71396341 | O58: 31 | P58: 0.3703703704 | Q58: =INDEX('Compile Data'!$L$123:$AI$204,$O58,'Report - ALL (DASHBOARD)'!$W$4) -> 0 | R58: =INDEX('Compile Data'!$AL$123:$BI$204,$O58,'Report - ALL (DASHBOARD)'!$W$4) -> 0 | S58: =INDEX('Compile Data'!$BL$123:$CI$204,$O58,'Report - ALL (DASHBOARD)'!$W$4) -> 274.6996572 | T58: =INDEX('Compile Data'!$CL$123:$DI$204,$O58,'Report - ALL (DASHBOARD)'!$W$4) -> 300.2866276 | U58: =INDEX('Compile Data'!$DL$123:$EI$204,$O58,'Report - ALL (DASHBOARD)'!$W$4) -> 214.5084191 | V58: =INDEX('Compile Data'!$EL$123:$FI$204,$O58,'Report - ALL (DASHBOARD)'!$W$4) -> 292.9216235
A59: 1953 | B59: =INDEX('Compile Data'!$L$12:$AI$93,$A59-1921,'Report - ALL (DASHBOARD)'!$W$4) -> 0 | C59: =INDEX('Compile Data'!$AL$12:$BI$93,$A59-1921,'Report - ALL (DASHBOARD)'!$W$4) -> 0 | D59: =INDEX('Compile Data'!$BL$12:$CI$93,$A59-1921,'Report - ALL (DASHBOARD)'!$W$4) -> 101.6039868 | E59: =INDEX('Compile Data'!$CL$12:$DI$93,$A59-1921,'Report - ALL (DASHBOARD)'!$W$4) -> 92.76388085 | F59: =INDEX('Compile Data'!$DL$12:$EI$93,$A59-1921,'Report - ALL (DASHBOARD)'!$W$4) -> 101.7137844 | G59: =INDEX('Compile Data'!$EL$12:$FI$93,$A59-1921,'Report - ALL (DASHBOARD)'!$W$4) -> 103.3087349 | O59: 32 | P59: 0.3827160494 | Q59: =INDEX('Compile Data'!$L$123:$AI$204,$O59,'Report - ALL (DASHBOARD)'!$W$4) -> 0 | R59: =INDEX('Compile Data'!$AL$123:$BI$204,$O59,'Report - ALL (DASHBOARD)'!$W$4) -> 0 | S59: =INDEX('Compile Data'!$BL$123:$CI$204,$O59,'Report - ALL (DASHBOARD)'!$W$4) -> 240.9721543 | T59: =INDEX('Compile Data'!$CL$123:$DI$204,$O59,'Report - ALL (DASHBOARD)'!$W$4) -> 299.9867707 | U59: =INDEX('Compile Data'!$DL$123:$EI$204,$O59,'Report - ALL (DASHBOARD)'!$W$4) -> 214.1348268 | V59: =INDEX('Compile Data'!$EL$123:$FI$204,$O59,'Report - ALL (DASHBOARD)'!$W$4) -> 276.7143721
A60: 1954 | B60: =INDEX('Compile Data'!$L$12:$AI$93,$A60-1921,'Report - ALL (DASHBOARD)'!$W$4) -> 0 | C60: =INDEX('Compile Data'!$AL$12:$BI$93,$A60-1921,'Report - ALL (DASHBOARD)'!$W$4) -> 0 | D60: =INDEX('Compile Data'!$BL$12:$CI$93,$A60-1921,'Report - ALL (DASHBOARD)'!$W$4) -> 399.4361949 | E60: =INDEX('Compile Data'!$CL$12:$DI$93,$A60-1921,'Report - ALL (DASHBOARD)'!$W$4) -> 549.2166291 | F60: =INDEX('Compile Data'!$DL$12:$EI$93,$A60-1921,'Report - ALL (DASHBOARD)'!$W$4) -> 322.4458295 | G60: =INDEX('Compile Data'!$EL$12:$FI$93,$A60-1921,'Report - ALL (DASHBOARD)'!$W$4) -> 427.9743158 | O60: 33 | P60: 0.3950617284 | Q60: =INDEX('Compile Data'!$L$123:$AI$204,$O60,'Report - ALL (DASHBOARD)'!$W$4) -> 0 | R60: =INDEX('Compile Data'!$AL$123:$BI$204,$O60,'Report - ALL (DASHBOARD)'!$W$4) -> 0 | S60: =INDEX('Compile Data'!$BL$123:$CI$204,$O60,'Report - ALL (DASHBOARD)'!$W$4) -> 233.0428284 | T60: =INDEX('Compile Data'!$CL$123:$DI$204,$O60,'Report - ALL (DASHBOARD)'!$W$4) -> 294.0367099 | U60: =INDEX('Compile Data'!$DL$123:$EI$204,$O60,'Report - ALL (DASHBOARD)'!$W$4) -> 207.9137185 | V60: =INDEX('Compile Data'!$EL$123:$FI$204,$O60,'Report - ALL (DASHBOARD)'!$W$4) -> 270.0457157
A61: 1955 | B61: =INDEX('Compile Data'!$L$12:$AI$93,$A61-1921,'Report - ALL (DASHBOARD)'!$W$4) -> 0 | C61: =INDEX('Compile Data'!$AL$12:$BI$93,$A61-1921,'Report - ALL (DASHBOARD)'!$W$4) -> 0 | D61: =INDEX('Compile Data'!$BL$12:$CI$93,$A61-1921,'Report - ALL (DASHBOARD)'!$W$4) -> 592.0925124 | E61: =INDEX('Compile Data'!$CL$12:$DI$93,$A61-1921,'Report - ALL (DASHBOARD)'!$W$4) -> 503.3085881 | F61: =INDEX('Compile Data'!$DL$12:$EI$93,$A61-1921,'Report - ALL (DASHBOARD)'!$W$4) -> 565.8445998 | G61: =INDEX('Compile Data'!$EL$12:$FI$93,$A61-1921,'Report - ALL (DASHBOARD)'!$W$4) -> 477.8698241 | O61: 34 | P61: 0.4074074074 | Q61: =INDEX('Compile Data'!$L$123:$AI$204,$O61,'Report - ALL (DASHBOARD)'!$W$4) -> 0 | R61: =INDEX('Compile Data'!$AL$123:$BI$204,$O61,'Report - ALL (DASHBOARD)'!$W$4) -> 0 | S61: =INDEX('Compile Data'!$BL$123:$CI$204,$O61,'Report - ALL (DASHBOARD)'!$W$4) -> 223.4220875 | T61: =INDEX('Compile Data'!$CL$123:$DI$204,$O61,'Report - ALL (DASHBOARD)'!$W$4) -> 290.0050857 | U61: =INDEX('Compile Data'!$DL$123:$EI$204,$O61,'Report - ALL (DASHBOARD)'!$W$4) -> 205.1598451 | V61: =INDEX('Compile Data'!$EL$123:$FI$204,$O61,'Report - ALL (DASHBOARD)'!$W$4) -> 265.5430366
A62: 1956 | B62: =INDEX('Compile Data'!$L$12:$AI$93,$A62-1921,'Report - ALL (DASHBOARD)'!$W$4) -> 0 | C62: =INDEX('Compile Data'!$AL$12:$BI$93,$A62-1921,'Report - ALL (DASHBOARD)'!$W$4) -> 0 | D62: =INDEX('Compile Data'!$BL$12:$CI$93,$A62-1921,'Report - ALL (DASHBOARD)'!$W$4) -> 35.34140965 | E62: =INDEX('Compile Data'!$CL$12:$DI$93,$A62-1921,'Report - ALL (DASHBOARD)'!$W$4) -> 38.89123715 | F62: =INDEX('Compile Data'!$DL$12:$EI$93,$A62-1921,'Report - ALL (DASHBOARD)'!$W$4) -> 90.51382336 | G62: =INDEX('Compile Data'!$EL$12:$FI$93,$A62-1921,'Report - ALL (DASHBOARD)'!$W$4) -> 61.07228672 | O62: 35 | P62: 0.4197530864 | Q62: =INDEX('Compile Data'!$L$123:$AI$204,$O62,'Report - ALL (DASHBOARD)'!$W$4) -> 0 | R62: =INDEX('Compile Data'!$AL$123:$BI$204,$O62,'Report - ALL (DASHBOARD)'!$W$4) -> 0 | S62: =INDEX('Compile Data'!$BL$123:$CI$204,$O62,'Report - ALL (DASHBOARD)'!$W$4) -> 214.5925148 | T62: =INDEX('Compile Data'!$CL$123:$DI$204,$O62,'Report - ALL (DASHBOARD)'!$W$4) -> 265.5457 | U62: =INDEX('Compile Data'!$DL$123:$EI$204,$O62,'Report - ALL (DASHBOARD)'!$W$4) -> 201.958976 | V62: =INDEX('Compile Data'!$EL$123:$FI$204,$O62,'Report - ALL (DASHBOARD)'!$W$4) -> 243.2375582
A63: 1957 | B63: =INDEX('Compile Data'!$L$12:$AI$93,$A63-1921,'Report - ALL (DASHBOARD)'!$W$4) -> 0 | C63: =INDEX('Compile Data'!$AL$12:$BI$93,$A63-1921,'Report - ALL (DASHBOARD)'!$W$4) -> 0 | D63: =INDEX('Compile Data'!$BL$12:$CI$93,$A63-1921,'Report - ALL (DASHBOARD)'!$W$4) -> 349.6472294 | E63: =INDEX('Compile Data'!$CL$12:$DI$93,$A63-1921,'Report - ALL (DASHBOARD)'!$W$4) -> 477.5715136 | F63: =INDEX('Compile Data'!$DL$12:$EI$93,$A63-1921,'Report - ALL (DASHBOARD)'!$W$4) -> 333.519817 | G63: =INDEX('Compile Data'!$EL$12:$FI$93,$A63-1921,'Report - ALL (DASHBOARD)'!$W$4) -> 345.4306078 | O63: 36 | P63: 0.4320987654 | Q63: =INDEX('Compile Data'!$L$123:$AI$204,$O63,'Report - ALL (DASHBOARD)'!$W$4) -> 0 | R63: =INDEX('Compile Data'!$AL$123:$BI$204,$O63,'Report - ALL (DASHBOARD)'!$W$4) -> 0 | S63: =INDEX('Compile Data'!$BL$123:$CI$204,$O63,'Report - ALL (DASHBOARD)'!$W$4) -> 213.4916258 | T63: =INDEX('Compile Data'!$CL$123:$DI$204,$O63,'Report - ALL (DASHBOARD)'!$W$4) -> 232.802704 | U63: =INDEX('Compile Data'!$DL$123:$EI$204,$O63,'Report - ALL (DASHBOARD)'!$W$4) -> 198.6219983 | V63: =INDEX('Compile Data'!$EL$123:$FI$204,$O63,'Report - ALL (DASHBOARD)'!$W$4) -> 233.7536332
A64: 1958 | B64: =INDEX('Compile Data'!$L$12:$AI$93,$A64-1921,'Report - ALL (DASHBOARD)'!$W$4) -> 0 | C64: =INDEX('Compile Data'!$AL$12:$BI$93,$A64-1921,'Report - ALL (DASHBOARD)'!$W$4) -> 0 | D64: =INDEX('Compile Data'!$BL$12:$CI$93,$A64-1921,'Report - ALL (DASHBOARD)'!$W$4) -> 60.17241371 | E64: =INDEX('Compile Data'!$CL$12:$DI$93,$A64-1921,'Report - ALL (DASHBOARD)'!$W$4) -> 96.30553953 | F64: =INDEX('Compile Data'!$DL$12:$EI$93,$A64-1921,'Report - ALL (DASHBOARD)'!$W$4) -> 87.75862062 | G64: =INDEX('Compile Data'!$EL$12:$FI$93,$A64-1921,'Report - ALL (DASHBOARD)'!$W$4) -> 96.30716091 | O64: 37 | P64: 0.4444444444 | Q64: =INDEX('Compile Data'!$L$123:$AI$204,$O64,'Report - ALL (DASHBOARD)'!$W$4) -> 0 | R64: =INDEX('Compile Data'!$AL$123:$BI$204,$O64,'Report - ALL (DASHBOARD)'!$W$4) -> 0 | S64: =INDEX('Compile Data'!$BL$123:$CI$204,$O64,'Report - ALL (DASHBOARD)'!$W$4) -> 203.6429764 | T64: =INDEX('Compile Data'!$CL$123:$DI$204,$O64,'Report - ALL (DASHBOARD)'!$W$4) -> 227.3020155 | U64: =INDEX('Compile Data'!$DL$123:$EI$204,$O64,'Report - ALL (DASHBOARD)'!$W$4) -> 192.7551247 | V64: =INDEX('Compile Data'!$EL$123:$FI$204,$O64,'Report - ALL (DASHBOARD)'!$W$4) -> 223.7174805
A65: 1959 | B65: =INDEX('Compile Data'!$L$12:$AI$93,$A65-1921,'Report - ALL (DASHBOARD)'!$W$4) -> 0 | C65: =INDEX('Compile Data'!$AL$12:$BI$93,$A65-1921,'Report - ALL (DASHBOARD)'!$W$4) -> 0 | D65: =INDEX('Compile Data'!$BL$12:$CI$93,$A65-1921,'Report - ALL (DASHBOARD)'!$W$4) -> 589.9606004 | E65: =INDEX('Compile Data'!$CL$12:$DI$93,$A65-1921,'Report - ALL (DASHBOARD)'!$W$4) -> 717.4100878 | F65: =INDEX('Compile Data'!$DL$12:$EI$93,$A65-1921,'Report - ALL (DASHBOARD)'!$W$4) -> 499.6468616 | G65: =INDEX('Compile Data'!$EL$12:$FI$93,$A65-1921,'Report - ALL (DASHBOARD)'!$W$4) -> 613.4554781 | O65: 38 | P65: 0.4567901235 | Q65: =INDEX('Compile Data'!$L$123:$AI$204,$O65,'Report - ALL (DASHBOARD)'!$W$4) -> 0 | R65: =INDEX('Compile Data'!$AL$123:$BI$204,$O65,'Report - ALL (DASHBOARD)'!$W$4) -> 0 | S65: =INDEX('Compile Data'!$BL$123:$CI$204,$O65,'Report - ALL (DASHBOARD)'!$W$4) -> 193.8841679 | T65: =INDEX('Compile Data'!$CL$123:$DI$204,$O65,'Report - ALL (DASHBOARD)'!$W$4) -> 225.8567628 | U65: =INDEX('Compile Data'!$DL$123:$EI$204,$O65,'Report - ALL (DASHBOARD)'!$W$4) -> 178.468457 | V65: =INDEX('Compile Data'!$EL$123:$FI$204,$O65,'Report - ALL (DASHBOARD)'!$W$4) -> 216.7584688
A66: 1960 | B66: =INDEX('Compile Data'!$L$12:$AI$93,$A66-1921,'Report - ALL (DASHBOARD)'!$W$4) -> 0 | C66: =INDEX('Compile Data'!$AL$12:$BI$93,$A66-1921,'Report - ALL (DASHBOARD)'!$W$4) -> 0 | D66: =INDEX('Compile Data'!$BL$12:$CI$93,$A66-1921,'Report - ALL (DASHBOARD)'!$W$4) -> 539.7408885 | E66: =INDEX('Compile Data'!$CL$12:$DI$93,$A66-1921,'Report - ALL (DASHBOARD)'!$W$4) -> 591.5994008 | F66: =INDEX('Compile Data'!$DL$12:$EI$93,$A66-1921,'Report - ALL (DASHBOARD)'!$W$4) -> 494.4052757 | G66: =INDEX('Compile Data'!$EL$12:$FI$93,$A66-1921,'Report - ALL (DASHBOARD)'!$W$4) -> 549.272869 | O66: 39 | P66: 0.4691358025 | Q66: =INDEX('Compile Data'!$L$123:$AI$204,$O66,'Report - ALL (DASHBOARD)'!$W$4) -> 0 | R66: =INDEX('Compile Data'!$AL$123:$BI$204,$O66,'Report - ALL (DASHBOARD)'!$W$4) -> 0 | S66: =INDEX('Compile Data'!$BL$123:$CI$204,$O66,'Report - ALL (DASHBOARD)'!$W$4) -> 174.9616945 | T66: =INDEX('Compile Data'!$CL$123:$DI$204,$O66,'Report - ALL (DASHBOARD)'!$W$4) -> 223.699496 | U66: =INDEX('Compile Data'!$DL$123:$EI$204,$O66,'Report - ALL (DASHBOARD)'!$W$4) -> 172.6602981 | V66: =INDEX('Compile Data'!$EL$123:$FI$204,$O66,'Report - ALL (DASHBOARD)'!$W$4) -> 208.7615233
A67: 1961 | B67: =INDEX('Compile Data'!$L$12:$AI$93,$A67-1921,'Report - ALL (DASHBOARD)'!$W$4) -> 0 | C67: =INDEX('Compile Data'!$AL$12:$BI$93,$A67-1921,'Report - ALL (DASHBOARD)'!$W$4) -> 0 | D67: =INDEX('Compile Data'!$BL$12:$CI$93,$A67-1921,'Report - ALL (DASHBOARD)'!$W$4) -> 528.8356882 | E67: =INDEX('Compile Data'!$CL$12:$DI$93,$A67-1921,'Report - ALL (DASHBOARD)'!$W$4) -> 597.9506524 | F67: =INDEX('Compile Data'!$DL$12:$EI$93,$A67-1921,'Report - ALL (DASHBOARD)'!$W$4) -> 527.8005401 | G67: =INDEX('Compile Data'!$EL$12:$FI$93,$A67-1921,'Report - ALL (DASHBOARD)'!$W$4) -> 585.1649546 | O67: 40 | P67: 0.4814814815 | Q67: =INDEX('Compile Data'!$L$123:$AI$204,$O67,'Report - ALL (DASHBOARD)'!$W$4) -> 0 | R67: =INDEX('Compile Data'!$AL$123:$BI$204,$O67,'Report - ALL (DASHBOARD)'!$W$4) -> 0 | S67: =INDEX('Compile Data'!$BL$123:$CI$204,$O67,'Report - ALL (DASHBOARD)'!$W$4) -> 174.7959623 | T67: =INDEX('Compile Data'!$CL$123:$DI$204,$O67,'Report - ALL (DASHBOARD)'!$W$4) -> 215.1658942 | U67: =INDEX('Compile Data'!$DL$123:$EI$204,$O67,'Report - ALL (DASHBOARD)'!$W$4) -> 165.4296313 | V67: =INDEX('Compile Data'!$EL$123:$FI$204,$O67,'Report - ALL (DASHBOARD)'!$W$4) -> 205.1041881
A68: 1962 | B68: =INDEX('Compile Data'!$L$12:$AI$93,$A68-1921,'Report - ALL (DASHBOARD)'!$W$4) -> 0 | C68: =INDEX('Compile Data'!$AL$12:$BI$93,$A68-1921,'Report - ALL (DASHBOARD)'!$W$4) -> 0 | D68: =INDEX('Compile Data'!$BL$12:$CI$93,$A68-1921,'Report - ALL (DASHBOARD)'!$W$4) -> 172.1788898 | E68: =INDEX('Compile Data'!$CL$12:$DI$93,$A68-1921,'Report - ALL (DASHBOARD)'!$W$4) -> 232.802704 | F68: =INDEX('Compile Data'!$DL$12:$EI$93,$A68-1921,'Report - ALL (DASHBOARD)'!$W$4) -> 198.6219983 | G68: =INDEX('Compile Data'!$EL$12:$FI$93,$A68-1921,'Report - ALL (DASHBOARD)'!$W$4) -> 270.0457157 | O68: 41 | P68: 0.4938271605 | Q68: =INDEX('Compile Data'!$L$123:$AI$204,$O68,'Report - ALL (DASHBOARD)'!$W$4) -> 0 | R68: =INDEX('Compile Data'!$AL$123:$BI$204,$O68,'Report - ALL (DASHBOARD)'!$W$4) -> 0 | S68: =INDEX('Compile Data'!$BL$123:$CI$204,$O68,'Report - ALL (DASHBOARD)'!$W$4) -> 172.1788898 | T68: =INDEX('Compile Data'!$CL$123:$DI$204,$O68,'Report - ALL (DASHBOARD)'!$W$4) -> 208.0055858 | U68: =INDEX('Compile Data'!$DL$123:$EI$204,$O68,'Report - ALL (DASHBOARD)'!$W$4) -> 163.5236711 | V68: =INDEX('Compile Data'!$EL$123:$FI$204,$O68,'Report - ALL (DASHBOARD)'!$W$4) -> 197.038903
A69: 1963 | B69: =INDEX('Compile Data'!$L$12:$AI$93,$A69-1921,'Report - ALL (DASHBOARD)'!$W$4) -> 0 | C69: =INDEX('Compile Data'!$AL$12:$BI$93,$A69-1921,'Report - ALL (DASHBOARD)'!$W$4) -> 0 | D69: =INDEX('Compile Data'!$BL$12:$CI$93,$A69-1921,'Report - ALL (DASHBOARD)'!$W$4) -> 66.64152952 | E69: =INDEX('Compile Data'!$CL$12:$DI$93,$A69-1921,'Report - ALL (DASHBOARD)'!$W$4) -> 76.37238916 | F69: =INDEX('Compile Data'!$DL$12:$EI$93,$A69-1921,'Report - ALL (DASHBOARD)'!$W$4) -> 60.1724138 | G69: =INDEX('Compile Data'!$EL$12:$FI$93,$A69-1921,'Report - ALL (DASHBOARD)'!$W$4) -> 85.32395366 | O69: 42 | P69: 0.5061728395 | Q69: =INDEX('Compile Data'!$L$123:$AI$204,$O69,'Report - ALL (DASHBOARD)'!$W$4) -> 0 | R69: =INDEX('Compile Data'!$AL$123:$BI$204,$O69,'Report - ALL (DASHBOARD)'!$W$4) -> 0 | S69: =INDEX('Compile Data'!$BL$123:$CI$204,$O69,'Report - ALL (DASHBOARD)'!$W$4) -> 168.7843082 | T69: =INDEX('Compile Data'!$CL$123:$DI$204,$O69,'Report - ALL (DASHBOARD)'!$W$4) -> 198.6951464 | U69: =INDEX('Compile Data'!$DL$123:$EI$204,$O69,'Report - ALL (DASHBOARD)'!$W$4) -> 157.3032648 | V69: =INDEX('Compile Data'!$EL$123:$FI$204,$O69,'Report - ALL (DASHBOARD)'!$W$4) -> 188.4707855
A70: 1964 | B70: =INDEX('Compile Data'!$L$12:$AI$93,$A70-1921,'Report - ALL (DASHBOARD)'!$W$4) -> 0 | C70: =INDEX('Compile Data'!$AL$12:$BI$93,$A70-1921,'Report - ALL (DASHBOARD)'!$W$4) -> 0 | D70: =INDEX('Compile Data'!$BL$12:$CI$93,$A70-1921,'Report - ALL (DASHBOARD)'!$W$4) -> 514.57903 | E70: =INDEX('Compile Data'!$CL$12:$DI$93,$A70-1921,'Report - ALL (DASHBOARD)'!$W$4) -> 598.6804157 | F70: =INDEX('Compile Data'!$DL$12:$EI$93,$A70-1921,'Report - ALL (DASHBOARD)'!$W$4) -> 460.9662721 | G70: =INDEX('Compile Data'!$EL$12:$FI$93,$A70-1921,'Report - ALL (DASHBOARD)'!$W$4) -> 671.5815547 | O70: 43 | P70: 0.5185185185 | Q70: =INDEX('Compile Data'!$L$123:$AI$204,$O70,'Report - ALL (DASHBOARD)'!$W$4) -> 0 | R70: =INDEX('Compile Data'!$AL$123:$BI$204,$O70,'Report - ALL (DASHBOARD)'!$W$4) -> 0 | S70: =INDEX('Compile Data'!$BL$123:$CI$204,$O70,'Report - ALL (DASHBOARD)'!$W$4) -> 158.3829356 | T70: =INDEX('Compile Data'!$CL$123:$DI$204,$O70,'Report - ALL (DASHBOARD)'!$W$4) -> 194.0434721 | U70: =INDEX('Compile Data'!$DL$123:$EI$204,$O70,'Report - ALL (DASHBOARD)'!$W$4) -> 156.0835494 | V70: =INDEX('Compile Data'!$EL$123:$FI$204,$O70,'Report - ALL (DASHBOARD)'!$W$4) -> 187.2712169
A71: 1965 | B71: =INDEX('Compile Data'!$L$12:$AI$93,$A71-1921,'Report - ALL (DASHBOARD)'!$W$4) -> 0 | C71: =INDEX('Compile Data'!$AL$12:$BI$93,$A71-1921,'Report - ALL (DASHBOARD)'!$W$4) -> 0 | D71: =INDEX('Compile Data'!$BL$12:$CI$93,$A71-1921,'Report - ALL (DASHBOARD)'!$W$4) -> 63.78985148 | E71: =INDEX('Compile Data'!$CL$12:$DI$93,$A71-1921,'Report - ALL (DASHBOARD)'!$W$4) -> 74.22234421 | F71: =INDEX('Compile Data'!$DL$12:$EI$93,$A71-1921,'Report - ALL (DASHBOARD)'!$W$4) -> 67.97296541 | G71: =INDEX('Compile Data'!$EL$12:$FI$93,$A71-1921,'Report - ALL (DASHBOARD)'!$W$4) -> 72.48941591 | O71: 44 | P71: 0.5308641975 | Q71: =INDEX('Compile Data'!$L$123:$AI$204,$O71,'Report - ALL (DASHBOARD)'!$W$4) -> 0 | R71: =INDEX('Compile Data'!$AL$123:$BI$204,$O71,'Report - ALL (DASHBOARD)'!$W$4) -> 0 | S71: =INDEX('Compile Data'!$BL$123:$CI$204,$O71,'Report - ALL (DASHBOARD)'!$W$4) -> 152.37542 | T71: =INDEX('Compile Data'!$CL$123:$DI$204,$O71,'Report - ALL (DASHBOARD)'!$W$4) -> 187.8316794 | U71: =INDEX('Compile Data'!$DL$123:$EI$204,$O71,'Report - ALL (DASHBOARD)'!$W$4) -> 154.5574019 | V71: =INDEX('Compile Data'!$EL$123:$FI$204,$O71,'Report - ALL (DASHBOARD)'!$W$4) -> 173.3607738
A72: 1966 | B72: =INDEX('Compile Data'!$L$12:$AI$93,$A72-1921,'Report - ALL (DASHBOARD)'!$W$4) -> 0 | C72: =INDEX('Compile Data'!$AL$12:$BI$93,$A72-1921,'Report - ALL (DASHBOARD)'!$W$4) -> 0 | D72: =INDEX('Compile Data'!$BL$12:$CI$93,$A72-1921,'Report - ALL (DASHBOARD)'!$W$4) -> 598.2164111 | E72: =INDEX('Compile Data'!$CL$12:$DI$93,$A72-1921,'Report - ALL (DASHBOARD)'!$W$4) -> 495.6512779 | F72: =INDEX('Compile Data'!$DL$12:$EI$93,$A72-1921,'Report - ALL (DASHBOARD)'!$W$4) -> 478.3940339 | G72: =INDEX('Compile Data'!$EL$12:$FI$93,$A72-1921,'Report - ALL (DASHBOARD)'!$W$4) -> 418.686109 | O72: 45 | P72: 0.5432098765 | Q72: =INDEX('Compile Data'!$L$123:$AI$204,$O72,'Report - ALL (DASHBOARD)'!$W$4) -> 0 | R72: =INDEX('Compile Data'!$AL$123:$BI$204,$O72,'Report - ALL (DASHBOARD)'!$W$4) -> 0 | S72: =INDEX('Compile Data'!$BL$123:$CI$204,$O72,'Report - ALL (DASHBOARD)'!$W$4) -> 152.0291336 | T72: =INDEX('Compile Data'!$CL$123:$DI$204,$O72,'Report - ALL (DASHBOARD)'!$W$4) -> 187.2729594 | U72: =INDEX('Compile Data'!$DL$123:$EI$204,$O72,'Report - ALL (DASHBOARD)'!$W$4) -> 140.3099769 | V72: =INDEX('Compile Data'!$EL$123:$FI$204,$O72,'Report - ALL (DASHBOARD)'!$W$4) -> 166.28411
A73: 1967 | B73: =INDEX('Compile Data'!$L$12:$AI$93,$A73-1921,'Report - ALL (DASHBOARD)'!$W$4) -> 0 | C73: =INDEX('Compile Data'!$AL$12:$BI$93,$A73-1921,'Report - ALL (DASHBOARD)'!$W$4) -> 0 | D73: =INDEX('Compile Data'!$BL$12:$CI$93,$A73-1921,'Report - ALL (DASHBOARD)'!$W$4) -> 85.25862061 | E73: =INDEX('Compile Data'!$CL$12:$DI$93,$A73-1921,'Report - ALL (DASHBOARD)'!$W$4) -> 87.85150549 | F73: =INDEX('Compile Data'!$DL$12:$EI$93,$A73-1921,'Report - ALL (DASHBOARD)'!$W$4) -> 85.25862062 | G73: =INDEX('Compile Data'!$EL$12:$FI$93,$A73-1921,'Report - ALL (DASHBOARD)'!$W$4) -> 60.26529859 | O73: 46 | P73: 0.5555555556 | Q73: =INDEX('Compile Data'!$L$123:$AI$204,$O73,'Report - ALL (DASHBOARD)'!$W$4) -> 0 | R73: =INDEX('Compile Data'!$AL$123:$BI$204,$O73,'Report - ALL (DASHBOARD)'!$W$4) -> 0 | S73: =INDEX('Compile Data'!$BL$123:$CI$204,$O73,'Report - ALL (DASHBOARD)'!$W$4) -> 140.9675077 | T73: =INDEX('Compile Data'!$CL$123:$DI$204,$O73,'Report - ALL (DASHBOARD)'!$W$4) -> 168.4575221 | U73: =INDEX('Compile Data'!$DL$123:$EI$204,$O73,'Report - ALL (DASHBOARD)'!$W$4) -> 139.7287915 | V73: =INDEX('Compile Data'!$EL$123:$FI$204,$O73,'Report - ALL (DASHBOARD)'!$W$4) -> 165.6523752
A74: 1968 | B74: =INDEX('Compile Data'!$L$12:$AI$93,$A74-1921,'Report - ALL (DASHBOARD)'!$W$4) -> 0 | C74: =INDEX('Compile Data'!$AL$12:$BI$93,$A74-1921,'Report - ALL (DASHBOARD)'!$W$4) -> 0 | D74: =INDEX('Compile Data'!$BL$12:$CI$93,$A74-1921,'Report - ALL (DASHBOARD)'!$W$4) -> 540.33686 | E74: =INDEX('Compile Data'!$CL$12:$DI$93,$A74-1921,'Report - ALL (DASHBOARD)'!$W$4) -> 691.2438217 | F74: =INDEX('Compile Data'!$DL$12:$EI$93,$A74-1921,'Report - ALL (DASHBOARD)'!$W$4) -> 445.0956847 | G74: =INDEX('Compile Data'!$EL$12:$FI$93,$A74-1921,'Report - ALL (DASHBOARD)'!$W$4) -> 621.3292357 | O74: 47 | P74: 0.5679012346 | Q74: =INDEX('Compile Data'!$L$123:$AI$204,$O74,'Report - ALL (DASHBOARD)'!$W$4) -> 0 | R74: =INDEX('Compile Data'!$AL$123:$BI$204,$O74,'Report - ALL (DASHBOARD)'!$W$4) -> 0 | S74: =INDEX('Compile Data'!$BL$123:$CI$204,$O74,'Report - ALL (DASHBOARD)'!$W$4) -> 137.5420818 | T74: =INDEX('Compile Data'!$CL$123:$DI$204,$O74,'Report - ALL (DASHBOARD)'!$W$4) -> 167.6789468 | U74: =INDEX('Compile Data'!$DL$123:$EI$204,$O74,'Report - ALL (DASHBOARD)'!$W$4) -> 134.7585121 | V74: =INDEX('Compile Data'!$EL$123:$FI$204,$O74,'Report - ALL (DASHBOARD)'!$W$4) -> 160.7112268
A75: 1969 | B75: =INDEX('Compile Data'!$L$12:$AI$93,$A75-1921,'Report - ALL (DASHBOARD)'!$W$4) -> 0 | C75: =INDEX('Compile Data'!$AL$12:$BI$93,$A75-1921,'Report - ALL (DASHBOARD)'!$W$4) -> 0 | D75: =INDEX('Compile Data'!$BL$12:$CI$93,$A75-1921,'Report - ALL (DASHBOARD)'!$W$4) -> 91.4073153 | E75: =INDEX('Compile Data'!$CL$12:$DI$93,$A75-1921,'Report - ALL (DASHBOARD)'!$W$4) -> 91.4191907 | F75: =INDEX('Compile Data'!$DL$12:$EI$93,$A75-1921,'Report - ALL (DASHBOARD)'!$W$4) -> 91.4073153 | G75: =INDEX('Compile Data'!$EL$12:$FI$93,$A75-1921,'Report - ALL (DASHBOARD)'!$W$4) -> 91.4191907 | O75: 48 | P75: 0.5802469136 | Q75: =INDEX('Compile Data'!$L$123:$AI$204,$O75,'Report - ALL (DASHBOARD)'!$W$4) -> 0 | R75: =INDEX('Compile Data'!$AL$123:$BI$204,$O75,'Report - ALL (DASHBOARD)'!$W$4) -> 0 | S75: =INDEX('Compile Data'!$BL$123:$CI$204,$O75,'Report - ALL (DASHBOARD)'!$W$4) -> 136.12748 | T75: =INDEX('Compile Data'!$CL$123:$DI$204,$O75,'Report - ALL (DASHBOARD)'!$W$4) -> 167.1898451 | U75: =INDEX('Compile Data'!$DL$123:$EI$204,$O75,'Report - ALL (DASHBOARD)'!$W$4) -> 132.0064366 | V75: =INDEX('Compile Data'!$EL$123:$FI$204,$O75,'Report - ALL (DASHBOARD)'!$W$4) -> 159.2196794
A76: 1970 | B76: =INDEX('Compile Data'!$L$12:$AI$93,$A76-1921,'Report - ALL (DASHBOARD)'!$W$4) -> 0 | C76: =INDEX('Compile Data'!$AL$12:$BI$93,$A76-1921,'Report - ALL (DASHBOARD)'!$W$4) -> 0 | D76: =INDEX('Compile Data'!$BL$12:$CI$93,$A76-1921,'Report - ALL (DASHBOARD)'!$W$4) -> 152.37542 | E76: =INDEX('Compile Data'!$CL$12:$DI$93,$A76-1921,'Report - ALL (DASHBOARD)'!$W$4) -> 187.2729594 | F76: =INDEX('Compile Data'!$DL$12:$EI$93,$A76-1921,'Report - ALL (DASHBOARD)'!$W$4) -> 157.3032648 | G76: =INDEX('Compile Data'!$EL$12:$FI$93,$A76-1921,'Report - ALL (DASHBOARD)'!$W$4) -> 187.2712169 | O76: 49 | P76: 0.5925925926 | Q76: =INDEX('Compile Data'!$L$123:$AI$204,$O76,'Report - ALL (DASHBOARD)'!$W$4) -> 0 | R76: =INDEX('Compile Data'!$AL$123:$BI$204,$O76,'Report - ALL (DASHBOARD)'!$W$4) -> 0 | S76: =INDEX('Compile Data'!$BL$123:$CI$204,$O76,'Report - ALL (DASHBOARD)'!$W$4) -> 135.1720536 | T76: =INDEX('Compile Data'!$CL$123:$DI$204,$O76,'Report - ALL (DASHBOARD)'!$W$4) -> 166.28411 | U76: =INDEX('Compile Data'!$DL$123:$EI$204,$O76,'Report - ALL (DASHBOARD)'!$W$4) -> 112.8361988 | V76: =INDEX('Compile Data'!$EL$123:$FI$204,$O76,'Report - ALL (DASHBOARD)'!$W$4) -> 151.9855133
A77: 1971 | B77: =INDEX('Compile Data'!$L$12:$AI$93,$A77-1921,'Report - ALL (DASHBOARD)'!$W$4) -> 0 | C77: =INDEX('Compile Data'!$AL$12:$BI$93,$A77-1921,'Report - ALL (DASHBOARD)'!$W$4) -> 0 | D77: =INDEX('Compile Data'!$BL$12:$CI$93,$A77-1921,'Report - ALL (DASHBOARD)'!$W$4) -> 98.2849838 | E77: =INDEX('Compile Data'!$CL$12:$DI$93,$A77-1921,'Report - ALL (DASHBOARD)'!$W$4) -> 96.97418453 | F77: =INDEX('Compile Data'!$DL$12:$EI$93,$A77-1921,'Report - ALL (DASHBOARD)'!$W$4) -> 98.28498368 | G77: =INDEX('Compile Data'!$EL$12:$FI$93,$A77-1921,'Report - ALL (DASHBOARD)'!$W$4) -> 96.97418453 | O77: 50 | P77: 0.6049382716 | Q77: =INDEX('Compile Data'!$L$123:$AI$204,$O77,'Report - ALL (DASHBOARD)'!$W$4) -> 0 | R77: =INDEX('Compile Data'!$AL$123:$BI$204,$O77,'Report - ALL (DASHBOARD)'!$W$4) -> 0 | S77: =INDEX('Compile Data'!$BL$123:$CI$204,$O77,'Report - ALL (DASHBOARD)'!$W$4) -> 132.3300523 | T77: =INDEX('Compile Data'!$CL$123:$DI$204,$O77,'Report - ALL (DASHBOARD)'!$W$4) -> 154.6412666 | U77: =INDEX('Compile Data'!$DL$123:$EI$204,$O77,'Report - ALL (DASHBOARD)'!$W$4) -> 101.7137844 | V77: =INDEX('Compile Data'!$EL$123:$FI$204,$O77,'Report - ALL (DASHBOARD)'!$W$4) -> 149.7929528
A78: 1972 | B78: =INDEX('Compile Data'!$L$12:$AI$93,$A78-1921,'Report - ALL (DASHBOARD)'!$W$4) -> 0 | C78: =INDEX('Compile Data'!$AL$12:$BI$93,$A78-1921,'Report - ALL (DASHBOARD)'!$W$4) -> 0 | D78: =INDEX('Compile Data'!$BL$12:$CI$93,$A78-1921,'Report - ALL (DASHBOARD)'!$W$4) -> 509.8654157 | E78: =INDEX('Compile Data'!$CL$12:$DI$93,$A78-1921,'Report - ALL (DASHBOARD)'!$W$4) -> 635.9216218 | F78: =INDEX('Compile Data'!$DL$12:$EI$93,$A78-1921,'Report - ALL (DASHBOARD)'!$W$4) -> 431.6149672 | G78: =INDEX('Compile Data'!$EL$12:$FI$93,$A78-1921,'Report - ALL (DASHBOARD)'!$W$4) -> 630.4078287 | O78: 51 | P78: 0.6172839506 | Q78: =INDEX('Compile Data'!$L$123:$AI$204,$O78,'Report - ALL (DASHBOARD)'!$W$4) -> 0 | R78: =INDEX('Compile Data'!$AL$123:$BI$204,$O78,'Report - ALL (DASHBOARD)'!$W$4) -> 0 | S78: =INDEX('Compile Data'!$BL$123:$CI$204,$O78,'Report - ALL (DASHBOARD)'!$W$4) -> 112.7321351 | T78: =INDEX('Compile Data'!$CL$123:$DI$204,$O78,'Report - ALL (DASHBOARD)'!$W$4) -> 151.9855331 | U78: =INDEX('Compile Data'!$DL$123:$EI$204,$O78,'Report - ALL (DASHBOARD)'!$W$4) -> 98.28498368 | V78: =INDEX('Compile Data'!$EL$123:$FI$204,$O78,'Report - ALL (DASHBOARD)'!$W$4) -> 144.990908
A79: 1973 | B79: =INDEX('Compile Data'!$L$12:$AI$93,$A79-1921,'Report - ALL (DASHBOARD)'!$W$4) -> 0 | C79: =INDEX('Compile Data'!$AL$12:$BI$93,$A79-1921,'Report - ALL (DASHBOARD)'!$W$4) -> 0 | D79: =INDEX('Compile Data'!$BL$12:$CI$93,$A79-1921,'Report - ALL (DASHBOARD)'!$W$4) -> 413.0253074 | E79: =INDEX('Compile Data'!$CL$12:$DI$93,$A79-1921,'Report - ALL (DASHBOARD)'!$W$4) -> 542.0895612 | F79: =INDEX('Compile Data'!$DL$12:$EI$93,$A79-1921,'Report - ALL (DASHBOARD)'!$W$4) -> 335.3625638 | G79: =INDEX('Compile Data'!$EL$12:$FI$93,$A79-1921,'Report - ALL (DASHBOARD)'!$W$4) -> 438.4037733 | O79: 52 | P79: 0.6296296296 | Q79: =INDEX('Compile Data'!$L$123:$AI$204,$O79,'Report - ALL (DASHBOARD)'!$W$4) -> 0 | R79: =INDEX('Compile Data'!$AL$123:$BI$204,$O79,'Report - ALL (DASHBOARD)'!$W$4) -> 0 | S79: =INDEX('Compile Data'!$BL$123:$CI$204,$O79,'Report - ALL (DASHBOARD)'!$W$4) -> 101.6039868 | T79: =INDEX('Compile Data'!$CL$123:$DI$204,$O79,'Report - ALL (DASHBOARD)'!$W$4) -> 143.4584977 | U79: =INDEX('Compile Data'!$DL$123:$EI$204,$O79,'Report - ALL (DASHBOARD)'!$W$4) -> 95.9491136 | V79: =INDEX('Compile Data'!$EL$123:$FI$204,$O79,'Report - ALL (DASHBOARD)'!$W$4) -> 143.4584977
A80: 1974 | B80: =INDEX('Compile Data'!$L$12:$AI$93,$A80-1921,'Report - ALL (DASHBOARD)'!$W$4) -> 0 | C80: =INDEX('Compile Data'!$AL$12:$BI$93,$A80-1921,'Report - ALL (DASHBOARD)'!$W$4) -> 0 | D80: =INDEX('Compile Data'!$BL$12:$CI$93,$A80-1921,'Report - ALL (DASHBOARD)'!$W$4) -> 61.1124138 | E80: =INDEX('Compile Data'!$CL$12:$DI$93,$A80-1921,'Report - ALL (DASHBOARD)'!$W$4) -> 117.705912 | F80: =INDEX('Compile Data'!$DL$12:$EI$93,$A80-1921,'Report - ALL (DASHBOARD)'!$W$4) -> 61.11241371 | G80: =INDEX('Compile Data'!$EL$12:$FI$93,$A80-1921,'Report - ALL (DASHBOARD)'!$W$4) -> 138.9300807 | O80: 53 | P80: 0.6419753086 | Q80: =INDEX('Compile Data'!$L$123:$AI$204,$O80,'Report - ALL (DASHBOARD)'!$W$4) -> 0 | R80: =INDEX('Compile Data'!$AL$123:$BI$204,$O80,'Report - ALL (DASHBOARD)'!$W$4) -> 0 | S80: =INDEX('Compile Data'!$BL$123:$CI$204,$O80,'Report - ALL (DASHBOARD)'!$W$4) -> 98.2849838 | T80: =INDEX('Compile Data'!$CL$123:$DI$204,$O80,'Report - ALL (DASHBOARD)'!$W$4) -> 118.4611 | U80: =INDEX('Compile Data'!$DL$123:$EI$204,$O80,'Report - ALL (DASHBOARD)'!$W$4) -> 93.09712779 | V80: =INDEX('Compile Data'!$EL$123:$FI$204,$O80,'Report - ALL (DASHBOARD)'!$W$4) -> 138.9300807
A81: 1975 | B81: =INDEX('Compile Data'!$L$12:$AI$93,$A81-1921,'Report - ALL (DASHBOARD)'!$W$4) -> 0 | C81: =INDEX('Compile Data'!$AL$12:$BI$93,$A81-1921,'Report - ALL (DASHBOARD)'!$W$4) -> 0 | D81: =INDEX('Compile Data'!$BL$12:$CI$93,$A81-1921,'Report - ALL (DASHBOARD)'!$W$4) -> 62.47239862 | E81: =INDEX('Compile Data'!$CL$12:$DI$93,$A81-1921,'Report - ALL (DASHBOARD)'!$W$4) -> 90.06258518 | F81: =INDEX('Compile Data'!$DL$12:$EI$93,$A81-1921,'Report - ALL (DASHBOARD)'!$W$4) -> 62.47239862 | G81: =INDEX('Compile Data'!$EL$12:$FI$93,$A81-1921,'Report - ALL (DASHBOARD)'!$W$4) -> 90.06258518 | O81: 54 | P81: 0.6543209877 | Q81: =INDEX('Compile Data'!$L$123:$AI$204,$O81,'Report - ALL (DASHBOARD)'!$W$4) -> 0 | R81: =INDEX('Compile Data'!$AL$123:$BI$204,$O81,'Report - ALL (DASHBOARD)'!$W$4) -> 0 | S81: =INDEX('Compile Data'!$BL$123:$CI$204,$O81,'Report - ALL (DASHBOARD)'!$W$4) -> 95.94911358 | T81: =INDEX('Compile Data'!$CL$123:$DI$204,$O81,'Report - ALL (DASHBOARD)'!$W$4) -> 117.705912 | U81: =INDEX('Compile Data'!$DL$123:$EI$204,$O81,'Report - ALL (DASHBOARD)'!$W$4) -> 92.17146195 | V81: =INDEX('Compile Data'!$EL$123:$FI$204,$O81,'Report - ALL (DASHBOARD)'!$W$4) -> 118.4678361
A82: 1976 | B82: =INDEX('Compile Data'!$L$12:$AI$93,$A82-1921,'Report - ALL (DASHBOARD)'!$W$4) -> 0 | C82: =INDEX('Compile Data'!$AL$12:$BI$93,$A82-1921,'Report - ALL (DASHBOARD)'!$W$4) -> 0 | D82: =INDEX('Compile Data'!$BL$12:$CI$93,$A82-1921,'Report - ALL (DASHBOARD)'!$W$4) -> 636.069419 | E82: =INDEX('Compile Data'!$CL$12:$DI$93,$A82-1921,'Report - ALL (DASHBOARD)'!$W$4) -> 660.594577 | F82: =INDEX('Compile Data'!$DL$12:$EI$93,$A82-1921,'Report - ALL (DASHBOARD)'!$W$4) -> 750.1676258 | G82: =INDEX('Compile Data'!$EL$12:$FI$93,$A82-1921,'Report - ALL (DASHBOARD)'!$W$4) -> 655.6461409 | O82: 55 | P82: 0.6666666667 | Q82: =INDEX('Compile Data'!$L$123:$AI$204,$O82,'Report - ALL (DASHBOARD)'!$W$4) -> 0 | R82: =INDEX('Compile Data'!$AL$123:$BI$204,$O82,'Report - ALL (DASHBOARD)'!$W$4) -> 0 | S82: =INDEX('Compile Data'!$BL$123:$CI$204,$O82,'Report - ALL (DASHBOARD)'!$W$4) -> 93.09712779 | T82: =INDEX('Compile Data'!$CL$123:$DI$204,$O82,'Report - ALL (DASHBOARD)'!$W$4) -> 109.9329184 | U82: =INDEX('Compile Data'!$DL$123:$EI$204,$O82,'Report - ALL (DASHBOARD)'!$W$4) -> 91.48357057 | V82: =INDEX('Compile Data'!$EL$123:$FI$204,$O82,'Report - ALL (DASHBOARD)'!$W$4) -> 118.4611
A83: 1977 | B83: =INDEX('Compile Data'!$L$12:$AI$93,$A83-1921,'Report - ALL (DASHBOARD)'!$W$4) -> 0 | C83: =INDEX('Compile Data'!$AL$12:$BI$93,$A83-1921,'Report - ALL (DASHBOARD)'!$W$4) -> 0 | D83: =INDEX('Compile Data'!$BL$12:$CI$93,$A83-1921,'Report - ALL (DASHBOARD)'!$W$4) -> 580.5127469 | E83: =INDEX('Compile Data'!$CL$12:$DI$93,$A83-1921,'Report - ALL (DASHBOARD)'!$W$4) -> 501.8152166 | F83: =INDEX('Compile Data'!$DL$12:$EI$93,$A83-1921,'Report - ALL (DASHBOARD)'!$W$4) -> 457.2761248 | G83: =INDEX('Compile Data'!$EL$12:$FI$93,$A83-1921,'Report - ALL (DASHBOARD)'!$W$4) -> 494.0618123 | O83: 56 | P83: 0.6790123457 | Q83: =INDEX('Compile Data'!$L$123:$AI$204,$O83,'Report - ALL (DASHBOARD)'!$W$4) -> 0 | R83: =INDEX('Compile Data'!$AL$123:$BI$204,$O83,'Report - ALL (DASHBOARD)'!$W$4) -> 0 | S83: =INDEX('Compile Data'!$BL$123:$CI$204,$O83,'Report - ALL (DASHBOARD)'!$W$4) -> 92.17146195 | T83: =INDEX('Compile Data'!$CL$123:$DI$204,$O83,'Report - ALL (DASHBOARD)'!$W$4) -> 96.97418453 | U83: =INDEX('Compile Data'!$DL$123:$EI$204,$O83,'Report - ALL (DASHBOARD)'!$W$4) -> 91.4073153 | V83: =INDEX('Compile Data'!$EL$123:$FI$204,$O83,'Report - ALL (DASHBOARD)'!$W$4) -> 103.3087349
A84: 1978 | B84: =INDEX('Compile Data'!$L$12:$AI$93,$A84-1921,'Report - ALL (DASHBOARD)'!$W$4) -> 0 | C84: =INDEX('Compile Data'!$AL$12:$BI$93,$A84-1921,'Report - ALL (DASHBOARD)'!$W$4) -> 0 | D84: =INDEX('Compile Data'!$BL$12:$CI$93,$A84-1921,'Report - ALL (DASHBOARD)'!$W$4) -> 168.7843082 | E84: =INDEX('Compile Data'!$CL$12:$DI$93,$A84-1921,'Report - ALL (DASHBOARD)'!$W$4) -> 327.6832547 | F84: =INDEX('Compile Data'!$DL$12:$EI$93,$A84-1921,'Report - ALL (DASHBOARD)'!$W$4) -> 156.0835494 | G84: =INDEX('Compile Data'!$EL$12:$FI$93,$A84-1921,'Report - ALL (DASHBOARD)'!$W$4) -> 243.2375582 | O84: 57 | P84: 0.6913580247 | Q84: =INDEX('Compile Data'!$L$123:$AI$204,$O84,'Report - ALL (DASHBOARD)'!$W$4) -> 0 | R84: =INDEX('Compile Data'!$AL$123:$BI$204,$O84,'Report - ALL (DASHBOARD)'!$W$4) -> 0 | S84: =INDEX('Compile Data'!$BL$123:$CI$204,$O84,'Report - ALL (DASHBOARD)'!$W$4) -> 91.4073153 | T84: =INDEX('Compile Data'!$CL$123:$DI$204,$O84,'Report - ALL (DASHBOARD)'!$W$4) -> 96.30553953 | U84: =INDEX('Compile Data'!$DL$123:$EI$204,$O84,'Report - ALL (DASHBOARD)'!$W$4) -> 90.51382336 | V84: =INDEX('Compile Data'!$EL$123:$FI$204,$O84,'Report - ALL (DASHBOARD)'!$W$4) -> 96.97418453
A85: 1979 | B85: =INDEX('Compile Data'!$L$12:$AI$93,$A85-1921,'Report - ALL (DASHBOARD)'!$W$4) -> 0 | C85: =INDEX('Compile Data'!$AL$12:$BI$93,$A85-1921,'Report - ALL (DASHBOARD)'!$W$4) -> 0 | D85: =INDEX('Compile Data'!$BL$12:$CI$93,$A85-1921,'Report - ALL (DASHBOARD)'!$W$4) -> 140.9675077 | E85: =INDEX('Compile Data'!$CL$12:$DI$93,$A85-1921,'Report - ALL (DASHBOARD)'!$W$4) -> 299.9867707 | F85: =INDEX('Compile Data'!$DL$12:$EI$93,$A85-1921,'Report - ALL (DASHBOARD)'!$W$4) -> 87.85924939 | G85: =INDEX('Compile Data'!$EL$12:$FI$93,$A85-1921,'Report - ALL (DASHBOARD)'!$W$4) -> 292.9216235 | O85: 58 | P85: 0.7037037037 | Q85: =INDEX('Compile Data'!$L$123:$AI$204,$O85,'Report - ALL (DASHBOARD)'!$W$4) -> 0 | R85: =INDEX('Compile Data'!$AL$123:$BI$204,$O85,'Report - ALL (DASHBOARD)'!$W$4) -> 0 | S85: =INDEX('Compile Data'!$BL$123:$CI$204,$O85,'Report - ALL (DASHBOARD)'!$W$4) -> 89.71396341 | T85: =INDEX('Compile Data'!$CL$123:$DI$204,$O85,'Report - ALL (DASHBOARD)'!$W$4) -> 92.76388085 | U85: =INDEX('Compile Data'!$DL$123:$EI$204,$O85,'Report - ALL (DASHBOARD)'!$W$4) -> 89.71396341 | V85: =INDEX('Compile Data'!$EL$123:$FI$204,$O85,'Report - ALL (DASHBOARD)'!$W$4) -> 96.30716091
A86: 1980 | B86: =INDEX('Compile Data'!$L$12:$AI$93,$A86-1921,'Report - ALL (DASHBOARD)'!$W$4) -> 0 | C86: =INDEX('Compile Data'!$AL$12:$BI$93,$A86-1921,'Report - ALL (DASHBOARD)'!$W$4) -> 0 | D86: =INDEX('Compile Data'!$BL$12:$CI$93,$A86-1921,'Report - ALL (DASHBOARD)'!$W$4) -> 213.4916258 | E86: =INDEX('Compile Data'!$CL$12:$DI$93,$A86-1921,'Report - ALL (DASHBOARD)'!$W$4) -> 225.8567628 | F86: =INDEX('Compile Data'!$DL$12:$EI$93,$A86-1921,'Report - ALL (DASHBOARD)'!$W$4) -> 163.5236711 | G86: =INDEX('Compile Data'!$EL$12:$FI$93,$A86-1921,'Report - ALL (DASHBOARD)'!$W$4) -> 173.3607738 | O86: 59 | P86: 0.7160493827 | Q86: =INDEX('Compile Data'!$L$123:$AI$204,$O86,'Report - ALL (DASHBOARD)'!$W$4) -> 0 | R86: =INDEX('Compile Data'!$AL$123:$BI$204,$O86,'Report - ALL (DASHBOARD)'!$W$4) -> 0 | S86: =INDEX('Compile Data'!$BL$123:$CI$204,$O86,'Report - ALL (DASHBOARD)'!$W$4) -> 87.75862061 | T86: =INDEX('Compile Data'!$CL$123:$DI$204,$O86,'Report - ALL (DASHBOARD)'!$W$4) -> 91.4191907 | U86: =INDEX('Compile Data'!$DL$123:$EI$204,$O86,'Report - ALL (DASHBOARD)'!$W$4) -> 87.85924939 | V86: =INDEX('Compile Data'!$EL$123:$FI$204,$O86,'Report - ALL (DASHBOARD)'!$W$4) -> 95.14956206
A87: 1981 | B87: =INDEX('Compile Data'!$L$12:$AI$93,$A87-1921,'Report - ALL (DASHBOARD)'!$W$4) -> 0 | C87: =INDEX('Compile Data'!$AL$12:$BI$93,$A87-1921,'Report - ALL (DASHBOARD)'!$W$4) -> 0 | D87: =INDEX('Compile Data'!$BL$12:$CI$93,$A87-1921,'Report - ALL (DASHBOARD)'!$W$4) -> 240.9721543 | E87: =INDEX('Compile Data'!$CL$12:$DI$93,$A87-1921,'Report - ALL (DASHBOARD)'!$W$4) -> 415.061357 | F87: =INDEX('Compile Data'!$DL$12:$EI$93,$A87-1921,'Report - ALL (DASHBOARD)'!$W$4) -> 214.5084191 | G87: =INDEX('Compile Data'!$EL$12:$FI$93,$A87-1921,'Report - ALL (DASHBOARD)'!$W$4) -> 418.792148 | O87: 60 | P87: 0.7283950617 | Q87: =INDEX('Compile Data'!$L$123:$AI$204,$O87,'Report - ALL (DASHBOARD)'!$W$4) -> 0 | R87: =INDEX('Compile Data'!$AL$123:$BI$204,$O87,'Report - ALL (DASHBOARD)'!$W$4) -> 0 | S87: =INDEX('Compile Data'!$BL$123:$CI$204,$O87,'Report - ALL (DASHBOARD)'!$W$4) -> 87.75862061 | T87: =INDEX('Compile Data'!$CL$123:$DI$204,$O87,'Report - ALL (DASHBOARD)'!$W$4) -> 90.06258518 | U87: =INDEX('Compile Data'!$DL$123:$EI$204,$O87,'Report - ALL (DASHBOARD)'!$W$4) -> 87.75862062 | V87: =INDEX('Compile Data'!$EL$123:$FI$204,$O87,'Report - ALL (DASHBOARD)'!$W$4) -> 91.4191907
A88: 1982 | B88: =INDEX('Compile Data'!$L$12:$AI$93,$A88-1921,'Report - ALL (DASHBOARD)'!$W$4) -> 0 | C88: =INDEX('Compile Data'!$AL$12:$BI$93,$A88-1921,'Report - ALL (DASHBOARD)'!$W$4) -> 0 | D88: =INDEX('Compile Data'!$BL$12:$CI$93,$A88-1921,'Report - ALL (DASHBOARD)'!$W$4) -> 32.58620772 | E88: =INDEX('Compile Data'!$CL$12:$DI$93,$A88-1921,'Report - ALL (DASHBOARD)'!$W$4) -> 87.7586207 | F88: =INDEX('Compile Data'!$DL$12:$EI$93,$A88-1921,'Report - ALL (DASHBOARD)'!$W$4) -> 32.58620772 | G88: =INDEX('Compile Data'!$EL$12:$FI$93,$A88-1921,'Report - ALL (DASHBOARD)'!$W$4) -> 87.7586207 | O88: 61 | P88: 0.7407407407 | Q88: =INDEX('Compile Data'!$L$123:$AI$204,$O88,'Report - ALL (DASHBOARD)'!$W$4) -> 0 | R88: =INDEX('Compile Data'!$AL$123:$BI$204,$O88,'Report - ALL (DASHBOARD)'!$W$4) -> 0 | S88: =INDEX('Compile Data'!$BL$123:$CI$204,$O88,'Report - ALL (DASHBOARD)'!$W$4) -> 85.25862061 | T88: =INDEX('Compile Data'!$CL$123:$DI$204,$O88,'Report - ALL (DASHBOARD)'!$W$4) -> 88.15374265 | U88: =INDEX('Compile Data'!$DL$123:$EI$204,$O88,'Report - ALL (DASHBOARD)'!$W$4) -> 87.75862061 | V88: =INDEX('Compile Data'!$EL$123:$FI$204,$O88,'Report - ALL (DASHBOARD)'!$W$4) -> 90.06258518
A89: 1983 | B89: =INDEX('Compile Data'!$L$12:$AI$93,$A89-1921,'Report - ALL (DASHBOARD)'!$W$4) -> 0 | C89: =INDEX('Compile Data'!$AL$12:$BI$93,$A89-1921,'Report - ALL (DASHBOARD)'!$W$4) -> 0 | D89: =INDEX('Compile Data'!$BL$12:$CI$93,$A89-1921,'Report - ALL (DASHBOARD)'!$W$4) -> 93.09712779 | E89: =INDEX('Compile Data'!$CL$12:$DI$93,$A89-1921,'Report - ALL (DASHBOARD)'!$W$4) -> 118.4611 | F89: =INDEX('Compile Data'!$DL$12:$EI$93,$A89-1921,'Report - ALL (DASHBOARD)'!$W$4) -> 93.09712779 | G89: =INDEX('Compile Data'!$EL$12:$FI$93,$A89-1921,'Report - ALL (DASHBOARD)'!$W$4) -> 118.4611 | O89: 62 | P89: 0.7530864198 | Q89: =INDEX('Compile Data'!$L$123:$AI$204,$O89,'Report - ALL (DASHBOARD)'!$W$4) -> 0 | R89: =INDEX('Compile Data'!$AL$123:$BI$204,$O89,'Report - ALL (DASHBOARD)'!$W$4) -> 0 | S89: =INDEX('Compile Data'!$BL$123:$CI$204,$O89,'Report - ALL (DASHBOARD)'!$W$4) -> 66.64152952 | T89: =INDEX('Compile Data'!$CL$123:$DI$204,$O89,'Report - ALL (DASHBOARD)'!$W$4) -> 88.00666779 | U89: =INDEX('Compile Data'!$DL$123:$EI$204,$O89,'Report - ALL (DASHBOARD)'!$W$4) -> 87.75862061 | V89: =INDEX('Compile Data'!$EL$123:$FI$204,$O89,'Report - ALL (DASHBOARD)'!$W$4) -> 89.71396341
A90: 1984 | B90: =INDEX('Compile Data'!$L$12:$AI$93,$A90-1921,'Report - ALL (DASHBOARD)'!$W$4) -> 0 | C90: =INDEX('Compile Data'!$AL$12:$BI$93,$A90-1921,'Report - ALL (DASHBOARD)'!$W$4) -> 0 | D90: =INDEX('Compile Data'!$BL$12:$CI$93,$A90-1921,'Report - ALL (DASHBOARD)'!$W$4) -> 38.13809179 | E90: =INDEX('Compile Data'!$CL$12:$DI$93,$A90-1921,'Report - ALL (DASHBOARD)'!$W$4) -> 166.28411 | F90: =INDEX('Compile Data'!$DL$12:$EI$93,$A90-1921,'Report - ALL (DASHBOARD)'!$W$4) -> 38.13809179 | G90: =INDEX('Compile Data'!$EL$12:$FI$93,$A90-1921,'Report - ALL (DASHBOARD)'!$W$4) -> 166.28411 | O90: 63 | P90: 0.7654320988 | Q90: =INDEX('Compile Data'!$L$123:$AI$204,$O90,'Report - ALL (DASHBOARD)'!$W$4) -> 0 | R90: =INDEX('Compile Data'!$AL$123:$BI$204,$O90,'Report - ALL (DASHBOARD)'!$W$4) -> 0 | S90: =INDEX('Compile Data'!$BL$123:$CI$204,$O90,'Report - ALL (DASHBOARD)'!$W$4) -> 66.59902132 | T90: =INDEX('Compile Data'!$CL$123:$DI$204,$O90,'Report - ALL (DASHBOARD)'!$W$4) -> 87.85150549 | U90: =INDEX('Compile Data'!$DL$123:$EI$204,$O90,'Report - ALL (DASHBOARD)'!$W$4) -> 85.25862062 | V90: =INDEX('Compile Data'!$EL$123:$FI$204,$O90,'Report - ALL (DASHBOARD)'!$W$4) -> 88.00666779
A91: 1985 | B91: =INDEX('Compile Data'!$L$12:$AI$93,$A91-1921,'Report - ALL (DASHBOARD)'!$W$4) -> 0 | C91: =INDEX('Compile Data'!$AL$12:$BI$93,$A91-1921,'Report - ALL (DASHBOARD)'!$W$4) -> 0 | D91: =INDEX('Compile Data'!$BL$12:$CI$93,$A91-1921,'Report - ALL (DASHBOARD)'!$W$4) -> 674.2944847 | E91: =INDEX('Compile Data'!$CL$12:$DI$93,$A91-1921,'Report - ALL (DASHBOARD)'!$W$4) -> 692.881746 | F91: =INDEX('Compile Data'!$DL$12:$EI$93,$A91-1921,'Report - ALL (DASHBOARD)'!$W$4) -> 644.3252178 | G91: =INDEX('Compile Data'!$EL$12:$FI$93,$A91-1921,'Report - ALL (DASHBOARD)'!$W$4) -> 698.2605596 | O91: 64 | P91: 0.7777777778 | Q91: =INDEX('Compile Data'!$L$123:$AI$204,$O91,'Report - ALL (DASHBOARD)'!$W$4) -> 0 | R91: =INDEX('Compile Data'!$AL$123:$BI$204,$O91,'Report - ALL (DASHBOARD)'!$W$4) -> 0 | S91: =INDEX('Compile Data'!$BL$123:$CI$204,$O91,'Report - ALL (DASHBOARD)'!$W$4) -> 65.85647138 | T91: =INDEX('Compile Data'!$CL$123:$DI$204,$O91,'Report - ALL (DASHBOARD)'!$W$4) -> 87.7586207 | U91: =INDEX('Compile Data'!$DL$123:$EI$204,$O91,'Report - ALL (DASHBOARD)'!$W$4) -> 75.93228283 | V91: =INDEX('Compile Data'!$EL$123:$FI$204,$O91,'Report - ALL (DASHBOARD)'!$W$4) -> 87.7586207
A92: 1986 | B92: =INDEX('Compile Data'!$L$12:$AI$93,$A92-1921,'Report - ALL (DASHBOARD)'!$W$4) -> 0 | C92: =INDEX('Compile Data'!$AL$12:$BI$93,$A92-1921,'Report - ALL (DASHBOARD)'!$W$4) -> 0 | D92: =INDEX('Compile Data'!$BL$12:$CI$93,$A92-1921,'Report - ALL (DASHBOARD)'!$W$4) -> 136.12748 | E92: =INDEX('Compile Data'!$CL$12:$DI$93,$A92-1921,'Report - ALL (DASHBOARD)'!$W$4) -> 168.4575221 | F92: =INDEX('Compile Data'!$DL$12:$EI$93,$A92-1921,'Report - ALL (DASHBOARD)'!$W$4) -> 134.7585121 | G92: =INDEX('Compile Data'!$EL$12:$FI$93,$A92-1921,'Report - ALL (DASHBOARD)'!$W$4) -> 205.1041881 | O92: 65 | P92: =(O92-1)/81 -> 0.7901234568 | Q92: =INDEX('Compile Data'!$L$123:$AI$204,$O92,'Report - ALL (DASHBOARD)'!$W$4) -> 0 | R92: =INDEX('Compile Data'!$AL$123:$BI$204,$O92,'Report - ALL (DASHBOARD)'!$W$4) -> 0 | S92: =INDEX('Compile Data'!$BL$123:$CI$204,$O92,'Report - ALL (DASHBOARD)'!$W$4) -> 63.78985148 | T92: =INDEX('Compile Data'!$CL$123:$DI$204,$O92,'Report - ALL (DASHBOARD)'!$W$4) -> 87.7586207 | U92: =INDEX('Compile Data'!$DL$123:$EI$204,$O92,'Report - ALL (DASHBOARD)'!$W$4) -> 72.73935437 | V92: =INDEX('Compile Data'!$EL$123:$FI$204,$O92,'Report - ALL (DASHBOARD)'!$W$4) -> 87.7586207
A93: 1987 | B93: =INDEX('Compile Data'!$L$12:$AI$93,$A93-1921,'Report - ALL (DASHBOARD)'!$W$4) -> 0 | C93: =INDEX('Compile Data'!$AL$12:$BI$93,$A93-1921,'Report - ALL (DASHBOARD)'!$W$4) -> 0 | D93: =INDEX('Compile Data'!$BL$12:$CI$93,$A93-1921,'Report - ALL (DASHBOARD)'!$W$4) -> 741.6049314 | E93: =INDEX('Compile Data'!$CL$12:$DI$93,$A93-1921,'Report - ALL (DASHBOARD)'!$W$4) -> 583.1914782 | F93: =INDEX('Compile Data'!$DL$12:$EI$93,$A93-1921,'Report - ALL (DASHBOARD)'!$W$4) -> 699.5219031 | G93: =INDEX('Compile Data'!$EL$12:$FI$93,$A93-1921,'Report - ALL (DASHBOARD)'!$W$4) -> 528.429125 | O93: 66 | P93: 0.8024691358 | Q93: =INDEX('Compile Data'!$L$123:$AI$204,$O93,'Report - ALL (DASHBOARD)'!$W$4) -> 0 | R93: =INDEX('Compile Data'!$AL$123:$BI$204,$O93,'Report - ALL (DASHBOARD)'!$W$4) -> 0 | S93: =INDEX('Compile Data'!$BL$123:$CI$204,$O93,'Report - ALL (DASHBOARD)'!$W$4) -> 63.00304454 | T93: =INDEX('Compile Data'!$CL$123:$DI$204,$O93,'Report - ALL (DASHBOARD)'!$W$4) -> 82.14782911 | U93: =INDEX('Compile Data'!$DL$123:$EI$204,$O93,'Report - ALL (DASHBOARD)'!$W$4) -> 68.17126307 | V93: =INDEX('Compile Data'!$EL$123:$FI$204,$O93,'Report - ALL (DASHBOARD)'!$W$4) -> 86.15974214
A94: =A93+1 -> 1988 | B94: =INDEX('Compile Data'!$L$12:$AI$93,$A94-1921,'Report - ALL (DASHBOARD)'!$W$4) -> 0 | C94: =INDEX('Compile Data'!$AL$12:$BI$93,$A94-1921,'Report - ALL (DASHBOARD)'!$W$4) -> 0 | D94: =INDEX('Compile Data'!$BL$12:$CI$93,$A94-1921,'Report - ALL (DASHBOARD)'!$W$4) -> 314.1463988 | E94: =INDEX('Compile Data'!$CL$12:$DI$93,$A94-1921,'Report - ALL (DASHBOARD)'!$W$4) -> 425.2377876 | F94: =INDEX('Compile Data'!$DL$12:$EI$93,$A94-1921,'Report - ALL (DASHBOARD)'!$W$4) -> 370.4331942 | G94: =INDEX('Compile Data'!$EL$12:$FI$93,$A94-1921,'Report - ALL (DASHBOARD)'!$W$4) -> 427.6323234 | O94: 67 | P94: 0.8148148148 | Q94: =INDEX('Compile Data'!$L$123:$AI$204,$O94,'Report - ALL (DASHBOARD)'!$W$4) -> 0 | R94: =INDEX('Compile Data'!$AL$123:$BI$204,$O94,'Report - ALL (DASHBOARD)'!$W$4) -> 0 | S94: =INDEX('Compile Data'!$BL$123:$CI$204,$O94,'Report - ALL (DASHBOARD)'!$W$4) -> 62.47239862 | T94: =INDEX('Compile Data'!$CL$123:$DI$204,$O94,'Report - ALL (DASHBOARD)'!$W$4) -> 76.37238916 | U94: =INDEX('Compile Data'!$DL$123:$EI$204,$O94,'Report - ALL (DASHBOARD)'!$W$4) -> 67.97296541 | V94: =INDEX('Compile Data'!$EL$123:$FI$204,$O94,'Report - ALL (DASHBOARD)'!$W$4) -> 85.32395366
A95: 1989 | B95: =INDEX('Compile Data'!$L$12:$AI$93,$A95-1921,'Report - ALL (DASHBOARD)'!$W$4) -> 0 | C95: =INDEX('Compile Data'!$AL$12:$BI$93,$A95-1921,'Report - ALL (DASHBOARD)'!$W$4) -> 0 | D95: =INDEX('Compile Data'!$BL$12:$CI$93,$A95-1921,'Report - ALL (DASHBOARD)'!$W$4) -> 193.8841679 | E95: =INDEX('Compile Data'!$CL$12:$DI$93,$A95-1921,'Report - ALL (DASHBOARD)'!$W$4) -> 167.6789468 | F95: =INDEX('Compile Data'!$DL$12:$EI$93,$A95-1921,'Report - ALL (DASHBOARD)'!$W$4) -> 192.7551247 | G95: =INDEX('Compile Data'!$EL$12:$FI$93,$A95-1921,'Report - ALL (DASHBOARD)'!$W$4) -> 160.7112268 | O95: 68 | P95: 0.8271604938 | Q95: =INDEX('Compile Data'!$L$123:$AI$204,$O95,'Report - ALL (DASHBOARD)'!$W$4) -> 0 | R95: =INDEX('Compile Data'!$AL$123:$BI$204,$O95,'Report - ALL (DASHBOARD)'!$W$4) -> 0 | S95: =INDEX('Compile Data'!$BL$123:$CI$204,$O95,'Report - ALL (DASHBOARD)'!$W$4) -> 61.1124138 | T95: =INDEX('Compile Data'!$CL$123:$DI$204,$O95,'Report - ALL (DASHBOARD)'!$W$4) -> 74.22234421 | U95: =INDEX('Compile Data'!$DL$123:$EI$204,$O95,'Report - ALL (DASHBOARD)'!$W$4) -> 62.47239862 | V95: =INDEX('Compile Data'!$EL$123:$FI$204,$O95,'Report - ALL (DASHBOARD)'!$W$4) -> 78.02365347
A96: 1990 | B96: =INDEX('Compile Data'!$L$12:$AI$93,$A96-1921,'Report - ALL (DASHBOARD)'!$W$4) -> 0 | C96: =INDEX('Compile Data'!$AL$12:$BI$93,$A96-1921,'Report - ALL (DASHBOARD)'!$W$4) -> 0 | D96: =INDEX('Compile Data'!$BL$12:$CI$93,$A96-1921,'Report - ALL (DASHBOARD)'!$W$4) -> 14.38070877 | E96: =INDEX('Compile Data'!$CL$12:$DI$93,$A96-1921,'Report - ALL (DASHBOARD)'!$W$4) -> 14.42095387 | F96: =INDEX('Compile Data'!$DL$12:$EI$93,$A96-1921,'Report - ALL (DASHBOARD)'!$W$4) -> 15.94073343 | G96: =INDEX('Compile Data'!$EL$12:$FI$93,$A96-1921,'Report - ALL (DASHBOARD)'!$W$4) -> 15.97296485 | O96: 69 | P96: 0.8395061728 | Q96: =INDEX('Compile Data'!$L$123:$AI$204,$O96,'Report - ALL (DASHBOARD)'!$W$4) -> 0 | R96: =INDEX('Compile Data'!$AL$123:$BI$204,$O96,'Report - ALL (DASHBOARD)'!$W$4) -> 0 | S96: =INDEX('Compile Data'!$BL$123:$CI$204,$O96,'Report - ALL (DASHBOARD)'!$W$4) -> 60.17241371 | T96: =INDEX('Compile Data'!$CL$123:$DI$204,$O96,'Report - ALL (DASHBOARD)'!$W$4) -> 64.137738 | U96: =INDEX('Compile Data'!$DL$123:$EI$204,$O96,'Report - ALL (DASHBOARD)'!$W$4) -> 61.11241371 | V96: =INDEX('Compile Data'!$EL$123:$FI$204,$O96,'Report - ALL (DASHBOARD)'!$W$4) -> 72.48941591
A97: 1991 | B97: =INDEX('Compile Data'!$L$12:$AI$93,$A97-1921,'Report - ALL (DASHBOARD)'!$W$4) -> 0 | C97: =INDEX('Compile Data'!$AL$12:$BI$93,$A97-1921,'Report - ALL (DASHBOARD)'!$W$4) -> 0 | D97: =INDEX('Compile Data'!$BL$12:$CI$93,$A97-1921,'Report - ALL (DASHBOARD)'!$W$4) -> 137.5420818 | E97: =INDEX('Compile Data'!$CL$12:$DI$93,$A97-1921,'Report - ALL (DASHBOARD)'!$W$4) -> 167.1898451 | F97: =INDEX('Compile Data'!$DL$12:$EI$93,$A97-1921,'Report - ALL (DASHBOARD)'!$W$4) -> 140.3099769 | G97: =INDEX('Compile Data'!$EL$12:$FI$93,$A97-1921,'Report - ALL (DASHBOARD)'!$W$4) -> 165.6523752 | O97: 70 | P97: 0.8518518519 | Q97: =INDEX('Compile Data'!$L$123:$AI$204,$O97,'Report - ALL (DASHBOARD)'!$W$4) -> 0 | R97: =INDEX('Compile Data'!$AL$123:$BI$204,$O97,'Report - ALL (DASHBOARD)'!$W$4) -> 0 | S97: =INDEX('Compile Data'!$BL$123:$CI$204,$O97,'Report - ALL (DASHBOARD)'!$W$4) -> 60.17241371 | T97: =INDEX('Compile Data'!$CL$123:$DI$204,$O97,'Report - ALL (DASHBOARD)'!$W$4) -> 62.12775651 | U97: =INDEX('Compile Data'!$DL$123:$EI$204,$O97,'Report - ALL (DASHBOARD)'!$W$4) -> 60.1724138 | V97: =INDEX('Compile Data'!$EL$123:$FI$204,$O97,'Report - ALL (DASHBOARD)'!$W$4) -> 68.8797634
A98: 1992 | B98: =INDEX('Compile Data'!$L$12:$AI$93,$A98-1921,'Report - ALL (DASHBOARD)'!$W$4) -> 0 | C98: =INDEX('Compile Data'!$AL$12:$BI$93,$A98-1921,'Report - ALL (DASHBOARD)'!$W$4) -> 0 | D98: =INDEX('Compile Data'!$BL$12:$CI$93,$A98-1921,'Report - ALL (DASHBOARD)'!$W$4) -> 135.1720536 | E98: =INDEX('Compile Data'!$CL$12:$DI$93,$A98-1921,'Report - ALL (DASHBOARD)'!$W$4) -> 194.0434721 | F98: =INDEX('Compile Data'!$DL$12:$EI$93,$A98-1921,'Report - ALL (DASHBOARD)'!$W$4) -> 139.7287915 | G98: =INDEX('Compile Data'!$EL$12:$FI$93,$A98-1921,'Report - ALL (DASHBOARD)'!$W$4) -> 197.038903 | O98: 71 | P98: 0.8641975309 | Q98: =INDEX('Compile Data'!$L$123:$AI$204,$O98,'Report - ALL (DASHBOARD)'!$W$4) -> 0 | R98: =INDEX('Compile Data'!$AL$123:$BI$204,$O98,'Report - ALL (DASHBOARD)'!$W$4) -> 0 | S98: =INDEX('Compile Data'!$BL$123:$CI$204,$O98,'Report - ALL (DASHBOARD)'!$W$4) -> 55.18428241 | T98: =INDEX('Compile Data'!$CL$123:$DI$204,$O98,'Report - ALL (DASHBOARD)'!$W$4) -> 61.38730195 | U98: =INDEX('Compile Data'!$DL$123:$EI$204,$O98,'Report - ALL (DASHBOARD)'!$W$4) -> 60.17241371 | V98: =INDEX('Compile Data'!$EL$123:$FI$204,$O98,'Report - ALL (DASHBOARD)'!$W$4) -> 66.24013201
A99: 1993 | B99: =INDEX('Compile Data'!$L$12:$AI$93,$A99-1921,'Report - ALL (DASHBOARD)'!$W$4) -> 0 | C99: =INDEX('Compile Data'!$AL$12:$BI$93,$A99-1921,'Report - ALL (DASHBOARD)'!$W$4) -> 0 | D99: =INDEX('Compile Data'!$BL$12:$CI$93,$A99-1921,'Report - ALL (DASHBOARD)'!$W$4) -> 214.5925148 | E99: =INDEX('Compile Data'!$CL$12:$DI$93,$A99-1921,'Report - ALL (DASHBOARD)'!$W$4) -> 198.6951464 | F99: =INDEX('Compile Data'!$DL$12:$EI$93,$A99-1921,'Report - ALL (DASHBOARD)'!$W$4) -> 165.4296313 | G99: =INDEX('Compile Data'!$EL$12:$FI$93,$A99-1921,'Report - ALL (DASHBOARD)'!$W$4) -> 149.7929528 | O99: 72 | P99: 0.8765432099 | Q99: =INDEX('Compile Data'!$L$123:$AI$204,$O99,'Report - ALL (DASHBOARD)'!$W$4) -> 0 | R99: =INDEX('Compile Data'!$AL$123:$BI$204,$O99,'Report - ALL (DASHBOARD)'!$W$4) -> 0 | S99: =INDEX('Compile Data'!$BL$123:$CI$204,$O99,'Report - ALL (DASHBOARD)'!$W$4) -> 55.1724138 | T99: =INDEX('Compile Data'!$CL$123:$DI$204,$O99,'Report - ALL (DASHBOARD)'!$W$4) -> 55.1724138 | U99: =INDEX('Compile Data'!$DL$123:$EI$204,$O99,'Report - ALL (DASHBOARD)'!$W$4) -> 55.18428241 | V99: =INDEX('Compile Data'!$EL$123:$FI$204,$O99,'Report - ALL (DASHBOARD)'!$W$4) -> 61.38730195
A100: 1994 | B100: =INDEX('Compile Data'!$L$12:$AI$93,$A100-1921,'Report - ALL (DASHBOARD)'!$W$4) -> 0 | C100: =INDEX('Compile Data'!$AL$12:$BI$93,$A100-1921,'Report - ALL (DASHBOARD)'!$W$4) -> 0 | D100: =INDEX('Compile Data'!$BL$12:$CI$93,$A100-1921,'Report - ALL (DASHBOARD)'!$W$4) -> 345.5300189 | E100: =INDEX('Compile Data'!$CL$12:$DI$93,$A100-1921,'Report - ALL (DASHBOARD)'!$W$4) -> 371.781241 | F100: =INDEX('Compile Data'!$DL$12:$EI$93,$A100-1921,'Report - ALL (DASHBOARD)'!$W$4) -> 388.0602816 | G100: =INDEX('Compile Data'!$EL$12:$FI$93,$A100-1921,'Report - ALL (DASHBOARD)'!$W$4) -> 413.7599486 | O100: 73 | P100: 0.8888888889 | Q100: =INDEX('Compile Data'!$L$123:$AI$204,$O100,'Report - ALL (DASHBOARD)'!$W$4) -> 0 | R100: =INDEX('Compile Data'!$AL$123:$BI$204,$O100,'Report - ALL (DASHBOARD)'!$W$4) -> 0 | S100: =INDEX('Compile Data'!$BL$123:$CI$204,$O100,'Report - ALL (DASHBOARD)'!$W$4) -> 38.13809179 | T100: =INDEX('Compile Data'!$CL$123:$DI$204,$O100,'Report - ALL (DASHBOARD)'!$W$4) -> 54.51731629 | U100: =INDEX('Compile Data'!$DL$123:$EI$204,$O100,'Report - ALL (DASHBOARD)'!$W$4) -> 55.1724138 | V100: =INDEX('Compile Data'!$EL$123:$FI$204,$O100,'Report - ALL (DASHBOARD)'!$W$4) -> 61.07228672
A101: 1995 | B101: =INDEX('Compile Data'!$L$12:$AI$93,$A101-1921,'Report - ALL (DASHBOARD)'!$W$4) -> 0 | C101: =INDEX('Compile Data'!$AL$12:$BI$93,$A101-1921,'Report - ALL (DASHBOARD)'!$W$4) -> 0 | D101: =INDEX('Compile Data'!$BL$12:$CI$93,$A101-1921,'Report - ALL (DASHBOARD)'!$W$4) -> 55.18428241 | E101: =INDEX('Compile Data'!$CL$12:$DI$93,$A101-1921,'Report - ALL (DASHBOARD)'!$W$4) -> 61.38730195 | F101: =INDEX('Compile Data'!$DL$12:$EI$93,$A101-1921,'Report - ALL (DASHBOARD)'!$W$4) -> 55.18428241 | G101: =INDEX('Compile Data'!$EL$12:$FI$93,$A101-1921,'Report - ALL (DASHBOARD)'!$W$4) -> 61.38730195 | O101: 74 | P101: 0.9012345679 | Q101: =INDEX('Compile Data'!$L$123:$AI$204,$O101,'Report - ALL (DASHBOARD)'!$W$4) -> 0 | R101: =INDEX('Compile Data'!$AL$123:$BI$204,$O101,'Report - ALL (DASHBOARD)'!$W$4) -> 0 | S101: =INDEX('Compile Data'!$BL$123:$CI$204,$O101,'Report - ALL (DASHBOARD)'!$W$4) -> 38.13579799 | T101: =INDEX('Compile Data'!$CL$123:$DI$204,$O101,'Report - ALL (DASHBOARD)'!$W$4) -> 50.43744657 | U101: =INDEX('Compile Data'!$DL$123:$EI$204,$O101,'Report - ALL (DASHBOARD)'!$W$4) -> 38.93076359 | V101: =INDEX('Compile Data'!$EL$123:$FI$204,$O101,'Report - ALL (DASHBOARD)'!$W$4) -> 60.26529859
A102: 1996 | B102: =INDEX('Compile Data'!$L$12:$AI$93,$A102-1921,'Report - ALL (DASHBOARD)'!$W$4) -> 0 | C102: =INDEX('Compile Data'!$AL$12:$BI$93,$A102-1921,'Report - ALL (DASHBOARD)'!$W$4) -> 0 | D102: =INDEX('Compile Data'!$BL$12:$CI$93,$A102-1921,'Report - ALL (DASHBOARD)'!$W$4) -> 60.17241371 | E102: =INDEX('Compile Data'!$CL$12:$DI$93,$A102-1921,'Report - ALL (DASHBOARD)'!$W$4) -> 50.43744657 | F102: =INDEX('Compile Data'!$DL$12:$EI$93,$A102-1921,'Report - ALL (DASHBOARD)'!$W$4) -> 60.17241371 | G102: =INDEX('Compile Data'!$EL$12:$FI$93,$A102-1921,'Report - ALL (DASHBOARD)'!$W$4) -> 78.02365347 | O102: 75 | P102: 0.9135802469 | Q102: =INDEX('Compile Data'!$L$123:$AI$204,$O102,'Report - ALL (DASHBOARD)'!$W$4) -> 0 | R102: =INDEX('Compile Data'!$AL$123:$BI$204,$O102,'Report - ALL (DASHBOARD)'!$W$4) -> 0 | S102: =INDEX('Compile Data'!$BL$123:$CI$204,$O102,'Report - ALL (DASHBOARD)'!$W$4) -> 35.34140965 | T102: =INDEX('Compile Data'!$CL$123:$DI$204,$O102,'Report - ALL (DASHBOARD)'!$W$4) -> 40.04073879 | U102: =INDEX('Compile Data'!$DL$123:$EI$204,$O102,'Report - ALL (DASHBOARD)'!$W$4) -> 38.13809179 | V102: =INDEX('Compile Data'!$EL$123:$FI$204,$O102,'Report - ALL (DASHBOARD)'!$W$4) -> 55.1724138
A103: 1997 | B103: =INDEX('Compile Data'!$L$12:$AI$93,$A103-1921,'Report - ALL (DASHBOARD)'!$W$4) -> 0 | C103: =INDEX('Compile Data'!$AL$12:$BI$93,$A103-1921,'Report - ALL (DASHBOARD)'!$W$4) -> 0 | D103: =INDEX('Compile Data'!$BL$12:$CI$93,$A103-1921,'Report - ALL (DASHBOARD)'!$W$4) -> 112.7321351 | E103: =INDEX('Compile Data'!$CL$12:$DI$93,$A103-1921,'Report - ALL (DASHBOARD)'!$W$4) -> 143.4584977 | F103: =INDEX('Compile Data'!$DL$12:$EI$93,$A103-1921,'Report - ALL (DASHBOARD)'!$W$4) -> 112.8361988 | G103: =INDEX('Compile Data'!$EL$12:$FI$93,$A103-1921,'Report - ALL (DASHBOARD)'!$W$4) -> 143.4584977 | O103: 76 | P103: 0.9259259259 | Q103: =INDEX('Compile Data'!$L$123:$AI$204,$O103,'Report - ALL (DASHBOARD)'!$W$4) -> 0 | R103: =INDEX('Compile Data'!$AL$123:$BI$204,$O103,'Report - ALL (DASHBOARD)'!$W$4) -> 0 | S103: =INDEX('Compile Data'!$BL$123:$CI$204,$O103,'Report - ALL (DASHBOARD)'!$W$4) -> 32.58620772 | T103: =INDEX('Compile Data'!$CL$123:$DI$204,$O103,'Report - ALL (DASHBOARD)'!$W$4) -> 38.89123715 | U103: =INDEX('Compile Data'!$DL$123:$EI$204,$O103,'Report - ALL (DASHBOARD)'!$W$4) -> 32.58620772 | V103: =INDEX('Compile Data'!$EL$123:$FI$204,$O103,'Report - ALL (DASHBOARD)'!$W$4) -> 46.95878109
A104: 1998 | B104: =INDEX('Compile Data'!$L$12:$AI$93,$A104-1921,'Report - ALL (DASHBOARD)'!$W$4) -> 0 | C104: =INDEX('Compile Data'!$AL$12:$BI$93,$A104-1921,'Report - ALL (DASHBOARD)'!$W$4) -> 0 | D104: =INDEX('Compile Data'!$BL$12:$CI$93,$A104-1921,'Report - ALL (DASHBOARD)'!$W$4) -> 55.1724138 | E104: =INDEX('Compile Data'!$CL$12:$DI$93,$A104-1921,'Report - ALL (DASHBOARD)'!$W$4) -> 55.1724138 | F104: =INDEX('Compile Data'!$DL$12:$EI$93,$A104-1921,'Report - ALL (DASHBOARD)'!$W$4) -> 55.1724138 | G104: =INDEX('Compile Data'!$EL$12:$FI$93,$A104-1921,'Report - ALL (DASHBOARD)'!$W$4) -> 55.1724138 | O104: 77 | P104: 0.9382716049 | Q104: =INDEX('Compile Data'!$L$123:$AI$204,$O104,'Report - ALL (DASHBOARD)'!$W$4) -> 0 | R104: =INDEX('Compile Data'!$AL$123:$BI$204,$O104,'Report - ALL (DASHBOARD)'!$W$4) -> 0 | S104: =INDEX('Compile Data'!$BL$123:$CI$204,$O104,'Report - ALL (DASHBOARD)'!$W$4) -> 16.39754331 | T104: =INDEX('Compile Data'!$CL$123:$DI$204,$O104,'Report - ALL (DASHBOARD)'!$W$4) -> 19.57055078 | U104: =INDEX('Compile Data'!$DL$123:$EI$204,$O104,'Report - ALL (DASHBOARD)'!$W$4) -> 19.64000069 | V104: =INDEX('Compile Data'!$EL$123:$FI$204,$O104,'Report - ALL (DASHBOARD)'!$W$4) -> 19.3
A105: 1999 | B105: =INDEX('Compile Data'!$L$12:$AI$93,$A105-1921,'Report - ALL (DASHBOARD)'!$W$4) -> 0 | C105: =INDEX('Compile Data'!$AL$12:$BI$93,$A105-1921,'Report - ALL (DASHBOARD)'!$W$4) -> 0 | D105: =INDEX('Compile Data'!$BL$12:$CI$93,$A105-1921,'Report - ALL (DASHBOARD)'!$W$4) -> 95.94911358 | E105: =INDEX('Compile Data'!$CL$12:$DI$93,$A105-1921,'Report - ALL (DASHBOARD)'!$W$4) -> 151.9855331 | F105: =INDEX('Compile Data'!$DL$12:$EI$93,$A105-1921,'Report - ALL (DASHBOARD)'!$W$4) -> 95.9491136 | G105: =INDEX('Compile Data'!$EL$12:$FI$93,$A105-1921,'Report - ALL (DASHBOARD)'!$W$4) -> 151.9855133 | O105: 78 | P105: 0.950617284 | Q105: =INDEX('Compile Data'!$L$123:$AI$204,$O105,'Report - ALL (DASHBOARD)'!$W$4) -> 0 | R105: =INDEX('Compile Data'!$AL$123:$BI$204,$O105,'Report - ALL (DASHBOARD)'!$W$4) -> 0 | S105: =INDEX('Compile Data'!$BL$123:$CI$204,$O105,'Report - ALL (DASHBOARD)'!$W$4) -> 14.38070877 | T105: =INDEX('Compile Data'!$CL$123:$DI$204,$O105,'Report - ALL (DASHBOARD)'!$W$4) -> 14.42095387 | U105: =INDEX('Compile Data'!$DL$123:$EI$204,$O105,'Report - ALL (DASHBOARD)'!$W$4) -> 15.94073343 | V105: =INDEX('Compile Data'!$EL$123:$FI$204,$O105,'Report - ALL (DASHBOARD)'!$W$4) -> 15.97296485
A106: 2000 | B106: =INDEX('Compile Data'!$L$12:$AI$93,$A106-1921,'Report - ALL (DASHBOARD)'!$W$4) -> 0 | C106: =INDEX('Compile Data'!$AL$12:$BI$93,$A106-1921,'Report - ALL (DASHBOARD)'!$W$4) -> 0 | D106: =INDEX('Compile Data'!$BL$12:$CI$93,$A106-1921,'Report - ALL (DASHBOARD)'!$W$4) -> 479.9022914 | E106: =INDEX('Compile Data'!$CL$12:$DI$93,$A106-1921,'Report - ALL (DASHBOARD)'!$W$4) -> 560.9926797 | F106: =INDEX('Compile Data'!$DL$12:$EI$93,$A106-1921,'Report - ALL (DASHBOARD)'!$W$4) -> 356.9125282 | G106: =INDEX('Compile Data'!$EL$12:$FI$93,$A106-1921,'Report - ALL (DASHBOARD)'!$W$4) -> 471.771139 | O106: 79 | P106: 0.962962963 | Q106: =INDEX('Compile Data'!$L$123:$AI$204,$O106,'Report - ALL (DASHBOARD)'!$W$4) -> 0 | R106: =INDEX('Compile Data'!$AL$123:$BI$204,$O106,'Report - ALL (DASHBOARD)'!$W$4) -> 0 | S106: =INDEX('Compile Data'!$BL$123:$CI$204,$O106,'Report - ALL (DASHBOARD)'!$W$4) -> 5.080862918 | T106: =INDEX('Compile Data'!$CL$123:$DI$204,$O106,'Report - ALL (DASHBOARD)'!$W$4) -> 9.825000001 | U106: =INDEX('Compile Data'!$DL$123:$EI$204,$O106,'Report - ALL (DASHBOARD)'!$W$4) -> 10.64301164 | V106: =INDEX('Compile Data'!$EL$123:$FI$204,$O106,'Report - ALL (DASHBOARD)'!$W$4) -> 10.6155
A107: 2001 | B107: =INDEX('Compile Data'!$L$12:$AI$93,$A107-1921,'Report - ALL (DASHBOARD)'!$W$4) -> 0 | C107: =INDEX('Compile Data'!$AL$12:$BI$93,$A107-1921,'Report - ALL (DASHBOARD)'!$W$4) -> 0 | D107: =INDEX('Compile Data'!$BL$12:$CI$93,$A107-1921,'Report - ALL (DASHBOARD)'!$W$4) -> 697.7414879 | E107: =INDEX('Compile Data'!$CL$12:$DI$93,$A107-1921,'Report - ALL (DASHBOARD)'!$W$4) -> 663.0543351 | F107: =INDEX('Compile Data'!$DL$12:$EI$93,$A107-1921,'Report - ALL (DASHBOARD)'!$W$4) -> 711.6048767 | G107: =INDEX('Compile Data'!$EL$12:$FI$93,$A107-1921,'Report - ALL (DASHBOARD)'!$W$4) -> 627.1492071 | O107: 80 | P107: 0.975308642 | Q107: =INDEX('Compile Data'!$L$123:$AI$204,$O107,'Report - ALL (DASHBOARD)'!$W$4) -> 0 | R107: =INDEX('Compile Data'!$AL$123:$BI$204,$O107,'Report - ALL (DASHBOARD)'!$W$4) -> 0 | S107: =INDEX('Compile Data'!$BL$123:$CI$204,$O107,'Report - ALL (DASHBOARD)'!$W$4) -> 0.1055726335 | T107: =INDEX('Compile Data'!$CL$123:$DI$204,$O107,'Report - ALL (DASHBOARD)'!$W$4) -> 0 | U107: =INDEX('Compile Data'!$DL$123:$EI$204,$O107,'Report - ALL (DASHBOARD)'!$W$4) -> 0 | V107: =INDEX('Compile Data'!$EL$123:$FI$204,$O107,'Report - ALL (DASHBOARD)'!$W$4) -> 0
A108: 2002 | B108: =INDEX('Compile Data'!$L$12:$AI$93,$A108-1921,'Report - ALL (DASHBOARD)'!$W$4) -> 0 | C108: =INDEX('Compile Data'!$AL$12:$BI$93,$A108-1921,'Report - ALL (DASHBOARD)'!$W$4) -> 0 | D108: =INDEX('Compile Data'!$BL$12:$CI$93,$A108-1921,'Report - ALL (DASHBOARD)'!$W$4) -> 504.2036757 | E108: =INDEX('Compile Data'!$CL$12:$DI$93,$A108-1921,'Report - ALL (DASHBOARD)'!$W$4) -> 568.4286025 | F108: =INDEX('Compile Data'!$DL$12:$EI$93,$A108-1921,'Report - ALL (DASHBOARD)'!$W$4) -> 536.9773534 | G108: =INDEX('Compile Data'!$EL$12:$FI$93,$A108-1921,'Report - ALL (DASHBOARD)'!$W$4) -> 573.9798712 | O108: 81 | P108: 0.987654321 | Q108: =INDEX('Compile Data'!$L$123:$AI$204,$O108,'Report - ALL (DASHBOARD)'!$W$4) -> 0 | R108: =INDEX('Compile Data'!$AL$123:$BI$204,$O108,'Report - ALL (DASHBOARD)'!$W$4) -> 0 | S108: =INDEX('Compile Data'!$BL$123:$CI$204,$O108,'Report - ALL (DASHBOARD)'!$W$4) -> 0 | T108: =INDEX('Compile Data'!$CL$123:$DI$204,$O108,'Report - ALL (DASHBOARD)'!$W$4) -> 0 | U108: =INDEX('Compile Data'!$DL$123:$EI$204,$O108,'Report - ALL (DASHBOARD)'!$W$4) -> 0 | V108: =INDEX('Compile Data'!$EL$123:$FI$204,$O108,'Report - ALL (DASHBOARD)'!$W$4) -> 0
A109: 2003 | B109: =INDEX('Compile Data'!$L$12:$AI$93,$A109-1921,'Report - ALL (DASHBOARD)'!$W$4) ->  | C109: =INDEX('Compile Data'!$AL$12:$BI$93,$A109-1921,'Report - ALL (DASHBOARD)'!$W$4) ->  | D109: =INDEX('Compile Data'!$BL$12:$CI$93,$A109-1921,'Report - ALL (DASHBOARD)'!$W$4) ->  | E109: =INDEX('Compile Data'!$CL$12:$DI$93,$A109-1921,'Report - ALL (DASHBOARD)'!$W$4) ->  | F109: =INDEX('Compile Data'!$DL$12:$EI$93,$A109-1921,'Report - ALL (DASHBOARD)'!$W$4) ->  | G109: =INDEX('Compile Data'!$EL$12:$FI$93,$A109-1921,'Report - ALL (DASHBOARD)'!$W$4) ->  | O109: 82 | P109: 1 | Q109: =INDEX('Compile Data'!$L$123:$AI$204,$O109,'Report - ALL (DASHBOARD)'!$W$4) ->  | R109: =INDEX('Compile Data'!$AL$123:$BI$204,$O109,'Report - ALL (DASHBOARD)'!$W$4) ->  | S109: =INDEX('Compile Data'!$BL$123:$CI$204,$O109,'Report - ALL (DASHBOARD)'!$W$4) ->  | T109: =INDEX('Compile Data'!$CL$123:$DI$204,$O109,'Report - ALL (DASHBOARD)'!$W$4) ->  | U109: =INDEX('Compile Data'!$DL$123:$EI$204,$O109,'Report - ALL (DASHBOARD)'!$W$4) ->  | V109: =INDEX('Compile Data'!$EL$123:$FI$204,$O109,'Report - ALL (DASHBOARD)'!$W$4) -> 

Sheet Compile Data
B1: =Control!$B$5 -> NAA 041222 | C1: =Control!$B$6 -> NAA 041122 2035CT | D1: =Control!$B$7 -> ALT 3A 041222 | E1: =Control!$B$8 -> ALT 3A 041122 2035CT | F1: =Control!$B$9 -> ALT 3B 041222 | G1: =Control!$B$10 -> ALT 3B 041122 2035CT | AE1: =$B$8 -> PER-AVER | BE1: =$C$8 -> PER-AVER | CE1: =$D$8 -> PER-AVER | DE1: =$E$8 -> PER-AVER | EE1: =$F$8 -> PER-AVER | FE1: =$G$8 -> PER-AVER
A2: Index: | B2: ='Report - ALL (DASHBOARD)'!W2 -> 38 | C2: =B2 -> 38 | D2: 38 | E2: 38 | F2: 38 | G2: 38
A3: Convert? | B3: =IF('Report - ALL (DASHBOARD)'!W5,1,0) -> 1 | C3: 1 | D3: 1 | E3: 1 | F3: 1 | G3: 1
A4: Column: | B4: =TRIM(VLOOKUP(B$2+2,DSSPathnames!$H$7:$K$185,2)) -> AN | C4: AN | D4: AN | E4: AN | F4: AN | G4: AN
A5: Title: | B5: =TRIM(VLOOKUP(B$2+2,DSSPathnames!$H$7:$K$185,4)) -> Total Sites Release | C5: =TRIM(VLOOKUP(C$2+2,DSSPathnames!$H$7:$K$185,4)) -> Total Sites Release | D5: =TRIM(VLOOKUP(D$2+2,DSSPathnames!$H$7:$K$185,4)) -> Total Sites Release | E5: =TRIM(VLOOKUP(E$2+2,DSSPathnames!$H$7:$K$185,4)) -> Total Sites Release | F5: =TRIM(VLOOKUP(F$2+2,DSSPathnames!$H$7:$K$185,4)) -> Total Sites Release | G5: =TRIM(VLOOKUP(G$2+2,DSSPathnames!$H$7:$K$185,4)) -> Total Sites Release
A6: Parameter: | B6: =INDIRECT(CONCATENATE("'",B$1,"'!",B$4,2)) -> C17604 | C6: C17604 | D6: C17604 | E6: C17604 | F6: C17604 | G6: C17604
B7: =INDIRECT(CONCATENATE("'",B$1,"'!",B$4,3)) -> FLOW-CHANNEL | C7: FLOW-CHANNEL | D7: FLOW-CHANNEL | E7: FLOW-CHANNEL | F7: FLOW-CHANNEL | G7: FLOW-CHANNEL
A8: Type: | B8: =TRIM(VLOOKUP(B$2+2,DSSPathnames!$H$7:$K$185,3)) -> PER-AVER | C8: =TRIM(VLOOKUP(C$2+2,DSSPathnames!$H$7:$K$185,3)) -> PER-AVER | D8: =TRIM(VLOOKUP(D$2+2,DSSPathnames!$H$7:$K$185,3)) -> PER-AVER | E8: =TRIM(VLOOKUP(E$2+2,DSSPathnames!$H$7:$K$185,3)) -> PER-AVER | F8: =TRIM(VLOOKUP(F$2+2,DSSPathnames!$H$7:$K$185,3)) -> PER-AVER | G8: =TRIM(VLOOKUP(G$2+2,DSSPathnames!$H$7:$K$185,3)) -> PER-AVER | K8: =CONCATENATE(TRIM(B$1),": ",TRIM(B$5)," - ",TRIM(B$6)," ",TRIM(B$7)," (",TRIM(B$10),") ",TRIM(B$11)) -> NAA 041222: Total Sites Release - C17604 FLOW-CHANNEL (TAF) | AK8: =CONCATENATE(TRIM(C$1),": ",TRIM(C$5)," - ",TRIM(C$6)," ",TRIM(C$7)," (",TRIM(C$10),") ",TRIM(C$11)) -> NAA 041122 2035CT: Total Sites Release - C17604 FLOW-CHANNEL (TAF) | BK8: =CONCATENATE(TRIM(D$1),": ",TRIM(D$5)," - ",TRIM(D$6)," ",TRIM(D$7)," (",TRIM(D$10),") ",TRIM(D$11)) -> ALT 3A 041222: Total Sites Release - C17604 FLOW-CHANNEL (TAF) | CK8: =CONCATENATE(TRIM(E$1),": ",TRIM(E$5)," - ",TRIM(E$6)," ",TRIM(E$7)," (",TRIM(E$10),") ",TRIM(E$11)) -> ALT 3A 041122 2035CT: Total Sites Release - C17604 FLOW-CHANNEL (TAF) | DK8: =CONCATENATE(TRIM(F$1),": ",TRIM(F$5)," - ",TRIM(F$6)," ",TRIM(F$7)," (",TRIM(F$10),") ",TRIM(F$11)) -> ALT 3B 041222: Total Sites Release - C17604 FLOW-CHANNEL (TAF) | EK8: =CONCATENATE(TRIM(G$1),": ",TRIM(G$5)," - ",TRIM(G$6)," ",TRIM(G$7)," (",TRIM(G$10),") ",TRIM(G$11)) -> ALT 3B 041122 2035CT: Total Sites Release - C17604 FLOW-CHANNEL (TAF)
A9: Units-native: | B9: =TRIM(INDIRECT(CONCATENATE("'",B$1,"'!",B$4,11))) -> CFS | C9: CFS | D9: CFS | E9: CFS | F9: CFS | G9: CFS
A10: Units-shown: | B10: =IF(AND(B$3>0,B$9="CFS"),"TAF",B$9) -> TAF | C10: TAF | D10: TAF | E10: TAF | F10: TAF | G10: TAF | Y10: Jan-Dec | Z10: Mar-Feb | AA10: Oct-Sep | AC10: Nov-Mar | AD10: Aug-Oct | AE10: Oct-Jan | AF10: Dec-Feb | AG10: Mar-Jun | AH10: Jun-Sep | AI10: Sep-Nov | AY10: Jan-Dec | AZ10: Mar-Feb | BA10: Oct-Sep | BC10: Nov-Mar | BD10: Aug-Oct | BE10: Oct-Jan | BF10: Dec-Feb | BG10: Mar-Jun | BH10: Jun-Sep | BI10: Sep-Nov | BY10: Jan-Dec | BZ10: Mar-Feb | CA10: Oct-Sep | CC10: Nov-Mar | CD10: Aug-Oct | CE10: Oct-Jan | CF10: Dec-Feb | CG10: Mar-Jun | CH10: Jun-Sep | CI10: Sep-Nov | CY10: Jan-Dec | CZ10: Mar-Feb | DA10: Oct-Sep | DC10: Nov-Mar | DD10: Aug-Oct | DE10: Oct-Jan | DF10: Dec-Feb | DG10: Mar-Jun | DH10: Jun-Sep | DI10: Sep-Nov | DY10: Jan-Dec | DZ10: Mar-Feb | EA10: Oct-Sep | EC10: Nov-Mar | ED10: Aug-Oct | EE10: Oct-Jan | EF10: Dec-Feb | EG10: Mar-Jun | EH10: Jun-Sep | EI10: Sep-Nov | EY10: Jan-Dec | EZ10: Mar-Feb | FA10: Oct-Sep | FC10: Nov-Mar | FD10: Aug-Oct | FE10: Oct-Jan | FF10: Dec-Feb | FG10: Mar-Jun | FH10: Jun-Sep | FI10: Sep-Nov
A11: Date | B11: =IF(ISNUMBER(FIND("PRV",B$6)),"SHIFTED","") ->  | K11: YEAR | L11: OCT | M11: NOV | N11: DEC | O11: JAN | P11: FEB | Q11: MAR | R11: APR | S11: MAY | T11: JUN | U11: JUL | V11: AUG | W11: SEP | Y11: =IF(AND($B$10="TAF",$B$8="PER-AVER"),"TOT","AVG") -> TOT | Z11: =IF(AND($B$10="TAF",$B$8="PER-AVER"),"TOT","AVG") -> TOT | AA11: =IF(AND($B$10="TAF",$B$8="PER-AVER"),"TOT","AVG") -> TOT | AC11: =IF(AND($B$10="TAF",$B$8="PER-AVER"),"TOT","AVG") -> TOT | AD11: TOT | AE11: TOT | AF11: TOT | AG11: TOT | AH11: TOT | AI11: TOT | AK11: YEAR | AL11: OCT | AM11: NOV | AN11: DEC | AO11: JAN | AP11: FEB | AQ11: MAR | AR11: APR | AS11: MAY | AT11: JUN | AU11: JUL | AV11: AUG | AW11: SEP | AY11: =IF(AND($C$10="TAF",$C$8="PER-AVER"),"TOT","AVG") -> TOT | AZ11: =IF(AND($C$10="TAF",$C$8="PER-AVER"),"TOT","AVG") -> TOT | BA11: =IF(AND($C$10="TAF",$C$8="PER-AVER"),"TOT","AVG") -> TOT | BC11: =IF(AND($B$10="TAF",$B$8="PER-AVER"),"TOT","AVG") -> TOT | BD11: =IF(AND($B$10="TAF",$B$8="PER-AVER"),"TOT","AVG") -> TOT | BE11: =IF(AND($C$10="TAF",$C$8="PER-AVER"),"TOT","AVG") -> TOT | BF11: =IF(AND($C$10="TAF",$C$8="PER-AVER"),"TOT","AVG") -> TOT | BG11: =IF(AND($C$10="TAF",$C$8="PER-AVER"),"TOT","AVG") -> TOT | BH11: =IF(AND($C$10="TAF",$C$8="PER-AVER"),"TOT","AVG") -> TOT | BI11: =IF(AND($C$10="TAF",$C$8="PER-AVER"),"TOT","AVG") -> TOT | BK11: YEAR | BL11: OCT | BM11: NOV | BN11: DEC | BO11: JAN | BP11: FEB | BQ11: MAR | BR11: APR | BS11: MAY | BT11: JUN | BU11: JUL | BV11: AUG | BW11: SEP | BY11: =IF(AND($D$10="TAF",$D$8="PER-AVER"),"TOT","AVG") -> TOT | BZ11: =IF(AND($D$10="TAF",$D$8="PER-AVER"),"TOT","AVG") -> TOT | CA11: =IF(AND($D$10="TAF",$D$8="PER-AVER"),"TOT","AVG") -> TOT | CC11: =IF(AND($B$10="TAF",$B$8="PER-AVER"),"TOT","AVG") -> TOT | CD11: =IF(AND($B$10="TAF",$B$8="PER-AVER"),"TOT","AVG") -> TOT | CE11: =IF(AND($D$10="TAF",$D$8="PER-AVER"),"TOT","AVG") -> TOT | CF11: =IF(AND($D$10="TAF",$D$8="PER-AVER"),"TOT","AVG") -> TOT | CG11: =IF(AND($D$10="TAF",$D$8="PER-AVER"),"TOT","AVG") -> TOT | CH11: =IF(AND($D$10="TAF",$D$8="PER-AVER"),"TOT","AVG") -> TOT | CI11: =IF(AND($D$10="TAF",$D$8="PER-AVER"),"TOT","AVG") -> TOT | CK11: YEAR | CL11: OCT | CM11: NOV | CN11: DEC | CO11: JAN | CP11: FEB | CQ11: MAR | CR11: APR | CS11: MAY | CT11: JUN | CU11: JUL | CV11: AUG | CW11: SEP | CY11: =IF(AND($E$10="TAF",$E$8="PER-AVER"),"TOT","AVG") -> TOT | CZ11: =IF(AND($E$10="TAF",$E$8="PER-AVER"),"TOT","AVG") -> TOT | DA11: =IF(AND($E$10="TAF",$E$8="PER-AVER"),"TOT","AVG") -> TOT | DC11: =IF(AND($B$10="TAF",$B$8="PER-AVER"),"TOT","AVG") -> TOT | DD11: =IF(AND($B$10="TAF",$B$8="PER-AVER"),"TOT","AVG") -> TOT | DE11: =IF(AND($E$10="TAF",$E$8="PER-AVER"),"TOT","AVG") -> TOT | DF11: =IF(AND($E$10="TAF",$E$8="PER-AVER"),"TOT","AVG") -> TOT | DG11: =IF(AND($E$10="TAF",$E$8="PER-AVER"),"TOT","AVG") -> TOT | DH11: =IF(AND($E$10="TAF",$E$8="PER-AVER"),"TOT","AVG") -> TOT | DI11: =IF(AND($E$10="TAF",$E$8="PER-AVER"),"TOT","AVG") -> TOT | DK11: YEAR | DL11: OCT | DM11: NOV | DN11: DEC | DO11: JAN | DP11: FEB | DQ11: MAR | DR11: APR | DS11: MAY | DT11: JUN | DU11: JUL | DV11: AUG | DW11: SEP | DY11: =IF(AND($F$10="TAF",$F$8="PER-AVER"),"TOT","AVG") -> TOT | DZ11: =IF(AND($F$10="TAF",$F$8="PER-AVER"),"TOT","AVG") -> TOT | EA11: =IF(AND($F$10="TAF",$F$8="PER-AVER"),"TOT","AVG") -> TOT | EC11: =IF(AND($B$10="TAF",$B$8="PER-AVER"),"TOT","AVG") -> TOT | ED11: =IF(AND($B$10="TAF",$B$8="PER-AVER"),"TOT","AVG") -> TOT | EE11: =IF(AND($F$10="TAF",$F$8="PER-AVER"),"TOT","AVG") -> TOT | EF11: =IF(AND($F$10="TAF",$F$8="PER-AVER"),"TOT","AVG") -> TOT | EG11: =IF(AND($F$10="TAF",$F$8="PER-AVER"),"TOT","AVG") -> TOT | EH11: =IF(AND($F$10="TAF",$F$8="PER-AVER"),"TOT","AVG") -> TOT | EI11: =IF(AND($F$10="TAF",$F$8="PER-AVER"),"TOT","AVG") -> TOT | EK11: YEAR | EL11: OCT | EM11: NOV | EN11: DEC | EO11: JAN | EP11: FEB | EQ11: MAR | ER11: APR | ES11: MAY | ET11: JUN | EU11: JUL | EV11: AUG | EW11: SEP | EY11: =IF(AND($F$10="TAF",$F$8="PER-AVER"),"TOT","AVG") -> TOT | EZ11: =IF(AND($F$10="TAF",$F$8="PER-AVER"),"TOT","AVG") -> TOT | FA11: =IF(AND($F$10="TAF",$F$8="PER-AVER"),"TOT","AVG") -> TOT | FC11: =IF(AND($B$10="TAF",$B$8="PER-AVER"),"TOT","AVG") -> TOT | FD11: =IF(AND($B$10="TAF",$B$8="PER-AVER"),"TOT","AVG") -> TOT | FE11: =IF(AND($F$10="TAF",$F$8="PER-AVER"),"TOT","AVG") -> TOT | FF11: =IF(AND($F$10="TAF",$F$8="PER-AVER"),"TOT","AVG") -> TOT | FG11: =IF(AND($F$10="TAF",$F$8="PER-AVER"),"TOT","AVG") -> TOT | FH11: =IF(AND($F$10="TAF",$F$8="PER-AVER"),"TOT","AVG") -> TOT | FI11: =IF(AND($F$10="TAF",$F$8="PER-AVER"),"TOT","AVG") -> TOT
A12: 1921-09-30 | K12: 1922 | L12: =B13 -> 0 | M12: =B14 -> 0 | N12: =B15 -> 0 | O12: =B16 -> 0 | P12: =B17 -> 0 | Q12: =B18 -> 0 | R12: =B19 -> 0 | S12: =B20 -> 0 | T12: =B21 -> 0 | U12: =B22 -> 0 | V12: =B23 -> 0 | W12: =B24 -> 0 | Y12: =IF(Y$11="AVG",AVERAGE(O12:W12,L13:N13),SUM(O12:W12,L13:N13)) -> 0 | Z12: =IF(Z$11="AVG",AVERAGE(Q12:W12,L13:P13),SUM(Q12:W12,L13:P13)) -> 0 | AA12: =IF(AA$11="AVG",AVERAGE(L12:W12),SUM(L12:W12)) -> 0 | AC12: =IF(AC$11="AVG",IF(AE$1="INST-VAL",AVERAGE(L12:P12,M12:Q12),AVERAGE(M12:Q12)),SUM(M12:Q12)) -> 0 | AD12: =IF(AD$11="AVG",IF(AE$1="INST-VAL",AVERAGE(U12:W12,V12:W12,L13),AVERAGE(V12:W12,L13)),SUM(V12:W12,L13)) -> 0 | AE12: =IF(AE$11="AVG",IF(AE$1="INST-VAL",AVERAGE(W11,L12:N12,L12:O12),AVERAGE(L12:O12)),SUM(L12:O12)) -> 0 | AF12: =IF(AF$11="AVG",IF(AE$1="INST-VAL",AVERAGE(M12:O12,N12:P12),AVERAGE(N12:P12)),SUM(N12:P12)) -> 0 | AG12: =IF(AG$11="AVG",IF(AE$1="INST-VAL",AVERAGE(P12:S12,Q12:T12),AVERAGE(Q12:T12)),SUM(Q12:T12)) -> 0 | AH12: =IF(AH$11="AVG",IF(AE$1="INST-VAL",AVERAGE(S12:V12,T12:W12),AVERAGE(T12:W12)),SUM(T12:W12)) -> 0 | AI12: =IF(AI$11="AVG",IF(AE$1="INST-VAL",AVERAGE(V12:W12,L13,W12,L13:M13),AVERAGE(W12,L13:M13)),SUM(W12,L13:M13)) -> 0 | AK12: 1922 | AL12: =C13 -> 0 | AM12: =C14 -> 0 | AN12: =C15 -> 0 | AO12: =C16 -> 0 | AP12: =C17 -> 0 | AQ12: =C18 -> 0 | AR12: =C19 -> 0 | AS12: =C20 -> 0 | AT12: =C21 -> 0 | AU12: =C22 -> 0 | AV12: =C23 -> 0 | AW12: =C24 -> 0 | AY12: =IF(AY$11="AVG",AVERAGE(AO12:AW12,AL13:AN13),SUM(AO12:AW12,AL13:AN13)) -> 0 | AZ12: =IF(AZ$11="AVG",AVERAGE(AQ12:AW12,AL13:AP13),SUM(AQ12:AW12,AL13:AP13)) -> 0 | BA12: =IF(BA$11="AVG",AVERAGE(AL12:AW12),SUM(AL12:AW12)) -> 0 | BC12: =IF(BC$11="AVG",IF(BE$1="INST-VAL",AVERAGE(AL12:AP12,AM12:AQ12),AVERAGE(AM12:AQ12)),SUM(AM12:AQ12)) -> 0 | BD12: =IF(BD$11="AVG",IF(BE$1="INST-VAL",AVERAGE(AU12:AW12,AV12:AW12,AL13),AVERAGE(AV12:AW12,AL13)),SUM(AV12:AW12,AL13)) -> 0 | BE12: =IF(BE$11="AVG",IF(BE$1="INST-VAL",AVERAGE(AW11,AL12:AN12,AL12:AO12),AVERAGE(AL12:AO12)),SUM(AL12:AO12)) -> 0 | BF12: =IF(BF$11="AVG",IF(BE$1="INST-VAL",AVERAGE(AM12:AO12,AN12:AP12),AVERAGE(AN12:AP12)),SUM(AN12:AP12)) -> 0 | BG12: =IF(BG$11="AVG",IF(BE$1="INST-VAL",AVERAGE(AP12:AS12,AQ12:AT12),AVERAGE(AQ12:AT12)),SUM(AQ12:AT12)) -> 0 | BH12: =IF(BH$11="AVG",IF(BE$1="INST-VAL",AVERAGE(AS12:AV12,AT12:AW12),AVERAGE(AT12:AW12)),SUM(AT12:AW12)) -> 0 | BI12: =IF(BI$11="AVG",IF(BE$1="INST-VAL",AVERAGE(AV12:AW12,AL13,AW12,AL13:AM13),AVERAGE(AW12,AL13:AM13)),SUM(AW12,AL13:AM13)) -> 0 | BK12: 1922 | BL12: =D13 -> 0 | BM12: =D14 -> 0 | BN12: =D15 -> 0 | BO12: =D16 -> 0 | BP12: =D17 -> 0 | BQ12: =D18 -> 0 | BR12: =D19 -> 0 | BS12: =D20 -> 0 | BT12: =D21 -> 2.5 | BU12: =D22 -> 99.3876444 | BV12: =D23 -> 65.77705847 | BW12: =D24 -> 34.22675846 | BY12: =IF(BY$11="AVG",AVERAGE(BO12:BW12,BL13:BN13),SUM(BO12:BW12,BL13:BN13)) -> 223.4220875 | BZ12: =IF(BZ$11="AVG",AVERAGE(BQ12:BW12,BL13:BP13),SUM(BQ12:BW12,BL13:BP13)) -> 223.4220875 | CA12: =IF(CA$11="AVG",AVERAGE(BL12:BW12),SUM(BL12:BW12)) -> 201.8914613 | CC12: =IF(CC$11="AVG",IF(CE$1="INST-VAL",AVERAGE(BL12:BP12,BM12:BQ12),AVERAGE(BM12:BQ12)),SUM(BM12:BQ12)) -> 0 | CD12: =IF(CD$11="AVG",IF(CE$1="INST-VAL",AVERAGE(BU12:BW12,BV12:BW12,BL13),AVERAGE(BV12:BW12,BL13)),SUM(BV12:BW12,BL13)) -> 119.7944431 | CE12: =IF(CE$11="AVG",IF(CE$1="INST-VAL",AVERAGE(BW11,BL12:BN12,BL12:BO12),AVERAGE(BL12:BO12)),SUM(BL12:BO12)) -> 0 | CF12: =IF(CF$11="AVG",IF(CE$1="INST-VAL",AVERAGE(BM12:BO12,BN12:BP12),AVERAGE(BN12:BP12)),SUM(BN12:BP12)) -> 0 | CG12: =IF(CG$11="AVG",IF(CE$1="INST-VAL",AVERAGE(BP12:BS12,BQ12:BT12),AVERAGE(BQ12:BT12)),SUM(BQ12:BT12)) -> 2.5 | CH12: =IF(CH$11="AVG",IF(CE$1="INST-VAL",AVERAGE(BS12:BV12,BT12:BW12),AVERAGE(BT12:BW12)),SUM(BT12:BW12)) -> 201.8914613 | CI12: =IF(CI$11="AVG",IF(CE$1="INST-VAL",AVERAGE(BV12:BW12,BL13,BW12,BL13:BM13),AVERAGE(BW12,BL13:BM13)),SUM(BW12,BL13:BM13)) -> 55.75738465 | CK12: 1922 | CL12: =E13 -> 0 | CM12: =E14 -> 0 | CN12: =E15 -> 0 | CO12: =E16 -> 0 | CP12: =E17 -> 0 | CQ12: =E18 -> 0 | CR12: =E19 -> 0 | CS12: =E20 -> 0 | CT12: =E21 -> 2.5 | CU12: =E22 -> 99.38764484 | CV12: =E23 -> 111.0864778 | CW12: =E24 -> 31.00298448 | CY12: =IF(CY$11="AVG",AVERAGE(CO12:CW12,CL13:CN13),SUM(CO12:CW12,CL13:CN13)) -> 265.5457 | CZ12: =IF(CZ$11="AVG",AVERAGE(CQ12:CW12,CL13:CP13),SUM(CQ12:CW12,CL13:CP13)) -> 265.5457 | DA12: =IF(DA$11="AVG",AVERAGE(CL12:CW12),SUM(CL12:CW12)) -> 243.9771071 | DC12: =IF(DC$11="AVG",IF(DE$1="INST-VAL",AVERAGE(CL12:CP12,CM12:CQ12),AVERAGE(CM12:CQ12)),SUM(CM12:CQ12)) -> 0 | DD12: =IF(DD$11="AVG",IF(DE$1="INST-VAL",AVERAGE(CU12:CW12,CV12:CW12,CL13),AVERAGE(CV12:CW12,CL13)),SUM(CV12:CW12,CL13)) -> 161.9180551 | DE12: =IF(DE$11="AVG",IF(DE$1="INST-VAL",AVERAGE(CW11,CL12:CN12,CL12:CO12),AVERAGE(CL12:CO12)),SUM(CL12:CO12)) -> 0 | DF12: =IF(DF$11="AVG",IF(DE$1="INST-VAL",AVERAGE(CM12:CO12,CN12:CP12),AVERAGE(CN12:CP12)),SUM(CN12:CP12)) -> 0 | DG12: =IF(DG$11="AVG",IF(DE$1="INST-VAL",AVERAGE(CP12:CS12,CQ12:CT12),AVERAGE(CQ12:CT12)),SUM(CQ12:CT12)) -> 2.5 | DH12: =IF(DH$11="AVG",IF(DE$1="INST-VAL",AVERAGE(CS12:CV12,CT12:CW12),AVERAGE(CT12:CW12)),SUM(CT12:CW12)) -> 243.9771071 | DI12: =IF(DI$11="AVG",IF(DE$1="INST-VAL",AVERAGE(CV12:CW12,CL13,CW12,CL13:CM13),AVERAGE(CW12,CL13:CM13)),SUM(CW12,CL13:CM13)) -> 52.57157733 | DK12: 1922 | DL12: =F13 -> 0 | DM12: =F14 -> 0 | DN12: =F15 -> 0 | DO12: =F16 -> 5.960464517e-08 | DP12: =F17 -> 0 | DQ12: =F18 -> 0 | DR12: =F19 -> 0 | DS12: =F20 -> 0 | DT12: =F21 -> 2.5 | DU12: =F22 -> 99.3876444 | DV12: =F23 -> 66.17163012 | DW12: =F24 -> 34.25170216 | DY12: =IF(DY$11="AVG",AVERAGE(DO12:DW12,DL13:DN13),SUM(DO12:DW12,DL13:DN13)) -> 223.8388427 | DZ12: =IF(DZ$11="AVG",AVERAGE(DQ12:DW12,DL13:DP13),SUM(DQ12:DW12,DL13:DP13)) -> 223.8388427 | EA12: =IF(EA$11="AVG",AVERAGE(DL12:DW12),SUM(DL12:DW12)) -> 202.3109767 | EC12: =IF(EC$11="AVG",IF(EE$1="INST-VAL",AVERAGE(DL12:DP12,DM12:DQ12),AVERAGE(DM12:DQ12)),SUM(DM12:DQ12)) -> 5.960464517e-08 | ED12: =IF(ED$11="AVG",IF(EE$1="INST-VAL",AVERAGE(DU12:DW12,DV12:DW12,DL13),AVERAGE(DV12:DW12,DL13)),SUM(DV12:DW12,DL13)) -> 120.2111983 | EE12: =IF(EE$11="AVG",IF(EE$1="INST-VAL",AVERAGE(DW11,DL12:DN12,DL12:DO12),AVERAGE(DL12:DO12)),SUM(DL12:DO12)) -> 5.960464517e-08 | EF12: =IF(EF$11="AVG",IF(EE$1="INST-VAL",AVERAGE(DM12:DO12,DN12:DP12),AVERAGE(DN12:DP12)),SUM(DN12:DP12)) -> 5.960464517e-08 | EG12: =IF(EG$11="AVG",IF(EE$1="INST-VAL",AVERAGE(DP12:DS12,DQ12:DT12),AVERAGE(DQ12:DT12)),SUM(DQ12:DT12)) -> 2.5 | EH12: =IF(EH$11="AVG",IF(EE$1="INST-VAL",AVERAGE(DS12:DV12,DT12:DW12),AVERAGE(DT12:DW12)),SUM(DT12:DW12)) -> 202.3109767 | EI12: =IF(EI$11="AVG",IF(EE$1="INST-VAL",AVERAGE(DV12:DW12,DL13,DW12,DL13:DM13),AVERAGE(DW12,DL13:DM13)),SUM(DW12,DL13:DM13)) -> 55.77956814 | EK12: 1922 | EL12: =G13 -> 0 | EM12: =G14 -> 0 | EN12: =G15 -> 0 | EO12: =G16 -> 0 | EP12: =G17 -> 0 | EQ12: =G18 -> 0 | ER12: =G19 -> 0 | ES12: =G20 -> 0 | ET12: =G21 -> 2.5 | EU12: =G22 -> 99.38764484 | EV12: =G23 -> 111.0864778 | EW12: =G24 -> 31.00298448 | EY12: =IF(EY$11="AVG",AVERAGE(EO12:EW12,EL13:EN13),SUM(EO12:EW12,EL13:EN13)) -> 265.5430366 | EZ12: =IF(EZ$11="AVG",AVERAGE(EQ12:EW12,EL13:EP13),SUM(EQ12:EW12,EL13:EP13)) -> 265.5430366 | FA12: =IF(FA$11="AVG",AVERAGE(EL12:EW12),SUM(EL12:EW12)) -> 243.9771071 | FC12: =IF(FC$11="AVG",IF(FE$1="INST-VAL",AVERAGE(EL12:EP12,EM12:EQ12),AVERAGE(EM12:EQ12)),SUM(EM12:EQ12)) -> 0 | FD12: =IF(FD$11="AVG",IF(FE$1="INST-VAL",AVERAGE(EU12:EW12,EV12:EW12,EL13),AVERAGE(EV12:EW12,EL13)),SUM(EV12:EW12,EL13)) -> 161.9153917 | FE12: =IF(FE$11="AVG",IF(FE$1="INST-VAL",AVERAGE(EW11,EL12:EN12,EL12:EO12),AVERAGE(EL12:EO12)),SUM(EL12:EO12)) -> 0 | FF12: =IF(FF$11="AVG",IF(FE$1="INST-VAL",AVERAGE(EM12:EO12,EN12:EP12),AVERAGE(EN12:EP12)),SUM(EN12:EP12)) -> 0 | FG12: =IF(FG$11="AVG",IF(FE$1="INST-VAL",AVERAGE(EP12:ES12,EQ12:ET12),AVERAGE(EQ12:ET12)),SUM(EQ12:ET12)) -> 2.5 | FH12: =IF(FH$11="AVG",IF(FE$1="INST-VAL",AVERAGE(ES12:EV12,ET12:EW12),AVERAGE(ET12:EW12)),SUM(ET12:EW12)) -> 243.9771071 | FI12: =IF(FI$11="AVG",IF(FE$1="INST-VAL",AVERAGE(EV12:EW12,EL13,EW12,EL13:EM13),AVERAGE(EW12,EL13:EM13)),SUM(EW12,EL13:EM13)) -> 52.56891395
A13: 1921-10-31 | B13: =INDIRECT(CONCATENATE("'",B$1,"'!",B$4,(YEAR($A13)-1921)*12+MONTH($A13)+3+IF(ISNUMBER(FIND("PRV",B$6)),1,0)))*IF(AND(B$3>0,TRIM(B$9)="CFS"),Conversions!$C13,1) -> 0 | C13: =INDIRECT(CONCATENATE("'",C$1,"'!",C$4,(YEAR($A13)-1921)*12+MONTH($A13)+3+IF(ISNUMBER(FIND("PRV",C$6)),1,0)))*IF(AND(C$3>0,TRIM(C$9)="CFS"),Conversions!$C13,1) -> 0 | D13: =INDIRECT(CONCATENATE("'",D$1,"'!",D$4,(YEAR($A13)-1921)*12+MONTH($A13)+3+IF(ISNUMBER(FIND("PRV",D$6)),1,0)))*IF(AND(D$3>0,TRIM(D$9)="CFS"),Conversions!$C13,1) -> 0 | E13: =INDIRECT(CONCATENATE("'",E$1,"'!",E$4,(YEAR($A13)-1921)*12+MONTH($A13)+3+IF(ISNUMBER(FIND("PRV",E$6)),1,0)))*IF(AND(E$3>0,TRIM(E$9)="CFS"),Conversions!$C13,1) -> 0 | F13: =INDIRECT(CONCATENATE("'",F$1,"'!",F$4,(YEAR($A13)-1921)*12+MONTH($A13)+3+IF(ISNUMBER(FIND("PRV",F$6)),1,0)))*IF(AND(F$3>0,TRIM(F$9)="CFS"),Conversions!$C13,1) -> 0 | G13: =INDIRECT(CONCATENATE("'",G$1,"'!",G$4,(YEAR($A13)-1921)*12+MONTH($A13)+3+IF(ISNUMBER(FIND("PRV",G$6)),1,0)))*IF(AND(G$3>0,TRIM(G$9)="CFS"),Conversions!$C13,1) -> 0 | K13: 1923 | L13: =B25 -> 0 | M13: =B26 -> 0 | N13: =B27 -> 0 | O13: =B28 -> 0 | P13: =B29 -> 0 | Q13: =B30 -> 0 | R13: =B31 -> 0 | S13: =B32 -> 0 | T13: =B33 -> 0 | U13: =B34 -> 0 | V13: =B35 -> 0 | W13: =B36 -> 0 | Y13: 0 | Z13: 0 | AA13: 0 | AC13: =IF(AC$11="AVG",IF(AE$1="INST-VAL",AVERAGE(L13:P13,M13:Q13),AVERAGE(M13:Q13)),SUM(M13:Q13)) -> 0 | AD13: =IF(AD$11="AVG",IF(AE$1="INST-VAL",AVERAGE(U13:W13,V13:W13,L14),AVERAGE(V13:W13,L14)),SUM(V13:W13,L14)) -> 0 | AE13: =IF(AE$11="AVG",IF(AE$1="INST-VAL",AVERAGE(W12,L13:N13,L13:O13),AVERAGE(L13:O13)),SUM(L13:O13)) -> 0 | AF13: 0 | AG13: 0 | AH13: 0 | AI13: 0 | AK13: 1923 | AL13: =C25 -> 0 | AM13: =C26 -> 0 | AN13: =C27 -> 0 | AO13: =C28 -> 0 | AP13: =C29 -> 0 | AQ13: =C30 -> 0 | AR13: =C31 -> 0 | AS13: =C32 -> 0 | AT13: =C33 -> 0 | AU13: =C34 -> 0 | AV13: =C35 -> 0 | AW13: =C36 -> 0 | AY13: 0 | AZ13: 0 | BA13: 0 | BC13: =IF(BC$11="AVG",IF(BE$1="INST-VAL",AVERAGE(AL13:AP13,AM13:AQ13),AVERAGE(AM13:AQ13)),SUM(AM13:AQ13)) -> 0 | BD13: =IF(BD$11="AVG",IF(BE$1="INST-VAL",AVERAGE(AU13:AW13,AV13:AW13,AL14),AVERAGE(AV13:AW13,AL14)),SUM(AV13:AW13,AL14)) -> 0 | BE13: 0 | BF13: 0 | BG13: 0 | BH13: 0 | BI13: 0 | BK13: 1923 | BL13: =D25 -> 19.79062619 | BM13: =D26 -> 1.74 | BN13: =D27 -> 0 | BO13: =D28 -> 0 | BP13: =D29 -> 0 | BQ13: =D30 -> 0.4541599869 | BR13: =D31 -> 2.204280759 | BS13: =D32 -> 0 | BT13: =D33 -> 90.88766783 | BU13: =D34 -> 83.38056577 | BV13: =D35 -> 8.102566812 | BW13: =D36 -> 3.976601465 | BY13: 333.0485042 | BZ13: 333.0485042 | CA13: 210.5364688 | CC13: =IF(CC$11="AVG",IF(CE$1="INST-VAL",AVERAGE(BL13:BP13,BM13:BQ13),AVERAGE(BM13:BQ13)),SUM(BM13:BQ13)) -> 2.194159987 | CD13: =IF(CD$11="AVG",IF(CE$1="INST-VAL",AVERAGE(BU13:BW13,BV13:BW13,BL14),AVERAGE(BV13:BW13,BL14)),SUM(BV13:BW13,BL14)) -> 63.6563132 | CE13: 21.53062619 | CF13: 0 | CG13: 93.54610858 | CH13: 186.3474019 | CI13: 135.7189262 | CK13: 1923 | CL13: =E25 -> 19.82859285 | CM13: =E26 -> 1.74 | CN13: =E27 -> 0 | CO13: =E28 -> 0 | CP13: =E29 -> 0 | CQ13: =E30 -> 0.5429323899 | CR13: =E31 -> 2.635140601 | CS13: =E32 -> 0 | CT13: =E33 -> 91.41766783 | CU13: =E34 -> 61.56263455 | CV13: =E35 -> 7.403266741 | CW13: =E36 -> 2.652284046 | CY13: 227.3020155 | CZ13: 227.3020155 | DA13: 187.782519 | DC13: 2.28293239 | DD13: 36.75697344 | DE13: 21.56859285 | DF13: 0 | DG13: 94.59574082 | DH13: 163.0358532 | DI13: 50.54704003 | DK13: 1923 | DL13: =F25 -> 19.78786598 | DM13: =F26 -> 1.74 | DN13: =F27 -> 0 | DO13: =F28 -> 0 | DP13: =F29 -> 0 | DQ13: =F30 -> 0.4541625544 | DR13: =F31 -> 2.204293221 | DS13: =F32 -> 0 | DT13: =F33 -> 53.49195929 | DU13: =F34 -> 28.81701163 | DV13: =F35 -> 8.254134804 | DW13: =F36 -> 3.972284046 | DY13: 239.6023475 | DZ13: 239.6023475 | EA13: 118.7217115 | EC13: 2.194162555 | ED13: 61.99724102 | EE13: 21.52786598 | EF13: 0 | EG13: 56.15041507 | EH13: 94.53538977 | EI13: 133.908286 | EK13: 1923 | EL13: =G25 -> 19.82592946 | EM13: =G26 -> 1.74 | EN13: =G27 -> 0 | EO13: =G28 -> 0 | EP13: =G29 -> 0 | EQ13: =G30 -> 0.5429323899 | ER13: =G31 -> 2.635140601 | ES13: =G32 -> 0 | ET13: =G33 -> 41.45078291 | EU13: =G34 -> 2.5 | EV13: =G35 -> 7.406804348 | EW13: =G36 -> 2.652284046 | EY13: 118.4678361 | EZ13: 118.4678361 | FA13: 78.75387376 | FC13: 2.28293239 | FD13: 36.95231351 | FE13: 21.56592946 | FF13: 0 | FG13: 44.6288559 | FH13: 54.0098713 | FI13: 50.7388425
A14: 1921-11-30 | B14: =INDIRECT(CONCATENATE("'",B$1,"'!",B$4,(YEAR($A14)-1921)*12+MONTH($A14)+3+IF(ISNUMBER(FIND("PRV",B$6)),1,0)))*IF(AND(B$3>0,TRIM(B$9)="CFS"),Conversions!$C14,1) -> 0 | C14: =INDIRECT(CONCATENATE("'",C$1,"'!",C$4,(YEAR($A14)-1921)*12+MONTH($A14)+3+IF(ISNUMBER(FIND("PRV",C$6)),1,0)))*IF(AND(C$3>0,TRIM(C$9)="CFS"),Conversions!$C14,1) -> 0 | D14: =INDIRECT(CONCATENATE("'",D$1,"'!",D$4,(YEAR($A14)-1921)*12+MONTH($A14)+3+IF(ISNUMBER(FIND("PRV",D$6)),1,0)))*IF(AND(D$3>0,TRIM(D$9)="CFS"),Conversions!$C14,1) -> 0 | E14: =INDIRECT(CONCATENATE("'",E$1,"'!",E$4,(YEAR($A14)-1921)*12+MONTH($A14)+3+IF(ISNUMBER(FIND("PRV",E$6)),1,0)))*IF(AND(E$3>0,TRIM(E$9)="CFS"),Conversions!$C14,1) -> 0 | F14: =INDIRECT(CONCATENATE("'",F$1,"'!",F$4,(YEAR($A14)-1921)*12+MONTH($A14)+3+IF(ISNUMBER(FIND("PRV",F$6)),1,0)))*IF(AND(F$3>0,TRIM(F$9)="CFS"),Conversions!$C14,1) -> 0 | G14: =INDIRECT(CONCATENATE("'",G$1,"'!",G$4,(YEAR($A14)-1921)*12+MONTH($A14)+3+IF(ISNUMBER(FIND("PRV",G$6)),1,0)))*IF(AND(G$3>0,TRIM(G$9)="CFS"),Conversions!$C14,1) -> 0 | K14: 1924 | L14: =B37 -> 0 | M14: =B38 -> 0 | N14: =B39 -> 0 | O14: =B40 -> 0 | P14: =B41 -> 0 | Q14: =B42 -> 0 | R14: =B43 -> 0 | S14: =B44 -> 0 | T14: =B45 -> 0 | U14: =B46 -> 0 | V14: =B47 -> 0 | W14: =B48 -> 0 | Y14: 0 | Z14: 0 | AA14: 0 | AC14: =IF(AC$11="AVG",IF(AE$1="INST-VAL",AVERAGE(L14:P14,M14:Q14),AVERAGE(M14:Q14)),SUM(M14:Q14)) -> 0 | AD14: =IF(AD$11="AVG",IF(AE$1="INST-VAL",AVERAGE(U14:W14,V14:W14,L15),AVERAGE(V14:W14,L15)),SUM(V14:W14,L15)) -> 0 | AE14: =IF(AE$11="AVG",IF(AE$1="INST-VAL",AVERAGE(W13,L14:N14,L14:O14),AVERAGE(L14:O14)),SUM(L14:O14)) -> 0 | AF14: 0 | AG14: 0 | AH14: 0 | AI14: 0 | AK14: 1924 | AL14: =C37 -> 0 | AM14: =C38 -> 0 | AN14: =C39 -> 0 | AO14: =C40 -> 0 | AP14: =C41 -> 0 | AQ14: =C42 -> 0 | AR14: =C43 -> 0 | AS14: =C44 -> 0 | AT14: =C45 -> 0 | AU14: =C46 -> 0 | AV14: =C47 -> 0 | AW14: =C48 -> 0 | AY14: 0 | AZ14: 0 | BA14: 0 | BC14: =IF(BC$11="AVG",IF(BE$1="INST-VAL",AVERAGE(AL14:AP14,AM14:AQ14),AVERAGE(AM14:AQ14)),SUM(AM14:AQ14)) -> 0 | BD14: 0 | BE14: 0 | BF14: 0 | BG14: 0 | BH14: 0 | BI14: 0 | BK14: 1924 | BL14: =D37 -> 51.57714493 | BM14: =D38 -> 80.1651798 | BN14: =D39 -> 12.30033681 | BO14: =D40 -> 0 | BP14: =D41 -> 0 | BQ14: =D42 -> 5.032537461 | BR14: =D43 -> 85.0632258 | BS14: =D44 -> 52.04843344 | BT14: =D45 -> 81.15003313 | BU14: =D46 -> 119.3264463 | BV14: =D47 -> 63.20860847 | BW14: =D48 -> 2.5 | BY14: 408.3292846 | BZ14: 408.3292846 | CA14: 552.3719461 | CC14: =IF(CC$11="AVG",IF(CE$1="INST-VAL",AVERAGE(BL14:BP14,BM14:BQ14),AVERAGE(BM14:BQ14)),SUM(BM14:BQ14)) -> 97.49805407 | CD14: 65.70860847 | CE14: 144.0426615 | CF14: 12.30033681 | CG14: 223.2942298 | CH14: 266.1850879 | CI14: 2.5 | CK14: 1924 | CL14: =E37 -> 26.70142265 | CM14: =E38 -> 21.19333333 | CN14: =E39 -> 13.19333333 | CO14: =E40 -> 0 | CP14: =E41 -> 0 | CQ14: =E42 -> 5.032537461 | CR14: =E43 -> 87.21273533 | CS14: =E44 -> 35.79604447 | CT14: =E45 -> 86.42870708 | CU14: =E46 -> 119.3264467 | CV14: =E47 -> 109.1580601 | CW14: =E48 -> 72.02654821 | CY14: 520.2048302 | CZ14: 520.2048302 | DA14: 576.0691687 | DC14: 39.41920413 | DD14: 186.4083592 | DE14: 61.08808932 | DF14: 13.19333333 | DG14: 214.4700243 | DH14: 386.9397621 | DI14: 77.25029902 | DK14: 1924 | DL14: =F37 -> 49.77082217 | DM14: =F38 -> 80.1651798 | DN14: =F39 -> 12.4725 | DO14: =F40 -> 0 | DP14: =F41 -> 0 | DQ14: =F42 -> 5.032537461 | DR14: =F43 -> 85.10537924 | DS14: =F44 -> 52.04836391 | DT14: =F45 -> 90.86101031 | DU14: =F46 -> 119.3293937 | DV14: =F47 -> 109.1580601 | DW14: =F48 -> 24.67843019 | DY14: 486.2131749 | DZ14: 486.2131749 | EA14: 628.6216769 | EC14: 97.67021726 | ED14: 133.8364903 | EE14: 142.408502 | EF14: 12.4725 | EG14: 233.0472909 | EH14: 344.0268943 | EI14: 24.67843019 | EK14: 1924 | EL14: =G37 -> 26.89322512 | EM14: =G38 -> 21.19333333 | EN14: =G39 -> 13.19333333 | EO14: =G40 -> 0 | EP14: =G41 -> 0 | EQ14: =G42 -> 5.032537461 | ER14: =G43 -> 87.2116989 | ES14: =G44 -> 22.13921375 | ET14: =G45 -> 86.46770353 | EU14: =G46 -> 119.3264463 | EV14: =G47 -> 109.1580601 | EW14: =G48 -> 73.27064821 | EY14: 513.7561828 | EZ14: 513.7561828 | FA14: 563.8862001 | FC14: 39.41920413 | FD14: 190.2912073 | FE14: 61.27989179 | FF14: 13.19333333 | FG14: 200.8511536 | FH14: 388.2228582 | FI14: 84.42052271
A15: 1921-12-31 | B15: =INDIRECT(CONCATENATE("'",B$1,"'!",B$4,(YEAR($A15)-1921)*12+MONTH($A15)+3+IF(ISNUMBER(FIND("PRV",B$6)),1,0)))*IF(AND(B$3>0,TRIM(B$9)="CFS"),Conversions!$C15,1) -> 0 | C15: =INDIRECT(CONCATENATE("'",C$1,"'!",C$4,(YEAR($A15)-1921)*12+MONTH($A15)+3+IF(ISNUMBER(FIND("PRV",C$6)),1,0)))*IF(AND(C$3>0,TRIM(C$9)="CFS"),Conversions!$C15,1) -> 0 | D15: =INDIRECT(CONCATENATE("'",D$1,"'!",D$4,(YEAR($A15)-1921)*12+MONTH($A15)+3+IF(ISNUMBER(FIND("PRV",D$6)),1,0)))*IF(AND(D$3>0,TRIM(D$9)="CFS"),Conversions!$C15,1) -> 0 | E15: =INDIRECT(CONCATENATE("'",E$1,"'!",E$4,(YEAR($A15)-1921)*12+MONTH($A15)+3+IF(ISNUMBER(FIND("PRV",E$6)),1,0)))*IF(AND(E$3>0,TRIM(E$9)="CFS"),Conversions!$C15,1) -> 0 | F15: =INDIRECT(CONCATENATE("'",F$1,"'!",F$4,(YEAR($A15)-1921)*12+MONTH($A15)+3+IF(ISNUMBER(FIND("PRV",F$6)),1,0)))*IF(AND(F$3>0,TRIM(F$9)="CFS"),Conversions!$C15,1) -> 0 | G15: =INDIRECT(CONCATENATE("'",G$1,"'!",G$4,(YEAR($A15)-1921)*12+MONTH($A15)+3+IF(ISNUMBER(FIND("PRV",G$6)),1,0)))*IF(AND(G$3>0,TRIM(G$9)="CFS"),Conversions!$C15,1) -> 0 | K15: 1925 | L15: =B49 -> 0 | M15: =B50 -> 0 | N15: =B51 -> 0 | O15: =B52 -> 0 | P15: =B53 -> 0 | Q15: =B54 -> 0 | R15: =B55 -> 0 | S15: =B56 -> 0 | T15: =B57 -> 0 | U15: =B58 -> 0 | V15: =B59 -> 0 | W15: =B60 -> 0 | Y15: 0 | Z15: 0 | AA15: 0 | AC15: =IF(AC$11="AVG",IF(AE$1="INST-VAL",AVERAGE(L15:P15,M15:Q15),AVERAGE(M15:Q15)),SUM(M15:Q15)) -> 0 | AD15: 0 | AE15: 0 | AF15: 0 | AG15: 0 | AH15: 0 | AI15: 0 | AK15: 1925 | AL15: =C49 -> 0 | AM15: =C50 -> 0 | AN15: =C51 -> 0 | AO15: =C52 -> 0 | AP15: =C53 -> 0 | AQ15: =C54 -> 0 | AR15: =C55 -> 0 | AS15: =C56 -> 0 | AT15: =C57 -> 0 | AU15: =C58 -> 0 | AV15: =C59 -> 0 | AW15: =C60 -> 0 | AY15: 0 | AZ15: 0 | BA15: 0 | BC15: =IF(BC$11="AVG",IF(BE$1="INST-VAL",AVERAGE(AL15:AP15,AM15:AQ15),AVERAGE(AM15:AQ15)),SUM(AM15:AQ15)) -> 0 | BD15: =IF(BD$11="AVG",IF(BE$1="INST-VAL",AVERAGE(AU15:AW15,AV15:AW15,AL16),AVERAGE(AV15:AW15,AL16)),SUM(AV15:AW15,AL16)) -> 0 | BE15: 0 | BF15: 0 | BG15: 0 | BH15: 0 | BI15: 0 | BK15: 1925 | BL15: =D49 -> 0 | BM15: =D50 -> 0 | BN15: =D51 -> 0 | BO15: =D52 -> 0 | BP15: =D53 -> 0 | BQ15: =D54 -> 0 | BR15: =D55 -> 1.453704586 | BS15: =D56 -> 0 | BT15: =D57 -> 51.74784682 | BU15: =D58 -> 63.71615579 | BV15: =D59 -> 2.5 | BW15: =D60 -> 6.860293992 | BY15: 132.3300523 | BZ15: 132.3300523 | CA15: 126.2780012 | CC15: 0 | CD15: 15.41234512 | CE15: 0 | CF15: 0 | CG15: 53.2015514 | CH15: 124.8242966 | CI15: 12.91234512 | CK15: 1925 | CL15: =E49 -> 5.223750808 | CM15: =E50 -> 0 | CN15: =E51 -> 0 | CO15: =E52 -> 0 | CP15: =E53 -> 0 | CQ15: =E54 -> 0 | CR15: =E55 -> 1.923474078 | CS15: =E56 -> 33.67930118 | CT15: =E57 -> 30.10773054 | CU15: =E58 -> 116.8264463 | CV15: =E59 -> 9.289808677 | CW15: =E60 -> 8.573496475 | CY15: 208.0055858 | CZ15: 208.0055858 | DA15: 205.624008 | DC15: 0 | DD15: 25.46863368 | DE15: 5.223750808 | DF15: 0 | DG15: 65.71050579 | DH15: 164.797482 | DI15: 16.17882501 | DK15: 1925 | DL15: =F49 -> 0 | DM15: =F50 -> 0 | DN15: =F51 -> 0 | DO15: =F52 -> 0 | DP15: =F53 -> 0 | DQ15: =F54 -> 0 | DR15: =F55 -> 1.585342049 | DS15: =F56 -> 0 | DT15: =F57 -> 36.70922054 | DU15: =F58 -> 67.57612348 | DV15: =F59 -> 12.06833136 | DW15: =F60 -> 7.623890817 | DY15: 132.0064366 | DZ15: 132.0064366 | EA15: 125.5629083 | EC15: 0 | ED15: 26.13575052 | EE15: 0 | EF15: 0 | EG15: 38.29456259 | EH15: 123.9775662 | EI15: 14.06741916 | EK15: 1925 | EL15: =G49 -> 7.862498967 | EM15: =G50 -> 3.287375531 | EN15: =G51 -> 0 | EO15: =G52 -> 0 | EP15: =G53 -> 0 | EQ15: =G54 -> 0 | ER15: =G55 -> 2.038344916 | ES15: =G56 -> 26.2445599 | ET15: =G57 -> 40.15564422 | EU15: =G58 -> 116.8264463 | EV15: =G59 -> 101.5240796 | EW15: =G60 -> 7.708041559 | EY15: 301.7519285 | EZ15: 301.7519285 | FA15: 305.646991 | FC15: 3.287375531 | FD15: 116.4869332 | FE15: 11.1498745 | FF15: 0 | FG15: 68.43854903 | FH15: 266.2142117 | FI15: 14.96285356
A16: 1922-01-31 | B16: =INDIRECT(CONCATENATE("'",B$1,"'!",B$4,(YEAR($A16)-1921)*12+MONTH($A16)+3+IF(ISNUMBER(FIND("PRV",B$6)),1,0)))*IF(AND(B$3>0,TRIM(B$9)="CFS"),Conversions!$C16,1) -> 0 | C16: =INDIRECT(CONCATENATE("'",C$1,"'!",C$4,(YEAR($A16)-1921)*12+MONTH($A16)+3+IF(ISNUMBER(FIND("PRV",C$6)),1,0)))*IF(AND(C$3>0,TRIM(C$9)="CFS"),Conversions!$C16,1) -> 0 | D16: =INDIRECT(CONCATENATE("'",D$1,"'!",D$4,(YEAR($A16)-1921)*12+MONTH($A16)+3+IF(ISNUMBER(FIND("PRV",D$6)),1,0)))*IF(AND(D$3>0,TRIM(D$9)="CFS"),Conversions!$C16,1) -> 0 | E16: =INDIRECT(CONCATENATE("'",E$1,"'!",E$4,(YEAR($A16)-1921)*12+MONTH($A16)+3+IF(ISNUMBER(FIND("PRV",E$6)),1,0)))*IF(AND(E$3>0,TRIM(E$9)="CFS"),Conversions!$C16,1) -> 0 | F16: =INDIRECT(CONCATENATE("'",F$1,"'!",F$4,(YEAR($A16)-1921)*12+MONTH($A16)+3+IF(ISNUMBER(FIND("PRV",F$6)),1,0)))*IF(AND(F$3>0,TRIM(F$9)="CFS"),Conversions!$C16,1) -> 5.960464517e-08 | G16: =INDIRECT(CONCATENATE("'",G$1,"'!",G$4,(YEAR($A16)-1921)*12+MONTH($A16)+3+IF(ISNUMBER(FIND("PRV",G$6)),1,0)))*IF(AND(G$3>0,TRIM(G$9)="CFS"),Conversions!$C16,1) -> 0 | K16: 1926 | L16: =B61 -> 0 | M16: =B62 -> 0 | N16: =B63 -> 0 | O16: =B64 -> 0 | P16: =B65 -> 0 | Q16: =B66 -> 0 | R16: =B67 -> 0 | S16: =B68 -> 0 | T16: =B69 -> 0 | U16: =B70 -> 0 | V16: =B71 -> 0 | W16: =B72 -> 0 | Y16: 0 | Z16: 0 | AA16: 0 | AC16: 0 | AD16: 0 | AE16: 0 | AF16: 0 | AG16: 0 | AH16: 0 | AI16: 0 | AK16: 1926 | AL16: =C61 -> 0 | AM16: =C62 -> 0 | AN16: =C63 -> 0 | AO16: =C64 -> 0 | AP16: =C65 -> 0 | AQ16: =C66 -> 0 | AR16: =C67 -> 0 | AS16: =C68 -> 0 | AT16: =C69 -> 0 | AU16: =C70 -> 0 | AV16: =C71 -> 0 | AW16: =C72 -> 0 | AY16: 0 | AZ16: 0 | BA16: 0 | BC16: 0 | BD16: 0 | BE16: 0 | BF16: 0 | BG16: 0 | BH16: 0 | BI16: 0 | BK16: 1926 | BL16: =D61 -> 6.052051128 | BM16: =D62 -> 0 | BN16: =D63 -> 0 | BO16: =D64 -> 0 | BP16: =D65 -> 0 | BQ16: =D66 -> 0.5279554424 | BR16: =D67 -> 1.51792539 | BS16: =D68 -> 61.19146653 | BT16: =D69 -> 22.28890669 | BU16: =D70 -> 71.05647773 | BV16: =D71 -> 32.26231843 | BW16: =D72 -> 9.898416273 | BY16: 203.6429764 | BZ16: 203.6429764 | CA16: 204.7955176 | CC16: 0.5279554424 | CD16: 45.32024461 | CE16: 6.052051128 | CF16: 0 | CG16: 85.52625405 | CH16: 135.5061191 | CI16: 14.79792618 | CK16: 1926 | CL16: =E61 -> 7.605328533 | CM16: =E62 -> 0 | CN16: =E63 -> 0 | CO16: =E64 -> 0 | CP16: =E65 -> 0 | CQ16: =E66 -> 0.6337171885 | CR16: =E67 -> 1.821977145 | CS16: =E68 -> 64.10039439 | CT16: =E69 -> 19.02740814 | CU16: =E70 -> 71.39635917 | CV16: =E71 -> 32.31259363 | CW16: =E72 -> 20.16085169 | CY16: 215.1658942 | CZ16: 215.1658942 | DA16: 217.0586299 | DC16: 0.6337171885 | DD16: 54.96344532 | DE16: 7.605328533 | DF16: 0 | DG16: 85.58349686 | DH16: 142.8972126 | DI16: 25.87344451 | DK16: 1926 | DL16: =F61 -> 6.443528339 | DM16: =F62 -> 0 | DN16: =F63 -> 0 | DO16: =F64 -> 0 | DP16: =F65 -> 0 | DQ16: =F66 -> 0.5422550085 | DR16: =F67 -> 1.55903487 | DS16: =F68 -> 44.77675132 | DT16: =F69 -> 27.89721439 | DU16: =F70 -> 76.9829134 | DV16: =F71 -> 37.57938751 | DW16: =F72 -> 10.92190748 | DY16: 205.1598451 | DZ16: 205.1598451 | EA16: 206.7029923 | EC16: 0.5422550085 | ED16: 51.66167608 | EE16: 6.443528339 | EF16: 0 | EG16: 74.77525559 | EH16: 153.3814228 | EI16: 15.82228857 | EK16: 1926 | EL16: =G61 -> 7.254812 | EM16: =G62 -> 0 | EN16: =G63 -> 0 | EO16: =G64 -> 0 | EP16: =G65 -> 0 | EQ16: =G66 -> 0.6542616937 | ER16: =G67 -> 1.881040021 | ES16: =G68 -> 47.84815108 | ET16: =G69 -> 24.66897249 | EU16: =G70 -> 76.8764555 | EV16: =G71 -> 38.29067972 | EW16: =G72 -> 20.55992394 | EY16: 216.7584688 | EZ16: 216.7584688 | FA16: 218.0342964 | FC16: 0.6542616937 | FD16: 61.34060366 | FE16: 7.254812 | FF16: 0 | FG16: 75.05242528 | FH16: 160.3960317 | FI16: 26.5389083
A17: 1922-02-28 | B17: =INDIRECT(CONCATENATE("'",B$1,"'!",B$4,(YEAR($A17)-1921)*12+MONTH($A17)+3+IF(ISNUMBER(FIND("PRV",B$6)),1,0)))*IF(AND(B$3>0,TRIM(B$9)="CFS"),Conversions!$C17,1) -> 0 | C17: =INDIRECT(CONCATENATE("'",C$1,"'!",C$4,(YEAR($A17)-1921)*12+MONTH($A17)+3+IF(ISNUMBER(FIND("PRV",C$6)),1,0)))*IF(AND(C$3>0,TRIM(C$9)="CFS"),Conversions!$C17,1) -> 0 | D17: =INDIRECT(CONCATENATE("'",D$1,"'!",D$4,(YEAR($A17)-1921)*12+MONTH($A17)+3+IF(ISNUMBER(FIND("PRV",D$6)),1,0)))*IF(AND(D$3>0,TRIM(D$9)="CFS"),Conversions!$C17,1) -> 0 | E17: =INDIRECT(CONCATENATE("'",E$1,"'!",E$4,(YEAR($A17)-1921)*12+MONTH($A17)+3+IF(ISNUMBER(FIND("PRV",E$6)),1,0)))*IF(AND(E$3>0,TRIM(E$9)="CFS"),Conversions!$C17,1) -> 0 | F17: =INDIRECT(CONCATENATE("'",F$1,"'!",F$4,(YEAR($A17)-1921)*12+MONTH($A17)+3+IF(ISNUMBER(FIND("PRV",F$6)),1,0)))*IF(AND(F$3>0,TRIM(F$9)="CFS"),Conversions!$C17,1) -> 0 | G17: =INDIRECT(CONCATENATE("'",G$1,"'!",G$4,(YEAR($A17)-1921)*12+MONTH($A17)+3+IF(ISNUMBER(FIND("PRV",G$6)),1,0)))*IF(AND(G$3>0,TRIM(G$9)="CFS"),Conversions!$C17,1) -> 0 | K17: 1927 | L17: =B73 -> 0 | M17: =B74 -> 0 | N17: =B75 -> 0 | O17: =B76 -> 0 | P17: =B77 -> 0 | Q17: =B78 -> 0 | R17: =B79 -> 0 | S17: =B80 -> 0 | T17: =B81 -> 0 | U17: =B82 -> 0 | V17: =B83 -> 0 | W17: =B84 -> 0 | Y17: 0 | Z17: 0 | AA17: 0 | AC17: 0 | AD17: 0 | AE17: 0 | AF17: 0 | AG17: 0 | AH17: 0 | AI17: 0 | AK17: 1927 | AL17: =C73 -> 0 | AM17: =C74 -> 0 | AN17: =C75 -> 0 | AO17: =C76 -> 0 | AP17: =C77 -> 0 | AQ17: =C78 -> 0 | AR17: =C79 -> 0 | AS17: =C80 -> 0 | AT17: =C81 -> 0 | AU17: =C82 -> 0 | AV17: =C83 -> 0 | AW17: =C84 -> 0 | AY17: 0 | AZ17: 0 | BA17: 0 | BC17: 0 | BD17: 0 | BE17: 0 | BF17: 0 | BG17: 0 | BH17: 0 | BI17: 0 | BK17: 1927 | BL17: =D73 -> 3.15950991 | BM17: =D74 -> 1.74 | BN17: =D75 -> 0 | BO17: =D76 -> 0 | BP17: =D77 -> 0 | BQ17: =D78 -> 0 | BR17: =D79 -> 0 | BS17: =D80 -> 0 | BT17: =D81 -> 1.966778492 | BU17: =D82 -> 2.5 | BV17: =D83 -> 30.0862069 | BW17: =D84 -> 28.45005914 | BY17: 63.00304454 | BZ17: 63.00304454 | CA17: 67.90255445 | CC17: =IF(CC$11="AVG",IF(CE$1="INST-VAL",AVERAGE(BL17:BP17,BM17:BQ17),AVERAGE(BM17:BQ17)),SUM(BM17:BQ17)) -> 1.74 | CD17: =IF(CD$11="AVG",IF(CE$1="INST-VAL",AVERAGE(BU17:BW17,BV17:BW17,BL18),AVERAGE(BV17:BW17,BL18)),SUM(BV17:BW17,BL18)) -> 58.53626604 | CE17: 4.89950991 | CF17: 0 | CG17: 1.966778492 | CH17: 63.00304454 | CI17: 28.45005914 | CK17: 1927 | CL17: =E73 -> 2.49 | CM17: =E74 -> 3.222592819 | CN17: =E75 -> 0 | CO17: =E76 -> 0 | CP17: =E77 -> 0 | CQ17: =E78 -> 0 | CR17: =E79 -> 1.134693466 | CS17: =E80 -> 0 | CT17: =E81 -> 1.966778492 | CU17: =E82 -> 2.5 | CV17: =E83 -> 30.0862069 | CW17: =E84 -> 28.45005914 | CY17: 64.137738 | CZ17: 64.137738 | DA17: 69.85033082 | DC17: 3.222592819 | DD17: 58.53626604 | DE17: 5.712592819 | DF17: 0 | DG17: 3.101471958 | DH17: 63.00304454 | DI17: 28.45005914 | DK17: 1927 | DL17: =F73 -> 3.160381087 | DM17: =F74 -> 1.74 | DN17: =F75 -> 0 | DO17: =F76 -> 0 | DP17: =F77 -> 0 | DQ17: =F78 -> 0 | DR17: =F79 -> 0 | DS17: =F80 -> 0 | DT17: =F81 -> 1.966778492 | DU17: =F82 -> 2.5 | DV17: =F83 -> 30.0862069 | DW17: =F84 -> 28.45005914 | DY17: 68.17126307 | DZ17: 68.17126307 | EA17: 67.90342562 | EC17: 1.74 | ED17: 63.70448458 | EE17: 4.900381088 | EF17: 0 | EG17: 1.966778492 | EH17: 63.00304454 | EI17: 33.61827768 | EK17: 1927 | EL17: =G73 -> 2.49 | EM17: =G74 -> 3.488984359 | EN17: =G75 -> 0 | EO17: =G76 -> 0 | EP17: =G77 -> 0 | EQ17: =G78 -> 0 | ER17: =G79 -> 1.134693466 | ES17: =G80 -> 0 | ET17: =G81 -> 1.966778492 | EU17: =G82 -> 2.5 | EV17: =G83 -> 30.0862069 | EW17: =G84 -> 28.45005914 | EY17: 68.8797634 | EZ17: 68.8797634 | FA17: 70.11672236 | FC17: 3.488984359 | FD17: 63.27829144 | FE17: 5.978984359 | FF17: 0 | FG17: 3.101471958 | FH17: 63.00304454 | FI17: 33.19208454
A18: 1922-03-31 | B18: =INDIRECT(CONCATENATE("'",B$1,"'!",B$4,(YEAR($A18)-1921)*12+MONTH($A18)+3+IF(ISNUMBER(FIND("PRV",B$6)),1,0)))*IF(AND(B$3>0,TRIM(B$9)="CFS"),Conversions!$C18,1) -> 0 | C18: =INDIRECT(CONCATENATE("'",C$1,"'!",C$4,(YEAR($A18)-1921)*12+MONTH($A18)+3+IF(ISNUMBER(FIND("PRV",C$6)),1,0)))*IF(AND(C$3>0,TRIM(C$9)="CFS"),Conversions!$C18,1) -> 0 | D18: =INDIRECT(CONCATENATE("'",D$1,"'!",D$4,(YEAR($A18)-1921)*12+MONTH($A18)+3+IF(ISNUMBER(FIND("PRV",D$6)),1,0)))*IF(AND(D$3>0,TRIM(D$9)="CFS"),Conversions!$C18,1) -> 0 | E18: =INDIRECT(CONCATENATE("'",E$1,"'!",E$4,(YEAR($A18)-1921)*12+MONTH($A18)+3+IF(ISNUMBER(FIND("PRV",E$6)),1,0)))*IF(AND(E$3>0,TRIM(E$9)="CFS"),Conversions!$C18,1) -> 0 | F18: =INDIRECT(CONCATENATE("'",F$1,"'!",F$4,(YEAR($A18)-1921)*12+MONTH($A18)+3+IF(ISNUMBER(FIND("PRV",F$6)),1,0)))*IF(AND(F$3>0,TRIM(F$9)="CFS"),Conversions!$C18,1) -> 0 | G18: =INDIRECT(CONCATENATE("'",G$1,"'!",G$4,(YEAR($A18)-1921)*12+MONTH($A18)+3+IF(ISNUMBER(FIND("PRV",G$6)),1,0)))*IF(AND(G$3>0,TRIM(G$9)="CFS"),Conversions!$C18,1) -> 0 | K18: 1928 | L18: =B85 -> 0 | M18: =B86 -> 0 | N18: =B87 -> 0 | O18: =B88 -> 0 | P18: =B89 -> 0 | Q18: =B90 -> 0 | R18: =B91 -> 0 | S18: =B92 -> 0 | T18: =B93 -> 0 | U18: =B94 -> 0 | V18: =B95 -> 0 | W18: =B96 -> 0 | Y18: 0 | Z18: 0 | AA18: 0 | AC18: 0 | AD18: 0 | AE18: 0 | AF18: 0 | AG18: 0 | AH18: 0 | AI18: 0 | AK18: 1928 | AL18: =C85 -> 0 | AM18: =C86 -> 0 | AN18: =C87 -> 0 | AO18: =C88 -> 0 | AP18: =C89 -> 0 | AQ18: =C90 -> 0 | AR18: =C91 -> 0 | AS18: =C92 -> 0 | AT18: =C93 -> 0 | AU18: =C94 -> 0 | AV18: =C95 -> 0 | AW18: =C96 -> 0 | AY18: 0 | AZ18: 0 | BA18: 0 | BC18: 0 | BD18: 0 | BE18: 0 | BF18: 0 | BG18: 0 | BH18: 0 | BI18: 0 | BK18: 1928 | BL18: =D85 -> 0 | BM18: =D86 -> 0 | BN18: =D87 -> 0 | BO18: =D88 -> 0 | BP18: =D89 -> 0 | BQ18: =D90 -> 0 | BR18: =D91 -> 1.800247061 | BS18: =D92 -> 0 | BT18: =D93 -> 93.22817191 | BU18: =D94 -> 163.0996969 | BV18: =D95 -> 145.3602595 | BW18: =D96 -> 91.38265901 | BY18: 504.9910343 | BZ18: 504.9910343 | CA18: 494.8710343 | CC18: 0 | CD18: 241.7229185 | CE18: 0 | CF18: 0 | CG18: 95.02841897 | CH18: 493.0707873 | CI18: 99.84265901 | CK18: 1928 | CL18: =E85 -> 0 | CM18: =E86 -> 0 | CN18: =E87 -> 0 | CO18: =E88 -> 0 | CP18: =E89 -> 0 | CQ18: =E90 -> 0 | CR18: =E91 -> 2.705392855 | CS18: =E92 -> 40.65806575 | CT18: =E93 -> 93.22817191 | CU18: =E94 -> 166.8996969 | CV18: =E95 -> 126.216793 | CW18: =E96 -> 67.93450416 | CY18: 519.7298101 | CZ18: 519.7298101 | DA18: 497.6426245 | DC18: =IF(DC$11="AVG",IF(DE$1="INST-VAL",AVERAGE(CL18:CP18,CM18:CQ18),AVERAGE(CM18:CQ18)),SUM(CM18:CQ18)) -> 0 | DD18: =IF(DD$11="AVG",IF(DE$1="INST-VAL",AVERAGE(CU18:CW18,CV18:CW18,CL19),AVERAGE(CV18:CW18,CL19)),SUM(CV18:CW18,CL19)) -> 196.6412976 | DE18: 0 | DF18: 0 | DG18: 136.5916305 | DH18: 454.2791659 | DI18: 88.36168974 | DK18: 1928 | DL18: =F85 -> 5.168218532 | DM18: =F86 -> 0 | DN18: =F87 -> 0 | DO18: =F88 -> 0 | DP18: =F89 -> 0 | DQ18: =F90 -> 0 | DR18: =F91 -> 1.800247061 | DS18: =F92 -> 0 | DT18: =F93 -> 93.22817191 | DU18: =F94 -> 163.0996969 | DV18: =F95 -> 92.03745855 | DW18: =F96 -> 67.59966019 | DY18: 423.6552349 | DZ18: 423.6552349 | EA18: 422.9334531 | EC18: =IF(EC$11="AVG",IF(EE$1="INST-VAL",AVERAGE(DL18:DP18,DM18:DQ18),AVERAGE(DM18:DQ18)),SUM(DM18:DQ18)) -> 0 | ED18: =IF(ED$11="AVG",IF(EE$1="INST-VAL",AVERAGE(DU18:DW18,DV18:DW18,DL19),AVERAGE(DV18:DW18,DL19)),SUM(DV18:DW18,DL19)) -> 162.1271191 | EE18: 5.168218532 | EF18: 0 | EG18: 95.02841897 | EH18: 415.9649875 | EI18: 71.82966052 | EK18: 1928 | EL18: =G85 -> 4.742025395 | EM18: =G86 -> 0 | EN18: =G87 -> 0 | EO18: =G88 -> 0 | EP18: =G89 -> 0 | EQ18: =G90 -> 0 | ER18: =G91 -> 2.705392855 | ES18: =G92 -> 40.65793112 | ET18: =G93 -> 93.22817191 | EU18: =G94 -> 164.6770192 | EV18: =G95 -> 45.52451932 | EW18: =G96 -> 68.38090571 | EY18: 437.2628184 | EZ18: 437.2628184 | FA18: 419.9159655 | FC18: =IF(FC$11="AVG",IF(FE$1="INST-VAL",AVERAGE(EL18:EP18,EM18:EQ18),AVERAGE(EM18:EQ18)),SUM(EM18:EQ18)) -> 0 | FD18: 116.3954259 | FE18: 4.742025395 | FF18: 0 | FG18: 136.5914959 | FH18: 371.8106161 | FI18: 88.80978397
A19: 1922-04-30 | B19: =INDIRECT(CONCATENATE("'",B$1,"'!",B$4,(YEAR($A19)-1921)*12+MONTH($A19)+3+IF(ISNUMBER(FIND("PRV",B$6)),1,0)))*IF(AND(B$3>0,TRIM(B$9)="CFS"),Conversions!$C19,1) -> 0 | C19: =INDIRECT(CONCATENATE("'",C$1,"'!",C$4,(YEAR($A19)-1921)*12+MONTH($A19)+3+IF(ISNUMBER(FIND("PRV",C$6)),1,0)))*IF(AND(C$3>0,TRIM(C$9)="CFS"),Conversions!$C19,1) -> 0 | D19: =INDIRECT(CONCATENATE("'",D$1,"'!",D$4,(YEAR($A19)-1921)*12+MONTH($A19)+3+IF(ISNUMBER(FIND("PRV",D$6)),1,0)))*IF(AND(D$3>0,TRIM(D$9)="CFS"),Conversions!$C19,1) -> 0 | E19: =INDIRECT(CONCATENATE("'",E$1,"'!",E$4,(YEAR($A19)-1921)*12+MONTH($A19)+3+IF(ISNUMBER(FIND("PRV",E$6)),1,0)))*IF(AND(E$3>0,TRIM(E$9)="CFS"),Conversions!$C19,1) -> 0 | F19: =INDIRECT(CONCATENATE("'",F$1,"'!",F$4,(YEAR($A19)-1921)*12+MONTH($A19)+3+IF(ISNUMBER(FIND("PRV",F$6)),1,0)))*IF(AND(F$3>0,TRIM(F$9)="CFS"),Conversions!$C19,1) -> 0 | G19: =INDIRECT(CONCATENATE("'",G$1,"'!",G$4,(YEAR($A19)-1921)*12+MONTH($A19)+3+IF(ISNUMBER(FIND("PRV",G$6)),1,0)))*IF(AND(G$3>0,TRIM(G$9)="CFS"),Conversions!$C19,1) -> 0 | K19: 1929 | L19: =B97 -> 0 | M19: =B98 -> 0 | N19: =B99 -> 0 | O19: =B100 -> 0 | P19: =B101 -> 0 | Q19: =B102 -> 0 | R19: =B103 -> 0 | S19: =B104 -> 0 | T19: =B105 -> 0 | U19: =B106 -> 0 | V19: =B107 -> 0 | W19: =B108 -> 0 | Y19: 0 | Z19: 0 | AA19: 0 | AC19: 0 | AD19: 0 | AE19: 0 | AF19: 0 | AG19: 0 | AH19: 0 | AI19: 0 | AK19: 1929 | AL19: =C97 -> 0 | AM19: =C98 -> 0 | AN19: =C99 -> 0 | AO19: =C100 -> 0 | AP19: =C101 -> 0 | AQ19: =C102 -> 0 | AR19: =C103 -> 0 | AS19: =C104 -> 0 | AT19: =C105 -> 0 | AU19: =C106 -> 0 | AV19: =C107 -> 0 | AW19: =C108 -> 0 | AY19: 0 | AZ19: 0 | BA19: 0 | BC19: 0 | BD19: 0 | BE19: 0 | BF19: 0 | BG19: 0 | BH19: 0 | BI19: 0 | BK19: 1929 | BL19: =D97 -> 4.98 | BM19: =D98 -> 3.48 | BN19: =D99 -> 1.66 | BO19: =D100 -> 0 | BP19: =D101 -> 0 | BQ19: =D102 -> 0.7852217676 | BR19: =D103 -> 81.05681674 | BS19: =D104 -> 113.395568 | BT19: =D105 -> 141.6664427 | BU19: =D106 -> 120.2229588 | BV19: =D107 -> 32.27658221 | BW19: =D108 -> 10.00997012 | BY19: 552.9086471 | BZ19: 552.9086471 | CA19: 509.5335603 | CC19: 5.925221768 | CD19: 70.64910315 | CE19: 10.12 | CF19: 1.66 | CG19: 336.9040492 | CH19: 304.1759538 | CI19: 58.35002094 | CK19: 1929 | CL19: =E97 -> 2.490000441 | CM19: =E98 -> 17.93718513 | CN19: =E99 -> 1.66 | CO19: =E100 -> 0 | CP19: =E101 -> 0 | CQ19: =E102 -> 0.8324798346 | CR19: =E103 -> 78.9285776 | CS19: =E104 -> 97.87953181 | CT19: =E105 -> 138.5668778 | CU19: =E106 -> 119.3393685 | CV19: =E107 -> 95.40841891 | CW19: =E108 -> 20.35123967 | CY19: 584.6574268 | CZ19: 584.6574268 | DA19: 573.3936797 | DC19: 20.42966497 | DD19: 137.5811384 | DE19: 22.08718557 | DF19: 1.66 | DG19: 316.207467 | DH19: 373.6659049 | DI19: 53.70217227 | DK19: 1929 | DL19: =F97 -> 2.490000331 | DM19: =F98 -> 1.74 | DN19: =F99 -> 1.66 | DO19: =F100 -> 0 | DP19: =F101 -> 0 | DQ19: =F102 -> 0.8086302541 | DR19: =F103 -> 79.21449154 | DS19: =F104 -> 96.81016475 | DT19: =F105 -> 142.4447739 | DU19: =F106 -> 120.9469555 | DV19: =F107 -> 97.43585748 | DW19: =F108 -> 9.985812617 | DY19: 606.4686938 | DZ19: 606.4686938 | EA19: 553.5366863 | EC19: 4.208630254 | ED19: 136.0645914 | EE19: 5.890000331 | EF19: 1.66 | EG19: 319.2780604 | EH19: 370.8133995 | EI19: 58.60623394 | EK19: 1929 | EL19: =G97 -> 2.490000901 | EM19: =G98 -> 17.93887736 | EN19: =G99 -> 1.66 | EO19: =G100 -> 0 | EP19: =G101 -> 0 | EQ19: =G102 -> 0.8324798346 | ER19: =G103 -> 78.89305129 | ES19: =G104 -> 97.88120449 | ET19: =G105 -> 143.2377714 | EU19: =G106 -> 124.1429527 | EV19: =G107 -> 105.2602157 | EW19: =G108 -> 20.65864864 | EY19: 603.3845506 | EZ19: 603.3845506 | FA19: 592.9952024 | FC19: 20.43135719 | FD19: 146.9472234 | FE19: 22.08887826 | FF19: 1.66 | FG19: 320.844507 | FH19: 393.2995885 | FI19: 53.13687506
A20: 1922-05-31 | B20: =INDIRECT(CONCATENATE("'",B$1,"'!",B$4,(YEAR($A20)-1921)*12+MONTH($A20)+3+IF(ISNUMBER(FIND("PRV",B$6)),1,0)))*IF(AND(B$3>0,TRIM(B$9)="CFS"),Conversions!$C20,1) -> 0 | C20: =INDIRECT(CONCATENATE("'",C$1,"'!",C$4,(YEAR($A20)-1921)*12+MONTH($A20)+3+IF(ISNUMBER(FIND("PRV",C$6)),1,0)))*IF(AND(C$3>0,TRIM(C$9)="CFS"),Conversions!$C20,1) -> 0 | D20: =INDIRECT(CONCATENATE("'",D$1,"'!",D$4,(YEAR($A20)-1921)*12+MONTH($A20)+3+IF(ISNUMBER(FIND("PRV",D$6)),1,0)))*IF(AND(D$3>0,TRIM(D$9)="CFS"),Conversions!$C20,1) -> 0 | E20: =INDIRECT(CONCATENATE("'",E$1,"'!",E$4,(YEAR($A20)-1921)*12+MONTH($A20)+3+IF(ISNUMBER(FIND("PRV",E$6)),1,0)))*IF(AND(E$3>0,TRIM(E$9)="CFS"),Conversions!$C20,1) -> 0 | F20: =INDIRECT(CONCATENATE("'",F$1,"'!",F$4,(YEAR($A20)-1921)*12+MONTH($A20)+3+IF(ISNUMBER(FIND("PRV",F$6)),1,0)))*IF(AND(F$3>0,TRIM(F$9)="CFS"),Conversions!$C20,1) -> 0 | G20: =INDIRECT(CONCATENATE("'",G$1,"'!",G$4,(YEAR($A20)-1921)*12+MONTH($A20)+3+IF(ISNUMBER(FIND("PRV",G$6)),1,0)))*IF(AND(G$3>0,TRIM(G$9)="CFS"),Conversions!$C20,1) -> 0 | K20: 1930 | L20: =B109 -> 0 | M20: =B110 -> 0 | N20: =B111 -> 0 | O20: =B112 -> 0 | P20: =B113 -> 0 | Q20: =B114 -> 0 | R20: =B115 -> 0 | S20: =B116 -> 0 | T20: =B117 -> 0 | U20: =B118 -> 0 | V20: =B119 -> 0 | W20: =B120 -> 0 | Y20: 0 | Z20: 0 | AA20: 0 | AC20: 0 | AD20: 0 | AE20: 0 | AF20: 0 | AG20: 0 | AH20: 0 | AI20: 0 | AK20: 1930 | AL20: =C109 -> 0 | AM20: =C110 -> 0 | AN20: =C111 -> 0 | AO20: =C112 -> 0 | AP20: =C113 -> 0 | AQ20: =C114 -> 0 | AR20: =C115 -> 0 | AS20: =C116 -> 0 | AT20: =C117 -> 0 | AU20: =C118 -> 0 | AV20: =C119 -> 0 | AW20: =C120 -> 0 | AY20: 0 | AZ20: 0 | BA20: 0 | BC20: 0 | BD20: 0 | BE20: 0 | BF20: 0 | BG20: 0 | BH20: 0 | BI20: 0 | BK20: 1930 | BL20: =D109 -> 28.36255082 | BM20: =D110 -> 19.9775 | BN20: =D111 -> 5.155035941 | BO20: =D112 -> 0 | BP20: =D113 -> 0 | BQ20: =D114 -> 0 | BR20: =D115 -> 4.01254592 | BS20: =D116 -> 47.95315754 | BT20: =D117 -> 13.24242558 | BU20: =D118 -> 17.73323411 | BV20: =D119 -> 74.03907073 | BW20: =D120 -> 13.69620834 | BY20: 174.7959623 | BZ20: 174.7959623 | CA20: 224.171729 | CC20: 25.13253594 | CD20: 91.85459914 | CE20: 53.49508676 | CF20: 5.155035941 | CG20: 65.20812904 | CH20: 118.7109387 | CI20: 17.81552841 | CK20: 1930 | CL20: =E109 -> 21.82147986 | CM20: =E110 -> 11.52945274 | CN20: =E111 -> 0 | CO20: =E112 -> 0 | CP20: =E113 -> 0 | CQ20: =E114 -> 0 | CR20: =E115 -> 22.54917371 | CS20: =E116 -> 17.30121028 | CT20: =E117 -> 11.08022826 | CU20: =E118 -> 14.66442554 | CV20: =E119 -> 36.5301138 | CW20: =E120 -> 2.5 | CY20: 109.9329184 | CZ20: 109.9329184 | DA20: 137.9760842 | DC20: 11.52945274 | DD20: 44.3378806 | DE20: 33.3509326 | DF20: 0 | DG20: 50.93061225 | DH20: 64.77476759 | DI20: 7.807766804 | DK20: 1930 | DL20: =F109 -> 28.64292132 | DM20: =F110 -> 19.9775 | DN20: =F111 -> 10.20158646 | DO20: =F112 -> 0 | DP20: =F113 -> 0 | DQ20: =F114 -> 0 | DR20: =F115 -> 4.132319006 | DS20: =F116 -> 34.10711085 | DT20: =F117 -> 15.03747552 | DU20: =F118 -> 20.12663402 | DV20: =F119 -> 81.68065716 | DW20: =F120 -> 14.54004515 | DY20: 172.6602981 | DZ20: 172.6602981 | EA20: 228.4462495 | EC20: 30.17908646 | ED20: 99.25675872 | EE20: 58.82200778 | EF20: 10.20158646 | EG20: 53.27690537 | EH20: 131.3848118 | EI20: 17.57610156 | EK20: 1930 | EL20: =G109 -> 21.02835898 | EM20: =G110 -> 11.44986744 | EN20: =G111 -> 0 | EO20: =G112 -> 0 | EP20: =G113 -> 0 | EQ20: =G114 -> 0 | ER20: =G115 -> 22.62066049 | ES20: =G116 -> 5.811701845 | ET20: =G117 -> 12.55703417 | EU20: =G118 -> 16.65311544 | EV20: =G119 -> 72.86761799 | EW20: =G120 -> 11.46417209 | EY20: 144.990908 | EZ20: 144.990908 | FA20: 174.4525284 | FC20: 11.44986744 | FD20: 87.34839606 | FE20: 32.47822642 | FF20: 0 | FG20: 40.9893965 | FH20: 113.5419397 | FI20: 14.48077807
A21: 1922-06-30 | B21: =INDIRECT(CONCATENATE("'",B$1,"'!",B$4,(YEAR($A21)-1921)*12+MONTH($A21)+3+IF(ISNUMBER(FIND("PRV",B$6)),1,0)))*IF(AND(B$3>0,TRIM(B$9)="CFS"),Conversions!$C21,1) -> 0 | C21: =INDIRECT(CONCATENATE("'",C$1,"'!",C$4,(YEAR($A21)-1921)*12+MONTH($A21)+3+IF(ISNUMBER(FIND("PRV",C$6)),1,0)))*IF(AND(C$3>0,TRIM(C$9)="CFS"),Conversions!$C21,1) -> 0 | D21: =INDIRECT(CONCATENATE("'",D$1,"'!",D$4,(YEAR($A21)-1921)*12+MONTH($A21)+3+IF(ISNUMBER(FIND("PRV",D$6)),1,0)))*IF(AND(D$3>0,TRIM(D$9)="CFS"),Conversions!$C21,1) -> 2.5 | E21: =INDIRECT(CONCATENATE("'",E$1,"'!",E$4,(YEAR($A21)-1921)*12+MONTH($A21)+3+IF(ISNUMBER(FIND("PRV",E$6)),1,0)))*IF(AND(E$3>0,TRIM(E$9)="CFS"),Conversions!$C21,1) -> 2.5 | F21: =INDIRECT(CONCATENATE("'",F$1,"'!",F$4,(YEAR($A21)-1921)*12+MONTH($A21)+3+IF(ISNUMBER(FIND("PRV",F$6)),1,0)))*IF(AND(F$3>0,TRIM(F$9)="CFS"),Conversions!$C21,1) -> 2.5 | G21: =INDIRECT(CONCATENATE("'",G$1,"'!",G$4,(YEAR($A21)-1921)*12+MONTH($A21)+3+IF(ISNUMBER(FIND("PRV",G$6)),1,0)))*IF(AND(G$3>0,TRIM(G$9)="CFS"),Conversions!$C21,1) -> 2.5 | K21: 1931 | L21: =B121 -> 0 | M21: =B122 -> 0 | N21: =B123 -> 0 | O21: =B124 -> 0 | P21: =B125 -> 0 | Q21: =B126 -> 0 | R21: =B127 -> 0 | S21: =B128 -> 0 | T21: =B129 -> 0 | U21: =B130 -> 0 | V21: =B131 -> 0 | W21: =B132 -> 0 | Y21: 0 | Z21: 0 | AA21: 0 | AC21: 0 | AD21: 0 | AE21: 0 | AF21: 0 | AG21: 0 | AH21: 0 | AI21: 0 | AK21: 1931 | AL21: =C121 -> 0 | AM21: =C122 -> 0 | AN21: =C123 -> 0 | AO21: =C124 -> 0 | AP21: =C125 -> 0 | AQ21: =C126 -> 0 | AR21: =C127 -> 0 | AS21: =C128 -> 0 | AT21: =C129 -> 0 | AU21: =C130 -> 0 | AV21: =C131 -> 0 | AW21: =C132 -> 0 | AY21: 0 | AZ21: 0 | BA21: 0 | BC21: 0 | BD21: 0 | BE21: 0 | BF21: 0 | BG21: 0 | BH21: 0 | BI21: 0 | BK21: 1931 | BL21: =D121 -> 4.119320074 | BM21: =D122 -> 0 | BN21: =D123 -> 0 | BO21: =D124 -> 0 | BP21: =D125 -> 0 | BQ21: =D126 -> 0 | BR21: =D127 -> 4.65 | BS21: =D128 -> 4.65 | BT21: =D129 -> 2.5 | BU21: =D130 -> 2.5 | BV21: =D131 -> 2.097543312 | BW21: =D132 -> 0 | BY21: 16.39754331 | BZ21: 16.39754331 | CA21: 20.51686339 | CC21: 0 | CD21: 2.097543312 | CE21: 4.119320074 | CF21: 0 | CG21: 11.8 | CH21: 7.097543312 | CI21: 0 | CK21: 1931 | CL21: =E121 -> 5.307766804 | CM21: =E122 -> 0 | CN21: =E123 -> 0 | CO21: =E124 -> 0 | CP21: =E125 -> 0 | CQ21: =E126 -> 0 | CR21: =E127 -> 4.713659006 | CS21: =E128 -> 4.856891769 | CT21: =E129 -> 2.5 | CU21: =E130 -> 2.5 | CV21: =E131 -> 2.5 | CW21: =E132 -> 2.5 | CY21: 19.57055078 | CZ21: 19.57055078 | DA21: 24.87831758 | DC21: 0 | DD21: 5 | DE21: 5.307766804 | DF21: 0 | DG21: 12.07055078 | DH21: 10 | DI21: 2.5 | DK21: 1931 | DL21: =F121 -> 3.036056408 | DM21: =F122 -> 0 | DN21: =F123 -> 0 | DO21: =F124 -> 0 | DP21: =F125 -> 0 | DQ21: =F126 -> 0 | DR21: =F127 -> 4.73 | DS21: =F128 -> 4.91 | DT21: =F129 -> 2.5 | DU21: =F130 -> 2.500000685 | DV21: =F131 -> 2.5 | DW21: =F132 -> 2.5 | DY21: 19.64000069 | DZ21: 19.64000069 | EA21: 22.67605709 | EC21: 0 | ED21: 5 | EE21: 3.036056408 | EF21: 0 | EG21: 12.14 | EH21: 10.00000069 | EI21: 2.5 | EK21: 1931 | EL21: =G121 -> 3.016605984 | EM21: =G122 -> 0 | EN21: =G123 -> 0 | EO21: =G124 -> 0 | EP21: =G125 -> 0 | EQ21: =G126 -> 0 | ER21: =G127 -> 4.65 | ES21: =G128 -> 4.65 | ET21: =G129 -> 2.5 | EU21: =G130 -> 2.5 | EV21: =G131 -> 2.5 | EW21: =G132 -> 2.5 | EY21: 19.3 | EZ21: 19.3 | FA21: 22.31660598 | FC21: 0 | FD21: 5 | FE21: 3.016605984 | FF21: 0 | FG21: 11.8 | FH21: 10 | FI21: 2.5
A22: 1922-07-31 | B22: =INDIRECT(CONCATENATE("'",B$1,"'!",B$4,(YEAR($A22)-1921)*12+MONTH($A22)+3+IF(ISNUMBER(FIND("PRV",B$6)),1,0)))*IF(AND(B$3>0,TRIM(B$9)="CFS"),Conversions!$C22,1) -> 0 | C22: =INDIRECT(CONCATENATE("'",C$1,"'!",C$4,(YEAR($A22)-1921)*12+MONTH($A22)+3+IF(ISNUMBER(FIND("PRV",C$6)),1,0)))*IF(AND(C$3>0,TRIM(C$9)="CFS"),Conversions!$C22,1) -> 0 | D22: =INDIRECT(CONCATENATE("'",D$1,"'!",D$4,(YEAR($A22)-1921)*12+MONTH($A22)+3+IF(ISNUMBER(FIND("PRV",D$6)),1,0)))*IF(AND(D$3>0,TRIM(D$9)="CFS"),Conversions!$C22,1) -> 99.3876444 | E22: =INDIRECT(CONCATENATE("'",E$1,"'!",E$4,(YEAR($A22)-1921)*12+MONTH($A22)+3+IF(ISNUMBER(FIND("PRV",E$6)),1,0)))*IF(AND(E$3>0,TRIM(E$9)="CFS"),Conversions!$C22,1) -> 99.38764484 | F22: =INDIRECT(CONCATENATE("'",F$1,"'!",F$4,(YEAR($A22)-1921)*12+MONTH($A22)+3+IF(ISNUMBER(FIND("PRV",F$6)),1,0)))*IF(AND(F$3>0,TRIM(F$9)="CFS"),Conversions!$C22,1) -> 99.3876444 | G22: =INDIRECT(CONCATENATE("'",G$1,"'!",G$4,(YEAR($A22)-1921)*12+MONTH($A22)+3+IF(ISNUMBER(FIND("PRV",G$6)),1,0)))*IF(AND(G$3>0,TRIM(G$9)="CFS"),Conversions!$C22,1) -> 99.38764484 | K22: 1932 | L22: =B133 -> 0 | M22: =B134 -> 0 | N22: =B135 -> 0 | O22: =B136 -> 0 | P22: =B137 -> 0 | Q22: =B138 -> 0 | R22: =B139 -> 0 | S22: =B140 -> 0 | T22: =B141 -> 0 | U22: =B142 -> 0 | V22: =B143 -> 0 | W22: =B144 -> 0 | Y22: 0 | Z22: 0 | AA22: 0 | AC22: 0 | AD22: 0 | AE22: 0 | AF22: 0 | AG22: 0 | AH22: 0 | AI22: 0 | AK22: 1932 | AL22: =C133 -> 0 | AM22: =C134 -> 0 | AN22: =C135 -> 0 | AO22: =C136 -> 0 | AP22: =C137 -> 0 | AQ22: =C138 -> 0 | AR22: =C139 -> 0 | AS22: =C140 -> 0 | AT22: =C141 -> 0 | AU22: =C142 -> 0 | AV22: =C143 -> 0 | AW22: =C144 -> 0 | AY22: 0 | AZ22: 0 | BA22: 0 | BC22: 0 | BD22: 0 | BE22: 0 | BF22: 0 | BG22: 0 | BH22: 0 | BI22: 0 | BK22: 1932 | BL22: =D133 -> 0 | BM22: =D134 -> 0 | BN22: =D135 -> 0 | BO22: =D136 -> 0 | BP22: =D137 -> 0 | BQ22: =D138 -> 0.002234644466 | BR22: =D139 -> 4.65 | BS22: =D140 -> 0.4286282729 | BT22: =D141 -> 0 | BU22: =D142 -> 0 | BV22: =D143 -> 0 | BW22: =D144 -> 0 | BY22: 5.080862918 | BZ22: 5.080862918 | CA22: 5.080862918 | CC22: 0.002234644466 | CD22: 0 | CE22: 0 | CF22: 0 | CG22: 5.080862918 | CH22: 0 | CI22: 0 | CK22: 1932 | CL22: =E133 -> 0 | CM22: =E134 -> 0 | CN22: =E135 -> 0 | CO22: =E136 -> 0 | CP22: =E137 -> 0 | CQ22: =E138 -> 0.2142587155 | CR22: =E139 -> 19.121596 | CS22: =E140 -> 2.036252269 | CT22: =E141 -> 18.66542283 | CU22: =E142 -> 0.003208982719 | CV22: =E143 -> 0 | CW22: =E144 -> 0 | CY22: 40.04073879 | CZ22: 40.04073879 | DA22: 40.04073879 | DC22: 0.2142587155 | DD22: 0 | DE22: 0 | DF22: 0 | DG22: 40.03752981 | DH22: 18.66863181 | DI22: 0 | DK22: 1932 | DL22: =F133 -> 0 | DM22: =F134 -> 0 | DN22: =F135 -> 0 | DO22: =F136 -> 0 | DP22: =F137 -> 0 | DQ22: =F138 -> 0.0009537855707 | DR22: =F139 -> 4.654983351 | DS22: =F140 -> 2.5 | DT22: =F141 -> 2.5 | DU22: =F142 -> 0.9870745055 | DV22: =F143 -> 0 | DW22: =F144 -> 0 | DY22: 10.64301164 | DZ22: 10.64301164 | EA22: 10.64301164 | EC22: 0.0009537855707 | ED22: 0 | EE22: 0 | EF22: 0 | EG22: 9.655937137 | EH22: 3.487074506 | EI22: 0 | EK22: 1932 | EL22: =G133 -> 0 | EM22: =G134 -> 0 | EN22: =G135 -> 0 | EO22: =G136 -> 0 | EP22: =G137 -> 0 | EQ22: =G138 -> 0.2142587155 | ER22: =G139 -> 15.66729539 | ES22: =G140 -> 2.5 | ET22: =G141 -> 23.34634905 | EU22: =G142 -> 2.5 | EV22: =G143 -> 2.5 | EW22: =G144 -> 0.2308779327 | EY22: 46.95878109 | EZ22: 46.95878109 | FA22: 46.95878109 | FC22: 0.2142587155 | FD22: 2.730877933 | FE22: 0 | FF22: 0 | FG22: 41.72790315 | FH22: 28.57722698 | FI22: 0.2308779327
A23: 1922-08-31 | B23: =INDIRECT(CONCATENATE("'",B$1,"'!",B$4,(YEAR($A23)-1921)*12+MONTH($A23)+3+IF(ISNUMBER(FIND("PRV",B$6)),1,0)))*IF(AND(B$3>0,TRIM(B$9)="CFS"),Conversions!$C23,1) -> 0 | C23: =INDIRECT(CONCATENATE("'",C$1,"'!",C$4,(YEAR($A23)-1921)*12+MONTH($A23)+3+IF(ISNUMBER(FIND("PRV",C$6)),1,0)))*IF(AND(C$3>0,TRIM(C$9)="CFS"),Conversions!$C23,1) -> 0 | D23: =INDIRECT(CONCATENATE("'",D$1,"'!",D$4,(YEAR($A23)-1921)*12+MONTH($A23)+3+IF(ISNUMBER(FIND("PRV",D$6)),1,0)))*IF(AND(D$3>0,TRIM(D$9)="CFS"),Conversions!$C23,1) -> 65.77705847 | E23: =INDIRECT(CONCATENATE("'",E$1,"'!",E$4,(YEAR($A23)-1921)*12+MONTH($A23)+3+IF(ISNUMBER(FIND("PRV",E$6)),1,0)))*IF(AND(E$3>0,TRIM(E$9)="CFS"),Conversions!$C23,1) -> 111.0864778 | F23: =INDIRECT(CONCATENATE("'",F$1,"'!",F$4,(YEAR($A23)-1921)*12+MONTH($A23)+3+IF(ISNUMBER(FIND("PRV",F$6)),1,0)))*IF(AND(F$3>0,TRIM(F$9)="CFS"),Conversions!$C23,1) -> 66.17163012 | G23: =INDIRECT(CONCATENATE("'",G$1,"'!",G$4,(YEAR($A23)-1921)*12+MONTH($A23)+3+IF(ISNUMBER(FIND("PRV",G$6)),1,0)))*IF(AND(G$3>0,TRIM(G$9)="CFS"),Conversions!$C23,1) -> 111.0864778 | K23: 1933 | L23: =B145 -> 0 | M23: =B146 -> 0 | N23: =B147 -> 0 | O23: =B148 -> 0 | P23: =B149 -> 0 | Q23: =B150 -> 0 | R23: =B151 -> 0 | S23: =B152 -> 0 | T23: =B153 -> 0 | U23: =B154 -> 0 | V23: =B155 -> 0 | W23: =B156 -> 0 | Y23: 0 | Z23: 0 | AA23: 0 | AC23: 0 | AD23: 0 | AE23: 0 | AF23: 0 | AG23: 0 | AH23: 0 | AI23: 0 | AK23: 1933 | AL23: =C145 -> 0 | AM23: =C146 -> 0 | AN23: =C147 -> 0 | AO23: =C148 -> 0 | AP23: =C149 -> 0 | AQ23: =C150 -> 0 | AR23: =C151 -> 0 | AS23: =C152 -> 0 | AT23: =C153 -> 0 | AU23: =C154 -> 0 | AV23: =C155 -> 0 | AW23: =C156 -> 0 | AY23: 0 | AZ23: 0 | BA23: 0 | BC23: 0 | BD23: 0 | BE23: 0 | BF23: 0 | BG23: 0 | BH23: 0 | BI23: 0 | BK23: 1933 | BL23: =D145 -> 0 | BM23: =D146 -> 0 | BN23: =D147 -> 0 | BO23: =D148 -> 0 | BP23: =D149 -> 0 | BQ23: =D150 -> 0 | BR23: =D151 -> 0 | BS23: =D152 -> 0 | BT23: =D153 -> 0 | BU23: =D154 -> 0 | BV23: =D155 -> 0 | BW23: =D156 -> 0 | BY23: 0 | BZ23: 0 | CA23: 0 | CC23: 0 | CD23: 0 | CE23: 0 | CF23: 0 | CG23: 0 | CH23: 0 | CI23: 0 | CK23: 1933 | CL23: =E145 -> 0 | CM23: =E146 -> 0 | CN23: =E147 -> 0 | CO23: =E148 -> 0 | CP23: =E149 -> 0 | CQ23: =E150 -> 0 | CR23: =E151 -> 0 | CS23: =E152 -> 0 | CT23: =E153 -> 0 | CU23: =E154 -> 0 | CV23: =E155 -> 0 | CW23: =E156 -> 0 | CY23: 0 | CZ23: 0 | DA23: 0 | DC23: 0 | DD23: 0 | DE23: 0 | DF23: 0 | DG23: 0 | DH23: 0 | DI23: 0 | DK23: 1933 | DL23: =F145 -> 0 | DM23: =F146 -> 0 | DN23: =F147 -> 0 | DO23: =F148 -> 0 | DP23: =F149 -> 0 | DQ23: =F150 -> 0 | DR23: =F151 -> 0 | DS23: =F152 -> 0 | DT23: =F153 -> 0 | DU23: =F154 -> 0 | DV23: =F155 -> 0 | DW23: =F156 -> 0 | DY23: 0 | DZ23: 0 | EA23: 0 | EC23: 0 | ED23: 0 | EE23: 0 | EF23: 0 | EG23: 0 | EH23: 0 | EI23: 0 | EK23: 1933 | EL23: =G145 -> 0 | EM23: =G146 -> 0 | EN23: =G147 -> 0 | EO23: =G148 -> 0 | EP23: =G149 -> 0 | EQ23: =G150 -> 0 | ER23: =G151 -> 0 | ES23: =G152 -> 0 | ET23: =G153 -> 0 | EU23: =G154 -> 0 | EV23: =G155 -> 0 | EW23: =G156 -> 0 | EY23: 0 | EZ23: 0 | FA23: 0 | FC23: 0 | FD23: 0 | FE23: 0 | FF23: 0 | FG23: 0 | FH23: 0 | FI23: 0
A24: 1922-09-30 | B24: =INDIRECT(CONCATENATE("'",B$1,"'!",B$4,(YEAR($A24)-1921)*12+MONTH($A24)+3+IF(ISNUMBER(FIND("PRV",B$6)),1,0)))*IF(AND(B$3>0,TRIM(B$9)="CFS"),Conversions!$C24,1) -> 0 | C24: =INDIRECT(CONCATENATE("'",C$1,"'!",C$4,(YEAR($A24)-1921)*12+MONTH($A24)+3+IF(ISNUMBER(FIND("PRV",C$6)),1,0)))*IF(AND(C$3>0,TRIM(C$9)="CFS"),Conversions!$C24,1) -> 0 | D24: =INDIRECT(CONCATENATE("'",D$1,"'!",D$4,(YEAR($A24)-1921)*12+MONTH($A24)+3+IF(ISNUMBER(FIND("PRV",D$6)),1,0)))*IF(AND(D$3>0,TRIM(D$9)="CFS"),Conversions!$C24,1) -> 34.22675846 | E24: =INDIRECT(CONCATENATE("'",E$1,"'!",E$4,(YEAR($A24)-1921)*12+MONTH($A24)+3+IF(ISNUMBER(FIND("PRV",E$6)),1,0)))*IF(AND(E$3>0,TRIM(E$9)="CFS"),Conversions!$C24,1) -> 31.00298448 | F24: =INDIRECT(CONCATENATE("'",F$1,"'!",F$4,(YEAR($A24)-1921)*12+MONTH($A24)+3+IF(ISNUMBER(FIND("PRV",F$6)),1,0)))*IF(AND(F$3>0,TRIM(F$9)="CFS"),Conversions!$C24,1) -> 34.25170216 | G24: =INDIRECT(CONCATENATE("'",G$1,"'!",G$4,(YEAR($A24)-1921)*12+MONTH($A24)+3+IF(ISNUMBER(FIND("PRV",G$6)),1,0)))*IF(AND(G$3>0,TRIM(G$9)="CFS"),Conversions!$C24,1) -> 31.00298448 | K24: 1934 | L24: =B157 -> 0 | M24: =B158 -> 0 | N24: =B159 -> 0 | O24: =B160 -> 0 | P24: =B161 -> 0 | Q24: =B162 -> 0 | R24: =B163 -> 0 | S24: =B164 -> 0 | T24: =B165 -> 0 | U24: =B166 -> 0 | V24: =B167 -> 0 | W24: =B168 -> 0 | Y24: 0 | Z24: 0 | AA24: 0 | AC24: 0 | AD24: 0 | AE24: 0 | AF24: 0 | AG24: 0 | AH24: 0 | AI24: 0 | AK24: 1934 | AL24: =C157 -> 0 | AM24: =C158 -> 0 | AN24: =C159 -> 0 | AO24: =C160 -> 0 | AP24: =C161 -> 0 | AQ24: =C162 -> 0 | AR24: =C163 -> 0 | AS24: =C164 -> 0 | AT24: =C165 -> 0 | AU24: =C166 -> 0 | AV24: =C167 -> 0 | AW24: =C168 -> 0 | AY24: 0 | AZ24: 0 | BA24: 0 | BC24: 0 | BD24: 0 | BE24: 0 | BF24: 0 | BG24: 0 | BH24: 0 | BI24: 0 | BK24: 1934 | BL24: =D157 -> 0 | BM24: =D158 -> 0 | BN24: =D159 -> 0 | BO24: =D160 -> 0 | BP24: =D161 -> 0 | BQ24: =D162 -> 0.1055726335 | BR24: =D163 -> 0 | BS24: =D164 -> 0 | BT24: =D165 -> 0 | BU24: =D166 -> 0 | BV24: =D167 -> 0 | BW24: =D168 -> 0 | BY24: 0.1055726335 | BZ24: 0.1055726335 | CA24: 0.1055726335 | CC24: 0.1055726335 | CD24: 0 | CE24: 0 | CF24: 0 | CG24: 0.1055726335 | CH24: 0 | CI24: 0 | CK24: 1934 | CL24: =E157 -> 0 | CM24: =E158 -> 0 | CN24: =E159 -> 0 | CO24: =E160 -> 0 | CP24: =E161 -> 0 | CQ24: =E162 -> 0 | CR24: =E163 -> 0 | CS24: =E164 -> 0 | CT24: =E165 -> 0 | CU24: =E166 -> 0 | CV24: =E167 -> 0 | CW24: =E168 -> 0 | CY24: 0 | CZ24: 0 | DA24: 0 | DC24: 0 | DD24: 0 | DE24: 0 | DF24: 0 | DG24: 0 | DH24: 0 | DI24: 0 | DK24: 1934 | DL24: =F157 -> 0 | DM24: =F158 -> 0 | DN24: =F159 -> 0 | DO24: =F160 -> 0 | DP24: =F161 -> 0 | DQ24: =F162 -> 0 | DR24: =F163 -> 0 | DS24: =F164 -> 0 | DT24: =F165 -> 0 | DU24: =F166 -> 0 | DV24: =F167 -> 0 | DW24: =F168 -> 0 | DY24: 0 | DZ24: 0 | EA24: 0 | EC24: 0 | ED24: 0 | EE24: 0 | EF24: 0 | EG24: 0 | EH24: 0 | EI24: 0 | EK24: 1934 | EL24: =G157 -> 0 | EM24: =G158 -> 0 | EN24: =G159 -> 0 | EO24: =G160 -> 0 | EP24: =G161 -> 0 | EQ24: =G162 -> 0 | ER24: =G163 -> 0 | ES24: =G164 -> 0 | ET24: =G165 -> 0 | EU24: =G166 -> 0 | EV24: =G167 -> 0 | EW24: =G168 -> 0 | EY24: 0 | EZ24: 0 | FA24: 0 | FC24: 0 | FD24: 0 | FE24: 0 | FF24: 0 | FG24: 0 | FH24: 0 | FI24: 0
A25: 1922-10-31 | B25: =INDIRECT(CONCATENATE("'",B$1,"'!",B$4,(YEAR($A25)-1921)*12+MONTH($A25)+3+IF(ISNUMBER(FIND("PRV",B$6)),1,0)))*IF(AND(B$3>0,TRIM(B$9)="CFS"),Conversions!$C25,1) -> 0 | C25: =INDIRECT(CONCATENATE("'",C$1,"'!",C$4,(YEAR($A25)-1921)*12+MONTH($A25)+3+IF(ISNUMBER(FIND("PRV",C$6)),1,0)))*IF(AND(C$3>0,TRIM(C$9)="CFS"),Conversions!$C25,1) -> 0 | D25: =INDIRECT(CONCATENATE("'",D$1,"'!",D$4,(YEAR($A25)-1921)*12+MONTH($A25)+3+IF(ISNUMBER(FIND("PRV",D$6)),1,0)))*IF(AND(D$3>0,TRIM(D$9)="CFS"),Conversions!$C25,1) -> 19.79062619 | E25: =INDIRECT(CONCATENATE("'",E$1,"'!",E$4,(YEAR($A25)-1921)*12+MONTH($A25)+3+IF(ISNUMBER(FIND("PRV",E$6)),1,0)))*IF(AND(E$3>0,TRIM(E$9)="CFS"),Conversions!$C25,1) -> 19.82859285 | F25: =INDIRECT(CONCATENATE("'",F$1,"'!",F$4,(YEAR($A25)-1921)*12+MONTH($A25)+3+IF(ISNUMBER(FIND("PRV",F$6)),1,0)))*IF(AND(F$3>0,TRIM(F$9)="CFS"),Conversions!$C25,1) -> 19.78786598 | G25: =INDIRECT(CONCATENATE("'",G$1,"'!",G$4,(YEAR($A25)-1921)*12+MONTH($A25)+3+IF(ISNUMBER(FIND("PRV",G$6)),1,0)))*IF(AND(G$3>0,TRIM(G$9)="CFS"),Conversions!$C25,1) -> 19.82592946 | K25: 1935 | L25: =B169 -> 0 | M25: =B170 -> 0 | N25: =B171 -> 0 | O25: =B172 -> 0 | P25: =B173 -> 0 | Q25: =B174 -> 0 | R25: =B175 -> 0 | S25: =B176 -> 0 | T25: =B177 -> 0 | U25: =B178 -> 0 | V25: =B179 -> 0 | W25: =B180 -> 0 | Y25: 0 | Z25: 0 | AA25: 0 | AC25: 0 | AD25: 0 | AE25: 0 | AF25: 0 | AG25: 0 | AH25: 0 | AI25: 0 | AK25: 1935 | AL25: =C169 -> 0 | AM25: =C170 -> 0 | AN25: =C171 -> 0 | AO25: =C172 -> 0 | AP25: =C173 -> 0 | AQ25: =C174 -> 0 | AR25: =C175 -> 0 | AS25: =C176 -> 0 | AT25: =C177 -> 0 | AU25: =C178 -> 0 | AV25: =C179 -> 0 | AW25: =C180 -> 0 | AY25: 0 | AZ25: 0 | BA25: 0 | BC25: 0 | BD25: 0 | BE25: 0 | BF25: 0 | BG25: 0 | BH25: 0 | BI25: 0 | BK25: 1935 | BL25: =D169 -> 0 | BM25: =D170 -> 0 | BN25: =D171 -> 0 | BO25: =D172 -> 0 | BP25: =D173 -> 0 | BQ25: =D174 -> 0 | BR25: =D175 -> 1.607736868 | BS25: =D176 -> 14.08371528 | BT25: =D177 -> 104.5850864 | BU25: =D178 -> 42.56896517 | BV25: =D179 -> 2.5 | BW25: =D180 -> 72.27459816 | BY25: 277.7293618 | BZ25: 277.7293618 | CA25: 237.6201018 | CC25: 0 | CD25: 99.69093645 | CE25: 0 | CF25: 0 | CG25: 120.2765385 | CH25: 221.9286497 | CI25: 112.3838581 | CK25: 1935 | CL25: =E169 -> 0 | CM25: =E170 -> 0 | CN25: =E171 -> 0 | CO25: =E172 -> 0 | CP25: =E173 -> 0 | CQ25: =E174 -> 0 | CR25: =E175 -> 1.365310445 | CS25: =E176 -> 13.28966546 | CT25: =E177 -> 153.1245805 | CU25: =E178 -> 50.93218678 | CV25: =E179 -> 33.98247413 | CW25: =E180 -> 30.97624086 | CY25: 385.3824684 | CZ25: 385.3824684 | DA25: 283.6704582 | DC25: 0 | DD25: 90.08459288 | DE25: 0 | DF25: 0 | DG25: 167.7795564 | DH25: 269.0154823 | DI25: 132.688251 | DK25: 1935 | DL25: =F169 -> 0 | DM25: =F170 -> 0 | DN25: =F171 -> 0 | DO25: =F172 -> 0 | DP25: =F173 -> 0 | DQ25: =F174 -> 0 | DR25: =F175 -> 1.464489552 | DS25: =F176 -> 10.03214764 | DT25: =F177 -> 92.69398922 | DU25: =F178 -> 36.38868368 | DV25: =F179 -> 2.5 | DW25: =F180 -> 12.19430962 | DY25: 271.2725499 | DZ25: 271.2725499 | EA25: 155.2736197 | EC25: 0 | ED25: 64.6583834 | EE25: 0 | EF25: 0 | EG25: 104.1906264 | EH25: 143.7769825 | EI25: 128.1932398 | EK25: 1935 | EL25: =G169 -> 0 | EM25: =G170 -> 0 | EN25: =G171 -> 0 | EO25: =G172 -> 0 | EP25: =G173 -> 0 | EQ25: =G174 -> 0 | ER25: =G175 -> 1.379392408 | ES25: =G176 -> 13.53918394 | ET25: =G177 -> 120.9619464 | EU25: =G178 -> 47.53833944 | EV25: =G179 -> 33.87440258 | EW25: =G180 -> 25.08364661 | EY25: 345.4992129 | EZ25: 345.4992129 | FA25: 242.3769114 | FC25: 0 | FD25: 84.04366955 | FE25: 0 | FF25: 0 | FG25: 135.8805228 | FH25: 227.458335 | FI25: 128.2059481
A26: 1922-11-30 | B26: =INDIRECT(CONCATENATE("'",B$1,"'!",B$4,(YEAR($A26)-1921)*12+MONTH($A26)+3+IF(ISNUMBER(FIND("PRV",B$6)),1,0)))*IF(AND(B$3>0,TRIM(B$9)="CFS"),Conversions!$C26,1) -> 0 | C26: =INDIRECT(CONCATENATE("'",C$1,"'!",C$4,(YEAR($A26)-1921)*12+MONTH($A26)+3+IF(ISNUMBER(FIND("PRV",C$6)),1,0)))*IF(AND(C$3>0,TRIM(C$9)="CFS"),Conversions!$C26,1) -> 0 | D26: =INDIRECT(CONCATENATE("'",D$1,"'!",D$4,(YEAR($A26)-1921)*12+MONTH($A26)+3+IF(ISNUMBER(FIND("PRV",D$6)),1,0)))*IF(AND(D$3>0,TRIM(D$9)="CFS"),Conversions!$C26,1) -> 1.74 | E26: =INDIRECT(CONCATENATE("'",E$1,"'!",E$4,(YEAR($A26)-1921)*12+MONTH($A26)+3+IF(ISNUMBER(FIND("PRV",E$6)),1,0)))*IF(AND(E$3>0,TRIM(E$9)="CFS"),Conversions!$C26,1) -> 1.74 | F26: =INDIRECT(CONCATENATE("'",F$1,"'!",F$4,(YEAR($A26)-1921)*12+MONTH($A26)+3+IF(ISNUMBER(FIND("PRV",F$6)),1,0)))*IF(AND(F$3>0,TRIM(F$9)="CFS"),Conversions!$C26,1) -> 1.74 | G26: =INDIRECT(CONCATENATE("'",G$1,"'!",G$4,(YEAR($A26)-1921)*12+MONTH($A26)+3+IF(ISNUMBER(FIND("PRV",G$6)),1,0)))*IF(AND(G$3>0,TRIM(G$9)="CFS"),Conversions!$C26,1) -> 1.74 | K26: 1936 | L26: =B181 -> 0 | M26: =B182 -> 0 | N26: =B183 -> 0 | O26: =B184 -> 0 | P26: =B185 -> 0 | Q26: =B186 -> 0 | R26: =B187 -> 0 | S26: =B188 -> 0 | T26: =B189 -> 0 | U26: =B190 -> 0 | V26: =B191 -> 0 | W26: =B192 -> 0 | Y26: 0 | Z26: 0 | AA26: 0 | AC26: 0 | AD26: 0 | AE26: 0 | AF26: 0 | AG26: 0 | AH26: 0 | AI26: 0 | AK26: 1936 | AL26: =C181 -> 0 | AM26: =C182 -> 0 | AN26: =C183 -> 0 | AO26: =C184 -> 0 | AP26: =C185 -> 0 | AQ26: =C186 -> 0 | AR26: =C187 -> 0 | AS26: =C188 -> 0 | AT26: =C189 -> 0 | AU26: =C190 -> 0 | AV26: =C191 -> 0 | AW26: =C192 -> 0 | AY26: 0 | AZ26: 0 | BA26: 0 | BC26: 0 | BD26: 0 | BE26: 0 | BF26: 0 | BG26: 0 | BH26: 0 | BI26: 0 | BK26: 1936 | BL26: =D181 -> 24.91633829 | BM26: =D182 -> 15.19292169 | BN26: =D183 -> 2.963402883e-08 | BO26: =D184 -> 0 | BP26: =D185 -> 0 | BQ26: =D186 -> 0 | BR26: =D187 -> 3.422331233 | BS26: =D188 -> 8.310165499 | BT26: =D189 -> 3.110133399 | BU26: =D190 -> 58.34895326 | BV26: =D191 -> 30.80497993 | BW26: =D192 -> 11.79031074 | BY26: 174.9616945 | BZ26: 174.9616945 | CA26: 155.8961341 | CC26: 15.19292172 | CD26: 45.08529099 | CE26: 40.10926001 | CF26: 2.963402883e-08 | CG26: 14.84263013 | CH26: 104.0543773 | CI26: 70.96513123 | CK26: 1936 | CL26: =E181 -> 25.12587789 | CM26: =E182 -> 76.58613228 | CN26: =E183 -> 0 | CO26: =E184 -> 0 | CP26: =E185 -> 0 | CQ26: =E186 -> 0 | CR26: =E187 -> 4.634041637 | CS26: =E188 -> 62.4984611 | CT26: =E189 -> 11.71761102 | CU26: =E190 -> 20.90417155 | CV26: =E191 -> 2.5 | CW26: =E192 -> 4.24 | CY26: 154.6412666 | CZ26: 154.6412666 | DA26: 208.2062955 | DC26: 76.58613228 | DD26: 43.96895755 | DE26: 101.7120102 | DF26: 0 | DG26: 78.85011376 | DH26: 39.36178257 | DI26: 47.95400818 | DK26: 1936 | DL26: =F181 -> 49.96407377 | DM26: =F182 -> 66.03485644 | DN26: =F183 -> 0 | DO26: =F184 -> 0 | DP26: =F185 -> 0 | DQ26: =F186 -> 0 | DR26: =F187 -> 3.422331233 | DS26: =F188 -> 8.310165499 | DT26: =F189 -> 4.98854258 | DU26: =F190 -> 46.61547337 | DV26: =F191 -> 32.25612688 | DW26: =F192 -> 13.84353576 | DY26: 178.468457 | DZ26: 178.468457 | EA26: 225.4351055 | EC26: 66.03485644 | ED26: 48.58966286 | EE26: 115.9989302 | EF26: 0 | EG26: 16.72103931 | EH26: 97.70367859 | EI26: 82.87581742 | EK26: 1936 | EL26: =G181 -> 25.08562036 | EM26: =G182 -> 78.03668115 | EN26: =G183 -> 0 | EO26: =G184 -> 0 | EP26: =G185 -> 0 | EQ26: =G186 -> 0 | ER26: =G187 -> 4.634041637 | ES26: =G188 -> 45.29855593 | ET26: =G189 -> 15.37495193 | EU26: =G190 -> 25.11188926 | EV26: =G191 -> 2.5 | EW26: =G192 -> 4.24 | EY26: 159.2196794 | EZ26: 159.2196794 | FA26: 200.2817403 | FC26: 78.03668115 | FD26: 57.64729947 | FE26: 103.1223015 | FF26: 0 | FG26: 65.3075495 | FH26: 47.2268412 | FI26: 61.77580611
A27: 1922-12-31 | B27: =INDIRECT(CONCATENATE("'",B$1,"'!",B$4,(YEAR($A27)-1921)*12+MONTH($A27)+3+IF(ISNUMBER(FIND("PRV",B$6)),1,0)))*IF(AND(B$3>0,TRIM(B$9)="CFS"),Conversions!$C27,1) -> 0 | C27: =INDIRECT(CONCATENATE("'",C$1,"'!",C$4,(YEAR($A27)-1921)*12+MONTH($A27)+3+IF(ISNUMBER(FIND("PRV",C$6)),1,0)))*IF(AND(C$3>0,TRIM(C$9)="CFS"),Conversions!$C27,1) -> 0 | D27: =INDIRECT(CONCATENATE("'",D$1,"'!",D$4,(YEAR($A27)-1921)*12+MONTH($A27)+3+IF(ISNUMBER(FIND("PRV",D$6)),1,0)))*IF(AND(D$3>0,TRIM(D$9)="CFS"),Conversions!$C27,1) -> 0 | E27: =INDIRECT(CONCATENATE("'",E$1,"'!",E$4,(YEAR($A27)-1921)*12+MONTH($A27)+3+IF(ISNUMBER(FIND("PRV",E$6)),1,0)))*IF(AND(E$3>0,TRIM(E$9)="CFS"),Conversions!$C27,1) -> 0 | F27: =INDIRECT(CONCATENATE("'",F$1,"'!",F$4,(YEAR($A27)-1921)*12+MONTH($A27)+3+IF(ISNUMBER(FIND("PRV",F$6)),1,0)))*IF(AND(F$3>0,TRIM(F$9)="CFS"),Conversions!$C27,1) -> 0 | G27: =INDIRECT(CONCATENATE("'",G$1,"'!",G$4,(YEAR($A27)-1921)*12+MONTH($A27)+3+IF(ISNUMBER(FIND("PRV",G$6)),1,0)))*IF(AND(G$3>0,TRIM(G$9)="CFS"),Conversions!$C27,1) -> 0 | K27: 1937 | L27: =B193 -> 0 | M27: =B194 -> 0 | N27: =B195 -> 0 | O27: =B196 -> 0 | P27: =B197 -> 0 | Q27: =B198 -> 0 | R27: =B199 -> 0 | S27: =B200 -> 0 | T27: =B201 -> 0 | U27: =B202 -> 0 | V27: =B203 -> 0 | W27: =B204 -> 0 | Y27: 0 | Z27: 0 | AA27: 0 | AC27: 0 | AD27: 0 | AE27: 0 | AF27: 0 | AG27: 0 | AH27: 0 | AI27: 0 | AK27: 1937 | AL27: =C193 -> 0 | AM27: =C194 -> 0 | AN27: =C195 -> 0 | AO27: =C196 -> 0 | AP27: =C197 -> 0 | AQ27: =C198 -> 0 | AR27: =C199 -> 0 | AS27: =C200 -> 0 | AT27: =C201 -> 0 | AU27: =C202 -> 0 | AV27: =C203 -> 0 | AW27: =C204 -> 0 | AY27: 0 | AZ27: 0 | BA27: 0 | BC27: 0 | BD27: 0 | BE27: 0 | BF27: 0 | BG27: 0 | BH27: 0 | BI27: 0 | BK27: 1937 | BL27: =D193 -> 2.49000032 | BM27: =D194 -> 56.68482017 | BN27: =D195 -> 0 | BO27: =D196 -> 0 | BP27: =D197 -> 0 | BQ27: =D198 -> 0 | BR27: =D199 -> 4.415721986 | BS27: =D200 -> 7.009360704 | BT27: =D201 -> 64.24202715 | BU27: =D202 -> 21.89279361 | BV27: =D203 -> 50.22865179 | BW27: =D204 -> 1.750578403 | BY27: 152.0291336 | BZ27: 152.0291336 | CA27: 208.7139541 | CC27: 56.68482017 | CD27: 54.46923019 | CE27: 59.17482049 | CF27: 0 | CG27: 75.66710984 | CH27: 138.114051 | CI27: 4.240578403 | CK27: 1937 | CL27: =E193 -> 37.22895755 | CM27: =E194 -> 6.485050637 | CN27: =E195 -> 4.432973072 | CO27: =E196 -> 0 | CP27: =E197 -> 0 | CQ27: =E198 -> 0 | CR27: =E199 -> 4.272106108 | CS27: =E200 -> 4.590403996 | CT27: =E201 -> 106.8355512 | CU27: =E202 -> 49.64934473 | CV27: =E203 -> 33.38853786 | CW27: =E204 -> 78.10847904 | CY27: 312.6565694 | CZ27: 312.6565694 | DA27: 324.9914042 | DC27: 10.91802371 | DD27: 147.3091633 | DE27: 48.14698126 | DF27: 4.432973072 | DG27: 115.6980613 | DH27: 267.9819129 | DI27: 113.9206254 | DK27: 1937 | DL27: =F193 -> 2.490000222 | DM27: =F194 -> 66.54228144 | DN27: =F195 -> 0 | DO27: =F196 -> 0 | DP27: =F197 -> 0 | DQ27: =F198 -> 0 | DR27: =F199 -> 4.504305431 | DS27: =F200 -> 7.891601229 | DT27: =F201 -> 51.02849097 | DU27: =F202 -> 24.80313442 | DV27: =F203 -> 60.32237632 | DW27: =F204 -> 3.517493557 | DY27: 154.5574019 | DZ27: 154.5574019 | EA27: 221.0996836 | EC27: 66.54228144 | ED27: 66.32986988 | EE27: 69.03228166 | EF27: 0 | EG27: 63.42439763 | EH27: 139.6714953 | EI27: 6.007493557 | EK27: 1937 | EL27: =G193 -> 50.90729947 | EM27: =G194 -> 6.628506639 | EN27: =G195 -> 4.52443452 | EO27: =G196 -> 0 | EP27: =G197 -> 0 | EQ27: =G198 -> 0 | ER27: =G199 -> 4.34397674 | ES27: =G200 -> 5.313950442 | ET27: =G201 -> 84.11254725 | EU27: =G202 -> 53.98386858 | EV27: =G203 -> 34.03543122 | EW27: =G204 -> 78.10847885 | EY27: 295.9410541 | EZ27: 295.9410541 | FA27: 321.9584937 | FC27: 11.15294116 | FD27: 148.1867111 | FE27: 62.06024063 | FF27: 4.52443452 | FG27: 93.77047443 | FH27: 250.2403259 | FI27: 114.1512799
A28: 1923-01-31 | B28: =INDIRECT(CONCATENATE("'",B$1,"'!",B$4,(YEAR($A28)-1921)*12+MONTH($A28)+3+IF(ISNUMBER(FIND("PRV",B$6)),1,0)))*IF(AND(B$3>0,TRIM(B$9)="CFS"),Conversions!$C28,1) -> 0 | C28: =INDIRECT(CONCATENATE("'",C$1,"'!",C$4,(YEAR($A28)-1921)*12+MONTH($A28)+3+IF(ISNUMBER(FIND("PRV",C$6)),1,0)))*IF(AND(C$3>0,TRIM(C$9)="CFS"),Conversions!$C28,1) -> 0 | D28: =INDIRECT(CONCATENATE("'",D$1,"'!",D$4,(YEAR($A28)-1921)*12+MONTH($A28)+3+IF(ISNUMBER(FIND("PRV",D$6)),1,0)))*IF(AND(D$3>0,TRIM(D$9)="CFS"),Conversions!$C28,1) -> 0 | E28: =INDIRECT(CONCATENATE("'",E$1,"'!",E$4,(YEAR($A28)-1921)*12+MONTH($A28)+3+IF(ISNUMBER(FIND("PRV",E$6)),1,0)))*IF(AND(E$3>0,TRIM(E$9)="CFS"),Conversions!$C28,1) -> 0 | F28: =INDIRECT(CONCATENATE("'",F$1,"'!",F$4,(YEAR($A28)-1921)*12+MONTH($A28)+3+IF(ISNUMBER(FIND("PRV",F$6)),1,0)))*IF(AND(F$3>0,TRIM(F$9)="CFS"),Conversions!$C28,1) -> 0 | G28: =INDIRECT(CONCATENATE("'",G$1,"'!",G$4,(YEAR($A28)-1921)*12+MONTH($A28)+3+IF(ISNUMBER(FIND("PRV",G$6)),1,0)))*IF(AND(G$3>0,TRIM(G$9)="CFS"),Conversions!$C28,1) -> 0 | K28: 1938 | L28: =B205 -> 0 | M28: =B206 -> 0 | N28: =B207 -> 0 | O28: =B208 -> 0 | P28: =B209 -> 0 | Q28: =B210 -> 0 | R28: =B211 -> 0 | S28: =B212 -> 0 | T28: =B213 -> 0 | U28: =B214 -> 0 | V28: =B215 -> 0 | W28: =B216 -> 0 | Y28: 0 | Z28: 0 | AA28: 0 | AC28: 0 | AD28: 0 | AE28: 0 | AF28: 0 | AG28: 0 | AH28: 0 | AI28: 0 | AK28: 1938 | AL28: =C205 -> 0 | AM28: =C206 -> 0 | AN28: =C207 -> 0 | AO28: =C208 -> 0 | AP28: =C209 -> 0 | AQ28: =C210 -> 0 | AR28: =C211 -> 0 | AS28: =C212 -> 0 | AT28: =C213 -> 0 | AU28: =C214 -> 0 | AV28: =C215 -> 0 | AW28: =C216 -> 0 | AY28: 0 | AZ28: 0 | BA28: 0 | BC28: 0 | BD28: 0 | BE28: 0 | BF28: 0 | BG28: 0 | BH28: 0 | BI28: 0 | BK28: 1938 | BL28: =D205 -> 2.49 | BM28: =D206 -> 0 | BN28: =D207 -> 0 | BO28: =D208 -> 0 | BP28: =D209 -> 0 | BQ28: =D210 -> 0 | BR28: =D211 -> 0 | BS28: =D212 -> 0 | BT28: =D213 -> 0 | BU28: =D214 -> 2.5 | BV28: =D215 -> 30.08620681 | BW28: =D216 -> 27.5862069 | BY28: 65.85647138 | BZ28: 65.85647138 | CA28: 62.66241371 | CC28: 0 | CD28: 63.35647138 | CE28: 2.49 | CF28: 0 | CG28: 0 | CH28: 60.17241371 | CI28: 33.27026457 | CK28: 1938 | CL28: =E205 -> 35.81214641 | CM28: =E206 -> 0 | CN28: =E207 -> 0 | CO28: =E208 -> 0 | CP28: =E209 -> 0 | CQ28: =E210 -> 0 | CR28: =E211 -> 0 | CS28: =E212 -> 0 | CT28: =E213 -> 0 | CU28: =E214 -> 2.5 | CV28: =E215 -> 30.0862069 | CW28: =E216 -> 21.93110939 | CY28: 54.51731629 | CZ28: 54.51731629 | DA28: 90.3294627 | DC28: 0 | DD28: 52.01731629 | DE28: 35.81214641 | DF28: 0 | DG28: 0 | DH28: 54.51731629 | DI28: 21.93110939 | DK28: 1938 | DL28: =F205 -> 2.49 | DM28: =F206 -> 0 | DN28: =F207 -> 0 | DO28: =F208 -> 0 | DP28: =F209 -> 0 | DQ28: =F210 -> 0 | DR28: =F211 -> 0 | DS28: =F212 -> 0 | DT28: =F213 -> 0 | DU28: =F214 -> 2.5 | DV28: =F215 -> 30.08620681 | DW28: =F216 -> 27.5862069 | DY28: 75.93228283 | DZ28: 75.93228283 | EA28: 62.66241371 | EC28: 0 | ED28: 73.43228283 | EE28: 2.49 | EF28: 0 | EG28: 0 | EH28: 60.17241371 | EI28: 43.34607602 | EK28: 1938 | EL28: =G205 -> 36.04280102 | EM28: =G206 -> 0 | EN28: =G207 -> 0 | EO28: =G208 -> 0 | EP28: =G209 -> 0 | EQ28: =G210 -> 0 | ER28: =G211 -> 0 | ES28: =G212 -> 0 | ET28: =G213 -> 0 | EU28: =G214 -> 2.5 | EV28: =G215 -> 30.0862069 | EW28: =G216 -> 27.5862069 | EY28: 66.24013201 | EZ28: 66.24013201 | FA28: 96.21521481 | FC28: 0 | FD28: 63.74013201 | FE28: 36.04280102 | FF28: 0 | FG28: 0 | FH28: 60.1724138 | FI28: 33.65392511
A29: 1923-02-28 | B29: =INDIRECT(CONCATENATE("'",B$1,"'!",B$4,(YEAR($A29)-1921)*12+MONTH($A29)+3+IF(ISNUMBER(FIND("PRV",B$6)),1,0)))*IF(AND(B$3>0,TRIM(B$9)="CFS"),Conversions!$C29,1) -> 0 | C29: =INDIRECT(CONCATENATE("'",C$1,"'!",C$4,(YEAR($A29)-1921)*12+MONTH($A29)+3+IF(ISNUMBER(FIND("PRV",C$6)),1,0)))*IF(AND(C$3>0,TRIM(C$9)="CFS"),Conversions!$C29,1) -> 0 | D29: =INDIRECT(CONCATENATE("'",D$1,"'!",D$4,(YEAR($A29)-1921)*12+MONTH($A29)+3+IF(ISNUMBER(FIND("PRV",D$6)),1,0)))*IF(AND(D$3>0,TRIM(D$9)="CFS"),Conversions!$C29,1) -> 0 | E29: =INDIRECT(CONCATENATE("'",E$1,"'!",E$4,(YEAR($A29)-1921)*12+MONTH($A29)+3+IF(ISNUMBER(FIND("PRV",E$6)),1,0)))*IF(AND(E$3>0,TRIM(E$9)="CFS"),Conversions!$C29,1) -> 0 | F29: =INDIRECT(CONCATENATE("'",F$1,"'!",F$4,(YEAR($A29)-1921)*12+MONTH($A29)+3+IF(ISNUMBER(FIND("PRV",F$6)),1,0)))*IF(AND(F$3>0,TRIM(F$9)="CFS"),Conversions!$C29,1) -> 0 | G29: =INDIRECT(CONCATENATE("'",G$1,"'!",G$4,(YEAR($A29)-1921)*12+MONTH($A29)+3+IF(ISNUMBER(FIND("PRV",G$6)),1,0)))*IF(AND(G$3>0,TRIM(G$9)="CFS"),Conversions!$C29,1) -> 0 | K29: 1939 | L29: =B217 -> 0 | M29: =B218 -> 0 | N29: =B219 -> 0 | O29: =B220 -> 0 | P29: =B221 -> 0 | Q29: =B222 -> 0 | R29: =B223 -> 0 | S29: =B224 -> 0 | T29: =B225 -> 0 | U29: =B226 -> 0 | V29: =B227 -> 0 | W29: =B228 -> 0 | Y29: 0 | Z29: 0 | AA29: 0 | AC29: 0 | AD29: 0 | AE29: 0 | AF29: 0 | AG29: 0 | AH29: 0 | AI29: 0 | AK29: 1939 | AL29: =C217 -> 0 | AM29: =C218 -> 0 | AN29: =C219 -> 0 | AO29: =C220 -> 0 | AP29: =C221 -> 0 | AQ29: =C222 -> 0 | AR29: =C223 -> 0 | AS29: =C224 -> 0 | AT29: =C225 -> 0 | AU29: =C226 -> 0 | AV29: =C227 -> 0 | AW29: =C228 -> 0 | AY29: 0 | AZ29: 0 | BA29: 0 | BC29: 0 | BD29: 0 | BE29: 0 | BF29: 0 | BG29: 0 | BH29: 0 | BI29: 0 | BK29: 1939 | BL29: =D217 -> 5.684057673 | BM29: =D218 -> 0 | BN29: =D219 -> 0 | BO29: =D220 -> 0 | BP29: =D221 -> 0 | BQ29: =D222 -> 6.661767829 | BR29: =D223 -> 42.21800667 | BS29: =D224 -> 97.65291633 | BT29: =D225 -> 126.9212256 | BU29: =D226 -> 158.078919 | BV29: =D227 -> 68.54112999 | BW29: =D228 -> 80.66268597 | BY29: 729.3741708 | BZ29: 729.3741708 | CA29: 586.420709 | CC29: 6.661767829 | CD29: 226.907024 | CE29: 5.684057673 | CF29: 0 | CG29: 273.4539164 | CH29: 434.2039605 | CI29: 220.3442815 | CK29: 1939 | CL29: =E217 -> 0 | CM29: =E218 -> 0 | CN29: =E219 -> 0 | CO29: =E220 -> 0 | CP29: =E221 -> 0 | CQ29: =E222 -> 6.055704951 | CR29: =E223 -> 42.21800667 | CS29: =E224 -> 141.8915911 | CT29: =E225 -> 116.3186278 | CU29: =E226 -> 157.896689 | CV29: =E227 -> 113.0921523 | CW29: =E228 -> 80.25230532 | CY29: 787.2501037 | CZ29: 787.2501037 | DA29: 657.7250771 | DC29: 6.055704951 | DD29: 270.3274021 | DE29: 0 | DF29: 0 | DG29: 306.4839305 | DH29: 467.5597744 | DI29: 196.4954379 | DK29: 1939 | DL29: =F217 -> 15.75986912 | DM29: =F218 -> 0 | DN29: =F219 -> 0 | DO29: =F220 -> 0 | DP29: =F221 -> 0 | DQ29: =F222 -> 6.655684718 | DR29: =F223 -> 42.21800667 | DS29: =F224 -> 91.07741064 | DT29: =F225 -> 137.1831904 | DU29: =F226 -> 123.0502846 | DV29: =F227 -> 68.55959421 | DW29: =F228 -> 80.66315474 | DY29: 694.9769282 | DZ29: 694.9769282 | EA29: 565.167195 | EC29: 6.655684718 | ED29: 206.1681798 | EE29: 15.75986912 | EF29: 0 | EG29: 277.1342924 | EH29: 409.4562239 | EI29: 217.902648 | EK29: 1939 | EL29: =G217 -> 6.067718216 | EM29: =G218 -> 0 | EN29: =G219 -> 0 | EO29: =G220 -> 0 | EP29: =G221 -> 0 | EQ29: =G222 -> 6.055763607 | ER29: =G223 -> 42.21800667 | ES29: =G224 -> 141.8915911 | ET29: =G225 -> 89.24469781 | EU29: =G226 -> 130.7456129 | EV29: =G227 -> 113.0379143 | EW29: =G228 -> 80.23902454 | EY29: 767.0227484 | EZ29: 767.0227484 | FA29: 609.5003291 | FC29: 6.055763607 | FD29: 270.2598828 | FE29: 6.067718216 | FF29: 0 | FG29: 279.4100591 | FH29: 413.2672496 | FI29: 230.1509082
A30: 1923-03-31 | B30: =INDIRECT(CONCATENATE("'",B$1,"'!",B$4,(YEAR($A30)-1921)*12+MONTH($A30)+3+IF(ISNUMBER(FIND("PRV",B$6)),1,0)))*IF(AND(B$3>0,TRIM(B$9)="CFS"),Conversions!$C30,1) -> 0 | C30: =INDIRECT(CONCATENATE("'",C$1,"'!",C$4,(YEAR($A30)-1921)*12+MONTH($A30)+3+IF(ISNUMBER(FIND("PRV",C$6)),1,0)))*IF(AND(C$3>0,TRIM(C$9)="CFS"),Conversions!$C30,1) -> 0 | D30: =INDIRECT(CONCATENATE("'",D$1,"'!",D$4,(YEAR($A30)-1921)*12+MONTH($A30)+3+IF(ISNUMBER(FIND("PRV",D$6)),1,0)))*IF(AND(D$3>0,TRIM(D$9)="CFS"),Conversions!$C30,1) -> 0.4541599869 | E30: =INDIRECT(CONCATENATE("'",E$1,"'!",E$4,(YEAR($A30)-1921)*12+MONTH($A30)+3+IF(ISNUMBER(FIND("PRV",E$6)),1,0)))*IF(AND(E$3>0,TRIM(E$9)="CFS"),Conversions!$C30,1) -> 0.5429323899 | F30: =INDIRECT(CONCATENATE("'",F$1,"'!",F$4,(YEAR($A30)-1921)*12+MONTH($A30)+3+IF(ISNUMBER(FIND("PRV",F$6)),1,0)))*IF(AND(F$3>0,TRIM(F$9)="CFS"),Conversions!$C30,1) -> 0.4541625544 | G30: =INDIRECT(CONCATENATE("'",G$1,"'!",G$4,(YEAR($A30)-1921)*12+MONTH($A30)+3+IF(ISNUMBER(FIND("PRV",G$6)),1,0)))*IF(AND(G$3>0,TRIM(G$9)="CFS"),Conversions!$C30,1) -> 0.5429323899 | K30: 1940 | L30: =B229 -> 0 | M30: =B230 -> 0 | N30: =B231 -> 0 | O30: =B232 -> 0 | P30: =B233 -> 0 | Q30: =B234 -> 0 | R30: =B235 -> 0 | S30: =B236 -> 0 | T30: =B237 -> 0 | U30: =B238 -> 0 | V30: =B239 -> 0 | W30: =B240 -> 0 | Y30: 0 | Z30: 0 | AA30: 0 | AC30: 0 | AD30: 0 | AE30: 0 | AF30: 0 | AG30: 0 | AH30: 0 | AI30: 0 | AK30: 1940 | AL30: =C229 -> 0 | AM30: =C230 -> 0 | AN30: =C231 -> 0 | AO30: =C232 -> 0 | AP30: =C233 -> 0 | AQ30: =C234 -> 0 | AR30: =C235 -> 0 | AS30: =C236 -> 0 | AT30: =C237 -> 0 | AU30: =C238 -> 0 | AV30: =C239 -> 0 | AW30: =C240 -> 0 | AY30: 0 | AZ30: 0 | BA30: 0 | BC30: 0 | BD30: 0 | BE30: 0 | BF30: 0 | BG30: 0 | BH30: 0 | BI30: 0 | BK30: 1940 | BL30: =D229 -> 77.703208 | BM30: =D230 -> 61.97838755 | BN30: =D231 -> 8.955923928 | BO30: =D232 -> 0 | BP30: =D233 -> 0 | BQ30: =D234 -> 0 | BR30: =D235 -> 0 | BS30: =D236 -> 0 | BT30: =D237 -> 93.22817191 | BU30: =D238 -> 99.91999973 | BV30: =D239 -> 31.33732988 | BW30: =D240 -> 29.3262069 | BY30: 274.6996572 | BZ30: 274.6996572 | CA30: 402.4492279 | CC30: 70.93431148 | CD30: 64.86259357 | CE30: 148.6375195 | CF30: 8.955923928 | CG30: 93.22817191 | CH30: 253.8117084 | CI30: 50.21415569 | CK30: 1940 | CL30: =E229 -> 76.98294452 | CM30: =E230 -> 39.26018808 | CN30: =E231 -> 13.28189398 | CO30: =E232 -> 0 | CP30: =E233 -> 0 | CQ30: =E234 -> 0 | CR30: =E235 -> 1.466036658 | CS30: =E236 -> 70.49055249 | CT30: =E237 -> 93.22817191 | CU30: =E238 -> 69.13959075 | CV30: =E239 -> 31.33740019 | CW30: =E240 -> 28.25304911 | CY30: 314.7258181 | CZ30: 314.7258181 | DA30: 423.4398277 | DC30: 52.54208206 | DD30: 62.0804493 | DE30: 129.5250266 | DF30: 13.28189398 | DG30: 165.1847611 | DH30: 221.958212 | DI30: 49.06406609 | DK30: 1940 | DL30: =F229 -> 56.9454308 | DM30: =F230 -> 80.29406241 | DN30: =F231 -> 8.330109084 | DO30: =F232 -> 0 | DP30: =F233 -> 0 | DQ30: =F234 -> 0 | DR30: =F235 -> 0 | DS30: =F236 -> 0 | DT30: =F237 -> 93.22817191 | DU30: =F238 -> 29.93931881 | DV30: =F239 -> 31.33648229 | DW30: =F240 -> 29.3262069 | DY30: 207.9137185 | DZ30: 207.9137185 | EA30: 329.3997822 | EC30: 88.62417149 | ED30: 67.39879922 | EE30: 145.5696023 | EF30: 8.330109084 | EG30: 93.22817191 | EH30: 183.8301799 | EI30: 53.40974545 | EK30: 1940 | EL30: =G229 -> 76.98294395 | EM30: =G230 -> 72.92893972 | EN30: =G231 -> 13.67825385 | EO30: =G232 -> 0 | EP30: =G233 -> 0 | EQ30: =G234 -> 0 | ER30: =G235 -> 1.466036658 | ES30: =G236 -> 70.49055249 | ET30: =G237 -> 64.52213514 | EU30: =G238 -> 6.667816528 | EV30: =G239 -> 31.3362069 | EW30: =G240 -> 31.8262069 | EY30: 233.7536332 | EZ30: 233.7536332 | FA30: 369.8990921 | FC30: 86.60719358 | FD30: 71.71088793 | FE30: 163.5901375 | FF30: 13.67825385 | FG30: 136.4787243 | FH30: 134.3523655 | FI30: 59.27088551
A31: 1923-04-30 | B31: =INDIRECT(CONCATENATE("'",B$1,"'!",B$4,(YEAR($A31)-1921)*12+MONTH($A31)+3+IF(ISNUMBER(FIND("PRV",B$6)),1,0)))*IF(AND(B$3>0,TRIM(B$9)="CFS"),Conversions!$C31,1) -> 0 | C31: =INDIRECT(CONCATENATE("'",C$1,"'!",C$4,(YEAR($A31)-1921)*12+MONTH($A31)+3+IF(ISNUMBER(FIND("PRV",C$6)),1,0)))*IF(AND(C$3>0,TRIM(C$9)="CFS"),Conversions!$C31,1) -> 0 | D31: =INDIRECT(CONCATENATE("'",D$1,"'!",D$4,(YEAR($A31)-1921)*12+MONTH($A31)+3+IF(ISNUMBER(FIND("PRV",D$6)),1,0)))*IF(AND(D$3>0,TRIM(D$9)="CFS"),Conversions!$C31,1) -> 2.204280759 | E31: =INDIRECT(CONCATENATE("'",E$1,"'!",E$4,(YEAR($A31)-1921)*12+MONTH($A31)+3+IF(ISNUMBER(FIND("PRV",E$6)),1,0)))*IF(AND(E$3>0,TRIM(E$9)="CFS"),Conversions!$C31,1) -> 2.635140601 | F31: =INDIRECT(CONCATENATE("'",F$1,"'!",F$4,(YEAR($A31)-1921)*12+MONTH($A31)+3+IF(ISNUMBER(FIND("PRV",F$6)),1,0)))*IF(AND(F$3>0,TRIM(F$9)="CFS"),Conversions!$C31,1) -> 2.204293221 | G31: =INDIRECT(CONCATENATE("'",G$1,"'!",G$4,(YEAR($A31)-1921)*12+MONTH($A31)+3+IF(ISNUMBER(FIND("PRV",G$6)),1,0)))*IF(AND(G$3>0,TRIM(G$9)="CFS"),Conversions!$C31,1) -> 2.635140601 | K31: 1941 | L31: =B241 -> 0 | M31: =B242 -> 0 | N31: =B243 -> 0 | O31: =B244 -> 0 | P31: =B245 -> 0 | Q31: =B246 -> 0 | R31: =B247 -> 0 | S31: =B248 -> 0 | T31: =B249 -> 0 | U31: =B250 -> 0 | V31: =B251 -> 0 | W31: =B252 -> 0 | Y31: 0 | Z31: 0 | AA31: 0 | AC31: 0 | AD31: 0 | AE31: 0 | AF31: 0 | AG31: 0 | AH31: 0 | AI31: 0 | AK31: 1941 | AL31: =C241 -> 0 | AM31: =C242 -> 0 | AN31: =C243 -> 0 | AO31: =C244 -> 0 | AP31: =C245 -> 0 | AQ31: =C246 -> 0 | AR31: =C247 -> 0 | AS31: =C248 -> 0 | AT31: =C249 -> 0 | AU31: =C250 -> 0 | AV31: =C251 -> 0 | AW31: =C252 -> 0 | AY31: 0 | AZ31: 0 | BA31: 0 | BC31: 0 | BD31: 0 | BE31: 0 | BF31: 0 | BG31: 0 | BH31: 0 | BI31: 0 | BK31: 1941 | BL31: =D241 -> 4.199056786 | BM31: =D242 -> 16.688892 | BN31: =D243 -> 0 | BO31: =D244 -> 0 | BP31: =D245 -> 0 | BQ31: =D246 -> 0 | BR31: =D247 -> 0 | BS31: =D248 -> 0 | BT31: =D249 -> 0 | BU31: =D250 -> 2.5 | BV31: =D251 -> 30.08620681 | BW31: =D252 -> 27.5862069 | BY31: 87.75862061 | BZ31: 87.75862061 | CA31: 81.0603625 | CC31: 16.688892 | CD31: 85.25862061 | CE31: 20.88794879 | CF31: 0 | CG31: 0 | CH31: 60.17241371 | CI31: 55.1724138 | CK31: 1941 | CL31: =E241 -> 2.49 | CM31: =E242 -> 18.32101698 | CN31: =E243 -> 0 | CO31: =E244 -> 0 | CP31: =E245 -> 0 | CQ31: =E246 -> 0 | CR31: =E247 -> 0 | CS31: =E248 -> 0 | CT31: =E249 -> 0 | CU31: =E250 -> 2.5 | CV31: =E251 -> 30.0862069 | CW31: =E252 -> 27.5862069 | CY31: 87.7586207 | CZ31: 87.7586207 | DA31: 80.98343078 | DC31: 18.32101698 | DD31: 85.2586207 | DE31: 20.81101698 | DF31: 0 | DG31: 0 | DH31: 60.1724138 | DI31: 55.1724138 | DK31: 1941 | DL31: =F241 -> 6.736110031 | DM31: =F242 -> 17.34742852 | DN31: =F243 -> 0 | DO31: =F244 -> 0 | DP31: =F245 -> 0 | DQ31: =F246 -> 0 | DR31: =F247 -> 0 | DS31: =F248 -> 0 | DT31: =F249 -> 0 | DU31: =F250 -> 2.5 | DV31: =F251 -> 30.08620681 | DW31: =F252 -> 27.5862069 | DY31: 87.75862061 | DZ31: 87.75862061 | EA31: 84.25595226 | EC31: 17.34742852 | ED31: 85.25862061 | EE31: 24.08353856 | EF31: 0 | EG31: 0 | EH31: 60.17241371 | EI31: 55.1724138 | EK31: 1941 | EL31: =G241 -> 8.548474133 | EM31: =G242 -> 18.89620448 | EN31: =G243 -> 0 | EO31: =G244 -> 0 | EP31: =G245 -> 0 | EQ31: =G246 -> 0 | ER31: =G247 -> 0 | ES31: =G248 -> 0 | ET31: =G249 -> 0 | EU31: =G250 -> 2.5 | EV31: =G251 -> 30.0862069 | EW31: =G252 -> 27.5862069 | EY31: 87.7586207 | EZ31: 87.7586207 | FA31: 87.61709241 | FC31: 18.89620448 | FD31: 85.2586207 | FE31: 27.44467861 | FF31: 0 | FG31: 0 | FH31: 60.1724138 | FI31: 55.1724138
A32: 1923-05-31 | B32: =INDIRECT(CONCATENATE("'",B$1,"'!",B$4,(YEAR($A32)-1921)*12+MONTH($A32)+3+IF(ISNUMBER(FIND("PRV",B$6)),1,0)))*IF(AND(B$3>0,TRIM(B$9)="CFS"),Conversions!$C32,1) -> 0 | C32: =INDIRECT(CONCATENATE("'",C$1,"'!",C$4,(YEAR($A32)-1921)*12+MONTH($A32)+3+IF(ISNUMBER(FIND("PRV",C$6)),1,0)))*IF(AND(C$3>0,TRIM(C$9)="CFS"),Conversions!$C32,1) -> 0 | D32: =INDIRECT(CONCATENATE("'",D$1,"'!",D$4,(YEAR($A32)-1921)*12+MONTH($A32)+3+IF(ISNUMBER(FIND("PRV",D$6)),1,0)))*IF(AND(D$3>0,TRIM(D$9)="CFS"),Conversions!$C32,1) -> 0 | E32: =INDIRECT(CONCATENATE("'",E$1,"'!",E$4,(YEAR($A32)-1921)*12+MONTH($A32)+3+IF(ISNUMBER(FIND("PRV",E$6)),1,0)))*IF(AND(E$3>0,TRIM(E$9)="CFS"),Conversions!$C32,1) -> 0 | F32: =INDIRECT(CONCATENATE("'",F$1,"'!",F$4,(YEAR($A32)-1921)*12+MONTH($A32)+3+IF(ISNUMBER(FIND("PRV",F$6)),1,0)))*IF(AND(F$3>0,TRIM(F$9)="CFS"),Conversions!$C32,1) -> 0 | G32: =INDIRECT(CONCATENATE("'",G$1,"'!",G$4,(YEAR($A32)-1921)*12+MONTH($A32)+3+IF(ISNUMBER(FIND("PRV",G$6)),1,0)))*IF(AND(G$3>0,TRIM(G$9)="CFS"),Conversions!$C32,1) -> 0 | K32: 1942 | L32: =B253 -> 0 | M32: =B254 -> 0 | N32: =B255 -> 0 | O32: =B256 -> 0 | P32: =B257 -> 0 | Q32: =B258 -> 0 | R32: =B259 -> 0 | S32: =B260 -> 0 | T32: =B261 -> 0 | U32: =B262 -> 0 | V32: =B263 -> 0 | W32: =B264 -> 0 | Y32: 0 | Z32: 0 | AA32: 0 | AC32: 0 | AD32: 0 | AE32: 0 | AF32: 0 | AG32: 0 | AH32: 0 | AI32: 0 | AK32: 1942 | AL32: =C253 -> 0 | AM32: =C254 -> 0 | AN32: =C255 -> 0 | AO32: =C256 -> 0 | AP32: =C257 -> 0 | AQ32: =C258 -> 0 | AR32: =C259 -> 0 | AS32: =C260 -> 0 | AT32: =C261 -> 0 | AU32: =C262 -> 0 | AV32: =C263 -> 0 | AW32: =C264 -> 0 | AY32: 0 | AZ32: 0 | BA32: 0 | BC32: 0 | BD32: 0 | BE32: 0 | BF32: 0 | BG32: 0 | BH32: 0 | BI32: 0 | BK32: 1942 | BL32: =D253 -> 27.5862069 | BM32: =D254 -> 0 | BN32: =D255 -> 0 | BO32: =D256 -> 0 | BP32: =D257 -> 0 | BQ32: =D258 -> 0 | BR32: =D259 -> 0 | BS32: =D260 -> 0 | BT32: =D261 -> 0 | BU32: =D262 -> 2.5 | BV32: =D263 -> 30.08620681 | BW32: =D264 -> 27.5862069 | BY32: 87.75862061 | BZ32: 87.75862061 | CA32: 87.75862061 | CC32: 0 | CD32: 85.25862061 | CE32: 27.5862069 | CF32: 0 | CG32: 0 | CH32: 60.17241371 | CI32: 55.1724138 | CK32: 1942 | CL32: =E253 -> 27.5862069 | CM32: =E254 -> 0 | CN32: =E255 -> 0 | CO32: =E256 -> 0 | CP32: =E257 -> 0 | CQ32: =E258 -> 0 | CR32: =E259 -> 0.2480470928 | CS32: =E260 -> 0 | CT32: =E261 -> 0 | CU32: =E262 -> 2.5 | CV32: =E263 -> 30.0862069 | CW32: =E264 -> 27.5862069 | CY32: 88.00666779 | CZ32: 88.00666779 | DA32: 88.00666779 | DC32: 0 | DD32: 85.2586207 | DE32: 27.5862069 | DF32: 0 | DG32: 0.2480470928 | DH32: 60.1724138 | DI32: 55.1724138 | DK32: 1942 | DL32: =F253 -> 27.5862069 | DM32: =F254 -> 0 | DN32: =F255 -> 0 | DO32: =F256 -> 0 | DP32: =F257 -> 0 | DQ32: =F258 -> 0 | DR32: =F259 -> 0 | DS32: =F260 -> 0 | DT32: =F261 -> 0 | DU32: =F262 -> 2.5 | DV32: =F263 -> 30.08620681 | DW32: =F264 -> 27.5862069 | DY32: 87.75862061 | DZ32: 87.75862061 | EA32: 87.75862061 | EC32: 0 | ED32: 85.25862061 | EE32: 27.5862069 | EF32: 0 | EG32: 0 | EH32: 60.17241371 | EI32: 55.1724138 | EK32: 1942 | EL32: =G253 -> 27.5862069 | EM32: =G254 -> 0 | EN32: =G255 -> 0 | EO32: =G256 -> 0 | EP32: =G257 -> 0 | EQ32: =G258 -> 0 | ER32: =G259 -> 0.2480470928 | ES32: =G260 -> 0 | ET32: =G261 -> 0 | EU32: =G262 -> 2.5 | EV32: =G263 -> 30.0862069 | EW32: =G264 -> 27.5862069 | EY32: 88.00666779 | EZ32: 88.00666779 | FA32: 88.00666779 | FC32: 0 | FD32: 85.2586207 | FE32: 27.5862069 | FF32: 0 | FG32: 0.2480470928 | FH32: 60.1724138 | FI32: 55.1724138
A33: 1923-06-30 | B33: =INDIRECT(CONCATENATE("'",B$1,"'!",B$4,(YEAR($A33)-1921)*12+MONTH($A33)+3+IF(ISNUMBER(FIND("PRV",B$6)),1,0)))*IF(AND(B$3>0,TRIM(B$9)="CFS"),Conversions!$C33,1) -> 0 | C33: =INDIRECT(CONCATENATE("'",C$1,"'!",C$4,(YEAR($A33)-1921)*12+MONTH($A33)+3+IF(ISNUMBER(FIND("PRV",C$6)),1,0)))*IF(AND(C$3>0,TRIM(C$9)="CFS"),Conversions!$C33,1) -> 0 | D33: =INDIRECT(CONCATENATE("'",D$1,"'!",D$4,(YEAR($A33)-1921)*12+MONTH($A33)+3+IF(ISNUMBER(FIND("PRV",D$6)),1,0)))*IF(AND(D$3>0,TRIM(D$9)="CFS"),Conversions!$C33,1) -> 90.88766783 | E33: =INDIRECT(CONCATENATE("'",E$1,"'!",E$4,(YEAR($A33)-1921)*12+MONTH($A33)+3+IF(ISNUMBER(FIND("PRV",E$6)),1,0)))*IF(AND(E$3>0,TRIM(E$9)="CFS"),Conversions!$C33,1) -> 91.41766783 | F33: =INDIRECT(CONCATENATE("'",F$1,"'!",F$4,(YEAR($A33)-1921)*12+MONTH($A33)+3+IF(ISNUMBER(FIND("PRV",F$6)),1,0)))*IF(AND(F$3>0,TRIM(F$9)="CFS"),Conversions!$C33,1) -> 53.49195929 | G33: =INDIRECT(CONCATENATE("'",G$1,"'!",G$4,(YEAR($A33)-1921)*12+MONTH($A33)+3+IF(ISNUMBER(FIND("PRV",G$6)),1,0)))*IF(AND(G$3>0,TRIM(G$9)="CFS"),Conversions!$C33,1) -> 41.45078291 | K33: 1943 | L33: =B265 -> 0 | M33: =B266 -> 0 | N33: =B267 -> 0 | O33: =B268 -> 0 | P33: =B269 -> 0 | Q33: =B270 -> 0 | R33: =B271 -> 0 | S33: =B272 -> 0 | T33: =B273 -> 0 | U33: =B274 -> 0 | V33: =B275 -> 0 | W33: =B276 -> 0 | Y33: 0 | Z33: 0 | AA33: 0 | AC33: 0 | AD33: 0 | AE33: 0 | AF33: 0 | AG33: 0 | AH33: 0 | AI33: 0 | AK33: 1943 | AL33: =C265 -> 0 | AM33: =C266 -> 0 | AN33: =C267 -> 0 | AO33: =C268 -> 0 | AP33: =C269 -> 0 | AQ33: =C270 -> 0 | AR33: =C271 -> 0 | AS33: =C272 -> 0 | AT33: =C273 -> 0 | AU33: =C274 -> 0 | AV33: =C275 -> 0 | AW33: =C276 -> 0 | AY33: 0 | AZ33: 0 | BA33: 0 | BC33: 0 | BD33: 0 | BE33: 0 | BF33: 0 | BG33: 0 | BH33: 0 | BI33: 0 | BK33: 1943 | BL33: =D265 -> 27.5862069 | BM33: =D266 -> 0 | BN33: =D267 -> 0 | BO33: =D268 -> 0 | BP33: =D269 -> 0 | BQ33: =D270 -> 0 | BR33: =D271 -> 1.612165566 | BS33: =D272 -> 0 | BT33: =D273 -> 2.004728869 | BU33: =D274 -> 2.5 | BV33: =D275 -> 30.0862069 | BW33: =D276 -> 28.38215372 | BY33: 92.17146195 | BZ33: 92.17146195 | CA33: 92.17146195 | CC33: 0 | CD33: 86.05456752 | CE33: 27.5862069 | CF33: 0 | CG33: 3.616894434 | CH33: 62.97308949 | CI33: 55.96836062 | CK33: 1943 | CL33: =E265 -> 27.5862069 | CM33: =E266 -> 0 | CN33: =E267 -> 0 | CO33: =E268 -> 0 | CP33: =E269 -> 0 | CQ33: =E270 -> 0 | CR33: =E271 -> 3.174572186 | CS33: =E272 -> 4.670287258 | CT33: =E273 -> 8.175869267 | CU33: =E274 -> 34.64701482 | CV33: =E275 -> 60.971718 | CW33: =E276 -> 55.80316253 | CY33: 223.699496 | CZ33: 223.699496 | DA33: 195.028831 | DC33: 0 | DD33: 145.120896 | DE33: 27.5862069 | DF33: 0 | DG33: 16.02072871 | DH33: 159.5977646 | DI33: 100.5267012 | DK33: 1943 | DL33: =F265 -> 27.5862069 | DM33: =F266 -> 0 | DN33: =F267 -> 0 | DO33: =F268 -> 0 | DP33: =F269 -> 0 | DQ33: =F270 -> 0 | DR33: =F271 -> 1.612165566 | DS33: =F272 -> 0 | DT33: =F273 -> 2.004728869 | DU33: =F274 -> 2.5 | DV33: =F275 -> 30.0862069 | DW33: =F276 -> 28.38215372 | DY33: 92.17146195 | DZ33: 92.17146195 | EA33: 92.17146195 | EC33: 0 | ED33: 86.05456752 | EE33: 27.5862069 | EF33: 0 | EG33: 3.616894434 | EH33: 62.97308949 | EI33: 55.96836062 | EK33: 1943 | EL33: =G265 -> 27.5862069 | EM33: =G266 -> 0 | EN33: =G267 -> 0 | EO33: =G268 -> 0 | EP33: =G269 -> 0 | EQ33: =G270 -> 0 | ER33: =G271 -> 3.150803275 | ES33: =G272 -> 4.670287258 | ET33: =G273 -> 8.175869267 | EU33: =G274 -> 34.64701482 | EV33: =G275 -> 60.971718 | EW33: =G276 -> 55.80316253 | EY33: 223.7174805 | EZ33: 223.7174805 | FA33: 195.0050621 | FC33: 0 | FD33: 145.120896 | FE33: 27.5862069 | FF33: 0 | FG33: 15.9969598 | FH33: 159.5977646 | FI33: 100.5684545
A34: 1923-07-31 | B34: =INDIRECT(CONCATENATE("'",B$1,"'!",B$4,(YEAR($A34)-1921)*12+MONTH($A34)+3+IF(ISNUMBER(FIND("PRV",B$6)),1,0)))*IF(AND(B$3>0,TRIM(B$9)="CFS"),Conversions!$C34,1) -> 0 | C34: =INDIRECT(CONCATENATE("'",C$1,"'!",C$4,(YEAR($A34)-1921)*12+MONTH($A34)+3+IF(ISNUMBER(FIND("PRV",C$6)),1,0)))*IF(AND(C$3>0,TRIM(C$9)="CFS"),Conversions!$C34,1) -> 0 | D34: =INDIRECT(CONCATENATE("'",D$1,"'!",D$4,(YEAR($A34)-1921)*12+MONTH($A34)+3+IF(ISNUMBER(FIND("PRV",D$6)),1,0)))*IF(AND(D$3>0,TRIM(D$9)="CFS"),Conversions!$C34,1) -> 83.38056577 | E34: =INDIRECT(CONCATENATE("'",E$1,"'!",E$4,(YEAR($A34)-1921)*12+MONTH($A34)+3+IF(ISNUMBER(FIND("PRV",E$6)),1,0)))*IF(AND(E$3>0,TRIM(E$9)="CFS"),Conversions!$C34,1) -> 61.56263455 | F34: =INDIRECT(CONCATENATE("'",F$1,"'!",F$4,(YEAR($A34)-1921)*12+MONTH($A34)+3+IF(ISNUMBER(FIND("PRV",F$6)),1,0)))*IF(AND(F$3>0,TRIM(F$9)="CFS"),Conversions!$C34,1) -> 28.81701163 | G34: =INDIRECT(CONCATENATE("'",G$1,"'!",G$4,(YEAR($A34)-1921)*12+MONTH($A34)+3+IF(ISNUMBER(FIND("PRV",G$6)),1,0)))*IF(AND(G$3>0,TRIM(G$9)="CFS"),Conversions!$C34,1) -> 2.5 | K34: 1944 | L34: =B277 -> 0 | M34: =B278 -> 0 | N34: =B279 -> 0 | O34: =B280 -> 0 | P34: =B281 -> 0 | Q34: =B282 -> 0 | R34: =B283 -> 0 | S34: =B284 -> 0 | T34: =B285 -> 0 | U34: =B286 -> 0 | V34: =B287 -> 0 | W34: =B288 -> 0 | Y34: 0 | Z34: 0 | AA34: 0 | AC34: 0 | AD34: 0 | AE34: 0 | AF34: 0 | AG34: 0 | AH34: 0 | AI34: 0 | AK34: 1944 | AL34: =C277 -> 0 | AM34: =C278 -> 0 | AN34: =C279 -> 0 | AO34: =C280 -> 0 | AP34: =C281 -> 0 | AQ34: =C282 -> 0 | AR34: =C283 -> 0 | AS34: =C284 -> 0 | AT34: =C285 -> 0 | AU34: =C286 -> 0 | AV34: =C287 -> 0 | AW34: =C288 -> 0 | AY34: 0 | AZ34: 0 | BA34: 0 | BC34: 0 | BD34: 0 | BE34: 0 | BF34: 0 | BG34: 0 | BH34: 0 | BI34: 0 | BK34: 1944 | BL34: =D277 -> 27.5862069 | BM34: =D278 -> 0 | BN34: =D279 -> 0 | BO34: =D280 -> 0 | BP34: =D281 -> 0 | BQ34: =D282 -> 0.140509074 | BR34: =D283 -> 26.4222574 | BS34: =D284 -> 73.04580117 | BT34: =D285 -> 127.0953739 | BU34: =D286 -> 163.2414358 | BV34: =D287 -> 148.8067222 | BW34: =D288 -> 83.74167092 | BY34: 683.456945 | BZ34: 683.4569451 | CA34: 650.0799773 | CC34: 0.140509074 | CD34: 279.2990677 | CE34: 27.5862069 | CF34: 0 | CG34: 226.7039415 | CH34: 522.8852028 | CI34: 132.2323455 | CK34: 1944 | CL34: =E277 -> 28.3460155 | CM34: =E278 -> 16.37752312 | CN34: =E279 -> 11.53333333 | CO34: =E280 -> 0 | CP34: =E281 -> 0 | CQ34: =E282 -> 0.1612661646 | CR34: =E283 -> 73.27681442 | CS34: =E284 -> 71.61042904 | CT34: =E285 -> 132.0482874 | CU34: =E286 -> 158.4200449 | CV34: =E287 -> 123.4752841 | CW34: =E288 -> 77.80847885 | CY34: 737.61475 | CZ34: 737.61475 | DA34: 693.0574769 | DC34: 28.07212262 | DD34: 279.2445747 | DE34: 56.25687196 | DF34: 11.53333333 | DG34: 277.0967971 | DH34: 491.7520953 | DI34: 176.9626239 | DK34: 1944 | DL34: =F277 -> 27.5862069 | DM34: =F278 -> 0 | DN34: =F279 -> 0 | DO34: =F280 -> 0 | DP34: =F281 -> 0 | DQ34: =F282 -> 0.1404531256 | DR34: =F283 -> 38.27649122 | DS34: =F284 -> 73.04967005 | DT34: =F285 -> 128.8208547 | DU34: =F286 -> 163.2414358 | DV34: =F287 -> 92.55371423 | DW34: =F288 -> 85.65686422 | DY34: 642.267806 | DZ34: 642.2678061 | EA34: 609.3256902 | EC34: 0.1404531256 | ED34: 224.5264011 | EE34: 27.5862069 | EF34: 0 | EG34: 240.2874691 | EH34: 470.272869 | EI34: 133.7126869 | EK34: 1944 | EL34: =G277 -> 28.3460155 | EM34: =G278 -> 16.41927652 | EN34: =G279 -> 11.53333333 | EO34: =G280 -> 0 | EP34: =G281 -> 0 | EQ34: =G282 -> 0.1612643946 | ER34: =G283 -> 73.27681442 | ES34: =G284 -> 71.61055143 | ET34: =G285 -> 139.9958024 | EU34: =G286 -> 166.9694776 | EV34: =G287 -> 104.2670703 | EW34: =G288 -> 77.80847885 | EY34: 732.2761892 | EZ34: 732.2761893 | FA34: 690.3880848 | FC34: 28.11387425 | FD34: 257.4089456 | FE34: 56.29862536 | FF34: 11.53333333 | FG34: 285.0444326 | FH34: 489.0408292 | FI34: 174.3352086
A35: 1923-08-31 | B35: =INDIRECT(CONCATENATE("'",B$1,"'!",B$4,(YEAR($A35)-1921)*12+MONTH($A35)+3+IF(ISNUMBER(FIND("PRV",B$6)),1,0)))*IF(AND(B$3>0,TRIM(B$9)="CFS"),Conversions!$C35,1) -> 0 | C35: =INDIRECT(CONCATENATE("'",C$1,"'!",C$4,(YEAR($A35)-1921)*12+MONTH($A35)+3+IF(ISNUMBER(FIND("PRV",C$6)),1,0)))*IF(AND(C$3>0,TRIM(C$9)="CFS"),Conversions!$C35,1) -> 0 | D35: =INDIRECT(CONCATENATE("'",D$1,"'!",D$4,(YEAR($A35)-1921)*12+MONTH($A35)+3+IF(ISNUMBER(FIND("PRV",D$6)),1,0)))*IF(AND(D$3>0,TRIM(D$9)="CFS"),Conversions!$C35,1) -> 8.102566812 | E35: =INDIRECT(CONCATENATE("'",E$1,"'!",E$4,(YEAR($A35)-1921)*12+MONTH($A35)+3+IF(ISNUMBER(FIND("PRV",E$6)),1,0)))*IF(AND(E$3>0,TRIM(E$9)="CFS"),Conversions!$C35,1) -> 7.403266741 | F35: =INDIRECT(CONCATENATE("'",F$1,"'!",F$4,(YEAR($A35)-1921)*12+MONTH($A35)+3+IF(ISNUMBER(FIND("PRV",F$6)),1,0)))*IF(AND(F$3>0,TRIM(F$9)="CFS"),Conversions!$C35,1) -> 8.254134804 | G35: =INDIRECT(CONCATENATE("'",G$1,"'!",G$4,(YEAR($A35)-1921)*12+MONTH($A35)+3+IF(ISNUMBER(FIND("PRV",G$6)),1,0)))*IF(AND(G$3>0,TRIM(G$9)="CFS"),Conversions!$C35,1) -> 7.406804348 | K35: 1945 | L35: =B289 -> 0 | M35: =B290 -> 0 | N35: =B291 -> 0 | O35: =B292 -> 0 | P35: =B293 -> 0 | Q35: =B294 -> 0 | R35: =B295 -> 0 | S35: =B296 -> 0 | T35: =B297 -> 0 | U35: =B298 -> 0 | V35: =B299 -> 0 | W35: =B300 -> 0 | Y35: 0 | Z35: 0 | AA35: 0 | AC35: 0 | AD35: 0 | AE35: 0 | AF35: 0 | AG35: 0 | AH35: 0 | AI35: 0 | AK35: 1945 | AL35: =C289 -> 0 | AM35: =C290 -> 0 | AN35: =C291 -> 0 | AO35: =C292 -> 0 | AP35: =C293 -> 0 | AQ35: =C294 -> 0 | AR35: =C295 -> 0 | AS35: =C296 -> 0 | AT35: =C297 -> 0 | AU35: =C298 -> 0 | AV35: =C299 -> 0 | AW35: =C300 -> 0 | AY35: 0 | AZ35: 0 | BA35: 0 | BC35: 0 | BD35: 0 | BE35: 0 | BF35: 0 | BG35: 0 | BH35: 0 | BI35: 0 | BK35: 1945 | BL35: =D289 -> 46.75067458 | BM35: =D290 -> 1.74 | BN35: =D291 -> 12.4725 | BO35: =D292 -> 1.085673416e-07 | BP35: =D293 -> 0 | BQ35: =D294 -> 0 | BR35: =D295 -> 2.605239785 | BS35: =D296 -> 0.5962589324 | BT35: =D297 -> 91.18163831 | BU35: =D298 -> 27.59575831 | BV35: =D299 -> 9.015701668 | BW35: =D300 -> 23.15833853 | BY35: 158.3829356 | BZ35: 158.3829355 | CA35: 215.1161102 | CC35: 14.21250011 | CD35: 34.6640402 | CE35: 60.96317469 | CF35: 12.47250011 | CG35: 94.38313702 | CH35: 150.9514368 | CI35: 27.38833853 | CK35: 1945 | CL35: =E289 -> 77.96081173 | CM35: =E290 -> 21.19333333 | CN35: =E291 -> 1.66 | CO35: =E292 -> 0 | CP35: =E293 -> 0 | CQ35: =E294 -> 0 | CR35: =E295 -> 3.786908977 | CS35: =E296 -> 26.78930277 | CT35: =E297 -> 84.25842175 | CU35: =E298 -> 41.13923749 | CV35: =E299 -> 34.25777723 | CW35: =E300 -> 78.10847885 | CY35: 290.0050857 | CZ35: 290.0050857 | DA35: 369.1542721 | DC35: 22.85333333 | DD35: 132.2912148 | DE35: 100.8141451 | DF35: 1.66 | DG35: 114.8346335 | DH35: 237.7639153 | DI35: 99.77343753 | DK35: 1945 | DL35: =F289 -> 46.31582266 | DM35: =F290 -> 1.74 | DN35: =F291 -> 12.4725 | DO35: =F292 -> 1.192110737e-07 | DP35: =F293 -> 0 | DQ35: =F294 -> 0 | DR35: =F295 -> 2.605239785 | DS35: =F296 -> 0.5962589324 | DT35: =F297 -> 31.80130901 | DU35: =F298 -> 7.18798003 | DV35: =F299 -> 8.996932077 | DW35: =F300 -> 22.99413422 | DY35: 91.48357057 | DZ35: 91.48357045 | EA35: 134.7101768 | EC35: 14.21250012 | ED35: 47.55278269 | EE35: 60.52832278 | EF35: 12.47250012 | EG35: 35.00280772 | EH35: 70.98035534 | EI35: 40.29585062 | EK35: 1945 | EL35: =G289 -> 75.33339642 | EM35: =G290 -> 21.19333333 | EN35: =G291 -> 1.66 | EO35: =G292 -> 5.960465172e-08 | EP35: =G293 -> 0 | EQ35: =G294 -> 0 | ER35: =G295 -> 3.786908977 | ES35: =G296 -> 26.78930277 | ET35: =G297 -> 41.860805 | EU35: =G298 -> 41.41374504 | EV35: =G299 -> 2.5 | EW35: =G300 -> 70.79880089 | EY35: 208.7615233 | EZ35: 208.7615232 | FA35: 285.3362925 | FC35: 22.85333339 | FD35: 93.17076145 | FE35: 98.18672982 | FF35: 1.66000006 | FG35: 72.43701675 | FH35: 156.5733509 | FI35: 92.41076145
A36: 1923-09-30 | B36: =INDIRECT(CONCATENATE("'",B$1,"'!",B$4,(YEAR($A36)-1921)*12+MONTH($A36)+3+IF(ISNUMBER(FIND("PRV",B$6)),1,0)))*IF(AND(B$3>0,TRIM(B$9)="CFS"),Conversions!$C36,1) -> 0 | C36: =INDIRECT(CONCATENATE("'",C$1,"'!",C$4,(YEAR($A36)-1921)*12+MONTH($A36)+3+IF(ISNUMBER(FIND("PRV",C$6)),1,0)))*IF(AND(C$3>0,TRIM(C$9)="CFS"),Conversions!$C36,1) -> 0 | D36: =INDIRECT(CONCATENATE("'",D$1,"'!",D$4,(YEAR($A36)-1921)*12+MONTH($A36)+3+IF(ISNUMBER(FIND("PRV",D$6)),1,0)))*IF(AND(D$3>0,TRIM(D$9)="CFS"),Conversions!$C36,1) -> 3.976601465 | E36: =INDIRECT(CONCATENATE("'",E$1,"'!",E$4,(YEAR($A36)-1921)*12+MONTH($A36)+3+IF(ISNUMBER(FIND("PRV",E$6)),1,0)))*IF(AND(E$3>0,TRIM(E$9)="CFS"),Conversions!$C36,1) -> 2.652284046 | F36: =INDIRECT(CONCATENATE("'",F$1,"'!",F$4,(YEAR($A36)-1921)*12+MONTH($A36)+3+IF(ISNUMBER(FIND("PRV",F$6)),1,0)))*IF(AND(F$3>0,TRIM(F$9)="CFS"),Conversions!$C36,1) -> 3.972284046 | G36: =INDIRECT(CONCATENATE("'",G$1,"'!",G$4,(YEAR($A36)-1921)*12+MONTH($A36)+3+IF(ISNUMBER(FIND("PRV",G$6)),1,0)))*IF(AND(G$3>0,TRIM(G$9)="CFS"),Conversions!$C36,1) -> 2.652284046 | K36: 1946 | L36: =B301 -> 0 | M36: =B302 -> 0 | N36: =B303 -> 0 | O36: =B304 -> 0 | P36: =B305 -> 0 | Q36: =B306 -> 0 | R36: =B307 -> 0 | S36: =B308 -> 0 | T36: =B309 -> 0 | U36: =B310 -> 0 | V36: =B311 -> 0 | W36: =B312 -> 0 | Y36: 0 | Z36: 0 | AA36: 0 | AC36: 0 | AD36: 0 | AE36: 0 | AF36: 0 | AG36: 0 | AH36: 0 | AI36: 0 | AK36: 1946 | AL36: =C301 -> 0 | AM36: =C302 -> 0 | AN36: =C303 -> 0 | AO36: =C304 -> 0 | AP36: =C305 -> 0 | AQ36: =C306 -> 0 | AR36: =C307 -> 0 | AS36: =C308 -> 0 | AT36: =C309 -> 0 | AU36: =C310 -> 0 | AV36: =C311 -> 0 | AW36: =C312 -> 0 | AY36: 0 | AZ36: 0 | BA36: 0 | BC36: 0 | BD36: 0 | BE36: 0 | BF36: 0 | BG36: 0 | BH36: 0 | BI36: 0 | BK36: 1946 | BL36: =D301 -> 2.49 | BM36: =D302 -> 1.74 | BN36: =D303 -> 0 | BO36: =D304 -> 0 | BP36: =D305 -> 0 | BQ36: =D306 -> 0.05634491926 | BR36: =D307 -> 0 | BS36: =D308 -> 0 | BT36: =D309 -> 96.1144473 | BU36: =D310 -> 20.79190571 | BV36: =D311 -> 37.62139734 | BW36: =D312 -> 29.3363115 | BY36: 233.0428284 | BZ36: 233.0428284 | CA36: 188.1504068 | CC36: 1.796344919 | CD36: 91.34053724 | CE36: 4.23 | CF36: 0 | CG36: 96.17079222 | CH36: 183.8640619 | CI36: 71.78921997 | CK36: 1946 | CL36: =E301 -> 19.92495869 | CM36: =E302 -> 1.74 | CN36: =E303 -> 0 | CO36: =E304 -> 0 | CP36: =E305 -> 0 | CQ36: =E306 -> 0.08824121078 | CR36: =E307 -> 1.782962949 | CS36: =E308 -> 85.01977407 | CT36: =E309 -> 44.51958147 | CU36: =E310 -> 50.69096912 | CV36: =E311 -> 34.12953573 | CW36: =E312 -> 7.687532209 | CY36: 294.0367099 | CZ36: 294.0367099 | DA36: 245.5835554 | DC36: 1.828241211 | DD36: 96.93083323 | DE36: 21.66495869 | DF36: 0 | DG36: 131.4105597 | DH36: 137.0276185 | DI36: 77.8056453 | DK36: 1946 | DL36: =F301 -> 15.56171639 | DM36: =F302 -> 1.74 | DN36: =F303 -> 0 | DO36: =F304 -> 0 | DP36: =F305 -> 0 | DQ36: =F306 -> 0.05634491926 | DR36: =F307 -> 0 | DS36: =F308 -> 0 | DT36: =F309 -> 84.52840372 | DU36: =F310 -> 12.34611621 | DV36: =F311 -> 36.92923207 | DW36: =F312 -> 26.67971531 | DY36: 201.958976 | DZ36: 201.958976 | EA36: 177.8415286 | EC36: 1.796344919 | ED36: 84.19508564 | EE36: 17.30171639 | EF36: 0 | EG36: 84.58474864 | EH36: 160.4834673 | EI36: 62.50394443 | EK36: 1946 | EL36: =G301 -> 19.87196056 | EM36: =G302 -> 1.74 | EN36: =G303 -> 0 | EO36: =G304 -> 0 | EP36: =G305 -> 0 | EQ36: =G306 -> 0.08824121078 | ER36: =G307 -> 1.782962949 | ES36: =G308 -> 61.74057233 | ET36: =G309 -> 33.34267522 | EU36: =G310 -> 50.69089622 | EV36: =G311 -> 34.40526298 | EW36: =G312 -> 21.39550333 | EY36: 276.7143721 | EZ36: 276.7143721 | FA36: 225.0580748 | FC36: 1.828241211 | FD36: 111.4124742 | FE36: 21.61196056 | FF36: 0 | FG36: 96.95445171 | FH36: 139.8343378 | FI36: 94.66376115
A37: 1923-10-31 | B37: =INDIRECT(CONCATENATE("'",B$1,"'!",B$4,(YEAR($A37)-1921)*12+MONTH($A37)+3+IF(ISNUMBER(FIND("PRV",B$6)),1,0)))*IF(AND(B$3>0,TRIM(B$9)="CFS"),Conversions!$C37,1) -> 0 | C37: =INDIRECT(CONCATENATE("'",C$1,"'!",C$4,(YEAR($A37)-1921)*12+MONTH($A37)+3+IF(ISNUMBER(FIND("PRV",C$6)),1,0)))*IF(AND(C$3>0,TRIM(C$9)="CFS"),Conversions!$C37,1) -> 0 | D37: =INDIRECT(CONCATENATE("'",D$1,"'!",D$4,(YEAR($A37)-1921)*12+MONTH($A37)+3+IF(ISNUMBER(FIND("PRV",D$6)),1,0)))*IF(AND(D$3>0,TRIM(D$9)="CFS"),Conversions!$C37,1) -> 51.57714493 | E37: =INDIRECT(CONCATENATE("'",E$1,"'!",E$4,(YEAR($A37)-1921)*12+MONTH($A37)+3+IF(ISNUMBER(FIND("PRV",E$6)),1,0)))*IF(AND(E$3>0,TRIM(E$9)="CFS"),Conversions!$C37,1) -> 26.70142265 | F37: =INDIRECT(CONCATENATE("'",F$1,"'!",F$4,(YEAR($A37)-1921)*12+MONTH($A37)+3+IF(ISNUMBER(FIND("PRV",F$6)),1,0)))*IF(AND(F$3>0,TRIM(F$9)="CFS"),Conversions!$C37,1) -> 49.77082217 | G37: =INDIRECT(CONCATENATE("'",G$1,"'!",G$4,(YEAR($A37)-1921)*12+MONTH($A37)+3+IF(ISNUMBER(FIND("PRV",G$6)),1,0)))*IF(AND(G$3>0,TRIM(G$9)="CFS"),Conversions!$C37,1) -> 26.89322512 | K37: 1947 | L37: =B313 -> 0 | M37: =B314 -> 0 | N37: =B315 -> 0 | O37: =B316 -> 0 | P37: =B317 -> 0 | Q37: =B318 -> 0 | R37: =B319 -> 0 | S37: =B320 -> 0 | T37: =B321 -> 0 | U37: =B322 -> 0 | V37: =B323 -> 0 | W37: =B324 -> 0 | Y37: 0 | Z37: 0 | AA37: 0 | AC37: 0 | AD37: 0 | AE37: 0 | AF37: 0 | AG37: 0 | AH37: 0 | AI37: 0 | AK37: 1947 | AL37: =C313 -> 0 | AM37: =C314 -> 0 | AN37: =C315 -> 0 | AO37: =C316 -> 0 | AP37: =C317 -> 0 | AQ37: =C318 -> 0 | AR37: =C319 -> 0 | AS37: =C320 -> 0 | AT37: =C321 -> 0 | AU37: =C322 -> 0 | AV37: =C323 -> 0 | AW37: =C324 -> 0 | AY37: 0 | AZ37: 0 | BA37: 0 | BC37: 0 | BD37: 0 | BE37: 0 | BF37: 0 | BG37: 0 | BH37: 0 | BI37: 0 | BK37: 1947 | BL37: =D313 -> 24.3828284 | BM37: =D314 -> 18.07008008 | BN37: =D315 -> 6.669513117 | BO37: =D316 -> 0 | BP37: =D317 -> 0 | BQ37: =D318 -> 0 | BR37: =D319 -> 5.452492546 | BS37: =D320 -> 5.400260089 | BT37: =D321 -> 73.22873606 | BU37: =D322 -> 99.77775748 | BV37: =D323 -> 118.2793867 | BW37: =D324 -> 78.15236592 | BY37: 493.8393784 | BZ37: 494.0194028 | CA37: 429.4134204 | CC37: 24.73959319 | CD37: 256.6566451 | CE37: 49.12242159 | CF37: 6.669513117 | CG37: 84.08148869 | CH37: 369.4382461 | CI37: 191.7007456 | CK37: 1947 | CL37: =E313 -> 55.11376529 | CM37: =E314 -> 15.0043478 | CN37: =E315 -> 0 | CO37: =E316 -> 0 | CP37: =E317 -> 0 | CQ37: =E318 -> 0 | CR37: =E319 -> 6.957561622 | CS37: =E320 -> 11.81369468 | CT37: =E321 -> 47.18255171 | CU37: =E322 -> 119.3274026 | CV37: =E323 -> 111.939648 | CW37: =E324 -> 3.06576888 | CY37: 300.2866276 | CZ37: 300.2866276 | DA37: 370.4047406 | DC37: 15.0043478 | DD37: 115.0054169 | DE37: 70.11811309 | DF37: 0 | DG37: 65.95380802 | DH37: 281.5153712 | DI37: 3.06576888 | DK37: 1947 | DL37: =F313 -> 20.58613826 | DM37: =F314 -> 15.23809086 | DN37: =F315 -> 5.594934642 | DO37: =F316 -> 0 | DP37: =F317 -> 0 | DQ37: =F318 -> 0 | DR37: =F319 -> 5.48904565 | DS37: =F320 -> 5.585099501 | DT37: =F321 -> 73.46543871 | DU37: =F322 -> 102.3214746 | DV37: =F323 -> 118.4963824 | DW37: =F324 -> 78.24272966 | DY37: 498.5915161 | DZ37: 498.7777023 | EA37: 425.0193343 | EC37: 20.8330255 | ED37: 256.9009259 | EE37: 41.41916376 | EF37: 5.594934642 | EG37: 84.53958386 | EH37: 372.5260254 | EI37: 193.2340752 | EK37: 1947 | EL37: =G313 -> 55.61170792 | EM37: =G314 -> 17.65654989 | EN37: =G315 -> 0 | EO37: =G316 -> 0 | EP37: =G317 -> 0 | EQ37: =G318 -> 0 | ER37: =G319 -> 7.128325028 | ES37: =G320 -> 12.10364494 | ET37: =G321 -> 62.94965094 | EU37: =G322 -> 119.3286617 | EV37: =G323 -> 111.939648 | EW37: =G324 -> 67.56868664 | EY37: 381.0186172 | EZ37: 381.0186172 | FA37: 454.2868751 | FC37: 17.65654989 | FD37: 179.5083347 | FE37: 73.26825782 | FF37: 0 | FG37: 82.18162091 | FH37: 361.7866473 | FI37: 67.56868664
A38: 1923-11-30 | B38: =INDIRECT(CONCATENATE("'",B$1,"'!",B$4,(YEAR($A38)-1921)*12+MONTH($A38)+3+IF(ISNUMBER(FIND("PRV",B$6)),1,0)))*IF(AND(B$3>0,TRIM(B$9)="CFS"),Conversions!$C38,1) -> 0 | C38: =INDIRECT(CONCATENATE("'",C$1,"'!",C$4,(YEAR($A38)-1921)*12+MONTH($A38)+3+IF(ISNUMBER(FIND("PRV",C$6)),1,0)))*IF(AND(C$3>0,TRIM(C$9)="CFS"),Conversions!$C38,1) -> 0 | D38: =INDIRECT(CONCATENATE("'",D$1,"'!",D$4,(YEAR($A38)-1921)*12+MONTH($A38)+3+IF(ISNUMBER(FIND("PRV",D$6)),1,0)))*IF(AND(D$3>0,TRIM(D$9)="CFS"),Conversions!$C38,1) -> 80.1651798 | E38: =INDIRECT(CONCATENATE("'",E$1,"'!",E$4,(YEAR($A38)-1921)*12+MONTH($A38)+3+IF(ISNUMBER(FIND("PRV",E$6)),1,0)))*IF(AND(E$3>0,TRIM(E$9)="CFS"),Conversions!$C38,1) -> 21.19333333 | F38: =INDIRECT(CONCATENATE("'",F$1,"'!",F$4,(YEAR($A38)-1921)*12+MONTH($A38)+3+IF(ISNUMBER(FIND("PRV",F$6)),1,0)))*IF(AND(F$3>0,TRIM(F$9)="CFS"),Conversions!$C38,1) -> 80.1651798 | G38: =INDIRECT(CONCATENATE("'",G$1,"'!",G$4,(YEAR($A38)-1921)*12+MONTH($A38)+3+IF(ISNUMBER(FIND("PRV",G$6)),1,0)))*IF(AND(G$3>0,TRIM(G$9)="CFS"),Conversions!$C38,1) -> 21.19333333 | K38: 1948 | L38: =B325 -> 0 | M38: =B326 -> 0 | N38: =B327 -> 0 | O38: =B328 -> 0 | P38: =B329 -> 0 | Q38: =B330 -> 0 | R38: =B331 -> 0 | S38: =B332 -> 0 | T38: =B333 -> 0 | U38: =B334 -> 0 | V38: =B335 -> 0 | W38: =B336 -> 0 | Y38: 0 | Z38: 0 | AA38: 0 | AC38: 0 | AD38: 0 | AE38: 0 | AF38: 0 | AG38: 0 | AH38: 0 | AI38: 0 | AK38: 1948 | AL38: =C325 -> 0 | AM38: =C326 -> 0 | AN38: =C327 -> 0 | AO38: =C328 -> 0 | AP38: =C329 -> 0 | AQ38: =C330 -> 0 | AR38: =C331 -> 0 | AS38: =C332 -> 0 | AT38: =C333 -> 0 | AU38: =C334 -> 0 | AV38: =C335 -> 0 | AW38: =C336 -> 0 | AY38: 0 | AZ38: 0 | BA38: 0 | BC38: 0 | BD38: 0 | BE38: 0 | BF38: 0 | BG38: 0 | BH38: 0 | BI38: 0 | BK38: 1948 | BL38: =D325 -> 60.22489246 | BM38: =D326 -> 53.3234872 | BN38: =D327 -> 0 | BO38: =D328 -> 0 | BP38: =D329 -> 0.1800243953 | BQ38: =D330 -> 2.603027395 | BR38: =D331 -> 1.076267914 | BS38: =D332 -> 0 | BT38: =D333 -> 0 | BU38: =D334 -> 7.379056326 | BV38: =D335 -> 1.32 | BW38: =D336 -> 1.338268767 | BY38: 38.13579799 | BZ38: 37.95577359 | CA38: 127.4450245 | CC38: 56.10653899 | CD38: 26.89742184 | CE38: 113.5483797 | CF38: 0.1800243953 | CG38: 3.679295309 | CH38: 10.03732509 | CI38: 25.57742184 | CK38: 1948 | CL38: =E325 -> 0 | CM38: =E326 -> 0 | CN38: =E327 -> 0 | CO38: =E328 -> 0 | CP38: =E329 -> 0 | CQ38: =E330 -> 0 | CR38: =E331 -> 0 | CS38: =E332 -> 0 | CT38: =E333 -> 0.34875 | CU38: =E334 -> 4.47625 | CV38: =E335 -> 2.5 | CW38: =E336 -> 2.5 | CY38: 9.825000001 | CZ38: 9.825000001 | DA38: 9.825000001 | DC38: 0 | DD38: 5 | DE38: 0 | DF38: 0 | DG38: 0.34875 | DH38: 9.825000001 | DI38: 2.5 | DK38: 1948 | DL38: =F325 -> 60.16181381 | DM38: =F326 -> 54.82953171 | DN38: =F327 -> 0 | DO38: =F328 -> 0 | DP38: =F329 -> 0.1861862717 | DQ38: =F330 -> 2.613191073 | DR38: =F331 -> 1.895607286 | DS38: =F332 -> 0 | DT38: =F333 -> 0 | DU38: =F334 -> 7.371050764 | DV38: =F335 -> 1.32 | DW38: =F336 -> 1.338268767 | DY38: 38.93076359 | DZ38: 38.74457731 | EA38: 129.7156497 | EC38: 57.62890905 | ED38: 26.86472819 | EE38: 114.9913455 | EF38: 0.1861862717 | EG38: 4.508798359 | EH38: 10.02931953 | EI38: 25.54472819 | EK38: 1948 | EL38: =G325 -> 0 | EM38: =G326 -> 0 | EN38: =G327 -> 0 | EO38: =G328 -> 0 | EP38: =G329 -> 0 | EQ38: =G330 -> 0 | ER38: =G331 -> 0 | ES38: =G332 -> 0 | ET38: =G333 -> 0.467325 | EU38: =G334 -> 5.148175 | EV38: =G335 -> 2.5 | EW38: =G336 -> 2.5 | EY38: 10.6155 | EZ38: 10.6155 | FA38: 10.6155 | FC38: 0 | FD38: 5 | FE38: 0 | FF38: 0 | FG38: 0.467325 | FH38: 10.6155 | FI38: 2.5
A39: 1923-12-31 | B39: =INDIRECT(CONCATENATE("'",B$1,"'!",B$4,(YEAR($A39)-1921)*12+MONTH($A39)+3+IF(ISNUMBER(FIND("PRV",B$6)),1,0)))*IF(AND(B$3>0,TRIM(B$9)="CFS"),Conversions!$C39,1) -> 0 | C39: =INDIRECT(CONCATENATE("'",C$1,"'!",C$4,(YEAR($A39)-1921)*12+MONTH($A39)+3+IF(ISNUMBER(FIND("PRV",C$6)),1,0)))*IF(AND(C$3>0,TRIM(C$9)="CFS"),Conversions!$C39,1) -> 0 | D39: =INDIRECT(CONCATENATE("'",D$1,"'!",D$4,(YEAR($A39)-1921)*12+MONTH($A39)+3+IF(ISNUMBER(FIND("PRV",D$6)),1,0)))*IF(AND(D$3>0,TRIM(D$9)="CFS"),Conversions!$C39,1) -> 12.30033681 | E39: =INDIRECT(CONCATENATE("'",E$1,"'!",E$4,(YEAR($A39)-1921)*12+MONTH($A39)+3+IF(ISNUMBER(FIND("PRV",E$6)),1,0)))*IF(AND(E$3>0,TRIM(E$9)="CFS"),Conversions!$C39,1) -> 13.19333333 | F39: =INDIRECT(CONCATENATE("'",F$1,"'!",F$4,(YEAR($A39)-1921)*12+MONTH($A39)+3+IF(ISNUMBER(FIND("PRV",F$6)),1,0)))*IF(AND(F$3>0,TRIM(F$9)="CFS"),Conversions!$C39,1) -> 12.4725 | G39: =INDIRECT(CONCATENATE("'",G$1,"'!",G$4,(YEAR($A39)-1921)*12+MONTH($A39)+3+IF(ISNUMBER(FIND("PRV",G$6)),1,0)))*IF(AND(G$3>0,TRIM(G$9)="CFS"),Conversions!$C39,1) -> 13.19333333 | K39: 1949 | L39: =B337 -> 0 | M39: =B338 -> 0 | N39: =B339 -> 0 | O39: =B340 -> 0 | P39: =B341 -> 0 | Q39: =B342 -> 0 | R39: =B343 -> 0 | S39: =B344 -> 0 | T39: =B345 -> 0 | U39: =B346 -> 0 | V39: =B347 -> 0 | W39: =B348 -> 0 | Y39: 0 | Z39: 0 | AA39: 0 | AC39: 0 | AD39: 0 | AE39: 0 | AF39: 0 | AG39: 0 | AH39: 0 | AI39: 0 | AK39: 1949 | AL39: =C337 -> 0 | AM39: =C338 -> 0 | AN39: =C339 -> 0 | AO39: =C340 -> 0 | AP39: =C341 -> 0 | AQ39: =C342 -> 0 | AR39: =C343 -> 0 | AS39: =C344 -> 0 | AT39: =C345 -> 0 | AU39: =C346 -> 0 | AV39: =C347 -> 0 | AW39: =C348 -> 0 | AY39: 0 | AZ39: 0 | BA39: 0 | BC39: 0 | BD39: 0 | BE39: 0 | BF39: 0 | BG39: 0 | BH39: 0 | BI39: 0 | BK39: 1949 | BL39: =D337 -> 24.23915307 | BM39: =D338 -> 0 | BN39: =D339 -> 1.192146807e-07 | BO39: =D340 -> 0 | BP39: =D341 -> 0 | BQ39: =D342 -> 0 | BR39: =D343 -> 2.796607983 | BS39: =D344 -> 49.56064019 | BT39: =D345 -> 55.95702497 | BU39: =D346 -> 121.562396 | BV39: =D347 -> 57.89004651 | BW39: =D348 -> 9.971352885 | BY39: 308.5861554 | BZ39: 308.5861554 | CA39: 321.9772217 | CC39: 1.192146807e-07 | CD39: 78.70948623 | CE39: 24.23915319 | CF39: 1.192146807e-07 | CG39: 108.3142731 | CH39: 245.3808203 | CI39: 20.81943972 | CK39: 1949 | CL39: =E337 -> 0 | CM39: =E338 -> 0 | CN39: =E339 -> 0 | CO39: =E340 -> 0 | CP39: =E341 -> 0 | CQ39: =E342 -> 0 | CR39: =E343 -> 3.195875957 | CS39: =E344 -> 57.36073783 | CT39: =E345 -> 23.98179941 | CU39: =E346 -> 82.14975055 | CV39: =E347 -> 2.5 | CW39: =E348 -> 9.64645636 | CY39: 187.8316794 | CZ39: 187.8316794 | DA39: 178.8346201 | DC39: 0 | DD39: 21.14351563 | DE39: 0 | DF39: 0 | DG39: 84.5384132 | DH39: 118.2780063 | DI39: 18.64351563 | DK39: 1949 | DL39: =F337 -> 24.20645942 | DM39: =F338 -> 0 | DN39: =F339 -> 0 | DO39: =F340 -> 0 | DP39: =F341 -> 0 | DQ39: =F342 -> 0 | DR39: =F343 -> 2.796515365 | DS39: =F344 -> 45.02828392 | DT39: =F345 -> 51.92207675 | DU39: =F346 -> 121.562396 | DV39: =F347 -> 109.0577586 | DW39: =F348 -> 47.38881371 | DY39: 392.0130936 | DZ39: 392.0130936 | EA39: 401.9623037 | EC39: 0 | ED39: 167.5073439 | EE39: 24.20645942 | EF39: 0 | EG39: 99.74687603 | EH39: 329.931045 | EI39: 61.64606301 | EK39: 1949 | EL39: =G337 -> 0 | EM39: =G338 -> 0 | EN39: =G339 -> 0 | EO39: =G340 -> 0 | EP39: =G341 -> 0 | EQ39: =G342 -> 0 | ER39: =G343 -> 3.195875957 | ES39: =G344 -> 38.39694368 | ET39: =G345 -> 26.46403297 | EU39: =G346 -> 98.57386064 | EV39: =G347 -> 2.5 | EW39: =G348 -> 9.9637107 | EY39: 188.4707855 | EZ39: 188.4707855 | FA39: 179.0944239 | FC39: 0 | FD39: 21.84007222 | FE39: 0 | FF39: 0 | FG39: 68.05685261 | FH39: 137.5016043 | FI39: 19.34007222
A40: 1924-01-31 | B40: =INDIRECT(CONCATENATE("'",B$1,"'!",B$4,(YEAR($A40)-1921)*12+MONTH($A40)+3+IF(ISNUMBER(FIND("PRV",B$6)),1,0)))*IF(AND(B$3>0,TRIM(B$9)="CFS"),Conversions!$C40,1) -> 0 | C40: =INDIRECT(CONCATENATE("'",C$1,"'!",C$4,(YEAR($A40)-1921)*12+MONTH($A40)+3+IF(ISNUMBER(FIND("PRV",C$6)),1,0)))*IF(AND(C$3>0,TRIM(C$9)="CFS"),Conversions!$C40,1) -> 0 | D40: =INDIRECT(CONCATENATE("'",D$1,"'!",D$4,(YEAR($A40)-1921)*12+MONTH($A40)+3+IF(ISNUMBER(FIND("PRV",D$6)),1,0)))*IF(AND(D$3>0,TRIM(D$9)="CFS"),Conversions!$C40,1) -> 0 | E40: =INDIRECT(CONCATENATE("'",E$1,"'!",E$4,(YEAR($A40)-1921)*12+MONTH($A40)+3+IF(ISNUMBER(FIND("PRV",E$6)),1,0)))*IF(AND(E$3>0,TRIM(E$9)="CFS"),Conversions!$C40,1) -> 0 | F40: =INDIRECT(CONCATENATE("'",F$1,"'!",F$4,(YEAR($A40)-1921)*12+MONTH($A40)+3+IF(ISNUMBER(FIND("PRV",F$6)),1,0)))*IF(AND(F$3>0,TRIM(F$9)="CFS"),Conversions!$C40,1) -> 0 | G40: =INDIRECT(CONCATENATE("'",G$1,"'!",G$4,(YEAR($A40)-1921)*12+MONTH($A40)+3+IF(ISNUMBER(FIND("PRV",G$6)),1,0)))*IF(AND(G$3>0,TRIM(G$9)="CFS"),Conversions!$C40,1) -> 0 | K40: 1950 | L40: =B349 -> 0 | M40: =B350 -> 0 | N40: =B351 -> 0 | O40: =B352 -> 0 | P40: =B353 -> 0 | Q40: =B354 -> 0 | R40: =B355 -> 0 | S40: =B356 -> 0 | T40: =B357 -> 0 | U40: =B358 -> 0 | V40: =B359 -> 0 | W40: =B360 -> 0 | Y40: 0 | Z40: 0 | AA40: 0 | AC40: 0 | AD40: 0 | AE40: 0 | AF40: 0 | AG40: 0 | AH40: 0 | AI40: 0 | AK40: 1950 | AL40: =C349 -> 0 | AM40: =C350 -> 0 | AN40: =C351 -> 0 | AO40: =C352 -> 0 | AP40: =C353 -> 0 | AQ40: =C354 -> 0 | AR40: =C355 -> 0 | AS40: =C356 -> 0 | AT40: =C357 -> 0 | AU40: =C358 -> 0 | AV40: =C359 -> 0 | AW40: =C360 -> 0 | AY40: 0 | AZ40: 0 | BA40: 0 | BC40: 0 | BD40: 0 | BE40: 0 | BF40: 0 | BG40: 0 | BH40: 0 | BI40: 0 | BK40: 1950 | BL40: =D349 -> 10.84808683 | BM40: =D350 -> 0 | BN40: =D351 -> 0 | BO40: =D352 -> 0 | BP40: =D353 -> 0 | BQ40: =D354 -> 0.1635281514 | BR40: =D355 -> 6.563265533 | BS40: =D356 -> 1.641604637 | BT40: =D357 -> 4.305266876 | BU40: =D358 -> 26.79456144 | BV40: =D359 -> 2.909719885 | BW40: =D360 -> 2.5 | BY40: 66.59902132 | BZ40: 66.59902132 | CA40: 55.72603335 | CC40: 0.1635281514 | CD40: 27.13079468 | CE40: 10.84808683 | CF40: 0 | CG40: 12.6736652 | CH40: 36.5095482 | CI40: 24.2210748 | CK40: 1950 | CL40: =E349 -> 8.997059275 | CM40: =E350 -> 0 | CN40: =E351 -> 0 | CO40: =E352 -> 0 | CP40: =E353 -> 0 | CQ40: =E354 -> 0.173994507 | CR40: =E355 -> 7.335248152 | CS40: =E356 -> 38.3135695 | CT40: =E357 -> 12.24670583 | CU40: =E358 -> 21.43034205 | CV40: =E359 -> 0.0347202041 | CW40: =E360 -> 1.729371071 | CY40: 88.15374265 | CZ40: 88.15374265 | DA40: 90.26101058 | DC40: 0.173994507 | DD40: 8.653882623 | DE40: 8.997059275 | DF40: 0 | DG40: 58.06951799 | DH40: 35.44113915 | DI40: 8.619162419 | DK40: 1950 | DL40: =F349 -> 11.06077161 | DM40: =F350 -> 3.196477691 | DN40: =F351 -> 0 | DO40: =F352 -> 0 | DP40: =F353 -> 0 | DQ40: =F354 -> 0.167624243 | DR40: =F355 -> 6.813174899 | DS40: =F356 -> 2.256934204 | DT40: =F357 -> 4.981942649 | DU40: =F358 -> 23.26843738 | DV40: =F359 -> 5.204335165 | DW40: =F360 -> 3.399764729 | DY40: 72.73935437 | DZ40: 72.73935437 | EA40: 60.34946257 | EC40: 3.364101934 | ED40: 35.251241 | EE40: 14.2572493 | EF40: 0 | EG40: 14.219676 | EH40: 36.85447992 | EI40: 30.04690583 | EK40: 1950 | EL40: =G349 -> 9.376361516 | EM40: =G350 -> 0 | EN40: =G351 -> 0 | EO40: =G352 -> 0 | EP40: =G353 -> 0 | EQ40: =G354 -> 0.1753481077 | ER40: =G355 -> 7.417851783 | ES40: =G356 -> 27.2597327 | ET40: =G357 -> 13.9136862 | EU40: =G358 -> 23.65194829 | EV40: =G359 -> 2.5 | EW40: =G360 -> 4.24 | EY40: 86.15974214 | EZ40: 86.15974214 | FA40: 88.5349286 | FC40: 0.1753481077 | FD40: 13.74117506 | FE40: 9.376361516 | FF40: 0 | FG40: 48.76661879 | FH40: 44.30563449 | FI40: 11.24117506
A41: 1924-02-29 | B41: =INDIRECT(CONCATENATE("'",B$1,"'!",B$4,(YEAR($A41)-1921)*12+MONTH($A41)+3+IF(ISNUMBER(FIND("PRV",B$6)),1,0)))*IF(AND(B$3>0,TRIM(B$9)="CFS"),Conversions!$C41,1) -> 0 | C41: =INDIRECT(CONCATENATE("'",C$1,"'!",C$4,(YEAR($A41)-1921)*12+MONTH($A41)+3+IF(ISNUMBER(FIND("PRV",C$6)),1,0)))*IF(AND(C$3>0,TRIM(C$9)="CFS"),Conversions!$C41,1) -> 0 | D41: =INDIRECT(CONCATENATE("'",D$1,"'!",D$4,(YEAR($A41)-1921)*12+MONTH($A41)+3+IF(ISNUMBER(FIND("PRV",D$6)),1,0)))*IF(AND(D$3>0,TRIM(D$9)="CFS"),Conversions!$C41,1) -> 0 | E41: =INDIRECT(CONCATENATE("'",E$1,"'!",E$4,(YEAR($A41)-1921)*12+MONTH($A41)+3+IF(ISNUMBER(FIND("PRV",E$6)),1,0)))*IF(AND(E$3>0,TRIM(E$9)="CFS"),Conversions!$C41,1) -> 0 | F41: =INDIRECT(CONCATENATE("'",F$1,"'!",F$4,(YEAR($A41)-1921)*12+MONTH($A41)+3+IF(ISNUMBER(FIND("PRV",F$6)),1,0)))*IF(AND(F$3>0,TRIM(F$9)="CFS"),Conversions!$C41,1) -> 0 | G41: =INDIRECT(CONCATENATE("'",G$1,"'!",G$4,(YEAR($A41)-1921)*12+MONTH($A41)+3+IF(ISNUMBER(FIND("PRV",G$6)),1,0)))*IF(AND(G$3>0,TRIM(G$9)="CFS"),Conversions!$C41,1) -> 0 | K41: 1951 | L41: =B361 -> 0 | M41: =B362 -> 0 | N41: =B363 -> 0 | O41: =B364 -> 0 | P41: =B365 -> 0 | Q41: =B366 -> 0 | R41: =B367 -> 0 | S41: =B368 -> 0 | T41: =B369 -> 0 | U41: =B370 -> 0 | V41: =B371 -> 0 | W41: =B372 -> 0 | Y41: 0 | Z41: 0 | AA41: 0 | AC41: 0 | AD41: 0 | AE41: 0 | AF41: 0 | AG41: 0 | AH41: 0 | AI41: 0 | AK41: 1951 | AL41: =C361 -> 0 | AM41: =C362 -> 0 | AN41: =C363 -> 0 | AO41: =C364 -> 0 | AP41: =C365 -> 0 | AQ41: =C366 -> 0 | AR41: =C367 -> 0 | AS41: =C368 -> 0 | AT41: =C369 -> 0 | AU41: =C370 -> 0 | AV41: =C371 -> 0 | AW41: =C372 -> 0 | AY41: 0 | AZ41: 0 | BA41: 0 | BC41: 0 | BD41: 0 | BE41: 0 | BF41: 0 | BG41: 0 | BH41: 0 | BI41: 0 | BK41: 1951 | BL41: =D361 -> 21.7210748 | BM41: =D362 -> 0 | BN41: =D363 -> 0 | BO41: =D364 -> 0 | BP41: =D365 -> 0 | BQ41: =D366 -> 0.006194617414 | BR41: =D367 -> 0.2709759814 | BS41: =D368 -> 0 | BT41: =D369 -> 92.88404509 | BU41: =D370 -> 100.8637496 | BV41: =D371 -> 45.49797837 | BW41: =D372 -> 30.5021958 | BY41: 285.1547899 | BZ41: 285.1547899 | CA41: 291.7462143 | CC41: 0.006194617414 | CD41: 89.38982458 | CE41: 21.7210748 | CF41: 0 | CG41: 93.16121569 | CH41: 269.7479689 | CI41: 45.63184621 | CK41: 1951 | CL41: =E361 -> 6.889791348 | CM41: =E362 -> 0 | CN41: =E363 -> 0 | CO41: =E364 -> 0 | CP41: =E365 -> 0 | CQ41: =E366 -> 0.0862821351 | CR41: =E367 -> 3.774306736 | CS41: =E368 -> 0 | CT41: =E369 -> 2.5 | CU41: =E370 -> 2.5 | CV41: =E371 -> 30.0862069 | CW41: =E372 -> 30.0862069 | CY41: 82.14782911 | CZ41: 82.14782911 | DA41: 75.92279402 | DC41: 0.0862821351 | DD41: 73.28724024 | DE41: 6.889791348 | DF41: 0 | DG41: 6.360588872 | DH41: 65.1724138 | DI41: 43.20103334 | DK41: 1951 | DL41: =F361 -> 26.6471411 | DM41: =F362 -> 0 | DN41: =F363 -> 0 | DO41: =F364 -> 0 | DP41: =F365 -> 0 | DQ41: =F366 -> 0.006194617414 | DR41: =F367 -> 0.2709760287 | DS41: =F368 -> 0 | DT41: =F369 -> 92.88404509 | DU41: =F370 -> 30.47613216 | DV41: =F371 -> 31.33646798 | DW41: =F372 -> 30.5021958 | DY41: 214.1348268 | DZ41: 214.1348268 | EA41: 212.1231528 | EC41: 0.006194617414 | ED41: 88.75747894 | EE41: 26.6471411 | EF41: 0 | EG41: 93.16121574 | EH41: 185.198841 | EI41: 59.16101096 | EK41: 1951 | EL41: =G361 -> 7.001175056 | EM41: =G362 -> 0 | EN41: =G363 -> 0 | EO41: =G364 -> 0 | EP41: =G365 -> 0 | EQ41: =G366 -> 0.0862821351 | ER41: =G367 -> 3.774306736 | ES41: =G368 -> 0 | ET41: =G369 -> 2.5 | EU41: =G370 -> 2.5 | EV41: =G371 -> 30.0862069 | EW41: =G372 -> 30.0862069 | EY41: 95.14956206 | EZ41: 95.14956206 | FA41: 76.03417772 | FC41: 0.0862821351 | FD41: 86.28897319 | FE41: 7.001175056 | FF41: 0 | FG41: 6.360588872 | FH41: 65.1724138 | FI41: 56.20276629
A42: 1924-03-31 | B42: =INDIRECT(CONCATENATE("'",B$1,"'!",B$4,(YEAR($A42)-1921)*12+MONTH($A42)+3+IF(ISNUMBER(FIND("PRV",B$6)),1,0)))*IF(AND(B$3>0,TRIM(B$9)="CFS"),Conversions!$C42,1) -> 0 | C42: =INDIRECT(CONCATENATE("'",C$1,"'!",C$4,(YEAR($A42)-1921)*12+MONTH($A42)+3+IF(ISNUMBER(FIND("PRV",C$6)),1,0)))*IF(AND(C$3>0,TRIM(C$9)="CFS"),Conversions!$C42,1) -> 0 | D42: =INDIRECT(CONCATENATE("'",D$1,"'!",D$4,(YEAR($A42)-1921)*12+MONTH($A42)+3+IF(ISNUMBER(FIND("PRV",D$6)),1,0)))*IF(AND(D$3>0,TRIM(D$9)="CFS"),Conversions!$C42,1) -> 5.032537461 | E42: =INDIRECT(CONCATENATE("'",E$1,"'!",E$4,(YEAR($A42)-1921)*12+MONTH($A42)+3+IF(ISNUMBER(FIND("PRV",E$6)),1,0)))*IF(AND(E$3>0,TRIM(E$9)="CFS"),Conversions!$C42,1) -> 5.032537461 | F42: =INDIRECT(CONCATENATE("'",F$1,"'!",F$4,(YEAR($A42)-1921)*12+MONTH($A42)+3+IF(ISNUMBER(FIND("PRV",F$6)),1,0)))*IF(AND(F$3>0,TRIM(F$9)="CFS"),Conversions!$C42,1) -> 5.032537461 | G42: =INDIRECT(CONCATENATE("'",G$1,"'!",G$4,(YEAR($A42)-1921)*12+MONTH($A42)+3+IF(ISNUMBER(FIND("PRV",G$6)),1,0)))*IF(AND(G$3>0,TRIM(G$9)="CFS"),Conversions!$C42,1) -> 5.032537461 | K42: 1952 | L42: =B373 -> 0 | M42: =B374 -> 0 | N42: =B375 -> 0 | O42: =B376 -> 0 | P42: =B377 -> 0 | Q42: =B378 -> 0 | R42: =B379 -> 0 | S42: =B380 -> 0 | T42: =B381 -> 0 | U42: =B382 -> 0 | V42: =B383 -> 0 | W42: =B384 -> 0 | Y42: 0 | Z42: 0 | AA42: 0 | AC42: 0 | AD42: 0 | AE42: 0 | AF42: 0 | AG42: 0 | AH42: 0 | AI42: 0 | AK42: 1952 | AL42: =C373 -> 0 | AM42: =C374 -> 0 | AN42: =C375 -> 0 | AO42: =C376 -> 0 | AP42: =C377 -> 0 | AQ42: =C378 -> 0 | AR42: =C379 -> 0 | AS42: =C380 -> 0 | AT42: =C381 -> 0 | AU42: =C382 -> 0 | AV42: =C383 -> 0 | AW42: =C384 -> 0 | AY42: 0 | AZ42: 0 | BA42: 0 | BC42: 0 | BD42: 0 | BE42: 0 | BF42: 0 | BG42: 0 | BH42: 0 | BI42: 0 | BK42: 1952 | BL42: =D373 -> 13.38965041 | BM42: =D374 -> 1.74 | BN42: =D375 -> 0 | BO42: =D376 -> 0 | BP42: =D377 -> 0 | BQ42: =D378 -> 0 | BR42: =D379 -> 0 | BS42: =D380 -> 0 | BT42: =D381 -> 1.852375478 | BU42: =D382 -> 2.345336251 | BV42: =D383 -> 29.53744166 | BW42: =D384 -> 28.39260313 | BY42: 89.71396341 | BZ42: 89.71396341 | CA42: 77.25740693 | CC42: 1.74 | CD42: 85.51625168 | CE42: 15.12965041 | CF42: 0 | CG42: 1.852375478 | CH42: 62.12775651 | CI42: 55.97881003 | CK42: 1952 | CL42: =E373 -> 13.11482644 | CM42: =E374 -> 0 | CN42: =E375 -> 0 | CO42: =E376 -> 0 | CP42: =E377 -> 0 | CQ42: =E378 -> 0 | CR42: =E379 -> 0 | CS42: =E380 -> 0 | CT42: =E381 -> 1.852375478 | CU42: =E382 -> 2.345336251 | CV42: =E383 -> 29.53744166 | CW42: =E384 -> 0.8063962299 | CY42: 62.12775651 | CZ42: 62.12775651 | DA42: 47.65637606 | DC42: 0 | DD42: 57.93004479 | DE42: 13.11482644 | DF42: 0 | DG42: 1.852375478 | DH42: 34.54154962 | DI42: 28.39260313 | DK42: 1952 | DL42: =F373 -> 26.91881517 | DM42: =F374 -> 1.74 | DN42: =F375 -> 0 | DO42: =F376 -> 0 | DP42: =F377 -> 0 | DQ42: =F378 -> 0 | DR42: =F379 -> 0 | DS42: =F380 -> 0 | DT42: =F381 -> 1.852375478 | DU42: =F382 -> 2.345336251 | DV42: =F383 -> 29.53744166 | DW42: =F384 -> 28.39260313 | DY42: 89.71396341 | DZ42: 89.71396341 | EA42: 90.78657168 | EC42: 1.74 | ED42: 85.51625168 | EE42: 28.65881517 | EF42: 0 | EG42: 1.852375478 | EH42: 62.12775651 | EI42: 55.97881003 | EK42: 1952 | EL42: =G373 -> 26.11655939 | EM42: =G374 -> 0 | EN42: =G375 -> 0 | EO42: =G376 -> 0 | EP42: =G377 -> 0 | EQ42: =G378 -> 0 | ER42: =G379 -> 0 | ES42: =G380 -> 0 | ET42: =G381 -> 1.852375478 | EU42: =G382 -> 2.345336251 | EV42: =G383 -> 29.53744166 | EW42: =G384 -> 28.39260313 | EY42: 89.71396341 | EZ42: 89.71396341 | FA42: 88.24431591 | FC42: 0 | FD42: 85.51625168 | FE42: 26.11655939 | FF42: 0 | FG42: 1.852375478 | FH42: 62.12775651 | FI42: 55.97881003
A43: 1924-04-30 | B43: =INDIRECT(CONCATENATE("'",B$1,"'!",B$4,(YEAR($A43)-1921)*12+MONTH($A43)+3+IF(ISNUMBER(FIND("PRV",B$6)),1,0)))*IF(AND(B$3>0,TRIM(B$9)="CFS"),Conversions!$C43,1) -> 0 | C43: =INDIRECT(CONCATENATE("'",C$1,"'!",C$4,(YEAR($A43)-1921)*12+MONTH($A43)+3+IF(ISNUMBER(FIND("PRV",C$6)),1,0)))*IF(AND(C$3>0,TRIM(C$9)="CFS"),Conversions!$C43,1) -> 0 | D43: =INDIRECT(CONCATENATE("'",D$1,"'!",D$4,(YEAR($A43)-1921)*12+MONTH($A43)+3+IF(ISNUMBER(FIND("PRV",D$6)),1,0)))*IF(AND(D$3>0,TRIM(D$9)="CFS"),Conversions!$C43,1) -> 85.0632258 | E43: =INDIRECT(CONCATENATE("'",E$1,"'!",E$4,(YEAR($A43)-1921)*12+MONTH($A43)+3+IF(ISNUMBER(FIND("PRV",E$6)),1,0)))*IF(AND(E$3>0,TRIM(E$9)="CFS"),Conversions!$C43,1) -> 87.21273533 | F43: =INDIRECT(CONCATENATE("'",F$1,"'!",F$4,(YEAR($A43)-1921)*12+MONTH($A43)+3+IF(ISNUMBER(FIND("PRV",F$6)),1,0)))*IF(AND(F$3>0,TRIM(F$9)="CFS"),Conversions!$C43,1) -> 85.10537924 | G43: =INDIRECT(CONCATENATE("'",G$1,"'!",G$4,(YEAR($A43)-1921)*12+MONTH($A43)+3+IF(ISNUMBER(FIND("PRV",G$6)),1,0)))*IF(AND(G$3>0,TRIM(G$9)="CFS"),Conversions!$C43,1) -> 87.2116989 | K43: 1953 | L43: =B385 -> 0 | M43: =B386 -> 0 | N43: =B387 -> 0 | O43: =B388 -> 0 | P43: =B389 -> 0 | Q43: =B390 -> 0 | R43: =B391 -> 0 | S43: =B392 -> 0 | T43: =B393 -> 0 | U43: =B394 -> 0 | V43: =B395 -> 0 | W43: =B396 -> 0 | Y43: 0 | Z43: 0 | AA43: 0 | AC43: 0 | AD43: 0 | AE43: 0 | AF43: 0 | AG43: 0 | AH43: 0 | AI43: 0 | AK43: 1953 | AL43: =C385 -> 0 | AM43: =C386 -> 0 | AN43: =C387 -> 0 | AO43: =C388 -> 0 | AP43: =C389 -> 0 | AQ43: =C390 -> 0 | AR43: =C391 -> 0 | AS43: =C392 -> 0 | AT43: =C393 -> 0 | AU43: =C394 -> 0 | AV43: =C395 -> 0 | AW43: =C396 -> 0 | AY43: 0 | AZ43: 0 | BA43: 0 | BC43: 0 | BD43: 0 | BE43: 0 | BF43: 0 | BG43: 0 | BH43: 0 | BI43: 0 | BK43: 1953 | BL43: =D385 -> 27.5862069 | BM43: =D386 -> 0 | BN43: =D387 -> 0 | BO43: =D388 -> 0 | BP43: =D389 -> 0 | BQ43: =D390 -> 0.3436359331 | BR43: =D391 -> 0 | BS43: =D392 -> 0 | BT43: =D393 -> 2.157159989 | BU43: =D394 -> 5.72 | BV43: =D395 -> 30.0862069 | BW43: =D396 -> 35.7107771 | BY43: 101.6039868 | BZ43: 101.6039868 | CA43: 101.6039868 | CC43: 0.3436359331 | CD43: 93.3831909 | CE43: 27.5862069 | CF43: 0 | CG43: 2.500795922 | CH43: 73.67414399 | CI43: 63.296984 | CK43: 1953 | CL43: =E385 -> 27.5862069 | CM43: =E386 -> 0 | CN43: =E387 -> 0 | CO43: =E388 -> 0 | CP43: =E389 -> 0 | CQ43: =E390 -> 0.4834396644 | CR43: =E391 -> 1.462425727 | CS43: =E392 -> 0 | CT43: =E393 -> 2.157159989 | CU43: =E394 -> 2.5 | CV43: =E395 -> 30.0862069 | CW43: =E396 -> 28.48844168 | CY43: 92.76388085 | CZ43: 92.76388085 | DA43: 92.76388085 | DC43: 0.4834396644 | DD43: 86.16085547 | DE43: 27.5862069 | DF43: 0 | DG43: 4.10302538 | DH43: 63.23180856 | DI43: 56.07464857 | DK43: 1953 | DL43: =F385 -> 27.5862069 | DM43: =F386 -> 0 | DN43: =F387 -> 0 | DO43: =F388 -> 0 | DP43: =F389 -> 0 | DQ43: =F390 -> 0.3910112729 | DR43: =F391 -> 0.07090947837 | DS43: =F392 -> 0 | DT43: =F393 -> 2.157159989 | DU43: =F394 -> 5.72 | DV43: =F395 -> 30.0862069 | DW43: =F396 -> 35.70228986 | DY43: 101.7137844 | DZ43: 101.7137844 | EA43: 101.7137844 | EC43: 0.3910112729 | ED43: 93.37470366 | EE43: 27.5862069 | EF43: 0 | EG43: 2.619080741 | EH43: 73.66565675 | EI43: 63.28849676 | EK43: 1953 | EL43: =G385 -> 27.5862069 | EM43: =G386 -> 0 | EN43: =G387 -> 0 | EO43: =G388 -> 0 | EP43: =G389 -> 0 | EQ43: =G390 -> 0.5308150042 | ER43: =G391 -> 1.883957795 | ES43: =G392 -> 0 | ET43: =G393 -> 2.157159989 | EU43: =G394 -> 2.5 | EV43: =G395 -> 30.0862069 | EW43: =G396 -> 28.48844168 | EY43: 103.3087349 | EZ43: 103.3087349 | FA43: 93.23278826 | FC43: 0.5308150042 | FD43: 86.16085547 | FE43: 27.5862069 | FF43: 0 | FG43: 4.571932789 | FH43: 63.23180856 | FI43: 56.07464857
A44: 1924-05-31 | B44: =INDIRECT(CONCATENATE("'",B$1,"'!",B$4,(YEAR($A44)-1921)*12+MONTH($A44)+3+IF(ISNUMBER(FIND("PRV",B$6)),1,0)))*IF(AND(B$3>0,TRIM(B$9)="CFS"),Conversions!$C44,1) -> 0 | C44: =INDIRECT(CONCATENATE("'",C$1,"'!",C$4,(YEAR($A44)-1921)*12+MONTH($A44)+3+IF(ISNUMBER(FIND("PRV",C$6)),1,0)))*IF(AND(C$3>0,TRIM(C$9)="CFS"),Conversions!$C44,1) -> 0 | D44: =INDIRECT(CONCATENATE("'",D$1,"'!",D$4,(YEAR($A44)-1921)*12+MONTH($A44)+3+IF(ISNUMBER(FIND("PRV",D$6)),1,0)))*IF(AND(D$3>0,TRIM(D$9)="CFS"),Conversions!$C44,1) -> 52.04843344 | E44: =INDIRECT(CONCATENATE("'",E$1,"'!",E$4,(YEAR($A44)-1921)*12+MONTH($A44)+3+IF(ISNUMBER(FIND("PRV",E$6)),1,0)))*IF(AND(E$3>0,TRIM(E$9)="CFS"),Conversions!$C44,1) -> 35.79604447 | F44: =INDIRECT(CONCATENATE("'",F$1,"'!",F$4,(YEAR($A44)-1921)*12+MONTH($A44)+3+IF(ISNUMBER(FIND("PRV",F$6)),1,0)))*IF(AND(F$3>0,TRIM(F$9)="CFS"),Conversions!$C44,1) -> 52.04836391 | G44: =INDIRECT(CONCATENATE("'",G$1,"'!",G$4,(YEAR($A44)-1921)*12+MONTH($A44)+3+IF(ISNUMBER(FIND("PRV",G$6)),1,0)))*IF(AND(G$3>0,TRIM(G$9)="CFS"),Conversions!$C44,1) -> 22.13921375 | K44: 1954 | L44: =B397 -> 0 | M44: =B398 -> 0 | N44: =B399 -> 0 | O44: =B400 -> 0 | P44: =B401 -> 0 | Q44: =B402 -> 0 | R44: =B403 -> 0 | S44: =B404 -> 0 | T44: =B405 -> 0 | U44: =B406 -> 0 | V44: =B407 -> 0 | W44: =B408 -> 0 | Y44: 0 | Z44: 0 | AA44: 0 | AC44: 0 | AD44: 0 | AE44: =IF(AE$11="AVG",IF(AE$1="INST-VAL",AVERAGE(W43,L44:N44,L44:O44),AVERAGE(L44:O44)),SUM(L44:O44)) -> 0 | AF44: 0 | AG44: 0 | AH44: 0 | AI44: 0 | AK44: 1954 | AL44: =C397 -> 0 | AM44: =C398 -> 0 | AN44: =C399 -> 0 | AO44: =C400 -> 0 | AP44: =C401 -> 0 | AQ44: =C402 -> 0 | AR44: =C403 -> 0 | AS44: =C404 -> 0 | AT44: =C405 -> 0 | AU44: =C406 -> 0 | AV44: =C407 -> 0 | AW44: =C408 -> 0 | AY44: 0 | AZ44: 0 | BA44: 0 | BC44: 0 | BD44: 0 | BE44: 0 | BF44: 0 | BG44: 0 | BH44: 0 | BI44: 0 | BK44: 1954 | BL44: =D397 -> 27.5862069 | BM44: =D398 -> 0 | BN44: =D399 -> 0 | BO44: =D400 -> 0 | BP44: =D401 -> 0 | BQ44: =D402 -> 0 | BR44: =D403 -> 0 | BS44: =D404 -> 0 | BT44: =D405 -> 92.8696669 | BU44: =D406 -> 103.5616637 | BV44: =D407 -> 113.4277356 | BW44: =D408 -> 57.7609218 | BY44: 399.4361949 | BZ44: 399.4361949 | CA44: 395.2061949 | CC44: 0 | CD44: 201.2648643 | CE44: =IF(CE$11="AVG",IF(CE$1="INST-VAL",AVERAGE(BW43,BL44:BN44,BL44:BO44),AVERAGE(BL44:BO44)),SUM(BL44:BO44)) -> 27.5862069 | CF44: =IF(CF$11="AVG",IF(CE$1="INST-VAL",AVERAGE(BM44:BO44,BN44:BP44),AVERAGE(BN44:BP44)),SUM(BN44:BP44)) -> 0 | CG44: =IF(CG$11="AVG",IF(CE$1="INST-VAL",AVERAGE(BP44:BS44,BQ44:BT44),AVERAGE(BQ44:BT44)),SUM(BQ44:BT44)) -> 92.8696669 | CH44: =IF(CH$11="AVG",IF(CE$1="INST-VAL",AVERAGE(BS44:BV44,BT44:BW44),AVERAGE(BT44:BW44)),SUM(BT44:BW44)) -> 367.619988 | CI44: =IF(CI$11="AVG",IF(CE$1="INST-VAL",AVERAGE(BV44:BW44,BL45,BW44,BL45:BM45),AVERAGE(BW44,BL45:BM45)),SUM(BW44,BL45:BM45)) -> 89.5771287 | CK44: 1954 | CL44: =E397 -> 27.5862069 | CM44: =E398 -> 0 | CN44: =E399 -> 0 | CO44: =E400 -> 0 | CP44: =E401 -> 0 | CQ44: =E402 -> 0 | CR44: =E403 -> 1.056261726 | CS44: =E404 -> 43.63229327 | CT44: =E405 -> 92.8696669 | CU44: =E406 -> 140.5623916 | CV44: =E407 -> 145.4071496 | CW44: =E408 -> 91.38265901 | CY44: 549.2166291 | CZ44: 549.2166291 | DA44: 542.4966291 | DC44: 0 | DD44: 269.3560155 | DE44: 27.5862069 | DF44: 0 | DG44: 137.5582219 | DH44: 470.2218672 | DI44: 125.6888659 | DK44: 1954 | DL44: =F397 -> 27.5862069 | DM44: =F398 -> 0 | DN44: =F399 -> 0 | DO44: =F400 -> 0 | DP44: =F401 -> 0 | DQ44: =F402 -> 0 | DR44: =F403 -> 0 | DS44: =F404 -> 0 | DT44: =F405 -> 92.8696669 | DU44: =F406 -> 103.5616637 | DV44: =F407 -> 64.61057759 | DW44: =F408 -> 29.58771446 | DY44: 322.4458295 | DZ44: 322.4458295 | EA44: 318.2158295 | EC44: 0 | ED44: 124.2744989 | EE44: 27.5862069 | EF44: 0 | EG44: 92.8696669 | EH44: 290.6296226 | EI44: 61.40392136 | EK44: 1954 | EL44: =G397 -> 27.5862069 | EM44: =G398 -> 0 | EN44: =G399 -> 10.07594666 | EO44: =G400 -> 0 | EP44: =G401 -> 0 | EQ44: =G402 -> 0 | ER44: =G403 -> 1.056261725 | ES44: =G404 -> 105.1203057 | ET44: =G405 -> 92.8696669 | EU44: =G406 -> 38.37823835 | EV44: =G407 -> 82.86370876 | EW44: =G408 -> 75.86992745 | EY44: 427.9743158 | EZ44: 427.9743158 | FA44: 433.8202625 | FC44: 10.07594666 | FD44: 188.8098431 | FE44: 37.66215356 | FF44: 10.07594666 | FG44: 199.0462343 | FH44: 289.9815415 | FI44: 107.6861344
A45: 1924-06-30 | B45: =INDIRECT(CONCATENATE("'",B$1,"'!",B$4,(YEAR($A45)-1921)*12+MONTH($A45)+3+IF(ISNUMBER(FIND("PRV",B$6)),1,0)))*IF(AND(B$3>0,TRIM(B$9)="CFS"),Conversions!$C45,1) -> 0 | C45: =INDIRECT(CONCATENATE("'",C$1,"'!",C$4,(YEAR($A45)-1921)*12+MONTH($A45)+3+IF(ISNUMBER(FIND("PRV",C$6)),1,0)))*IF(AND(C$3>0,TRIM(C$9)="CFS"),Conversions!$C45,1) -> 0 | D45: =INDIRECT(CONCATENATE("'",D$1,"'!",D$4,(YEAR($A45)-1921)*12+MONTH($A45)+3+IF(ISNUMBER(FIND("PRV",D$6)),1,0)))*IF(AND(D$3>0,TRIM(D$9)="CFS"),Conversions!$C45,1) -> 81.15003313 | E45: =INDIRECT(CONCATENATE("'",E$1,"'!",E$4,(YEAR($A45)-1921)*12+MONTH($A45)+3+IF(ISNUMBER(FIND("PRV",E$6)),1,0)))*IF(AND(E$3>0,TRIM(E$9)="CFS"),Conversions!$C45,1) -> 86.42870708 | F45: =INDIRECT(CONCATENATE("'",F$1,"'!",F$4,(YEAR($A45)-1921)*12+MONTH($A45)+3+IF(ISNUMBER(FIND("PRV",F$6)),1,0)))*IF(AND(F$3>0,TRIM(F$9)="CFS"),Conversions!$C45,1) -> 90.86101031 | G45: =INDIRECT(CONCATENATE("'",G$1,"'!",G$4,(YEAR($A45)-1921)*12+MONTH($A45)+3+IF(ISNUMBER(FIND("PRV",G$6)),1,0)))*IF(AND(G$3>0,TRIM(G$9)="CFS"),Conversions!$C45,1) -> 86.46770353 | K45: 1955 | L45: =B409 -> 0 | M45: =B410 -> 0 | N45: =B411 -> 0 | O45: =B412 -> 0 | P45: =B413 -> 0 | Q45: =B414 -> 0 | R45: =B415 -> 0 | S45: =B416 -> 0 | T45: =B417 -> 0 | U45: =B418 -> 0 | V45: =B419 -> 0 | W45: =B420 -> 0 | Y45: 0 | Z45: 0 | AA45: 0 | AC45: 0 | AD45: 0 | AE45: 0 | AF45: 0 | AG45: 0 | AH45: 0 | AI45: 0 | AK45: 1955 | AL45: =C409 -> 0 | AM45: =C410 -> 0 | AN45: =C411 -> 0 | AO45: =C412 -> 0 | AP45: =C413 -> 0 | AQ45: =C414 -> 0 | AR45: =C415 -> 0 | AS45: =C416 -> 0 | AT45: =C417 -> 0 | AU45: =C418 -> 0 | AV45: =C419 -> 0 | AW45: =C420 -> 0 | AY45: 0 | AZ45: 0 | BA45: 0 | BC45: 0 | BD45: 0 | BE45: 0 | BF45: 0 | BG45: 0 | BH45: 0 | BI45: 0 | BK45: 1955 | BL45: =D409 -> 30.0762069 | BM45: =D410 -> 1.74 | BN45: =D411 -> 0 | BO45: =D412 -> 0 | BP45: =D413 -> 0 | BQ45: =D414 -> 0.774123165 | BR45: =D415 -> 5.961138326 | BS45: =D416 -> 30.57312943 | BT45: =D417 -> 140.4512897 | BU45: =D418 -> 119.3264463 | BV45: =D419 -> 113.191472 | BW45: =D420 -> 72.52567256 | BY45: 592.0925124 | BZ45: 592.0925124 | CA45: 514.6194784 | CC45: 2.514123165 | CD45: 262.5216597 | CE45: 31.8162069 | CF45: 0 | CG45: 177.7596806 | CH45: 445.4948806 | CI45: 181.8149134 | CK45: 1955 | CL45: =E409 -> 32.5662069 | CM45: =E410 -> 1.74 | CN45: =E411 -> 0 | CO45: =E412 -> 0 | CP45: =E413 -> 0 | CQ45: =E414 -> 0.8002395106 | CR45: =E415 -> 6.162247343 | CS45: =E416 -> 30.57312943 | CT45: =E417 -> 74.31422961 | CU45: =E418 -> 121.1313674 | CV45: =E419 -> 114.6663728 | CW45: =E420 -> 76.98743667 | CY45: 503.3085881 | CZ45: 503.3085881 | DA45: 458.9412296 | DC45: 2.540239511 | DD45: 268.5873748 | DE45: 34.3062069 | DF45: 0 | DG45: 111.8498459 | DH45: 387.0994064 | DI45: 155.661002 | DK45: 1955 | DL45: =F409 -> 30.0762069 | DM45: =F410 -> 1.74 | DN45: =F411 -> 0 | DO45: =F412 -> 0 | DP45: =F413 -> 0 | DQ45: =F414 -> 0.8856430743 | DR45: =F415 -> 6.819897805 | DS45: =F416 -> 30.57312943 | DT45: =F417 -> 105.3170238 | DU45: =F418 -> 121.3201251 | DV45: =F419 -> 114.8234366 | DW45: =F420 -> 77.04323666 | DY45: 565.8445998 | DZ45: 565.8445998 | EA45: 488.5986994 | EC45: 2.625643074 | ED45: 268.8394428 | EE45: 31.8162069 | EF45: 0 | EG45: 143.5956941 | EH45: 418.5038221 | EI45: 186.105344 | EK45: 1955 | EL45: =G409 -> 30.0762069 | EM45: =G410 -> 1.74 | EN45: =G411 -> 0 | EO45: =G412 -> 0 | EP45: =G413 -> 0 | EQ45: =G414 -> 0.7986401686 | ER45: =G415 -> 6.149931604 | ES45: =G416 -> 11.54003583 | ET45: =G417 -> 67.95081921 | EU45: =G418 -> 121.1187753 | EV45: =G419 -> 114.6554753 | EW45: =G420 -> 76.98371415 | EY45: 477.8698241 | EZ45: 477.8698241 | FA45: 431.0135986 | FC45: 2.538640169 | FD45: 268.571622 | FE45: 31.8162069 | FF45: 0 | FG45: 86.43942682 | FH45: 380.7087841 | FI45: 155.6561466
A46: 1924-07-31 | B46: =INDIRECT(CONCATENATE("'",B$1,"'!",B$4,(YEAR($A46)-1921)*12+MONTH($A46)+3+IF(ISNUMBER(FIND("PRV",B$6)),1,0)))*IF(AND(B$3>0,TRIM(B$9)="CFS"),Conversions!$C46,1) -> 0 | C46: =INDIRECT(CONCATENATE("'",C$1,"'!",C$4,(YEAR($A46)-1921)*12+MONTH($A46)+3+IF(ISNUMBER(FIND("PRV",C$6)),1,0)))*IF(AND(C$3>0,TRIM(C$9)="CFS"),Conversions!$C46,1) -> 0 | D46: =INDIRECT(CONCATENATE("'",D$1,"'!",D$4,(YEAR($A46)-1921)*12+MONTH($A46)+3+IF(ISNUMBER(FIND("PRV",D$6)),1,0)))*IF(AND(D$3>0,TRIM(D$9)="CFS"),Conversions!$C46,1) -> 119.3264463 | E46: =INDIRECT(CONCATENATE("'",E$1,"'!",E$4,(YEAR($A46)-1921)*12+MONTH($A46)+3+IF(ISNUMBER(FIND("PRV",E$6)),1,0)))*IF(AND(E$3>0,TRIM(E$9)="CFS"),Conversions!$C46,1) -> 119.3264467 | F46: =INDIRECT(CONCATENATE("'",F$1,"'!",F$4,(YEAR($A46)-1921)*12+MONTH($A46)+3+IF(ISNUMBER(FIND("PRV",F$6)),1,0)))*IF(AND(F$3>0,TRIM(F$9)="CFS"),Conversions!$C46,1) -> 119.3293937 | G46: =INDIRECT(CONCATENATE("'",G$1,"'!",G$4,(YEAR($A46)-1921)*12+MONTH($A46)+3+IF(ISNUMBER(FIND("PRV",G$6)),1,0)))*IF(AND(G$3>0,TRIM(G$9)="CFS"),Conversions!$C46,1) -> 119.3264463 | K46: 1956 | L46: =B421 -> 0 | M46: =B422 -> 0 | N46: =B423 -> 0 | O46: =B424 -> 0 | P46: =B425 -> 0 | Q46: =B426 -> 0 | R46: =B427 -> 0 | S46: =B428 -> 0 | T46: =B429 -> 0 | U46: =B430 -> 0 | V46: =B431 -> 0 | W46: =B432 -> 0 | Y46: 0 | Z46: 0 | AA46: 0 | AC46: 0 | AD46: 0 | AE46: 0 | AF46: 0 | AG46: 0 | AH46: 0 | AI46: 0 | AK46: 1956 | AL46: =C421 -> 0 | AM46: =C422 -> 0 | AN46: =C423 -> 0 | AO46: =C424 -> 0 | AP46: =C425 -> 0 | AQ46: =C426 -> 0 | AR46: =C427 -> 0 | AS46: =C428 -> 0 | AT46: =C429 -> 0 | AU46: =C430 -> 0 | AV46: =C431 -> 0 | AW46: =C432 -> 0 | AY46: 0 | AZ46: 0 | BA46: 0 | BC46: 0 | BD46: 0 | BE46: 0 | BF46: 0 | BG46: 0 | BH46: 0 | BI46: 0 | BK46: 1956 | BL46: =D421 -> 76.80451507 | BM46: =D422 -> 32.48472578 | BN46: =D423 -> 0 | BO46: =D424 -> 0 | BP46: =D425 -> 0 | BQ46: =D426 -> 0 | BR46: =D427 -> 0 | BS46: =D428 -> 0 | BT46: =D429 -> 2.01210152 | BU46: =D430 -> 2.5 | BV46: =D431 -> 30.0862069 | BW46: =D432 -> 0.743101235 | BY46: 35.34140965 | BZ46: 35.34140965 | CA46: 144.6306505 | CC46: 32.48472578 | CD46: 30.82930813 | CE46: 109.2892408 | CF46: 0 | CG46: 2.01210152 | CH46: 35.34140965 | CI46: 0.743101235 | CK46: 1956 | CL46: =E421 -> 76.93356532 | CM46: =E422 -> 1.74 | CN46: =E423 -> 0 | CO46: =E424 -> 0 | CP46: =E425 -> 0 | CQ46: =E426 -> 0.04072758973 | CR46: =E427 -> 0.7177251864 | CS46: =E428 -> 0.4592491079 | CT46: =E429 -> 2.643805804 | CU46: =E430 -> 3.280127881 | CV46: =E431 -> 30.72581032 | CW46: =E432 -> 0.9756909666 | CY46: 38.89123715 | CZ46: 38.89123715 | DA46: 117.5167022 | DC46: 1.78072759 | DD46: 31.74760823 | DE46: 78.67356532 | DF46: 0 | DG46: 3.861507688 | DH46: 37.62543497 | DI46: 1.023791261 | DK46: 1956 | DL46: =F421 -> 76.97276954 | DM46: =F422 -> 32.08933782 | DN46: =F423 -> 0 | DO46: =F424 -> 0 | DP46: =F425 -> 0 | DQ46: =F426 -> 0 | DR46: =F427 -> 0 | DS46: =F428 -> 0 | DT46: =F429 -> 2.01210152 | DU46: =F430 -> 2.5 | DV46: =F431 -> 30.08620681 | DW46: =F432 -> 28.32930813 | DY46: 90.51382336 | DZ46: 90.51382336 | EA46: 171.9897238 | EC46: 32.08933782 | ED46: 86.00172184 | EE46: 109.0621074 | EF46: 0 | EG46: 2.01210152 | EH46: 62.92761646 | EI46: 55.91551503 | EK46: 1956 | EL46: =G421 -> 76.93243246 | EM46: =G422 -> 1.74 | EN46: =G423 -> 0 | EO46: =G424 -> 0 | EP46: =G425 -> 0 | EQ46: =G426 -> 0.04072758973 | ER46: =G427 -> 0.7177251864 | ES46: =G428 -> 0.4592491079 | ET46: =G429 -> 2.643805804 | EU46: =G430 -> 3.280127881 | EV46: =G431 -> 30.72581032 | EW46: =G432 -> 23.15674054 | EY46: 61.07228672 | EZ46: 61.07228672 | FA46: 139.6966189 | FC46: 1.78072759 | FD46: 53.9286578 | FE46: 78.67243246 | FF46: 0 | FG46: 3.861507688 | FH46: 59.80648454 | FI46: 23.20484083
A47: 1924-08-31 | B47: =INDIRECT(CONCATENATE("'",B$1,"'!",B$4,(YEAR($A47)-1921)*12+MONTH($A47)+3+IF(ISNUMBER(FIND("PRV",B$6)),1,0)))*IF(AND(B$3>0,TRIM(B$9)="CFS"),Conversions!$C47,1) -> 0 | C47: =INDIRECT(CONCATENATE("'",C$1,"'!",C$4,(YEAR($A47)-1921)*12+MONTH($A47)+3+IF(ISNUMBER(FIND("PRV",C$6)),1,0)))*IF(AND(C$3>0,TRIM(C$9)="CFS"),Conversions!$C47,1) -> 0 | D47: =INDIRECT(CONCATENATE("'",D$1,"'!",D$4,(YEAR($A47)-1921)*12+MONTH($A47)+3+IF(ISNUMBER(FIND("PRV",D$6)),1,0)))*IF(AND(D$3>0,TRIM(D$9)="CFS"),Conversions!$C47,1) -> 63.20860847 | E47: =INDIRECT(CONCATENATE("'",E$1,"'!",E$4,(YEAR($A47)-1921)*12+MONTH($A47)+3+IF(ISNUMBER(FIND("PRV",E$6)),1,0)))*IF(AND(E$3>0,TRIM(E$9)="CFS"),Conversions!$C47,1) -> 109.1580601 | F47: =INDIRECT(CONCATENATE("'",F$1,"'!",F$4,(YEAR($A47)-1921)*12+MONTH($A47)+3+IF(ISNUMBER(FIND("PRV",F$6)),1,0)))*IF(AND(F$3>0,TRIM(F$9)="CFS"),Conversions!$C47,1) -> 109.1580601 | G47: =INDIRECT(CONCATENATE("'",G$1,"'!",G$4,(YEAR($A47)-1921)*12+MONTH($A47)+3+IF(ISNUMBER(FIND("PRV",G$6)),1,0)))*IF(AND(G$3>0,TRIM(G$9)="CFS"),Conversions!$C47,1) -> 109.1580601 | K47: 1957 | L47: =B433 -> 0 | M47: =B434 -> 0 | N47: =B435 -> 0 | O47: =B436 -> 0 | P47: =B437 -> 0 | Q47: =B438 -> 0 | R47: =B439 -> 0 | S47: =B440 -> 0 | T47: =B441 -> 0 | U47: =B442 -> 0 | V47: =B443 -> 0 | W47: =B444 -> 0 | Y47: 0 | Z47: 0 | AA47: 0 | AC47: 0 | AD47: 0 | AE47: 0 | AF47: 0 | AG47: 0 | AH47: 0 | AI47: 0 | AK47: 1957 | AL47: =C433 -> 0 | AM47: =C434 -> 0 | AN47: =C435 -> 0 | AO47: =C436 -> 0 | AP47: =C437 -> 0 | AQ47: =C438 -> 0 | AR47: =C439 -> 0 | AS47: =C440 -> 0 | AT47: =C441 -> 0 | AU47: =C442 -> 0 | AV47: =C443 -> 0 | AW47: =C444 -> 0 | AY47: 0 | AZ47: 0 | BA47: 0 | BC47: 0 | BD47: 0 | BE47: 0 | BF47: 0 | BG47: 0 | BH47: 0 | BI47: 0 | BK47: 1957 | BL47: =D433 -> 0 | BM47: =D434 -> 0 | BN47: =D435 -> 0 | BO47: =D436 -> 0 | BP47: =D437 -> 0 | BQ47: =D438 -> 0.8871457062 | BR47: =D439 -> 2.919386122 | BS47: =D440 -> 0 | BT47: =D441 -> 93.34878203 | BU47: =D442 -> 101.2766906 | BV47: =D443 -> 118.536386 | BW47: =D444 -> 30.938839 | BY47: 349.6472294 | BZ47: 349.6472294 | CA47: 347.9072294 | CC47: 0.8871457062 | CD47: 149.475225 | CE47: 0 | CF47: 0 | CG47: 97.15531386 | CH47: 344.1006976 | CI47: 32.678839 | CK47: 1957 | CL47: =E433 -> 0.04610694138 | CM47: =E434 -> 0.001993353486 | CN47: =E435 -> 0 | CO47: =E436 -> 0 | CP47: =E437 -> 0 | CQ47: =E438 -> 1.127048833 | CR47: =E439 -> 4.528044241 | CS47: =E440 -> 0 | CT47: =E441 -> 116.8219299 | CU47: =E442 -> 132.5742206 | CV47: =E443 -> 116.8978285 | CW47: =E444 -> 30.9260397 | CY47: 477.5715136 | CZ47: 477.5715136 | DA47: 402.923212 | DC47: 1.129042186 | DD47: 147.8238682 | DE47: 0.04810029487 | DF47: 0 | DG47: 122.477023 | DH47: 397.2200187 | DI47: 105.6224416 | DK47: 1957 | DL47: =F433 -> 27.5862069 | DM47: =F434 -> 0 | DN47: =F435 -> 0 | DO47: =F436 -> 0 | DP47: =F437 -> 0 | DQ47: =F438 -> 0.8871457062 | DR47: =F439 -> 2.919386122 | DS47: =F440 -> 0 | DT47: =F441 -> 93.34878203 | DU47: =F442 -> 101.2766906 | DV47: =F443 -> 67.28869973 | DW47: =F444 -> 64.77639782 | DY47: 333.519817 | DZ47: 333.519817 | EA47: 358.0833089 | EC47: 0.8871457062 | ED47: 132.0650976 | EE47: 27.5862069 | EF47: 0 | EG47: 97.15531386 | EH47: 326.6905701 | EI47: 67.79911281 | EK47: 1957 | EL47: =G433 -> 0.04610694138 | EM47: =G434 -> 0.001993353486 | EN47: =G435 -> 0 | EO47: =G436 -> 0 | EP47: =G437 -> 0 | EQ47: =G438 -> 1.127048833 | ER47: =G439 -> 4.528044241 | ES47: =G440 -> 0 | ET47: =G441 -> 122.6876514 | EU47: =G442 -> 140.3951826 | EV47: =G443 -> 71.612848 | EW47: =G444 -> 1.599832798 | EY47: 345.4306078 | EZ47: 345.4306078 | FA47: 341.9987081 | FC47: 1.129042186 | FD47: 73.2126808 | FE47: 0.04810029487 | FF47: 0 | FG47: 128.3427444 | FH47: 336.2955147 | FI47: 5.079832798
A48: 1924-09-30 | B48: =INDIRECT(CONCATENATE("'",B$1,"'!",B$4,(YEAR($A48)-1921)*12+MONTH($A48)+3+IF(ISNUMBER(FIND("PRV",B$6)),1,0)))*IF(AND(B$3>0,TRIM(B$9)="CFS"),Conversions!$C48,1) -> 0 | C48: =INDIRECT(CONCATENATE("'",C$1,"'!",C$4,(YEAR($A48)-1921)*12+MONTH($A48)+3+IF(ISNUMBER(FIND("PRV",C$6)),1,0)))*IF(AND(C$3>0,TRIM(C$9)="CFS"),Conversions!$C48,1) -> 0 | D48: =INDIRECT(CONCATENATE("'",D$1,"'!",D$4,(YEAR($A48)-1921)*12+MONTH($A48)+3+IF(ISNUMBER(FIND("PRV",D$6)),1,0)))*IF(AND(D$3>0,TRIM(D$9)="CFS"),Conversions!$C48,1) -> 2.5 | E48: =INDIRECT(CONCATENATE("'",E$1,"'!",E$4,(YEAR($A48)-1921)*12+MONTH($A48)+3+IF(ISNUMBER(FIND("PRV",E$6)),1,0)))*IF(AND(E$3>0,TRIM(E$9)="CFS"),Conversions!$C48,1) -> 72.02654821 | F48: =INDIRECT(CONCATENATE("'",F$1,"'!",F$4,(YEAR($A48)-1921)*12+MONTH($A48)+3+IF(ISNUMBER(FIND("PRV",F$6)),1,0)))*IF(AND(F$3>0,TRIM(F$9)="CFS"),Conversions!$C48,1) -> 24.67843019 | G48: =INDIRECT(CONCATENATE("'",G$1,"'!",G$4,(YEAR($A48)-1921)*12+MONTH($A48)+3+IF(ISNUMBER(FIND("PRV",G$6)),1,0)))*IF(AND(G$3>0,TRIM(G$9)="CFS"),Conversions!$C48,1) -> 73.27064821 | K48: 1958 | L48: =B445 -> 0 | M48: =B446 -> 0 | N48: =B447 -> 0 | O48: =B448 -> 0 | P48: =B449 -> 0 | Q48: =B450 -> 0 | R48: =B451 -> 0 | S48: =B452 -> 0 | T48: =B453 -> 0 | U48: =B454 -> 0 | V48: =B455 -> 0 | W48: =B456 -> 0 | Y48: 0 | Z48: 0 | AA48: 0 | AC48: 0 | AD48: 0 | AE48: 0 | AF48: 0 | AG48: 0 | AH48: 0 | AI48: 0 | AK48: 1958 | AL48: =C445 -> 0 | AM48: =C446 -> 0 | AN48: =C447 -> 0 | AO48: =C448 -> 0 | AP48: =C449 -> 0 | AQ48: =C450 -> 0 | AR48: =C451 -> 0 | AS48: =C452 -> 0 | AT48: =C453 -> 0 | AU48: =C454 -> 0 | AV48: =C455 -> 0 | AW48: =C456 -> 0 | AY48: 0 | AZ48: 0 | BA48: 0 | BC48: 0 | BD48: 0 | BE48: 0 | BF48: 0 | BG48: 0 | BH48: 0 | BI48: 0 | BK48: 1958 | BL48: =D445 -> 0 | BM48: =D446 -> 1.74 | BN48: =D447 -> 0 | BO48: =D448 -> 0 | BP48: =D449 -> 0 | BQ48: =D450 -> 0 | BR48: =D451 -> 0 | BS48: =D452 -> 0 | BT48: =D453 -> 0 | BU48: =D454 -> 2.5 | BV48: =D455 -> 30.08620682 | BW48: =D456 -> 0 | BY48: 60.17241371 | BZ48: 60.17241371 | CA48: 34.32620682 | CC48: 1.74 | CD48: 57.67241371 | CE48: 1.74 | CF48: 0 | CG48: 0 | CH48: 32.58620682 | CI48: 27.5862069 | CK48: 1958 | CL48: =E445 -> 0 | CM48: =E446 -> 74.69640189 | CN48: =E447 -> 0 | CO48: =E448 -> 0 | CP48: =E449 -> 0 | CQ48: =E450 -> 0 | CR48: =E451 -> 0.3057102014 | CS48: =E452 -> 0 | CT48: =E453 -> 0 | CU48: =E454 -> 2.5 | CV48: =E455 -> 30.0862069 | CW48: =E456 -> 35.82741553 | CY48: 96.30553953 | CZ48: 96.30553953 | DA48: 143.4157345 | DC48: 74.69640189 | DD48: 93.49982932 | DE48: 74.69640189 | DF48: 0 | DG48: 0.3057102014 | DH48: 68.41362243 | DI48: 63.41362242 | DK48: 1958 | DL48: =F445 -> 0 | DM48: =F446 -> 3.022714991 | DN48: =F447 -> 0 | DO48: =F448 -> 0 | DP48: =F449 -> 0 | DQ48: =F450 -> 0 | DR48: =F451 -> 0 | DS48: =F452 -> 0 | DT48: =F453 -> 0 | DU48: =F454 -> 2.5 | DV48: =F455 -> 30.08620683 | DW48: =F456 -> 27.5862069 | DY48: 87.75862062 | DZ48: 87.75862062 | EA48: 63.19512872 | EC48: 3.022714991 | ED48: 85.25862062 | EE48: 3.022714991 | EF48: 0 | EG48: 0 | EH48: 60.17241372 | EI48: 55.1724138 | EK48: 1958 | EL48: =G445 -> 0 | EM48: =G446 -> 3.48 | EN48: =G447 -> 0 | EO48: =G448 -> 0 | EP48: =G449 -> 0 | EQ48: =G450 -> 0 | ER48: =G451 -> 0.3057102014 | ES48: =G452 -> 0 | ET48: =G453 -> 0 | EU48: =G454 -> 2.5 | EV48: =G455 -> 30.0862069 | EW48: =G456 -> 35.82903691 | EY48: 96.30716091 | EZ48: 96.30716091 | FA48: 72.20095402 | FC48: 3.48 | FD48: 93.50145071 | FE48: 3.48 | FF48: 0 | FG48: 0.3057102014 | FH48: 68.41524381 | FI48: 63.41524381
A49: 1924-10-31 | B49: =INDIRECT(CONCATENATE("'",B$1,"'!",B$4,(YEAR($A49)-1921)*12+MONTH($A49)+3+IF(ISNUMBER(FIND("PRV",B$6)),1,0)))*IF(AND(B$3>0,TRIM(B$9)="CFS"),Conversions!$C49,1) -> 0 | C49: =INDIRECT(CONCATENATE("'",C$1,"'!",C$4,(YEAR($A49)-1921)*12+MONTH($A49)+3+IF(ISNUMBER(FIND("PRV",C$6)),1,0)))*IF(AND(C$3>0,TRIM(C$9)="CFS"),Conversions!$C49,1) -> 0 | D49: =INDIRECT(CONCATENATE("'",D$1,"'!",D$4,(YEAR($A49)-1921)*12+MONTH($A49)+3+IF(ISNUMBER(FIND("PRV",D$6)),1,0)))*IF(AND(D$3>0,TRIM(D$9)="CFS"),Conversions!$C49,1) -> 0 | E49: =INDIRECT(CONCATENATE("'",E$1,"'!",E$4,(YEAR($A49)-1921)*12+MONTH($A49)+3+IF(ISNUMBER(FIND("PRV",E$6)),1,0)))*IF(AND(E$3>0,TRIM(E$9)="CFS"),Conversions!$C49,1) -> 5.223750808 | F49: =INDIRECT(CONCATENATE("'",F$1,"'!",F$4,(YEAR($A49)-1921)*12+MONTH($A49)+3+IF(ISNUMBER(FIND("PRV",F$6)),1,0)))*IF(AND(F$3>0,TRIM(F$9)="CFS"),Conversions!$C49,1) -> 0 | G49: =INDIRECT(CONCATENATE("'",G$1,"'!",G$4,(YEAR($A49)-1921)*12+MONTH($A49)+3+IF(ISNUMBER(FIND("PRV",G$6)),1,0)))*IF(AND(G$3>0,TRIM(G$9)="CFS"),Conversions!$C49,1) -> 7.862498967 | K49: 1959 | L49: =B457 -> 0 | M49: =B458 -> 0 | N49: =B459 -> 0 | O49: =B460 -> 0 | P49: =B461 -> 0 | Q49: =B462 -> 0 | R49: =B463 -> 0 | S49: =B464 -> 0 | T49: =B465 -> 0 | U49: =B466 -> 0 | V49: =B467 -> 0 | W49: =B468 -> 0 | Y49: 0 | Z49: 0 | AA49: 0 | AC49: 0 | AD49: 0 | AE49: 0 | AF49: 0 | AG49: 0 | AH49: 0 | AI49: 0 | AK49: 1959 | AL49: =C457 -> 0 | AM49: =C458 -> 0 | AN49: =C459 -> 0 | AO49: =C460 -> 0 | AP49: =C461 -> 0 | AQ49: =C462 -> 0 | AR49: =C463 -> 0 | AS49: =C464 -> 0 | AT49: =C465 -> 0 | AU49: =C466 -> 0 | AV49: =C467 -> 0 | AW49: =C468 -> 0 | AY49: 0 | AZ49: 0 | BA49: 0 | BC49: 0 | BD49: 0 | BE49: 0 | BF49: 0 | BG49: 0 | BH49: 0 | BI49: 0 | BK49: 1959 | BL49: =D457 -> 27.5862069 | BM49: =D458 -> 0 | BN49: =D459 -> 0 | BO49: =D460 -> 0 | BP49: =D461 -> 0 | BQ49: =D462 -> 0.03938861972 | BR49: =D463 -> 55.50562001 | BS49: =D464 -> 87.63546239 | BT49: =D465 -> 91.1654782 | BU49: =D466 -> 138.3291279 | BV49: =D467 -> 100.0460914 | BW49: =D468 -> 30.26167366 | BY49: 589.9606004 | BZ49: 589.9606004 | CA49: 530.569049 | CC49: 0.03938861972 | CD49: 184.8355233 | CE49: 27.5862069 | CF49: 0 | CG49: 234.3459492 | CH49: 359.8023711 | CI49: 104.7669319 | CK49: 1959 | CL49: =E457 -> 27.5862069 | CM49: =E458 -> 0 | CN49: =E459 -> 0 | CO49: =E460 -> 0 | CP49: =E461 -> 0 | CQ49: =E462 -> 0.09961777898 | CR49: =E463 -> 77.79554165 | CS49: =E464 -> 87.63546239 | CT49: =E465 -> 113.725168 | CU49: =E466 -> 163.6567312 | CV49: =E467 -> 71.12038322 | CW49: =E468 -> 30.26167366 | CY49: 717.4100878 | CZ49: 717.4100878 | DA49: 571.8807847 | DC49: 0.09961777898 | DD49: 179.9917977 | DE49: 27.5862069 | DF49: 0 | DG49: 279.2557898 | DH49: 378.763956 | DI49: 190.1838502 | DK49: 1959 | DL49: =F457 -> 27.5862069 | DM49: =F458 -> 0 | DN49: =F459 -> 0 | DO49: =F460 -> 0 | DP49: =F461 -> 0 | DQ49: =F462 -> 0.03938861972 | DR49: =F463 -> 50.23320306 | DS49: =F464 -> 87.63546239 | DT49: =F465 -> 96.54664694 | DU49: =F466 -> 72.66098443 | DV49: =F467 -> 71.29646513 | DW49: =F468 -> 30.26167366 | DY49: 499.6468616 | DZ49: 499.6468616 | EA49: 436.2600311 | EC49: 0.03938861972 | ED49: 160.0811761 | EE49: 27.5862069 | EF49: 0 | EG49: 234.454701 | EH49: 270.7657702 | EI49: 108.762211 | EK49: 1959 | EL49: =G457 -> 27.5862069 | EM49: =G458 -> 0 | EN49: =G459 -> 0 | EO49: =G460 -> 0 | EP49: =G461 -> 0 | EQ49: =G462 -> 0.09961777898 | ER49: =G463 -> 21.30429236 | ES49: =G464 -> 87.63546239 | ET49: =G465 -> 117.120198 | EU49: =G466 -> 140.1765344 | EV49: =G467 -> 71.71296737 | EW49: =G468 -> 30.40533883 | EY49: 613.4554781 | EZ49: 613.4554781 | FA49: 496.0406181 | FC49: 0.09961777898 | FD49: 180.8481903 | FE49: 27.5862069 | FF49: 0 | FG49: 226.1595706 | FH49: 359.4150387 | FI49: 173.7464057
A50: 1924-11-30 | B50: =INDIRECT(CONCATENATE("'",B$1,"'!",B$4,(YEAR($A50)-1921)*12+MONTH($A50)+3+IF(ISNUMBER(FIND("PRV",B$6)),1,0)))*IF(AND(B$3>0,TRIM(B$9)="CFS"),Conversions!$C50,1) -> 0 | C50: =INDIRECT(CONCATENATE("'",C$1,"'!",C$4,(YEAR($A50)-1921)*12+MONTH($A50)+3+IF(ISNUMBER(FIND("PRV",C$6)),1,0)))*IF(AND(C$3>0,TRIM(C$9)="CFS"),Conversions!$C50,1) -> 0 | D50: =INDIRECT(CONCATENATE("'",D$1,"'!",D$4,(YEAR($A50)-1921)*12+MONTH($A50)+3+IF(ISNUMBER(FIND("PRV",D$6)),1,0)))*IF(AND(D$3>0,TRIM(D$9)="CFS"),Conversions!$C50,1) -> 0 | E50: =INDIRECT(CONCATENATE("'",E$1,"'!",E$4,(YEAR($A50)-1921)*12+MONTH($A50)+3+IF(ISNUMBER(FIND("PRV",E$6)),1,0)))*IF(AND(E$3>0,TRIM(E$9)="CFS"),Conversions!$C50,1) -> 0 | F50: =INDIRECT(CONCATENATE("'",F$1,"'!",F$4,(YEAR($A50)-1921)*12+MONTH($A50)+3+IF(ISNUMBER(FIND("PRV",F$6)),1,0)))*IF(AND(F$3>0,TRIM(F$9)="CFS"),Conversions!$C50,1) -> 0 | G50: =INDIRECT(CONCATENATE("'",G$1,"'!",G$4,(YEAR($A50)-1921)*12+MONTH($A50)+3+IF(ISNUMBER(FIND("PRV",G$6)),1,0)))*IF(AND(G$3>0,TRIM(G$9)="CFS"),Conversions!$C50,1) -> 3.287375531 | K50: 1960 | L50: =B469 -> 0 | M50: =B470 -> 0 | N50: =B471 -> 0 | O50: =B472 -> 0 | P50: =B473 -> 0 | Q50: =B474 -> 0 | R50: =B475 -> 0 | S50: =B476 -> 0 | T50: =B477 -> 0 | U50: =B478 -> 0 | V50: =B479 -> 0 | W50: =B480 -> 0 | Y50: 0 | Z50: 0 | AA50: 0 | AC50: 0 | AD50: 0 | AE50: 0 | AF50: 0 | AG50: 0 | AH50: 0 | AI50: 0 | AK50: 1960 | AL50: =C469 -> 0 | AM50: =C470 -> 0 | AN50: =C471 -> 0 | AO50: =C472 -> 0 | AP50: =C473 -> 0 | AQ50: =C474 -> 0 | AR50: =C475 -> 0 | AS50: =C476 -> 0 | AT50: =C477 -> 0 | AU50: =C478 -> 0 | AV50: =C479 -> 0 | AW50: =C480 -> 0 | AY50: 0 | AZ50: 0 | BA50: 0 | BC50: 0 | BD50: 0 | BE50: 0 | BF50: 0 | BG50: 0 | BH50: 0 | BI50: 0 | BK50: 1960 | BL50: =D469 -> 54.52775825 | BM50: =D470 -> 19.9775 | BN50: =D471 -> 12.4725 | BO50: =D472 -> 0 | BP50: =D473 -> 0 | BQ50: =D474 -> 0 | BR50: =D475 -> 24.76322494 | BS50: =D476 -> 11.1970729 | BT50: =D477 -> 128.2272701 | BU50: =D478 -> 98.41915465 | BV50: =D479 -> 127.8870219 | BW50: =D480 -> 83.11732256 | BY50: 539.7408885 | BZ50: 539.7408885 | CA50: 560.5888254 | CC50: 32.45 | CD50: 249.3737389 | CE50: 86.97775825 | CF50: 12.4725 | CG50: 164.187568 | CH50: 437.6507693 | CI50: 149.2471439 | CK50: 1960 | CL50: =E469 -> 78.60974085 | CM50: =E470 -> 81.31243572 | CN50: =E471 -> 13.19333333 | CO50: =E472 -> 0 | CP50: =E473 -> 0 | CQ50: =E474 -> 0 | CR50: =E475 -> 25.38121023 | CS50: =E476 -> 30.04941806 | CT50: =E477 -> 142.0150197 | CU50: =E478 -> 96.08149121 | CV50: =E479 -> 129.2055066 | CW50: =E480 -> 83.65700518 | CY50: 591.5994008 | CZ50: 591.5994008 | DA50: 679.5051609 | DC50: 94.50576905 | DD50: 293.6131118 | DE50: 173.1155099 | DF50: 13.19333333 | DG50: 197.445648 | DH50: 450.9590227 | DI50: 168.8667549 | DK50: 1960 | DL50: =F469 -> 58.52303734 | DM50: =F470 -> 19.9775 | DN50: =F471 -> 12.4725 | DO50: =F472 -> 0 | DP50: =F473 -> 0 | DQ50: =F474 -> 0 | DR50: =F475 -> 24.90749006 | DS50: =F476 -> 11.43077524 | DT50: =F477 -> 103.2645801 | DU50: =F478 -> 70.88354111 | DV50: =F479 -> 128.1937354 | DW50: =F480 -> 83.24330798 | DY50: 494.4052757 | DZ50: 494.4052757 | EA50: 512.8964673 | EC50: 32.45 | ED50: 253.1835899 | EE50: 90.97303734 | EF50: 12.4725 | EG50: 139.6028454 | EH50: 385.5851646 | EI50: 155.7251537 | EK50: 1960 | EL50: =G469 -> 78.72988413 | EM50: =G470 -> 64.61118278 | EN50: =G471 -> 1.66 | EO50: =G472 -> 0 | EP50: =G473 -> 0 | EQ50: =G474 -> 0 | ER50: =G475 -> 25.38121023 | ES50: =G476 -> 30.04941806 | ET50: =G477 -> 102.3913501 | EU50: =G478 -> 96.10309347 | EV50: =G479 -> 129.2001933 | EW50: =G480 -> 83.65700389 | EY50: 549.272869 | EZ50: 549.272869 | FA50: 611.7833359 | FC50: 66.27118278 | FD50: 293.6077972 | FE50: 145.0010669 | FF50: 1.66 | FG50: 157.8219783 | FH50: 411.3516407 | FI50: 166.1476039
A51: 1924-12-31 | B51: =INDIRECT(CONCATENATE("'",B$1,"'!",B$4,(YEAR($A51)-1921)*12+MONTH($A51)+3+IF(ISNUMBER(FIND("PRV",B$6)),1,0)))*IF(AND(B$3>0,TRIM(B$9)="CFS"),Conversions!$C51,1) -> 0 | C51: =INDIRECT(CONCATENATE("'",C$1,"'!",C$4,(YEAR($A51)-1921)*12+MONTH($A51)+3+IF(ISNUMBER(FIND("PRV",C$6)),1,0)))*IF(AND(C$3>0,TRIM(C$9)="CFS"),Conversions!$C51,1) -> 0 | D51: =INDIRECT(CONCATENATE("'",D$1,"'!",D$4,(YEAR($A51)-1921)*12+MONTH($A51)+3+IF(ISNUMBER(FIND("PRV",D$6)),1,0)))*IF(AND(D$3>0,TRIM(D$9)="CFS"),Conversions!$C51,1) -> 0 | E51: =INDIRECT(CONCATENATE("'",E$1,"'!",E$4,(YEAR($A51)-1921)*12+MONTH($A51)+3+IF(ISNUMBER(FIND("PRV",E$6)),1,0)))*IF(AND(E$3>0,TRIM(E$9)="CFS"),Conversions!$C51,1) -> 0 | F51: =INDIRECT(CONCATENATE("'",F$1,"'!",F$4,(YEAR($A51)-1921)*12+MONTH($A51)+3+IF(ISNUMBER(FIND("PRV",F$6)),1,0)))*IF(AND(F$3>0,TRIM(F$9)="CFS"),Conversions!$C51,1) -> 0 | G51: =INDIRECT(CONCATENATE("'",G$1,"'!",G$4,(YEAR($A51)-1921)*12+MONTH($A51)+3+IF(ISNUMBER(FIND("PRV",G$6)),1,0)))*IF(AND(G$3>0,TRIM(G$9)="CFS"),Conversions!$C51,1) -> 0 | K51: 1961 | L51: =B481 -> 0 | M51: =B482 -> 0 | N51: =B483 -> 0 | O51: =B484 -> 0 | P51: =B485 -> 0 | Q51: =B486 -> 0 | R51: =B487 -> 0 | S51: =B488 -> 0 | T51: =B489 -> 0 | U51: =B490 -> 0 | V51: =B491 -> 0 | W51: =B492 -> 0 | Y51: 0 | Z51: 0 | AA51: 0 | AC51: 0 | AD51: 0 | AE51: 0 | AF51: 0 | AG51: 0 | AH51: 0 | AI51: 0 | AK51: 1961 | AL51: =C481 -> 0 | AM51: =C482 -> 0 | AN51: =C483 -> 0 | AO51: =C484 -> 0 | AP51: =C485 -> 0 | AQ51: =C486 -> 0 | AR51: =C487 -> 0 | AS51: =C488 -> 0 | AT51: =C489 -> 0 | AU51: =C490 -> 0 | AV51: =C491 -> 0 | AW51: =C492 -> 0 | AY51: 0 | AZ51: 0 | BA51: 0 | BC51: 0 | BD51: 0 | BE51: 0 | BF51: 0 | BG51: 0 | BH51: 0 | BI51: 0 | BK51: 1961 | BL51: =D481 -> 38.36939437 | BM51: =D482 -> 27.76042697 | BN51: =D483 -> 0 | BO51: =D484 -> 0 | BP51: =D485 -> 0 | BQ51: =D486 -> 0 | BR51: =D487 -> 49.04022287 | BS51: =D488 -> 20.28775992 | BT51: =D489 -> 68.13038031 | BU51: =D490 -> 94.1873033 | BV51: =D491 -> 112.1910179 | BW51: =D492 -> 76.74569695 | BY51: 528.8356882 | BZ51: 528.8356882 | CA51: 486.7122026 | CC51: 27.76042697 | CD51: 266.4343613 | CE51: 66.12982134 | CF51: 0 | CG51: 137.4583631 | CH51: 351.2543984 | CI51: 184.9990039 | CK51: 1961 | CL51: =E481 -> 80.75059998 | CM51: =E482 -> 4.459149779 | CN51: =E483 -> 0 | CO51: =E484 -> 0 | CP51: =E485 -> 0 | CQ51: =E486 -> 0 | CR51: =E487 -> 63.72191251 | CS51: =E488 -> 60.39429769 | CT51: =E489 -> 64.40240951 | CU51: =E490 -> 95.44453046 | CV51: =E491 -> 113.2899626 | CW51: =E492 -> 77.16353033 | CY51: 597.9506524 | CZ51: 597.9506524 | DA51: 559.6263929 | DC51: 4.459149779 | DD51: 268.1126671 | DE51: 85.20974976 | DF51: 0 | DG51: 188.5186197 | DH51: 350.3004329 | DI51: 200.6975396 | DK51: 1961 | DL51: =F481 -> 41.74654646 | DM51: =F482 -> 30.73529927 | DN51: =F483 -> 0 | DO51: =F484 -> 0 | DP51: =F485 -> 0 | DQ51: =F486 -> 0 | DR51: =F487 -> 41.50661454 | DS51: =F488 -> 0 | DT51: =F489 -> 68.10860727 | DU51: =F490 -> 94.73259452 | DV51: =F491 -> 112.1910179 | DW51: =F492 -> 76.74569695 | DY51: 527.8005401 | DZ51: 527.8005401 | EA51: 465.7663769 | EC51: 30.73529927 | ED51: 266.4343613 | EE51: 72.48184573 | EF51: 0 | EG51: 109.6152218 | EH51: 351.7779166 | EI51: 211.2617059 | EK51: 1961 | EL51: =G481 -> 80.75059998 | EM51: =G482 -> 1.74 | EN51: =G483 -> 0 | EO51: =G484 -> 0 | EP51: =G485 -> 0 | EQ51: =G486 -> 0 | ER51: =G487 -> 55.83481953 | ES51: =G488 -> 0.977567928 | ET51: =G489 -> 69.27812548 | EU51: =G490 -> 100.6541692 | EV51: =G491 -> 113.3632179 | EW51: =G492 -> 77.19138295 | EY51: 585.1649546 | EZ51: 585.1649546 | FA51: 499.7898829 | FC51: 1.74 | FD51: 268.2245423 | FE51: 82.49059998 | FF51: 0 | FG51: 126.0905129 | FH51: 360.4868955 | FI51: 231.8637213
A52: 1925-01-31 | B52: =INDIRECT(CONCATENATE("'",B$1,"'!",B$4,(YEAR($A52)-1921)*12+MONTH($A52)+3+IF(ISNUMBER(FIND("PRV",B$6)),1,0)))*IF(AND(B$3>0,TRIM(B$9)="CFS"),Conversions!$C52,1) -> 0 | C52: =INDIRECT(CONCATENATE("'",C$1,"'!",C$4,(YEAR($A52)-1921)*12+MONTH($A52)+3+IF(ISNUMBER(FIND("PRV",C$6)),1,0)))*IF(AND(C$3>0,TRIM(C$9)="CFS"),Conversions!$C52,1) -> 0 | D52: =INDIRECT(CONCATENATE("'",D$1,"'!",D$4,(YEAR($A52)-1921)*12+MONTH($A52)+3+IF(ISNUMBER(FIND("PRV",D$6)),1,0)))*IF(AND(D$3>0,TRIM(D$9)="CFS"),Conversions!$C52,1) -> 0 | E52: =INDIRECT(CONCATENATE("'",E$1,"'!",E$4,(YEAR($A52)-1921)*12+MONTH($A52)+3+IF(ISNUMBER(FIND("PRV",E$6)),1,0)))*IF(AND(E$3>0,TRIM(E$9)="CFS"),Conversions!$C52,1) -> 0 | F52: =INDIRECT(CONCATENATE("'",F$1,"'!",F$4,(YEAR($A52)-1921)*12+MONTH($A52)+3+IF(ISNUMBER(FIND("PRV",F$6)),1,0)))*IF(AND(F$3>0,TRIM(F$9)="CFS"),Conversions!$C52,1) -> 0 | G52: =INDIRECT(CONCATENATE("'",G$1,"'!",G$4,(YEAR($A52)-1921)*12+MONTH($A52)+3+IF(ISNUMBER(FIND("PRV",G$6)),1,0)))*IF(AND(G$3>0,TRIM(G$9)="CFS"),Conversions!$C52,1) -> 0 | K52: 1962 | L52: =B493 -> 0 | M52: =B494 -> 0 | N52: =B495 -> 0 | O52: =B496 -> 0 | P52: =B497 -> 0 | Q52: =B498 -> 0 | R52: =B499 -> 0 | S52: =B500 -> 0 | T52: =B501 -> 0 | U52: =B502 -> 0 | V52: =B503 -> 0 | W52: =B504 -> 0 | Y52: 0 | Z52: 0 | AA52: 0 | AC52: 0 | AD52: 0 | AE52: 0 | AF52: 0 | AG52: 0 | AH52: 0 | AI52: 0 | AK52: 1962 | AL52: =C493 -> 0 | AM52: =C494 -> 0 | AN52: =C495 -> 0 | AO52: =C496 -> 0 | AP52: =C497 -> 0 | AQ52: =C498 -> 0 | AR52: =C499 -> 0 | AS52: =C500 -> 0 | AT52: =C501 -> 0 | AU52: =C502 -> 0 | AV52: =C503 -> 0 | AW52: =C504 -> 0 | AY52: 0 | AZ52: 0 | BA52: 0 | BC52: 0 | BD52: 0 | BE52: 0 | BF52: 0 | BG52: 0 | BH52: 0 | BI52: 0 | BK52: 1962 | BL52: =D493 -> 77.4976465 | BM52: =D494 -> 30.75566043 | BN52: =D495 -> 0 | BO52: =D496 -> 0 | BP52: =D497 -> 0 | BQ52: =D498 -> 0 | BR52: =D499 -> 1.428113164 | BS52: =D500 -> 52.10605702 | BT52: =D501 -> 7.950542763 | BU52: =D502 -> 14.91090842 | BV52: =D503 -> 32.3729624 | BW52: =D504 -> 59.00252844 | BY52: 172.1788898 | BZ52: 172.1788898 | CA52: 276.0244191 | CC52: 30.75566043 | CD52: 91.37549083 | CE52: 108.2533069 | CF52: 0 | CG52: 61.48471295 | CH52: 114.236942 | CI52: 63.41030604 | CK52: 1962 | CL52: =E493 -> 77.65917412 | CM52: =E494 -> 45.87483516 | CN52: =E495 -> 0 | CO52: =E496 -> 0 | CP52: =E497 -> 0 | CQ52: =E498 -> 0 | CR52: =E499 -> 2.184414543 | CS52: =E500 -> 63.11403189 | CT52: =E501 -> 24.36231227 | CU52: =E502 -> 37.95056525 | CV52: =E503 -> 30.19800027 | CW52: =E504 -> 67.04869429 | CY52: 232.802704 | CZ52: 232.802704 | DA52: 348.3920278 | DC52: 45.87483516 | DD52: 97.24669457 | DE52: 123.5340093 | DF52: 0 | DG52: 89.6607587 | DH52: 159.5595721 | DI52: 74.99337979 | DK52: 1962 | DL52: =F493 -> 77.4976465 | DM52: =F494 -> 57.0183625 | DN52: =F495 -> 0 | DO52: =F496 -> 0 | DP52: =F497 -> 0 | DQ52: =F498 -> 0 | DR52: =F499 -> 1.428113164 | DS52: =F500 -> 35.14883667 | DT52: =F501 -> 18.9264434 | DU52: =F502 -> 31.80614147 | DV52: =F503 -> 32.48728598 | DW52: =F504 -> 73.58609163 | DY52: 198.6219983 | DZ52: 198.6219983 | EA52: 327.8989213 | EC52: 57.0183625 | ED52: 106.0733776 | EE52: 134.516009 | EF52: 0 | EG52: 55.50339323 | EH52: 156.8059625 | EI52: 78.82517765 | EK52: 1962 | EL52: =G493 -> 77.66994149 | EM52: =G494 -> 77.00239682 | EN52: =G495 -> 13.19333333 | EO52: =G496 -> 0 | EP52: =G497 -> 0 | EQ52: =G498 -> 0 | ER52: =G499 -> 2.184414543 | ES52: =G500 -> 40.305218 | ET52: =G501 -> 32.5 | EU52: =G502 -> 48.84806116 | EV52: =G503 -> 64.60101442 | EW52: =G504 -> 72.94033531 | EY52: 270.0457157 | EZ52: 270.0457157 | FA52: 429.2447151 | FC52: 90.19573015 | FD52: 137.5413497 | FE52: 167.8656716 | FF52: 13.19333333 | FG52: 74.98963254 | FH52: 218.8894109 | FI52: 81.60700762
A53: 1925-02-28 | B53: =INDIRECT(CONCATENATE("'",B$1,"'!",B$4,(YEAR($A53)-1921)*12+MONTH($A53)+3+IF(ISNUMBER(FIND("PRV",B$6)),1,0)))*IF(AND(B$3>0,TRIM(B$9)="CFS"),Conversions!$C53,1) -> 0 | C53: =INDIRECT(CONCATENATE("'",C$1,"'!",C$4,(YEAR($A53)-1921)*12+MONTH($A53)+3+IF(ISNUMBER(FIND("PRV",C$6)),1,0)))*IF(AND(C$3>0,TRIM(C$9)="CFS"),Conversions!$C53,1) -> 0 | D53: =INDIRECT(CONCATENATE("'",D$1,"'!",D$4,(YEAR($A53)-1921)*12+MONTH($A53)+3+IF(ISNUMBER(FIND("PRV",D$6)),1,0)))*IF(AND(D$3>0,TRIM(D$9)="CFS"),Conversions!$C53,1) -> 0 | E53: =INDIRECT(CONCATENATE("'",E$1,"'!",E$4,(YEAR($A53)-1921)*12+MONTH($A53)+3+IF(ISNUMBER(FIND("PRV",E$6)),1,0)))*IF(AND(E$3>0,TRIM(E$9)="CFS"),Conversions!$C53,1) -> 0 | F53: =INDIRECT(CONCATENATE("'",F$1,"'!",F$4,(YEAR($A53)-1921)*12+MONTH($A53)+3+IF(ISNUMBER(FIND("PRV",F$6)),1,0)))*IF(AND(F$3>0,TRIM(F$9)="CFS"),Conversions!$C53,1) -> 0 | G53: =INDIRECT(CONCATENATE("'",G$1,"'!",G$4,(YEAR($A53)-1921)*12+MONTH($A53)+3+IF(ISNUMBER(FIND("PRV",G$6)),1,0)))*IF(AND(G$3>0,TRIM(G$9)="CFS"),Conversions!$C53,1) -> 0 | K53: 1963 | L53: =B505 -> 0 | M53: =B506 -> 0 | N53: =B507 -> 0 | O53: =B508 -> 0 | P53: =B509 -> 0 | Q53: =B510 -> 0 | R53: =B511 -> 0 | S53: =B512 -> 0 | T53: =B513 -> 0 | U53: =B514 -> 0 | V53: =B515 -> 0 | W53: =B516 -> 0 | Y53: 0 | Z53: 0 | AA53: 0 | AC53: 0 | AD53: 0 | AE53: 0 | AF53: 0 | AG53: 0 | AH53: 0 | AI53: 0 | AK53: 1963 | AL53: =C505 -> 0 | AM53: =C506 -> 0 | AN53: =C507 -> 0 | AO53: =C508 -> 0 | AP53: =C509 -> 0 | AQ53: =C510 -> 0 | AR53: =C511 -> 0 | AS53: =C512 -> 0 | AT53: =C513 -> 0 | AU53: =C514 -> 0 | AV53: =C515 -> 0 | AW53: =C516 -> 0 | AY53: 0 | AZ53: 0 | BA53: 0 | BC53: 0 | BD53: 0 | BE53: 0 | BF53: 0 | BG53: 0 | BH53: 0 | BI53: 0 | BK53: 1963 | BL53: =D505 -> 0 | BM53: =D506 -> 4.407777601 | BN53: =D507 -> 0 | BO53: =D508 -> 0 | BP53: =D509 -> 0 | BQ53: =D510 -> 0 | BR53: =D511 -> 0 | BS53: =D512 -> 0 | BT53: =D513 -> 0 | BU53: =D514 -> 2.5 | BV53: =D515 -> 30.0862069 | BW53: =D516 -> 27.5862069 | BY53: 66.64152952 | BZ53: 66.64152952 | CA53: 64.5801914 | CC53: 4.407777601 | CD53: 64.14152952 | CE53: 4.407777601 | CF53: 0 | CG53: 0 | CH53: 60.1724138 | CI53: 34.05532262 | CK53: 1963 | CL53: =E505 -> 0 | CM53: =E506 -> 7.944685501 | CN53: =E507 -> 0 | CO53: =E508 -> 0 | CP53: =E509 -> 0 | CQ53: =E510 -> 0 | CR53: =E511 -> 0 | CS53: =E512 -> 0 | CT53: =E513 -> 0 | CU53: =E514 -> 2.5 | CV53: =E515 -> 30.0862069 | CW53: =E516 -> 27.5862069 | CY53: 76.37238916 | CZ53: 76.37238916 | DA53: 68.1170993 | DC53: 7.944685501 | DD53: 73.87238916 | DE53: 7.944685501 | DF53: 0 | DG53: 0 | DH53: 60.1724138 | DI53: 43.78618226 | DK53: 1963 | DL53: =F505 -> 0 | DM53: =F506 -> 5.239086026 | DN53: =F507 -> 0 | DO53: =F508 -> 0 | DP53: =F509 -> 0 | DQ53: =F510 -> 0 | DR53: =F511 -> 0 | DS53: =F512 -> 0 | DT53: =F513 -> 0 | DU53: =F514 -> 2.5 | DV53: =F515 -> 30.0862069 | DW53: =F516 -> 0 | DY53: 60.1724138 | DZ53: 60.1724138 | EA53: 37.82529293 | EC53: 5.239086026 | ED53: 57.6724138 | EE53: 5.239086026 | EF53: 0 | EG53: 0 | EH53: 32.5862069 | EI53: 27.5862069 | EK53: 1963 | EL53: =G505 -> 0 | EM53: =G506 -> 8.666672307 | EN53: =G507 -> 0 | EO53: =G508 -> 0 | EP53: =G509 -> 0 | EQ53: =G510 -> 0 | ER53: =G511 -> 0 | ES53: =G512 -> 0 | ET53: =G513 -> 0 | EU53: =G514 -> 2.5 | EV53: =G515 -> 30.0862069 | EW53: =G516 -> 27.5862069 | EY53: 85.32395366 | EZ53: 85.32395366 | FA53: 68.8390861 | FC53: 8.666672307 | FD53: 82.82395366 | FE53: 8.666672307 | FF53: 0 | FG53: 0 | FH53: 60.1724138 | FI53: 52.73774676
A54: 1925-03-31 | B54: =INDIRECT(CONCATENATE("'",B$1,"'!",B$4,(YEAR($A54)-1921)*12+MONTH($A54)+3+IF(ISNUMBER(FIND("PRV",B$6)),1,0)))*IF(AND(B$3>0,TRIM(B$9)="CFS"),Conversions!$C54,1) -> 0 | C54: =INDIRECT(CONCATENATE("'",C$1,"'!",C$4,(YEAR($A54)-1921)*12+MONTH($A54)+3+IF(ISNUMBER(FIND("PRV",C$6)),1,0)))*IF(AND(C$3>0,TRIM(C$9)="CFS"),Conversions!$C54,1) -> 0 | D54: =INDIRECT(CONCATENATE("'",D$1,"'!",D$4,(YEAR($A54)-1921)*12+MONTH($A54)+3+IF(ISNUMBER(FIND("PRV",D$6)),1,0)))*IF(AND(D$3>0,TRIM(D$9)="CFS"),Conversions!$C54,1) -> 0 | E54: =INDIRECT(CONCATENATE("'",E$1,"'!",E$4,(YEAR($A54)-1921)*12+MONTH($A54)+3+IF(ISNUMBER(FIND("PRV",E$6)),1,0)))*IF(AND(E$3>0,TRIM(E$9)="CFS"),Conversions!$C54,1) -> 0 | F54: =INDIRECT(CONCATENATE("'",F$1,"'!",F$4,(YEAR($A54)-1921)*12+MONTH($A54)+3+IF(ISNUMBER(FIND("PRV",F$6)),1,0)))*IF(AND(F$3>0,TRIM(F$9)="CFS"),Conversions!$C54,1) -> 0 | G54: =INDIRECT(CONCATENATE("'",G$1,"'!",G$4,(YEAR($A54)-1921)*12+MONTH($A54)+3+IF(ISNUMBER(FIND("PRV",G$6)),1,0)))*IF(AND(G$3>0,TRIM(G$9)="CFS"),Conversions!$C54,1) -> 0 | K54: 1964 | L54: =B517 -> 0 | M54: =B518 -> 0 | N54: =B519 -> 0 | O54: =B520 -> 0 | P54: =B521 -> 0 | Q54: =B522 -> 0 | R54: =B523 -> 0 | S54: =B524 -> 0 | T54: =B525 -> 0 | U54: =B526 -> 0 | V54: =B527 -> 0 | W54: =B528 -> 0 | Y54: 0 | Z54: 0 | AA54: 0 | AC54: 0 | AD54: 0 | AE54: 0 | AF54: 0 | AG54: 0 | AH54: 0 | AI54: 0 | AK54: 1964 | AL54: =C517 -> 0 | AM54: =C518 -> 0 | AN54: =C519 -> 0 | AO54: =C520 -> 0 | AP54: =C521 -> 0 | AQ54: =C522 -> 0 | AR54: =C523 -> 0 | AS54: =C524 -> 0 | AT54: =C525 -> 0 | AU54: =C526 -> 0 | AV54: =C527 -> 0 | AW54: =C528 -> 0 | AY54: 0 | AZ54: 0 | BA54: 0 | BC54: 0 | BD54: 0 | BE54: 0 | BF54: 0 | BG54: 0 | BH54: 0 | BI54: 0 | BK54: 1964 | BL54: =D517 -> 6.46911572 | BM54: =D518 -> 0 | BN54: =D519 -> 0 | BO54: =D520 -> 0 | BP54: =D521 -> 0 | BQ54: =D522 -> 1.126594695 | BR54: =D523 -> 41.11976181 | BS54: =D524 -> 86.5386511 | BT54: =D525 -> 115.0659043 | BU54: =D526 -> 65.18195215 | BV54: =D527 -> 40.89635323 | BW54: =D528 -> 81.43315529 | BY54: 514.57903 | BZ54: 514.57903 | CA54: 437.8314883 | CC54: 1.126594695 | CD54: 155.1264822 | CE54: 6.46911572 | CF54: 0 | CG54: 243.8509119 | CH54: 302.5773649 | CI54: 164.6498128 | CK54: 1964 | CL54: =E517 -> 16.19997536 | CM54: =E518 -> 0 | CN54: =E519 -> 0 | CO54: =E520 -> 0 | CP54: =E521 -> 0 | CQ54: =E522 -> 1.190850453 | CR54: =E523 -> 38.91022335 | CS54: =E524 -> 86.5386511 | CT54: =E525 -> 126.0674339 | CU54: =E526 -> 134.2333408 | CV54: =E527 -> 95.16114965 | CW54: =E528 -> 81.68163932 | CY54: 598.6804157 | CZ54: 598.6804157 | DA54: 579.9832639 | DC54: 1.190850453 | DD54: 204.8470174 | DE54: 16.19997536 | DF54: 0 | DG54: 252.7071588 | DH54: 437.1435637 | DI54: 116.5787664 | DK54: 1964 | DL54: =F517 -> 27.5862069 | DM54: =F518 -> 0 | DN54: =F519 -> 0 | DO54: =F520 -> 0 | DP54: =F521 -> 0 | DQ54: =F522 -> 1.133543871 | DR54: =F523 -> 41.11976181 | DS54: =F524 -> 86.5386511 | DT54: =F525 -> 64.37490173 | DU54: =F526 -> 58.07337791 | DV54: =F527 -> 41.24983058 | DW54: =F528 -> 81.45905656 | DY54: 460.9662721 | DZ54: 460.9662721 | EA54: 401.5353305 | EC54: 1.133543871 | ED54: 156.3321805 | EE54: 27.5862069 | EF54: 0 | EG54: 193.1668585 | EH54: 245.1571668 | EI54: 168.4762051 | EK54: 1964 | EL54: =G517 -> 25.15153987 | EM54: =G518 -> 0 | EN54: =G519 -> 0 | EO54: =G520 -> 0 | EP54: =G521 -> 0 | EQ54: =G522 -> 1.193907993 | ER54: =G523 -> 38.91022335 | ES54: =G524 -> 86.5386511 | ET54: =G525 -> 84.85367629 | EU54: =G526 -> 134.2716147 | EV54: =G527 -> 100.2165273 | EW54: =G528 -> 81.68470438 | EY54: 671.5815547 | EZ54: 671.5815547 | FA54: 552.820845 | FC54: 1.193907993 | FD54: 256.1838046 | FE54: 25.15153987 | FF54: 0 | FG54: 211.4964587 | FH54: 401.0265227 | FI54: 225.596954
A55: 1925-04-30 | B55: =INDIRECT(CONCATENATE("'",B$1,"'!",B$4,(YEAR($A55)-1921)*12+MONTH($A55)+3+IF(ISNUMBER(FIND("PRV",B$6)),1,0)))*IF(AND(B$3>0,TRIM(B$9)="CFS"),Conversions!$C55,1) -> 0 | C55: =INDIRECT(CONCATENATE("'",C$1,"'!",C$4,(YEAR($A55)-1921)*12+MONTH($A55)+3+IF(ISNUMBER(FIND("PRV",C$6)),1,0)))*IF(AND(C$3>0,TRIM(C$9)="CFS"),Conversions!$C55,1) -> 0 | D55: =INDIRECT(CONCATENATE("'",D$1,"'!",D$4,(YEAR($A55)-1921)*12+MONTH($A55)+3+IF(ISNUMBER(FIND("PRV",D$6)),1,0)))*IF(AND(D$3>0,TRIM(D$9)="CFS"),Conversions!$C55,1) -> 1.453704586 | E55: =INDIRECT(CONCATENATE("'",E$1,"'!",E$4,(YEAR($A55)-1921)*12+MONTH($A55)+3+IF(ISNUMBER(FIND("PRV",E$6)),1,0)))*IF(AND(E$3>0,TRIM(E$9)="CFS"),Conversions!$C55,1) -> 1.923474078 | F55: =INDIRECT(CONCATENATE("'",F$1,"'!",F$4,(YEAR($A55)-1921)*12+MONTH($A55)+3+IF(ISNUMBER(FIND("PRV",F$6)),1,0)))*IF(AND(F$3>0,TRIM(F$9)="CFS"),Conversions!$C55,1) -> 1.585342049 | G55: =INDIRECT(CONCATENATE("'",G$1,"'!",G$4,(YEAR($A55)-1921)*12+MONTH($A55)+3+IF(ISNUMBER(FIND("PRV",G$6)),1,0)))*IF(AND(G$3>0,TRIM(G$9)="CFS"),Conversions!$C55,1) -> 2.038344916 | K55: 1965 | L55: =B529 -> 0 | M55: =B530 -> 0 | N55: =B531 -> 0 | O55: =B532 -> 0 | P55: =B533 -> 0 | Q55: =B534 -> 0 | R55: =B535 -> 0 | S55: =B536 -> 0 | T55: =B537 -> 0 | U55: =B538 -> 0 | V55: =B539 -> 0 | W55: =B540 -> 0 | Y55: 0 | Z55: 0 | AA55: 0 | AC55: 0 | AD55: 0 | AE55: 0 | AF55: 0 | AG55: 0 | AH55: 0 | AI55: 0 | AK55: 1965 | AL55: =C529 -> 0 | AM55: =C530 -> 0 | AN55: =C531 -> 0 | AO55: =C532 -> 0 | AP55: =C533 -> 0 | AQ55: =C534 -> 0 | AR55: =C535 -> 0 | AS55: =C536 -> 0 | AT55: =C537 -> 0 | AU55: =C538 -> 0 | AV55: =C539 -> 0 | AW55: =C540 -> 0 | AY55: 0 | AZ55: 0 | BA55: 0 | BC55: 0 | BD55: 0 | BE55: 0 | BF55: 0 | BG55: 0 | BH55: 0 | BI55: 0 | BK55: 1965 | BL55: =D529 -> 32.79697368 | BM55: =D530 -> 50.41968379 | BN55: =D531 -> 0 | BO55: =D532 -> 0 | BP55: =D533 -> 0 | BQ55: =D534 -> 0.6854689779 | BR55: =D535 -> 4.113581782 | BS55: =D536 -> 0 | BT55: =D537 -> 2.5 | BU55: =D538 -> 2.5 | BV55: =D539 -> 30.0862069 | BW55: =D540 -> 23.90459382 | BY55: 63.78985148 | BZ55: 63.78985148 | CA55: 147.006509 | CC55: 51.10515277 | CD55: 53.99080072 | CE55: 83.21665747 | CF55: 0 | CG55: 7.29905076 | CH55: 58.99080072 | CI55: 23.90459382 | CK55: 1965 | CL55: =E529 -> 28.00422844 | CM55: =E530 -> 6.892898662 | CN55: =E531 -> 0 | CO55: =E532 -> 0 | CP55: =E533 -> 0 | CQ55: =E534 -> 1.043095816 | CR55: =E535 -> 6.259743452 | CS55: =E536 -> 1.976713427 | CT55: =E537 -> 4.921732283 | CU55: =E538 -> 5.330273911 | CV55: =E539 -> 32.04794981 | CW55: =E540 -> 22.27806636 | CY55: 74.22234421 | CZ55: 74.22234421 | DA55: 108.7547022 | DC55: 7.935994478 | DD55: 54.69078532 | DE55: 34.8971271 | DF55: 0 | DG55: 14.20128498 | DH55: 64.57802237 | DI55: 22.64283551 | DK55: 1965 | DL55: =F529 -> 33.62329333 | DM55: =F530 -> 53.39385519 | DN55: =F531 -> 0 | DO55: =F532 -> 0 | DP55: =F533 -> 0 | DQ55: =F534 -> 0.6854689779 | DR55: =F535 -> 4.113581782 | DS55: =F536 -> 0 | DT55: =F537 -> 2.5 | DU55: =F538 -> 2.5 | DV55: =F539 -> 30.0862069 | DW55: =F540 -> 28.08770775 | DY55: 67.97296541 | DZ55: 67.97296541 | EA55: 154.9901139 | EC55: 54.07932417 | ED55: 58.17391465 | EE55: 87.01714852 | EF55: 0 | EG55: 7.29905076 | EH55: 63.17391465 | EI55: 28.08770775 | EK55: 1965 | EL55: =G529 -> 74.28257294 | EM55: =G530 -> 69.62967664 | EN55: =G531 -> 0 | EO55: =G532 -> 0 | EP55: =G533 -> 0 | EQ55: =G534 -> 1.043095816 | ER55: =G535 -> 6.259743452 | ES55: =G536 -> 1.976713427 | ET55: =G537 -> 4.921732283 | EU55: =G538 -> 5.330273911 | EV55: =G539 -> 32.04794981 | EW55: =G540 -> 20.54513806 | EY55: 72.48941591 | EZ55: 72.48941591 | FA55: 216.0368963 | FC55: 70.67277246 | FD55: 52.95785702 | FE55: 143.9122496 | FF55: 0 | FG55: 14.20128498 | FH55: 62.84509407 | FI55: 20.90990721
A56: 1925-05-31 | B56: =INDIRECT(CONCATENATE("'",B$1,"'!",B$4,(YEAR($A56)-1921)*12+MONTH($A56)+3+IF(ISNUMBER(FIND("PRV",B$6)),1,0)))*IF(AND(B$3>0,TRIM(B$9)="CFS"),Conversions!$C56,1) -> 0 | C56: =INDIRECT(CONCATENATE("'",C$1,"'!",C$4,(YEAR($A56)-1921)*12+MONTH($A56)+3+IF(ISNUMBER(FIND("PRV",C$6)),1,0)))*IF(AND(C$3>0,TRIM(C$9)="CFS"),Conversions!$C56,1) -> 0 | D56: =INDIRECT(CONCATENATE("'",D$1,"'!",D$4,(YEAR($A56)-1921)*12+MONTH($A56)+3+IF(ISNUMBER(FIND("PRV",D$6)),1,0)))*IF(AND(D$3>0,TRIM(D$9)="CFS"),Conversions!$C56,1) -> 0 | E56: =INDIRECT(CONCATENATE("'",E$1,"'!",E$4,(YEAR($A56)-1921)*12+MONTH($A56)+3+IF(ISNUMBER(FIND("PRV",E$6)),1,0)))*IF(AND(E$3>0,TRIM(E$9)="CFS"),Conversions!$C56,1) -> 33.67930118 | F56: =INDIRECT(CONCATENATE("'",F$1,"'!",F$4,(YEAR($A56)-1921)*12+MONTH($A56)+3+IF(ISNUMBER(FIND("PRV",F$6)),1,0)))*IF(AND(F$3>0,TRIM(F$9)="CFS"),Conversions!$C56,1) -> 0 | G56: =INDIRECT(CONCATENATE("'",G$1,"'!",G$4,(YEAR($A56)-1921)*12+MONTH($A56)+3+IF(ISNUMBER(FIND("PRV",G$6)),1,0)))*IF(AND(G$3>0,TRIM(G$9)="CFS"),Conversions!$C56,1) -> 26.2445599 | K56: 1966 | L56: =B541 -> 0 | M56: =B542 -> 0 | N56: =B543 -> 0 | O56: =B544 -> 0 | P56: =B545 -> 0 | Q56: =B546 -> 0 | R56: =B547 -> 0 | S56: =B548 -> 0 | T56: =B549 -> 0 | U56: =B550 -> 0 | V56: =B551 -> 0 | W56: =B552 -> 0 | Y56: 0 | Z56: 0 | AA56: 0 | AC56: 0 | AD56: 0 | AE56: 0 | AF56: 0 | AG56: 0 | AH56: 0 | AI56: 0 | AK56: 1966 | AL56: =C541 -> 0 | AM56: =C542 -> 0 | AN56: =C543 -> 0 | AO56: =C544 -> 0 | AP56: =C545 -> 0 | AQ56: =C546 -> 0 | AR56: =C547 -> 0 | AS56: =C548 -> 0 | AT56: =C549 -> 0 | AU56: =C550 -> 0 | AV56: =C551 -> 0 | AW56: =C552 -> 0 | AY56: 0 | AZ56: 0 | BA56: 0 | BC56: 0 | BD56: 0 | BE56: 0 | BF56: 0 | BG56: 0 | BH56: 0 | BI56: 0 | BK56: 1966 | BL56: =D541 -> 0 | BM56: =D542 -> 0 | BN56: =D543 -> 0 | BO56: =D544 -> 0 | BP56: =D545 -> 0 | BQ56: =D546 -> 0 | BR56: =D547 -> 0 | BS56: =D548 -> 85.79553853 | BT56: =D549 -> 95.48840887 | BU56: =D550 -> 144.4141414 | BV56: =D551 -> 128.418325 | BW56: =D552 -> 65.04493084 | BY56: 598.2164111 | BZ56: 598.2164111 | CA56: 519.1613446 | CC56: 0 | CD56: 270.7783224 | CE56: 0 | CF56: 0 | CG56: 181.2839474 | CH56: 433.3658061 | CI56: 144.0999974 | CK56: 1966 | CL56: =E541 -> 0.3647691456 | CM56: =E542 -> 0 | CN56: =E543 -> 0 | CO56: =E544 -> 0 | CP56: =E545 -> 0 | CQ56: =E546 -> 0.05100962121 | CR56: =E547 -> 19.61084889 | CS56: =E548 -> 85.79553853 | CT56: =E549 -> 114.100562 | CU56: =E550 -> 129.2703456 | CV56: =E551 -> 14.0663891 | CW56: =E552 -> 61.68580372 | CY56: 495.6512779 | CZ56: 495.6512779 | DA56: 424.9452666 | DC56: 0.05100962121 | DD56: 141.7503963 | DE56: 0.3647691456 | DF56: 0 | DG56: 219.5579591 | DH56: 319.1231004 | DI56: 132.7565842 | DK56: 1966 | DL56: =F541 -> 0 | DM56: =F542 -> 0 | DN56: =F543 -> 0 | DO56: =F544 -> 0 | DP56: =F545 -> 0 | DQ56: =F546 -> 0 | DR56: =F547 -> 0 | DS56: =F548 -> 85.79553853 | DT56: =F549 -> 92.96383868 | DU56: =F550 -> 101.1594538 | DV56: =F551 -> 46.34207572 | DW56: =F552 -> 63.43167356 | DY56: 478.3940339 | DZ56: 478.3940339 | EA56: 389.6925803 | EC56: 0 | ED56: 178.4977028 | EE56: 0 | EF56: 0 | EG56: 178.7593772 | EH56: 303.8970418 | EI56: 152.1331271 | EK56: 1966 | EL56: =G541 -> 0.3647691456 | EM56: =G542 -> 0 | EN56: =G543 -> 0 | EO56: =G544 -> 0 | EP56: =G545 -> 0 | EQ56: =G546 -> 0.05100962121 | ER56: =G547 -> 19.61084889 | ES56: =G548 -> 85.79553853 | ET56: =G549 -> 114.0138778 | EU56: =G550 -> 61.53482907 | EV56: =G551 -> 10.50040715 | EW56: =G552 -> 63.26123112 | EY56: 418.686109 | EZ56: 418.686109 | FA56: 355.1325113 | FC56: 0.05100962121 | FD56: 132.6034909 | FE56: 0.3647691456 | FF56: 0 | FG56: 219.4712749 | FH56: 249.3103451 | FI56: 127.1795979
A57: 1925-06-30 | B57: =INDIRECT(CONCATENATE("'",B$1,"'!",B$4,(YEAR($A57)-1921)*12+MONTH($A57)+3+IF(ISNUMBER(FIND("PRV",B$6)),1,0)))*IF(AND(B$3>0,TRIM(B$9)="CFS"),Conversions!$C57,1) -> 0 | C57: =INDIRECT(CONCATENATE("'",C$1,"'!",C$4,(YEAR($A57)-1921)*12+MONTH($A57)+3+IF(ISNUMBER(FIND("PRV",C$6)),1,0)))*IF(AND(C$3>0,TRIM(C$9)="CFS"),Conversions!$C57,1) -> 0 | D57: =INDIRECT(CONCATENATE("'",D$1,"'!",D$4,(YEAR($A57)-1921)*12+MONTH($A57)+3+IF(ISNUMBER(FIND("PRV",D$6)),1,0)))*IF(AND(D$3>0,TRIM(D$9)="CFS"),Conversions!$C57,1) -> 51.74784682 | E57: =INDIRECT(CONCATENATE("'",E$1,"'!",E$4,(YEAR($A57)-1921)*12+MONTH($A57)+3+IF(ISNUMBER(FIND("PRV",E$6)),1,0)))*IF(AND(E$3>0,TRIM(E$9)="CFS"),Conversions!$C57,1) -> 30.10773054 | F57: =INDIRECT(CONCATENATE("'",F$1,"'!",F$4,(YEAR($A57)-1921)*12+MONTH($A57)+3+IF(ISNUMBER(FIND("PRV",F$6)),1,0)))*IF(AND(F$3>0,TRIM(F$9)="CFS"),Conversions!$C57,1) -> 36.70922054 | G57: =INDIRECT(CONCATENATE("'",G$1,"'!",G$4,(YEAR($A57)-1921)*12+MONTH($A57)+3+IF(ISNUMBER(FIND("PRV",G$6)),1,0)))*IF(AND(G$3>0,TRIM(G$9)="CFS"),Conversions!$C57,1) -> 40.15564422 | K57: 1967 | L57: =B553 -> 0 | M57: =B554 -> 0 | N57: =B555 -> 0 | O57: =B556 -> 0 | P57: =B557 -> 0 | Q57: =B558 -> 0 | R57: =B559 -> 0 | S57: =B560 -> 0 | T57: =B561 -> 0 | U57: =B562 -> 0 | V57: =B563 -> 0 | W57: =B564 -> 0 | Y57: 0 | Z57: 0 | AA57: 0 | AC57: 0 | AD57: 0 | AE57: 0 | AF57: 0 | AG57: 0 | AH57: 0 | AI57: 0 | AK57: 1967 | AL57: =C553 -> 0 | AM57: =C554 -> 0 | AN57: =C555 -> 0 | AO57: =C556 -> 0 | AP57: =C557 -> 0 | AQ57: =C558 -> 0 | AR57: =C559 -> 0 | AS57: =C560 -> 0 | AT57: =C561 -> 0 | AU57: =C562 -> 0 | AV57: =C563 -> 0 | AW57: =C564 -> 0 | AY57: 0 | AZ57: 0 | BA57: 0 | BC57: 0 | BD57: 0 | BE57: 0 | BF57: 0 | BG57: 0 | BH57: 0 | BI57: 0 | BK57: 1967 | BL57: =D553 -> 77.31506653 | BM57: =D554 -> 1.74 | BN57: =D555 -> 0 | BO57: =D556 -> 0 | BP57: =D557 -> 0 | BQ57: =D558 -> 0 | BR57: =D559 -> 0 | BS57: =D560 -> 0 | BT57: =D561 -> 0 | BU57: =D562 -> 0 | BV57: =D563 -> 30.08620682 | BW57: =D564 -> 27.5862069 | BY57: 85.25862061 | BZ57: 85.25862061 | CA57: 136.7274802 | CC57: 1.74 | CD57: 85.25862061 | CE57: 79.05506653 | CF57: 0 | CG57: 0 | CH57: 57.67241371 | CI57: 55.1724138 | CK57: 1967 | CL57: =E553 -> 65.99820346 | CM57: =E554 -> 5.072577005 | CN57: =E555 -> 0 | CO57: =E556 -> 0 | CP57: =E557 -> 0 | CQ57: =E558 -> 0 | CR57: =E559 -> 0.0928847921 | CS57: =E560 -> 0 | CT57: =E561 -> 0 | CU57: =E562 -> 2.5 | CV57: =E563 -> 30.0862069 | CW57: =E564 -> 27.5862069 | CY57: 87.85150549 | CZ57: 87.85150549 | DA57: 131.3360791 | DC57: 5.072577005 | DD57: 85.2586207 | DE57: 71.07078046 | DF57: 0 | DG57: 0.0928847921 | DH57: 60.1724138 | DI57: 55.1724138 | DK57: 1967 | DL57: =F553 -> 68.72395353 | DM57: =F554 -> 19.9775 | DN57: =F555 -> 0 | DO57: =F556 -> 0 | DP57: =F557 -> 0 | DQ57: =F558 -> 0 | DR57: =F559 -> 0 | DS57: =F560 -> 0 | DT57: =F561 -> 0 | DU57: =F562 -> 0 | DV57: =F563 -> 30.08620683 | DW57: =F564 -> 27.5862069 | DY57: 85.25862062 | DZ57: 85.25862062 | EA57: 146.3738673 | EC57: 19.9775 | ED57: 85.25862062 | EE57: 88.70145353 | EF57: 0 | EG57: 0 | EH57: 57.67241372 | EI57: 55.1724138 | EK57: 1967 | EL57: =G553 -> 58.84185263 | EM57: =G554 -> 5.076514159 | EN57: =G555 -> 0 | EO57: =G556 -> 0 | EP57: =G557 -> 0 | EQ57: =G558 -> 0 | ER57: =G559 -> 0.0928847921 | ES57: =G560 -> 0 | ET57: =G561 -> 0 | EU57: =G562 -> 2.5 | EV57: =G563 -> 30.0862069 | EW57: =G564 -> 0 | EY57: 60.26529859 | EZ57: 60.26529859 | FA57: 96.59745848 | FC57: 5.076514159 | FD57: 57.6724138 | FE57: 63.91836679 | FF57: 0 | FG57: 0.0928847921 | FH57: 32.5862069 | FI57: 27.5862069
